Workbook

Sheet Přehled_body
D1: Hrací den | E1: =IF(E2>0,1,"") -> 1 | J1: =IF(OR(E1="",J2=""),"",E1+1) ->  | AS1: =IF(OR(AN1="",AS2=""),"",AN1+1) ->  | CB1: =IF(OR(BW1="",CB2=""),"",BW1+1) ->  | DK1: =IF(OR(DF1="",DK2=""),"",DF1+1) -> 
B2: =E2 -> 2022-01-04 | C2: 2022 | D2: 1. pololetí | E2: 2022-01-04 | EE2: =Tabulka!AE2 -> Součet | EF2: =Tabulka!AF2 -> Body | EL2: 1. pololetí
D3: Kolo | E3: 1 | F3: 2 | G3: 3 | H3: 4 | I3: 5 | J3: 1 | K3: 2 | L3: 3 | M3: 4 | N3: 5 | O3: 1 | P3: 2 | Q3: 3 | R3: 4 | S3: 5 | T3: 1 | U3: 2 | V3: 3 | W3: 4 | X3: 5 | Y3: 1 | Z3: 2 | AA3: 3 | AB3: 4 | AC3: 5 | AD3: 1 | AE3: 2 | AF3: 3 | AG3: 4 | AH3: 5 | AI3: 1 | AJ3: 2 | AK3: 3 | AL3: 4 | AM3: 5 | AN3: 1 | AO3: 2 | AP3: 3 | AQ3: 4 | AR3: 5 | AS3: 1 | AT3: 2 | AU3: 3 | AV3: 4 | AW3: 5 | AX3: 1 | AY3: 2 | AZ3: 3 | BA3: 4 | BB3: 5 | BC3: 1 | BD3: 2 | BE3: 3 | BF3: 4 | BG3: 5 | BH3: 1 | BI3: 2 | BJ3: 3 | BK3: 4 | BL3: 5 | BM3: 1 | BN3: 2 | BO3: 3 | BP3: 4 | BQ3: 5 | BR3: 1 | BS3: 2 | BT3: 3 | BU3: 4 | BV3: 5 | BW3: 1 | BX3: 2 | BY3: 3 | BZ3: 4 | CA3: 5 | CB3: 1 | CC3: 2 | CD3: 3 | CE3: 4 | CF3: 5 | CG3: 1 | CH3: 2 | CI3: 3 | CJ3: 4 | CK3: 5 | CL3: 1 | CM3: 2 | CN3: 3 | CO3: 4 | CP3: 5 | CQ3: 1 | CR3: 2 | CS3: 3 | CT3: 4 | CU3: 5 | CV3: 1 | CW3: 2 | CX3: 3 | CY3: 4 | CZ3: 5 | DA3: 1 | DB3: 2 | DC3: 3 | DD3: 4 | DE3: 5 | DF3: 1 | DG3: 2 | DH3: 3 | DI3: 4 | DJ3: 5 | DK3: 1 | DL3: 2 | DM3: 3 | DN3: 4 | DO3: 5 | DP3: 1 | DQ3: 2 | DR3: 3 | DS3: 4 | DT3: 5 | DU3: 1 | DV3: 2 | DW3: 3 | DX3: 4 | DY3: 5 | DZ3: 1 | EA3: 2 | EB3: 3 | EC3: 4 | ED3: 5 | EE3: =Tabulka!AE3 -> celkem | EF3: =Tabulka!AF3 -> 0 | EL3: 2. pololetí
A4: =CONCATENATE($C$5," ",$C$6,D4) -> Libor HruškaVýhry | B4: =CONCATENATE(C5," ",C6) -> Libor Hruška | C4: =Tabulka!A4 -> 1 | D4: Výhry | E4: 1 | EE4: =IF(AND(SUM(Tabulka!$AG$4)>0.99,(SUM(Tabulka!$AG$4)<2)),-50000+(SUM(E4:ED4)),IF(OR(SUM(Tabulka!$AG$4)<2),-90000,SUM(E4:ED4))) -> -49999 | EG4: =SUM(E4:ED4) -> 1
A5: =CONCATENATE($C$5," ",$C$6,D5) -> Libor HruškaProhry | B5: =CONCATENATE(C5," ",C6) -> Libor Hruška | C5: =Tabulka!B5 -> Libor | D5: Prohry | E5: 0 | EE5: =IF(AND(SUM(Tabulka!$AG$4)>0.99,(SUM(Tabulka!$AG$4)<2)),-50000+(SUM(E5:ED5)),IF(OR(SUM(Tabulka!$AG$4)<2),-90000,SUM(E5:ED5))) -> -50000 | EF5: =SUM(EE4-EE5) -> 1 | EG5: 0
A6: Libor HruškaPlaceno panáků | B6: =CONCATENATE(C5," ",C6) -> Libor Hruška | C6: =Tabulka!B6 -> Hruška | D6: Placeno panáků | E6: 0 | EE6: =IF(AND(SUM(Tabulka!$AG$4)>0.99,(SUM(Tabulka!$AG$4)<2)),-50000+(SUM(E6:ED6)),IF(OR(SUM(Tabulka!$AG$4)<2),-90000,SUM(E6:ED6))) -> -50000 | EG6: =SUM(E6:ED6)+0.2 -> 0.2
A7: Libor HruškaPřehozy | B7: =CONCATENATE(C5," ",C6) -> Libor Hruška | C7: =Tabulka!B7 -> 0 | D7: Přehozy | E7: 0 | EE7: =IF(AND(SUM(Tabulka!$AG$4)>0.99,(SUM(Tabulka!$AG$4)<2)),-50000+(SUM(E7:ED7)),IF(OR(SUM(Tabulka!$AG$4)<2),-90000,SUM(E7:ED7))) -> -50000 | EG7: 0
A8: Libor HruškaPoč. kol | B8: =CONCATENATE(C5," ",C6) -> Libor Hruška | C8: =Tabulka!B8 -> 0 | D8: Poč. kol | E8: 4 | EE8: =IF(AND(SUM(Tabulka!$AG$4)>0.99,(SUM(Tabulka!$AG$4)<2)),-50000+(SUM(E8:ED8)),IF(OR(SUM(Tabulka!$AG$4)<2),-90000,SUM(E8:ED8))) -> -49996 | EG8: 4
A9: Libor HruškaPočet konečných bodů | B9: =CONCATENATE(C5," ",C6) -> Libor Hruška | D9: Počet konečných bodů | E9: 0 | F9: 20 | G9: 62 | H9: 52 | EE9: =IF(AND(SUM(Tabulka!$AG$4)>0.99,(SUM(Tabulka!$AH$8)<6)),50000+C4/1000,IF(OR(SUM(Tabulka!$AG$4)<2),90000,SUM(E9:ED9)))+EG9 -> 50134.001 | EG9: 134
A10: Libor HruškaPrůměr konečných bodů na kolo | B10: =CONCATENATE(C5," ",C6) -> Libor Hruška | D10: Průměr konečných bodů na kolo | E10: =IF(E9<>"",AVERAGE($E9:E9)+$EI10,"") -> 1.33e-05 | F10: =IF(F9<>"",AVERAGE($E9:F9)+$EI10,"") -> 10.0000133 | G10: =IF(G9<>"",AVERAGE($E9:G9)+$EI10,"") -> 27.33334663 | H10: =IF(H9<>"",AVERAGE($E9:H9)+$EI10,"") -> 33.5000133 | I10: =IF(I9<>"",AVERAGE($E9:I9)+$EI10,"") ->  | J10: =IF(J9<>"",AVERAGE($E9:J9)+$EI10,"") ->  | K10: =IF(K9<>"",AVERAGE($E9:K9)+$EI10,"") ->  | L10: =IF(L9<>"",AVERAGE($E9:L9)+$EI10,"") ->  | M10: =IF(M9<>"",AVERAGE($E9:M9)+$EI10,"") ->  | N10: =IF(N9<>"",AVERAGE($E9:N9)+$EI10,"") ->  | O10: =IF(O9<>"",AVERAGE($E9:O9)+$EI10,"") ->  | P10: =IF(P9<>"",AVERAGE($E9:P9)+$EI10,"") ->  | Q10: =IF(Q9<>"",AVERAGE($E9:Q9)+$EI10,"") ->  | R10: =IF(R9<>"",AVERAGE($E9:R9)+$EI10,"") ->  | S10: =IF(S9<>"",AVERAGE($E9:S9)+$EI10,"") ->  | T10: =IF(T9<>"",AVERAGE($E9:T9)+$EI10,"") ->  | U10: =IF(U9<>"",AVERAGE($E9:U9)+$EI10,"") ->  | V10: =IF(V9<>"",AVERAGE($E9:V9)+$EI10,"") ->  | W10: =IF(W9<>"",AVERAGE($E9:W9)+$EI10,"") ->  | X10: =IF(X9<>"",AVERAGE($E9:X9)+$EI10,"") ->  | Y10: =IF(Y9<>"",AVERAGE($E9:Y9)+$EI10,"") ->  | Z10: =IF(Z9<>"",AVERAGE($E9:Z9)+$EI10,"") ->  | AA10: =IF(AA9<>"",AVERAGE($E9:AA9)+$EI10,"") ->  | AB10: =IF(AB9<>"",AVERAGE($E9:AB9)+$EI10,"") ->  | AC10: =IF(AC9<>"",AVERAGE($E9:AC9)+$EI10,"") ->  | AD10: =IF(AD9<>"",AVERAGE($E9:AD9)+$EI10,"") ->  | AE10: =IF(AE9<>"",AVERAGE($E9:AE9)+$EI10,"") ->  | AF10: =IF(AF9<>"",AVERAGE($E9:AF9)+$EI10,"") ->  | AG10: =IF(AG9<>"",AVERAGE($E9:AG9)+$EI10,"") ->  | AH10: =IF(AH9<>"",AVERAGE($E9:AH9)+$EI10,"") ->  | AI10: =IF(AI9<>"",AVERAGE($E9:AI9)+$EI10,"") ->  | AJ10: =IF(AJ9<>"",AVERAGE($E9:AJ9)+$EI10,"") ->  | AK10: =IF(AK9<>"",AVERAGE($E9:AK9)+$EI10,"") ->  | AL10: =IF(AL9<>"",AVERAGE($E9:AL9)+$EI10,"") ->  | AM10: =IF(AM9<>"",AVERAGE($E9:AM9)+$EI10,"") ->  | AN10: =IF(AN9<>"",AVERAGE($E9:AN9)+$EI10,"") ->  | AO10: =IF(AO9<>"",AVERAGE($E9:AO9)+$EI10,"") ->  | AP10: =IF(AP9<>"",AVERAGE($E9:AP9)+$EI10,"") ->  | AQ10: =IF(AQ9<>"",AVERAGE($E9:AQ9)+$EI10,"") ->  | AR10: =IF(AR9<>"",AVERAGE($E9:AR9)+$EI10,"") ->  | AS10: =IF(AS9<>"",AVERAGE($E9:AS9)+$EI10,"") ->  | AT10: =IF(AT9<>"",AVERAGE($E9:AT9)+$EI10,"") ->  | AU10: =IF(AU9<>"",AVERAGE($E9:AU9)+$EI10,"") ->  | AV10: =IF(AV9<>"",AVERAGE($E9:AV9)+$EI10,"") ->  | AW10: =IF(AW9<>"",AVERAGE($E9:AW9)+$EI10,"") ->  | AX10: =IF(AX9<>"",AVERAGE($E9:AX9)+$EI10,"") ->  | AY10: =IF(AY9<>"",AVERAGE($E9:AY9)+$EI10,"") ->  | AZ10: =IF(AZ9<>"",AVERAGE($E9:AZ9)+$EI10,"") ->  | BA10: =IF(BA9<>"",AVERAGE($E9:BA9)+$EI10,"") ->  | BB10: =IF(BB9<>"",AVERAGE($E9:BB9)+$EI10,"") ->  | BC10: =IF(BC9<>"",AVERAGE($E9:BC9)+$EI10,"") ->  | BD10: =IF(BD9<>"",AVERAGE($E9:BD9)+$EI10,"") ->  | BE10: =IF(BE9<>"",AVERAGE($E9:BE9)+$EI10,"") ->  | BF10: =IF(BF9<>"",AVERAGE($E9:BF9)+$EI10,"") ->  | BG10: =IF(BG9<>"",AVERAGE($E9:BG9)+$EI10,"") ->  | BH10: =IF(BH9<>"",AVERAGE($E9:BH9)+$EI10,"") ->  | BI10: =IF(BI9<>"",AVERAGE($E9:BI9)+$EI10,"") ->  | BJ10: =IF(BJ9<>"",AVERAGE($E9:BJ9)+$EI10,"") ->  | BK10: =IF(BK9<>"",AVERAGE($E9:BK9)+$EI10,"") ->  | BL10: =IF(BL9<>"",AVERAGE($E9:BL9)+$EI10,"") ->  | BM10: =IF(BM9<>"",AVERAGE($E9:BM9)+$EI10,"") ->  | BN10: =IF(BN9<>"",AVERAGE($E9:BN9)+$EI10,"") ->  | BO10: =IF(BO9<>"",AVERAGE($E9:BO9)+$EI10,"") ->  | BP10: =IF(BP9<>"",AVERAGE($E9:BP9)+$EI10,"") ->  | BQ10: =IF(BQ9<>"",AVERAGE($E9:BQ9)+$EI10,"") ->  | BR10: =IF(BR9<>"",AVERAGE($E9:BR9)+$EI10,"") ->  | BS10: =IF(BS9<>"",AVERAGE($E9:BS9)+$EI10,"") ->  | BT10: =IF(BT9<>"",AVERAGE($E9:BT9)+$EI10,"") ->  | BU10: =IF(BU9<>"",AVERAGE($E9:BU9)+$EI10,"") ->  | BV10: =IF(BV9<>"",AVERAGE($E9:BV9)+$EI10,"") ->  | BW10: =IF(BW9<>"",AVERAGE($E9:BW9)+$EI10,"") ->  | BX10: =IF(BX9<>"",AVERAGE($E9:BX9)+$EI10,"") ->  | BY10: =IF(BY9<>"",AVERAGE($E9:BY9)+$EI10,"") ->  | BZ10: =IF(BZ9<>"",AVERAGE($E9:BZ9)+$EI10,"") ->  | CA10: =IF(CA9<>"",AVERAGE($E9:CA9)+$EI10,"") ->  | CB10: =IF(CB9<>"",AVERAGE($E9:CB9)+$EI10,"") ->  | CC10: =IF(CC9<>"",AVERAGE($E9:CC9)+$EI10,"") ->  | CD10: =IF(CD9<>"",AVERAGE($E9:CD9)+$EI10,"") ->  | CE10: =IF(CE9<>"",AVERAGE($E9:CE9)+$EI10,"") ->  | CF10: =IF(CF9<>"",AVERAGE($E9:CF9)+$EI10,"") ->  | CG10: =IF(CG9<>"",AVERAGE($E9:CG9)+$EI10,"") ->  | CH10: =IF(CH9<>"",AVERAGE($E9:CH9)+$EI10,"") ->  | CI10: =IF(CI9<>"",AVERAGE($E9:CI9)+$EI10,"") ->  | CJ10: =IF(CJ9<>"",AVERAGE($E9:CJ9)+$EI10,"") ->  | CK10: =IF(CK9<>"",AVERAGE($E9:CK9)+$EI10,"") ->  | CL10: =IF(CL9<>"",AVERAGE($E9:CL9)+$EI10,"") ->  | CM10: =IF(CM9<>"",AVERAGE($E9:CM9)+$EI10,"") ->  | CN10: =IF(CN9<>"",AVERAGE($E9:CN9)+$EI10,"") ->  | CO10: =IF(CO9<>"",AVERAGE($E9:CO9)+$EI10,"") ->  | CP10: =IF(CP9<>"",AVERAGE($E9:CP9)+$EI10,"") ->  | CQ10: =IF(CQ9<>"",AVERAGE($E9:CQ9)+$EI10,"") ->  | CR10: =IF(CR9<>"",AVERAGE($E9:CR9)+$EI10,"") ->  | CS10: =IF(CS9<>"",AVERAGE($E9:CS9)+$EI10,"") ->  | CT10: =IF(CT9<>"",AVERAGE($E9:CT9)+$EI10,"") ->  | CU10: =IF(CU9<>"",AVERAGE($E9:CU9)+$EI10,"") ->  | CV10: =IF(CV9<>"",AVERAGE($E9:CV9)+$EI10,"") ->  | CW10: =IF(CW9<>"",AVERAGE($E9:CW9)+$EI10,"") ->  | CX10: =IF(CX9<>"",AVERAGE($E9:CX9)+$EI10,"") ->  | CY10: =IF(CY9<>"",AVERAGE($E9:CY9)+$EI10,"") ->  | CZ10: =IF(CZ9<>"",AVERAGE($E9:CZ9)+$EI10,"") ->  | DA10: =IF(DA9<>"",AVERAGE($E9:DA9)+$EI10,"") ->  | DB10: =IF(DB9<>"",AVERAGE($E9:DB9)+$EI10,"") ->  | DC10: =IF(DC9<>"",AVERAGE($E9:DC9)+$EI10,"") ->  | DD10: =IF(DD9<>"",AVERAGE($E9:DD9)+$EI10,"") ->  | DE10: =IF(DE9<>"",AVERAGE($E9:DE9)+$EI10,"") ->  | DF10: =IF(DF9<>"",AVERAGE($E9:DF9)+$EI10,"") ->  | DG10: =IF(DG9<>"",AVERAGE($E9:DG9)+$EI10,"") ->  | DH10: =IF(DH9<>"",AVERAGE($E9:DH9)+$EI10,"") ->  | DI10: =IF(DI9<>"",AVERAGE($E9:DI9)+$EI10,"") ->  | DJ10: =IF(DJ9<>"",AVERAGE($E9:DJ9)+$EI10,"") ->  | DK10: =IF(DK9<>"",AVERAGE($E9:DK9)+$EI10,"") ->  | DL10: =IF(DL9<>"",AVERAGE($E9:DL9)+$EI10,"") ->  | DM10: =IF(DM9<>"",AVERAGE($E9:DM9)+$EI10,"") ->  | DN10: =IF(DN9<>"",AVERAGE($E9:DN9)+$EI10,"") ->  | DO10: =IF(DO9<>"",AVERAGE($E9:DO9)+$EI10,"") ->  | DP10: =IF(DP9<>"",AVERAGE($E9:DP9)+$EI10,"") ->  | DQ10: =IF(DQ9<>"",AVERAGE($E9:DQ9)+$EI10,"") ->  | DR10: =IF(DR9<>"",AVERAGE($E9:DR9)+$EI10,"") ->  | DS10: =IF(DS9<>"",AVERAGE($E9:DS9)+$EI10,"") ->  | DT10: =IF(DT9<>"",AVERAGE($E9:DT9)+$EI10,"") ->  | DU10: =IF(DU9<>"",AVERAGE($E9:DU9)+$EI10,"") ->  | DV10: =IF(DV9<>"",AVERAGE($E9:DV9)+$EI10,"") ->  | DW10: =IF(DW9<>"",AVERAGE($E9:DW9)+$EI10,"") ->  | DX10: =IF(DX9<>"",AVERAGE($E9:DX9)+$EI10,"") ->  | DY10: =IF(DY9<>"",AVERAGE($E9:DY9)+$EI10,"") ->  | DZ10: =IF(DZ9<>"",AVERAGE($E9:DZ9)+$EI10,"") ->  | EA10: =IF(EA9<>"",AVERAGE($E9:EA9)+$EI10,"") ->  | EB10: =IF(EB9<>"",AVERAGE($E9:EB9)+$EI10,"") ->  | EC10: =IF(EC9<>"",AVERAGE($E9:EC9)+$EI10,"") ->  | ED10: =IF(ED9<>"",AVERAGE($E9:ED9)+$EI10,"") ->  | EE10: =IF(AND(SUM(Tabulka!$AG$4)>0.99,(SUM(Tabulka!$AH$8)<6)),50000+C4/1000,IF(OR(SUM(Tabulka!$AG$4)<2),90000,SUM(E9:ED9)/COUNT(E10:ED10)))+EG10 -> 50033.501 | EG10: =IFERROR(SUM(E9:ED9)/COUNT(E9:ED9),) -> 33.5 | EH10: =CONCATENATE(C5," ",C6) -> Libor Hruška | EI10: =INDEX(List4!$E$2:$E$19,MATCH(CONCATENATE(C5," ",C6),List4!$A$2:$A$19,0),1) -> 1.33e-05
A11: Libor HruškaPočet šipek | B11: =CONCATENATE(C5," ",C6) -> Libor Hruška | D11: Počet šipek | EE11: =IF(AND(SUM(Tabulka!$AG$4)>0.99,(SUM(Tabulka!$AG$4)<2)),-50000+(SUM(E11:ED11)),IF(OR(SUM(Tabulka!$AG$4)<2),-90000,SUM(E11:ED11))) -> -50000 | EG11: =SUM(E11:ED11) -> 0
A12: =CONCATENATE($C$13," ",$C$14,D12) -> Míra ŠedivýVýhry | B12: =CONCATENATE(C13," ",C14) -> Míra Šedivý | C12: =Tabulka!A9 -> 2 | D12: Výhry | E12: 1 | EE12: =IF(AND(SUM(Tabulka!$AG$9)>0.99,(SUM(Tabulka!$AG$9)<2)),-50000+(SUM(E12:ED12)),IF(OR(SUM(Tabulka!$AG$9)<2),-90000,SUM(E12:ED12))) -> -49999 | EG12: 1
A13: Míra ŠedivýProhry | B13: Míra Šedivý | C13: =Tabulka!B10 -> Míra | D13: Prohry | E13: 0 | EE13: =IF(AND(SUM(Tabulka!$AG$9)>0.99,(SUM(Tabulka!$AG$9)<2)),-50000+(SUM(E13:ED13)),IF(OR(SUM(Tabulka!$AG$9)<2),-90000,SUM(E13:ED13))) -> -50000 | EF13: =SUM(EE12-EE13) -> 1 | EG13: 0
A14: Míra ŠedivýPlaceno panáků | B14: =CONCATENATE(C13," ",C14) -> Míra Šedivý | C14: =Tabulka!B11 -> Šedivý | D14: Placeno panáků | E14: 0 | EE14: =IF(AND(SUM(Tabulka!$AG$9)>0.99,(SUM(Tabulka!$AG$9)<2)),-50000+(SUM(E14:ED14)),IF(OR(SUM(Tabulka!$AG$9)<2),-90000,SUM(E14:ED14))) -> -50000 | EG14: =SUM(E14:ED14)+0.2 -> 0.2
A15: Míra ŠedivýPřehozy | B15: =CONCATENATE(C13," ",C14) -> Míra Šedivý | C15: =Tabulka!B12 -> Míra Š | D15: Přehozy | E15: 2 | EE15: =IF(AND(SUM(Tabulka!$AG$9)>0.99,(SUM(Tabulka!$AG$9)<2)),-50000+(SUM(E15:ED15)),IF(OR(SUM(Tabulka!$AG$9)<2),-90000,SUM(E15:ED15))) -> -49998 | EG15: 2
A16: Míra ŠedivýPoč. kol | B16: =CONCATENATE(C13," ",C14) -> Míra Šedivý | C16: =Tabulka!B13 -> 0 | D16: Poč. kol | E16: 4 | EE16: =IF(AND(SUM(Tabulka!$AG$9)>0.99,(SUM(Tabulka!$AG$9)<2)),-50000+(SUM(E16:ED16)),IF(OR(SUM(Tabulka!$AG$9)<2),-90000,SUM(E16:ED16))) -> -49996 | EG16: 4
A17: Míra ŠedivýPočet konečných bodů | B17: =CONCATENATE(C13," ",C14) -> Míra Šedivý | D17: Počet konečných bodů | E17: 88 | F17: 30 | G17: 70 | H17: 0 | EE17: =IF(AND(SUM(Tabulka!$AG$9)>0.5,(SUM(Tabulka!$AH$13)<6)),50000+C12/1000,IF(OR(SUM(Tabulka!$AG$9)<2),90000,SUM(E17:ED17)))+EG17 -> 50188.002 | EG17: 188 | EH17: =Tabulka!$AG$9 -> 1 | EI17: =$EJ$17-EG17 -> 4812 | EJ17: 5000
A18: Míra ŠedivýPrůměr konečných bodů na kolo | B18: =CONCATENATE(C13," ",C14) -> Míra Šedivý | D18: Průměr konečných bodů na kolo | E18: =IF(E17<>"",AVERAGE($E17:E17)+$EI18,"") -> 88.0000221 | F18: =IF(F17<>"",AVERAGE($E17:F17)+$EI18,"") -> 59.0000221 | G18: =IF(G17<>"",AVERAGE($E17:G17)+$EI18,"") -> 62.66668877 | H18: =IF(H17<>"",AVERAGE($E17:H17)+$EI18,"") -> 47.0000221 | I18: =IF(I17<>"",AVERAGE($E17:I17)+$EI18,"") ->  | J18: =IF(J17<>"",AVERAGE($E17:J17)+$EI18,"") ->  | K18: =IF(K17<>"",AVERAGE($E17:K17)+$EI18,"") ->  | L18: =IF(L17<>"",AVERAGE($E17:L17)+$EI18,"") ->  | M18: =IF(M17<>"",AVERAGE($E17:M17)+$EI18,"") ->  | N18: =IF(N17<>"",AVERAGE($E17:N17)+$EI18,"") ->  | O18: =IF(O17<>"",AVERAGE($E17:O17)+$EI18,"") ->  | P18: =IF(P17<>"",AVERAGE($E17:P17)+$EI18,"") ->  | Q18: =IF(Q17<>"",AVERAGE($E17:Q17)+$EI18,"") ->  | R18: =IF(R17<>"",AVERAGE($E17:R17)+$EI18,"") ->  | S18: =IF(S17<>"",AVERAGE($E17:S17)+$EI18,"") ->  | T18: =IF(T17<>"",AVERAGE($E17:T17)+$EI18,"") ->  | U18: =IF(U17<>"",AVERAGE($E17:U17)+$EI18,"") ->  | V18: =IF(V17<>"",AVERAGE($E17:V17)+$EI18,"") ->  | W18: =IF(W17<>"",AVERAGE($E17:W17)+$EI18,"") ->  | X18: =IF(X17<>"",AVERAGE($E17:X17)+$EI18,"") ->  | Y18: =IF(Y17<>"",AVERAGE($E17:Y17)+$EI18,"") ->  | Z18: =IF(Z17<>"",AVERAGE($E17:Z17)+$EI18,"") ->  | AA18: =IF(AA17<>"",AVERAGE($E17:AA17)+$EI18,"") ->  | AB18: =IF(AB17<>"",AVERAGE($E17:AB17)+$EI18,"") ->  | AC18: =IF(AC17<>"",AVERAGE($E17:AC17)+$EI18,"") ->  | AD18: =IF(AD17<>"",AVERAGE($E17:AD17)+$EI18,"") ->  | AE18: =IF(AE17<>"",AVERAGE($E17:AE17)+$EI18,"") ->  | AF18: =IF(AF17<>"",AVERAGE($E17:AF17)+$EI18,"") ->  | AG18: =IF(AG17<>"",AVERAGE($E17:AG17)+$EI18,"") ->  | AH18: =IF(AH17<>"",AVERAGE($E17:AH17)+$EI18,"") ->  | AI18: =IF(AI17<>"",AVERAGE($E17:AI17)+$EI18,"") ->  | AJ18: =IF(AJ17<>"",AVERAGE($E17:AJ17)+$EI18,"") ->  | AK18: =IF(AK17<>"",AVERAGE($E17:AK17)+$EI18,"") ->  | AL18: =IF(AL17<>"",AVERAGE($E17:AL17)+$EI18,"") ->  | AM18: =IF(AM17<>"",AVERAGE($E17:AM17)+$EI18,"") ->  | AN18: =IF(AN17<>"",AVERAGE($E17:AN17)+$EI18,"") ->  | AO18: =IF(AO17<>"",AVERAGE($E17:AO17)+$EI18,"") ->  | AP18: =IF(AP17<>"",AVERAGE($E17:AP17)+$EI18,"") ->  | AQ18: =IF(AQ17<>"",AVERAGE($E17:AQ17)+$EI18,"") ->  | AR18: =IF(AR17<>"",AVERAGE($E17:AR17)+$EI18,"") ->  | AS18: =IF(AS17<>"",AVERAGE($E17:AS17)+$EI18,"") ->  | AT18: =IF(AT17<>"",AVERAGE($E17:AT17)+$EI18,"") ->  | AU18: =IF(AU17<>"",AVERAGE($E17:AU17)+$EI18,"") ->  | AV18: =IF(AV17<>"",AVERAGE($E17:AV17)+$EI18,"") ->  | AW18: =IF(AW17<>"",AVERAGE($E17:AW17)+$EI18,"") ->  | AX18: =IF(AX17<>"",AVERAGE($E17:AX17)+$EI18,"") ->  | AY18: =IF(AY17<>"",AVERAGE($E17:AY17)+$EI18,"") ->  | AZ18: =IF(AZ17<>"",AVERAGE($E17:AZ17)+$EI18,"") ->  | BA18: =IF(BA17<>"",AVERAGE($E17:BA17)+$EI18,"") ->  | BB18: =IF(BB17<>"",AVERAGE($E17:BB17)+$EI18,"") ->  | BC18: =IF(BC17<>"",AVERAGE($E17:BC17)+$EI18,"") ->  | BD18: =IF(BD17<>"",AVERAGE($E17:BD17)+$EI18,"") ->  | BE18: =IF(BE17<>"",AVERAGE($E17:BE17)+$EI18,"") ->  | BF18: =IF(BF17<>"",AVERAGE($E17:BF17)+$EI18,"") ->  | BG18: =IF(BG17<>"",AVERAGE($E17:BG17)+$EI18,"") ->  | BH18: =IF(BH17<>"",AVERAGE($E17:BH17)+$EI18,"") ->  | BI18: =IF(BI17<>"",AVERAGE($E17:BI17)+$EI18,"") ->  | BJ18: =IF(BJ17<>"",AVERAGE($E17:BJ17)+$EI18,"") ->  | BK18: =IF(BK17<>"",AVERAGE($E17:BK17)+$EI18,"") ->  | BL18: =IF(BL17<>"",AVERAGE($E17:BL17)+$EI18,"") ->  | BM18: =IF(BM17<>"",AVERAGE($E17:BM17)+$EI18,"") ->  | BN18: =IF(BN17<>"",AVERAGE($E17:BN17)+$EI18,"") ->  | BO18: =IF(BO17<>"",AVERAGE($E17:BO17)+$EI18,"") ->  | BP18: =IF(BP17<>"",AVERAGE($E17:BP17)+$EI18,"") ->  | BQ18: =IF(BQ17<>"",AVERAGE($E17:BQ17)+$EI18,"") ->  | BR18: =IF(BR17<>"",AVERAGE($E17:BR17)+$EI18,"") ->  | BS18: =IF(BS17<>"",AVERAGE($E17:BS17)+$EI18,"") ->  | BT18: =IF(BT17<>"",AVERAGE($E17:BT17)+$EI18,"") ->  | BU18: =IF(BU17<>"",AVERAGE($E17:BU17)+$EI18,"") ->  | BV18: =IF(BV17<>"",AVERAGE($E17:BV17)+$EI18,"") ->  | BW18: =IF(BW17<>"",AVERAGE($E17:BW17)+$EI18,"") ->  | BX18: =IF(BX17<>"",AVERAGE($E17:BX17)+$EI18,"") ->  | BY18: =IF(BY17<>"",AVERAGE($E17:BY17)+$EI18,"") ->  | BZ18: =IF(BZ17<>"",AVERAGE($E17:BZ17)+$EI18,"") ->  | CA18: =IF(CA17<>"",AVERAGE($E17:CA17)+$EI18,"") ->  | CB18: =IF(CB17<>"",AVERAGE($E17:CB17)+$EI18,"") ->  | CC18: =IF(CC17<>"",AVERAGE($E17:CC17)+$EI18,"") ->  | CD18: =IF(CD17<>"",AVERAGE($E17:CD17)+$EI18,"") ->  | CE18: =IF(CE17<>"",AVERAGE($E17:CE17)+$EI18,"") ->  | CF18: =IF(CF17<>"",AVERAGE($E17:CF17)+$EI18,"") ->  | CG18: =IF(CG17<>"",AVERAGE($E17:CG17)+$EI18,"") ->  | CH18: =IF(CH17<>"",AVERAGE($E17:CH17)+$EI18,"") ->  | CI18: =IF(CI17<>"",AVERAGE($E17:CI17)+$EI18,"") ->  | CJ18: =IF(CJ17<>"",AVERAGE($E17:CJ17)+$EI18,"") ->  | CK18: =IF(CK17<>"",AVERAGE($E17:CK17)+$EI18,"") ->  | CL18: =IF(CL17<>"",AVERAGE($E17:CL17)+$EI18,"") ->  | CM18: =IF(CM17<>"",AVERAGE($E17:CM17)+$EI18,"") ->  | CN18: =IF(CN17<>"",AVERAGE($E17:CN17)+$EI18,"") ->  | CO18: =IF(CO17<>"",AVERAGE($E17:CO17)+$EI18,"") ->  | CP18: =IF(CP17<>"",AVERAGE($E17:CP17)+$EI18,"") ->  | CQ18: =IF(CQ17<>"",AVERAGE($E17:CQ17)+$EI18,"") ->  | CR18: =IF(CR17<>"",AVERAGE($E17:CR17)+$EI18,"") ->  | CS18: =IF(CS17<>"",AVERAGE($E17:CS17)+$EI18,"") ->  | CT18: =IF(CT17<>"",AVERAGE($E17:CT17)+$EI18,"") ->  | CU18: =IF(CU17<>"",AVERAGE($E17:CU17)+$EI18,"") ->  | CV18: =IF(CV17<>"",AVERAGE($E17:CV17)+$EI18,"") ->  | CW18: =IF(CW17<>"",AVERAGE($E17:CW17)+$EI18,"") ->  | CX18: =IF(CX17<>"",AVERAGE($E17:CX17)+$EI18,"") ->  | CY18: =IF(CY17<>"",AVERAGE($E17:CY17)+$EI18,"") ->  | CZ18: =IF(CZ17<>"",AVERAGE($E17:CZ17)+$EI18,"") ->  | DA18: =IF(DA17<>"",AVERAGE($E17:DA17)+$EI18,"") ->  | DB18: =IF(DB17<>"",AVERAGE($E17:DB17)+$EI18,"") ->  | DC18: =IF(DC17<>"",AVERAGE($E17:DC17)+$EI18,"") ->  | DD18: =IF(DD17<>"",AVERAGE($E17:DD17)+$EI18,"") ->  | DE18: =IF(DE17<>"",AVERAGE($E17:DE17)+$EI18,"") ->  | DF18: =IF(DF17<>"",AVERAGE($E17:DF17)+$EI18,"") ->  | DG18: =IF(DG17<>"",AVERAGE($E17:DG17)+$EI18,"") ->  | DH18: =IF(DH17<>"",AVERAGE($E17:DH17)+$EI18,"") ->  | DI18: =IF(DI17<>"",AVERAGE($E17:DI17)+$EI18,"") ->  | DJ18: =IF(DJ17<>"",AVERAGE($E17:DJ17)+$EI18,"") ->  | DK18: =IF(DK17<>"",AVERAGE($E17:DK17)+$EI18,"") ->  | DL18: =IF(DL17<>"",AVERAGE($E17:DL17)+$EI18,"") ->  | DM18: =IF(DM17<>"",AVERAGE($E17:DM17)+$EI18,"") ->  | DN18: =IF(DN17<>"",AVERAGE($E17:DN17)+$EI18,"") ->  | DO18: =IF(DO17<>"",AVERAGE($E17:DO17)+$EI18,"") ->  | DP18: =IF(DP17<>"",AVERAGE($E17:DP17)+$EI18,"") ->  | DQ18: =IF(DQ17<>"",AVERAGE($E17:DQ17)+$EI18,"") ->  | DR18: =IF(DR17<>"",AVERAGE($E17:DR17)+$EI18,"") ->  | DS18: =IF(DS17<>"",AVERAGE($E17:DS17)+$EI18,"") ->  | DT18: =IF(DT17<>"",AVERAGE($E17:DT17)+$EI18,"") ->  | DU18: =IF(DU17<>"",AVERAGE($E17:DU17)+$EI18,"") ->  | DV18: =IF(DV17<>"",AVERAGE($E17:DV17)+$EI18,"") ->  | DW18: =IF(DW17<>"",AVERAGE($E17:DW17)+$EI18,"") ->  | DX18: =IF(DX17<>"",AVERAGE($E17:DX17)+$EI18,"") ->  | DY18: =IF(DY17<>"",AVERAGE($E17:DY17)+$EI18,"") ->  | DZ18: =IF(DZ17<>"",AVERAGE($E17:DZ17)+$EI18,"") ->  | EA18: =IF(EA17<>"",AVERAGE($E17:EA17)+$EI18,"") ->  | EB18: =IF(EB17<>"",AVERAGE($E17:EB17)+$EI18,"") ->  | EC18: =IF(EC17<>"",AVERAGE($E17:EC17)+$EI18,"") ->  | ED18: =IF(ED17<>"",AVERAGE($E17:ED17)+$EI18,"") ->  | EE18: =IF(AND(SUM(Tabulka!$AL$9)>0.99,(SUM(Tabulka!$AH$13)<6)),50000+C12/1000,IF(OR(SUM(Tabulka!$AG$9)<2),90000,SUM(E17:ED17)/COUNT(E18:ED18)))+EG18 -> 50047.002 | EG18: 47 | EH18: =CONCATENATE(C13," ",C14) -> Míra Šedivý | EI18: =INDEX(List4!$E$2:$E$19,MATCH(CONCATENATE(C13," ",C14),List4!$A$2:$A$19,0),1) -> 2.21e-05
A19: Míra ŠedivýPočet šipek | B19: =CONCATENATE(C13," ",C14) -> Míra Šedivý | D19: Počet šipek | EE19: =IF(AND(SUM(Tabulka!$AG$9)>0.99,(SUM(Tabulka!$AG$9)<2)),-50000+(SUM(E19:ED19)),IF(OR(SUM(Tabulka!$AG$9)<2),-90000,SUM(E19:ED19))) -> -50000 | EG19: 0
A20: =CONCATENATE($C$21," ",$C$22,D20) -> Milan VeselýVýhry | B20: =CONCATENATE(C21," ",C22) -> Milan Veselý | C20: =Tabulka!A14 -> 3 | D20: Výhry | E20: 3 | EE20: =IF(AND(SUM(Tabulka!$AG$14)>0.99,(SUM(Tabulka!$AG$14)<2)),-50000+(SUM(E20:ED20)),IF(OR(SUM(Tabulka!$AG$14)<2),-90000,SUM(E20:ED20))) -> -49997 | EG20: 3
A21: Milan VeselýProhry | B21: Milan Veselý | C21: =Tabulka!B15 -> Milan | D21: Prohry | E21: 1 | EE21: =IF(AND(SUM(Tabulka!$AG$14)>0.99,(SUM(Tabulka!$AG$14)<2)),-50000+(SUM(E21:ED21)),IF(OR(SUM(Tabulka!$AG$14)<2),-90000,SUM(E21:ED21))) -> -49999 | EF21: =SUM(EE20-EE21) -> 2 | EG21: 1
A22: Milan VeselýPlaceno panáků | B22: =CONCATENATE(C21," ",C22) -> Milan Veselý | C22: =Tabulka!B16 -> Veselý | D22: Placeno panáků | E22: 1 | EE22: =IF(AND(SUM(Tabulka!$AG$14)>0.99,(SUM(Tabulka!$AG$14)<2)),-50000+(SUM(E22:ED22)),IF(OR(SUM(Tabulka!$AG$14)<2),-90000,SUM(E22:ED22))) -> -49999 | EG22: =SUM(E22:ED22)+0.2 -> 1.2
A23: Milan VeselýPřehozy | B23: =CONCATENATE(C21," ",C22) -> Milan Veselý | C23: =Tabulka!B17 -> 0 | D23: Přehozy | E23: 2 | EE23: =IF(AND(SUM(Tabulka!$AG$14)>0.99,(SUM(Tabulka!$AG$14)<2)),-50000+(SUM(E23:ED23)),IF(OR(SUM(Tabulka!$AG$14)<2),-90000,SUM(E23:ED23))) -> -49998 | EG23: 2
A24: Milan VeselýPoč. kol | B24: =CONCATENATE(C21," ",C22) -> Milan Veselý | C24: =Tabulka!B18 -> 0 | D24: Poč. kol | E24: 4 | EE24: =IF(AND(SUM(Tabulka!$AG$14)>0.99,(SUM(Tabulka!$AG$14)<2)),-50000+(SUM(E24:ED24)),IF(OR(SUM(Tabulka!$AG$14)<2),-90000,SUM(E24:ED24))) -> -49996 | EG24: 4
A25: Milan VeselýPočet konečných bodů | B25: =CONCATENATE(C21," ",C22) -> Milan Veselý | D25: Počet konečných bodů | E25: 0 | F25: 113 | G25: 0 | H25: 0 | EE25: =IF(AND(SUM(Tabulka!$AG$14)>0.99,(SUM(Tabulka!$AH$18)<6)),50000+C20/1000,IF(OR(SUM(Tabulka!$AG$14)<2),90000,SUM(E25:ED25)))+EG25 -> 50113.003 | EG25: 113 | EI25: =$EJ$17-EG25 -> 4887
A26: Milan VeselýPrůměr konečných bodů na kolo | B26: =CONCATENATE(C21," ",C22) -> Milan Veselý | D26: Průměr konečných bodů na kolo | E26: =IF(E25<>"",AVERAGE($E25:E25)+$EI26,"") -> 2.54e-05 | F26: =IF(F25<>"",AVERAGE($E25:F25)+$EI26,"") -> 56.5000254 | G26: =IF(G25<>"",AVERAGE($E25:G25)+$EI26,"") -> 37.66669207 | H26: =IF(H25<>"",AVERAGE($E25:H25)+$EI26,"") -> 28.2500254 | I26: =IF(I25<>"",AVERAGE($E25:I25)+$EI26,"") ->  | J26: =IF(J25<>"",AVERAGE($E25:J25)+$EI26,"") ->  | K26: =IF(K25<>"",AVERAGE($E25:K25)+$EI26,"") ->  | L26: =IF(L25<>"",AVERAGE($E25:L25)+$EI26,"") ->  | M26: =IF(M25<>"",AVERAGE($E25:M25)+$EI26,"") ->  | N26: =IF(N25<>"",AVERAGE($E25:N25)+$EI26,"") ->  | O26: =IF(O25<>"",AVERAGE($E25:O25)+$EI26,"") ->  | P26: =IF(P25<>"",AVERAGE($E25:P25)+$EI26,"") ->  | Q26: =IF(Q25<>"",AVERAGE($E25:Q25)+$EI26,"") ->  | R26: =IF(R25<>"",AVERAGE($E25:R25)+$EI26,"") ->  | S26: =IF(S25<>"",AVERAGE($E25:S25)+$EI26,"") ->  | T26: =IF(T25<>"",AVERAGE($E25:T25)+$EI26,"") ->  | U26: =IF(U25<>"",AVERAGE($E25:U25)+$EI26,"") ->  | V26: =IF(V25<>"",AVERAGE($E25:V25)+$EI26,"") ->  | W26: =IF(W25<>"",AVERAGE($E25:W25)+$EI26,"") ->  | Y26: =IF(Y25<>"",AVERAGE($E25:Y25)+$EI26,"") ->  | Z26: =IF(Z25<>"",AVERAGE($E25:Z25)+$EI26,"") ->  | AA26: =IF(AA25<>"",AVERAGE($E25:AA25)+$EI26,"") ->  | AB26: =IF(AB25<>"",AVERAGE($E25:AB25)+$EI26,"") ->  | AC26: =IF(AC25<>"",AVERAGE($E25:AC25)+$EI26,"") ->  | AD26: =IF(AD25<>"",AVERAGE($E25:AD25)+$EI26,"") ->  | AE26: =IF(AE25<>"",AVERAGE($E25:AE25)+$EI26,"") ->  | AF26: =IF(AF25<>"",AVERAGE($E25:AF25)+$EI26,"") ->  | AG26: =IF(AG25<>"",AVERAGE($E25:AG25)+$EI26,"") ->  | AH26: =IF(AH25<>"",AVERAGE($E25:AH25)+$EI26,"") ->  | AI26: =IF(AI25<>"",AVERAGE($E25:AI25)+$EI26,"") ->  | AJ26: =IF(AJ25<>"",AVERAGE($E25:AJ25)+$EI26,"") ->  | AK26: =IF(AK25<>"",AVERAGE($E25:AK25)+$EI26,"") ->  | AL26: =IF(AL25<>"",AVERAGE($E25:AL25)+$EI26,"") ->  | AM26: =IF(AM25<>"",AVERAGE($E25:AM25)+$EI26,"") ->  | AN26: =IF(AN25<>"",AVERAGE($E25:AN25)+$EI26,"") ->  | AO26: =IF(AO25<>"",AVERAGE($E25:AO25)+$EI26,"") ->  | AP26: =IF(AP25<>"",AVERAGE($E25:AP25)+$EI26,"") ->  | AQ26: =IF(AQ25<>"",AVERAGE($E25:AQ25)+$EI26,"") ->  | AR26: =IF(AR25<>"",AVERAGE($E25:AR25)+$EI26,"") ->  | AS26: =IF(AS25<>"",AVERAGE($E25:AS25)+$EI26,"") ->  | AT26: =IF(AT25<>"",AVERAGE($E25:AT25)+$EI26,"") ->  | AU26: =IF(AU25<>"",AVERAGE($E25:AU25)+$EI26,"") ->  | AV26: =IF(AV25<>"",AVERAGE($E25:AV25)+$EI26,"") ->  | AW26: =IF(AW25<>"",AVERAGE($E25:AW25)+$EI26,"") ->  | AX26: =IF(AX25<>"",AVERAGE($E25:AX25)+$EI26,"") ->  | AY26: =IF(AY25<>"",AVERAGE($E25:AY25)+$EI26,"") ->  | AZ26: =IF(AZ25<>"",AVERAGE($E25:AZ25)+$EI26,"") ->  | BA26: =IF(BA25<>"",AVERAGE($E25:BA25)+$EI26,"") ->  | BB26: =IF(BB25<>"",AVERAGE($E25:BB25)+$EI26,"") ->  | BC26: =IF(BC25<>"",AVERAGE($E25:BC25)+$EI26,"") ->  | BD26: =IF(BD25<>"",AVERAGE($E25:BD25)+$EI26,"") ->  | BE26: =IF(BE25<>"",AVERAGE($E25:BE25)+$EI26,"") ->  | BF26: =IF(BF25<>"",AVERAGE($E25:BF25)+$EI26,"") ->  | BG26: =IF(BG25<>"",AVERAGE($E25:BG25)+$EI26,"") ->  | BH26: =IF(BH25<>"",AVERAGE($E25:BH25)+$EI26,"") ->  | BI26: =IF(BI25<>"",AVERAGE($E25:BI25)+$EI26,"") ->  | BJ26: =IF(BJ25<>"",AVERAGE($E25:BJ25)+$EI26,"") ->  | BK26: =IF(BK25<>"",AVERAGE($E25:BK25)+$EI26,"") ->  | BL26: =IF(BL25<>"",AVERAGE($E25:BL25)+$EI26,"") ->  | BM26: =IF(BM25<>"",AVERAGE($E25:BM25)+$EI26,"") ->  | BN26: =IF(BN25<>"",AVERAGE($E25:BN25)+$EI26,"") ->  | BO26: =IF(BO25<>"",AVERAGE($E25:BO25)+$EI26,"") ->  | BP26: =IF(BP25<>"",AVERAGE($E25:BP25)+$EI26,"") ->  | BQ26: =IF(BQ25<>"",AVERAGE($E25:BQ25)+$EI26,"") ->  | BR26: =IF(BR25<>"",AVERAGE($E25:BR25)+$EI26,"") ->  | BS26: =IF(BS25<>"",AVERAGE($E25:BS25)+$EI26,"") ->  | BT26: =IF(BT25<>"",AVERAGE($E25:BT25)+$EI26,"") ->  | BU26: =IF(BU25<>"",AVERAGE($E25:BU25)+$EI26,"") ->  | BV26: =IF(BV25<>"",AVERAGE($E25:BV25)+$EI26,"") ->  | BW26: =IF(BW25<>"",AVERAGE($E25:BW25)+$EI26,"") ->  | BX26: =IF(BX25<>"",AVERAGE($E25:BX25)+$EI26,"") ->  | BY26: =IF(BY25<>"",AVERAGE($E25:BY25)+$EI26,"") ->  | BZ26: =IF(BZ25<>"",AVERAGE($E25:BZ25)+$EI26,"") ->  | CA26: =IF(CA25<>"",AVERAGE($E25:CA25)+$EI26,"") ->  | CB26: =IF(CB25<>"",AVERAGE($E25:CB25)+$EI26,"") ->  | CC26: =IF(CC25<>"",AVERAGE($E25:CC25)+$EI26,"") ->  | CD26: =IF(CD25<>"",AVERAGE($E25:CD25)+$EI26,"") ->  | CE26: =IF(CE25<>"",AVERAGE($E25:CE25)+$EI26,"") ->  | CF26: =IF(CF25<>"",AVERAGE($E25:CF25)+$EI26,"") ->  | CG26: =IF(CG25<>"",AVERAGE($E25:CG25)+$EI26,"") ->  | CH26: =IF(CH25<>"",AVERAGE($E25:CH25)+$EI26,"") ->  | CI26: =IF(CI25<>"",AVERAGE($E25:CI25)+$EI26,"") ->  | CJ26: =IF(CJ25<>"",AVERAGE($E25:CJ25)+$EI26,"") ->  | CK26: =IF(CK25<>"",AVERAGE($E25:CK25)+$EI26,"") ->  | CL26: =IF(CL25<>"",AVERAGE($E25:CL25)+$EI26,"") ->  | CM26: =IF(CM25<>"",AVERAGE($E25:CM25)+$EI26,"") ->  | CN26: =IF(CN25<>"",AVERAGE($E25:CN25)+$EI26,"") ->  | CO26: =IF(CO25<>"",AVERAGE($E25:CO25)+$EI26,"") ->  | CP26: =IF(CP25<>"",AVERAGE($E25:CP25)+$EI26,"") ->  | CQ26: =IF(CQ25<>"",AVERAGE($E25:CQ25)+$EI26,"") ->  | CR26: =IF(CR25<>"",AVERAGE($E25:CR25)+$EI26,"") ->  | CS26: =IF(CS25<>"",AVERAGE($E25:CS25)+$EI26,"") ->  | CT26: =IF(CT25<>"",AVERAGE($E25:CT25)+$EI26,"") ->  | CU26: =IF(CU25<>"",AVERAGE($E25:CU25)+$EI26,"") ->  | CV26: =IF(CV25<>"",AVERAGE($E25:CV25)+$EI26,"") ->  | CW26: =IF(CW25<>"",AVERAGE($E25:CW25)+$EI26,"") ->  | CX26: =IF(CX25<>"",AVERAGE($E25:CX25)+$EI26,"") ->  | CY26: =IF(CY25<>"",AVERAGE($E25:CY25)+$EI26,"") ->  | CZ26: =IF(CZ25<>"",AVERAGE($E25:CZ25)+$EI26,"") ->  | DA26: =IF(DA25<>"",AVERAGE($E25:DA25)+$EI26,"") ->  | DB26: =IF(DB25<>"",AVERAGE($E25:DB25)+$EI26,"") ->  | DC26: =IF(DC25<>"",AVERAGE($E25:DC25)+$EI26,"") ->  | DD26: =IF(DD25<>"",AVERAGE($E25:DD25)+$EI26,"") ->  | DE26: =IF(DE25<>"",AVERAGE($E25:DE25)+$EI26,"") ->  | DF26: =IF(DF25<>"",AVERAGE($E25:DF25)+$EI26,"") ->  | DG26: =IF(DG25<>"",AVERAGE($E25:DG25)+$EI26,"") ->  | DH26: =IF(DH25<>"",AVERAGE($E25:DH25)+$EI26,"") ->  | DI26: =IF(DI25<>"",AVERAGE($E25:DI25)+$EI26,"") ->  | DJ26: =IF(DJ25<>"",AVERAGE($E25:DJ25)+$EI26,"") ->  | DK26: =IF(DK25<>"",AVERAGE($E25:DK25)+$EI26,"") ->  | DL26: =IF(DL25<>"",AVERAGE($E25:DL25)+$EI26,"") ->  | DM26: =IF(DM25<>"",AVERAGE($E25:DM25)+$EI26,"") ->  | DN26: =IF(DN25<>"",AVERAGE($E25:DN25)+$EI26,"") ->  | DO26: =IF(DO25<>"",AVERAGE($E25:DO25)+$EI26,"") ->  | DP26: =IF(DP25<>"",AVERAGE($E25:DP25)+$EI26,"") ->  | DQ26: =IF(DQ25<>"",AVERAGE($E25:DQ25)+$EI26,"") ->  | DR26: =IF(DR25<>"",AVERAGE($E25:DR25)+$EI26,"") ->  | DS26: =IF(DS25<>"",AVERAGE($E25:DS25)+$EI26,"") ->  | DT26: =IF(DT25<>"",AVERAGE($E25:DT25)+$EI26,"") ->  | DU26: =IF(DU25<>"",AVERAGE($E25:DU25)+$EI26,"") ->  | DV26: =IF(DV25<>"",AVERAGE($E25:DV25)+$EI26,"") ->  | DW26: =IF(DW25<>"",AVERAGE($E25:DW25)+$EI26,"") ->  | DX26: =IF(DX25<>"",AVERAGE($E25:DX25)+$EI26,"") ->  | DY26: =IF(DY25<>"",AVERAGE($E25:DY25)+$EI26,"") ->  | DZ26: =IF(DZ25<>"",AVERAGE($E25:DZ25)+$EI26,"") ->  | EA26: =IF(EA25<>"",AVERAGE($E25:EA25)+$EI26,"") ->  | EB26: =IF(EB25<>"",AVERAGE($E25:EB25)+$EI26,"") ->  | EC26: =IF(EC25<>"",AVERAGE($E25:EC25)+$EI26,"") ->  | ED26: =IF(ED25<>"",AVERAGE($E25:ED25)+$EI26,"") ->  | EE26: =IF(AND(SUM(Tabulka!$AG$14)>0.99,(SUM(Tabulka!$AH$18)<6)),50000+C20/1000,IF(OR(SUM(Tabulka!$AG$14)<2),90000,SUM(E25:ED25)/COUNT(E26:ED26)))+EG26 -> 50028.253 | EG26: 28.25 | EH26: =CONCATENATE(C21," ",C22) -> Milan Veselý | EI26: =INDEX(List4!$E$2:$E$19,MATCH(CONCATENATE(C21," ",C22),List4!$A$2:$A$19,0),1) -> 2.54e-05
A27: Milan VeselýPočet šipek | B27: =CONCATENATE(C21," ",C22) -> Milan Veselý | D27: Počet šipek | EE27: =IF(AND(SUM(Tabulka!$AG$14)>0.99,(SUM(Tabulka!$AG$14)<2)),-50000+(SUM(E27:ED27)),IF(OR(SUM(Tabulka!$AG$14)<2),-90000,SUM(E27:ED27))) -> -50000 | EG27: 0
A28: =CONCATENATE($C$29," ",$C$30,D28) -> Jiří BlínVýhry | B28: =CONCATENATE(C29," ",C30) -> Jiří Blín | C28: =Tabulka!A19 -> 4 | D28: Výhry | E28: 0 | EE28: =IF(AND(SUM(Tabulka!$AG$19)>0.99,(SUM(Tabulka!$AG$19)<2)),-50000+(SUM(E28:ED28)),IF(OR(SUM(Tabulka!$AG$19)<2),-90000,SUM(E28:ED28))) -> -50000 | EG28: 0
A29: Jiří BlínProhry | B29: Jiří Blín | C29: =Tabulka!B20 -> Jiří | D29: Prohry | E29: 1 | EE29: =IF(AND(SUM(Tabulka!$AG$19)>0.99,(SUM(Tabulka!$AG$19)<2)),-50000+(SUM(E29:ED29)),IF(OR(SUM(Tabulka!$AG$19)<2),-90000,SUM(E29:ED29))) -> -49999 | EF29: =SUM(EE28-EE29) -> -1 | EG29: 1
A30: Jiří BlínPlaceno panáků | B30: =CONCATENATE(C29," ",C30) -> Jiří Blín | C30: =Tabulka!B21 -> Blín | D30: Placeno panáků | E30: 1 | EE30: =IF(AND(SUM(Tabulka!$AG$19)>0.99,(SUM(Tabulka!$AG$19)<2)),-50000+(SUM(E30:ED30)),IF(OR(SUM(Tabulka!$AG$19)<2),-90000,SUM(E30:ED30))) -> -49999 | EG30: =SUM(E30:ED30)+0.2 -> 1.2
A31: Jiří BlínPřehozy | B31: =CONCATENATE(C29," ",C30) -> Jiří Blín | C31: =Tabulka!B22 -> Jirka B | D31: Přehozy | E31: 0 | EE31: =IF(AND(SUM(Tabulka!$AG$19)>0.99,(SUM(Tabulka!$AG$19)<2)),-50000+(SUM(E31:ED31)),IF(OR(SUM(Tabulka!$AG$19)<2),-90000,SUM(E31:ED31))) -> -50000 | EG31: 0
A32: Jiří BlínPoč. kol | B32: =CONCATENATE(C29," ",C30) -> Jiří Blín | C32: =Tabulka!B23 -> 0 | D32: Poč. kol | E32: 4 | EE32: =IF(AND(SUM(Tabulka!$AG$19)>0.99,(SUM(Tabulka!$AG$19)<2)),-50000+(SUM(E32:ED32)),IF(OR(SUM(Tabulka!$AG$19)<2),-90000,SUM(E32:ED32))) -> -49996 | EG32: 4
A33: Jiří BlínPočet konečných bodů | B33: =CONCATENATE(C29," ",C30) -> Jiří Blín | D33: Počet konečných bodů | E33: 101 | F33: 66 | G33: 264 | H33: 41 | EE33: =IF(AND(SUM(Tabulka!$AG$19)>0.99,(SUM(Tabulka!$AH$23)<6)),50000+C28/1000,IF(OR(SUM(Tabulka!$AG$19)<2),90000,SUM(E33:ED33)))+EG33 -> 50472.004 | EG33: 472 | EI33: =$EJ$17-EG33 -> 4528
A34: Jiří BlínPrůměr konečných bodů na kolo | B34: =CONCATENATE(C29," ",C30) -> Jiří Blín | D34: Průměr konečných bodů na kolo | E34: =IF(E33<>"",AVERAGE($E33:E33)+$EI34,"") -> 101.00001 | F34: =IF(F33<>"",AVERAGE($E33:F33)+$EI34,"") -> 83.50001 | G34: =IF(G33<>"",AVERAGE($E33:G33)+$EI34,"") -> 143.6666767 | H34: =IF(H33<>"",AVERAGE($E33:H33)+$EI34,"") -> 118.00001 | I34: =IF(I33<>"",AVERAGE($E33:I33)+$EI34,"") ->  | J34: =IF(J33<>"",AVERAGE($E33:J33)+$EI34,"") ->  | K34: =IF(K33<>"",AVERAGE($E33:K33)+$EI34,"") ->  | L34: =IF(L33<>"",AVERAGE($E33:L33)+$EI34,"") ->  | M34: =IF(M33<>"",AVERAGE($E33:M33)+$EI34,"") ->  | N34: =IF(N33<>"",AVERAGE($E33:N33)+$EI34,"") ->  | O34: =IF(O33<>"",AVERAGE($E33:O33)+$EI34,"") ->  | P34: =IF(P33<>"",AVERAGE($E33:P33)+$EI34,"") ->  | Q34: =IF(Q33<>"",AVERAGE($E33:Q33)+$EI34,"") ->  | R34: =IF(R33<>"",AVERAGE($E33:R33)+$EI34,"") ->  | S34: =IF(S33<>"",AVERAGE($E33:S33)+$EI34,"") ->  | T34: =IF(T33<>"",AVERAGE($E33:T33)+$EI34,"") ->  | U34: =IF(U33<>"",AVERAGE($E33:U33)+$EI34,"") ->  | V34: =IF(V33<>"",AVERAGE($E33:V33)+$EI34,"") ->  | W34: =IF(W33<>"",AVERAGE($E33:W33)+$EI34,"") ->  | X34: =IF(X33<>"",AVERAGE($E33:X33)+$EI34,"") ->  | Y34: =IF(Y33<>"",AVERAGE($E33:Y33)+$EI34,"") ->  | Z34: =IF(Z33<>"",AVERAGE($E33:Z33)+$EI34,"") ->  | AA34: =IF(AA33<>"",AVERAGE($E33:AA33)+$EI34,"") ->  | AB34: =IF(AB33<>"",AVERAGE($E33:AB33)+$EI34,"") ->  | AC34: =IF(AC33<>"",AVERAGE($E33:AC33)+$EI34,"") ->  | AD34: =IF(AD33<>"",AVERAGE($E33:AD33)+$EI34,"") ->  | AE34: =IF(AE33<>"",AVERAGE($E33:AE33)+$EI34,"") ->  | AF34: =IF(AF33<>"",AVERAGE($E33:AF33)+$EI34,"") ->  | AG34: =IF(AG33<>"",AVERAGE($E33:AG33)+$EI34,"") ->  | AH34: =IF(AH33<>"",AVERAGE($E33:AH33)+$EI34,"") ->  | AI34: =IF(AI33<>"",AVERAGE($E33:AI33)+$EI34,"") ->  | AJ34: =IF(AJ33<>"",AVERAGE($E33:AJ33)+$EI34,"") ->  | AK34: =IF(AK33<>"",AVERAGE($E33:AK33)+$EI34,"") ->  | AL34: =IF(AL33<>"",AVERAGE($E33:AL33)+$EI34,"") ->  | AM34: =IF(AM33<>"",AVERAGE($E33:AM33)+$EI34,"") ->  | AN34: =IF(AN33<>"",AVERAGE($E33:AN33)+$EI34,"") ->  | AO34: =IF(AO33<>"",AVERAGE($E33:AO33)+$EI34,"") ->  | AP34: =IF(AP33<>"",AVERAGE($E33:AP33)+$EI34,"") ->  | AQ34: =IF(AQ33<>"",AVERAGE($E33:AQ33)+$EI34,"") ->  | AR34: =IF(AR33<>"",AVERAGE($E33:AR33)+$EI34,"") ->  | AS34: =IF(AS33<>"",AVERAGE($E33:AS33)+$EI34,"") ->  | AT34: =IF(AT33<>"",AVERAGE($E33:AT33)+$EI34,"") ->  | AU34: =IF(AU33<>"",AVERAGE($E33:AU33)+$EI34,"") ->  | AV34: =IF(AV33<>"",AVERAGE($E33:AV33)+$EI34,"") ->  | AW34: =IF(AW33<>"",AVERAGE($E33:AW33)+$EI34,"") ->  | AX34: =IF(AX33<>"",AVERAGE($E33:AX33)+$EI34,"") ->  | AY34: =IF(AY33<>"",AVERAGE($E33:AY33)+$EI34,"") ->  | AZ34: =IF(AZ33<>"",AVERAGE($E33:AZ33)+$EI34,"") ->  | BA34: =IF(BA33<>"",AVERAGE($E33:BA33)+$EI34,"") ->  | BB34: =IF(BB33<>"",AVERAGE($E33:BB33)+$EI34,"") ->  | BC34: =IF(BC33<>"",AVERAGE($E33:BC33)+$EI34,"") ->  | BD34: =IF(BD33<>"",AVERAGE($E33:BD33)+$EI34,"") ->  | BE34: =IF(BE33<>"",AVERAGE($E33:BE33)+$EI34,"") ->  | BF34: =IF(BF33<>"",AVERAGE($E33:BF33)+$EI34,"") ->  | BG34: =IF(BG33<>"",AVERAGE($E33:BG33)+$EI34,"") ->  | BH34: =IF(BH33<>"",AVERAGE($E33:BH33)+$EI34,"") ->  | BI34: =IF(BI33<>"",AVERAGE($E33:BI33)+$EI34,"") ->  | BJ34: =IF(BJ33<>"",AVERAGE($E33:BJ33)+$EI34,"") ->  | BK34: =IF(BK33<>"",AVERAGE($E33:BK33)+$EI34,"") ->  | BL34: =IF(BL33<>"",AVERAGE($E33:BL33)+$EI34,"") ->  | BM34: =IF(BM33<>"",AVERAGE($E33:BM33)+$EI34,"") ->  | BN34: =IF(BN33<>"",AVERAGE($E33:BN33)+$EI34,"") ->  | BO34: =IF(BO33<>"",AVERAGE($E33:BO33)+$EI34,"") ->  | BP34: =IF(BP33<>"",AVERAGE($E33:BP33)+$EI34,"") ->  | BQ34: =IF(BQ33<>"",AVERAGE($E33:BQ33)+$EI34,"") ->  | BR34: =IF(BR33<>"",AVERAGE($E33:BR33)+$EI34,"") ->  | BS34: =IF(BS33<>"",AVERAGE($E33:BS33)+$EI34,"") ->  | BT34: =IF(BT33<>"",AVERAGE($E33:BT33)+$EI34,"") ->  | BU34: =IF(BU33<>"",AVERAGE($E33:BU33)+$EI34,"") ->  | BV34: =IF(BV33<>"",AVERAGE($E33:BV33)+$EI34,"") ->  | BW34: =IF(BW33<>"",AVERAGE($E33:BW33)+$EI34,"") ->  | BX34: =IF(BX33<>"",AVERAGE($E33:BX33)+$EI34,"") ->  | BY34: =IF(BY33<>"",AVERAGE($E33:BY33)+$EI34,"") ->  | BZ34: =IF(BZ33<>"",AVERAGE($E33:BZ33)+$EI34,"") ->  | CA34: =IF(CA33<>"",AVERAGE($E33:CA33)+$EI34,"") ->  | CB34: =IF(CB33<>"",AVERAGE($E33:CB33)+$EI34,"") ->  | CC34: =IF(CC33<>"",AVERAGE($E33:CC33)+$EI34,"") ->  | CD34: =IF(CD33<>"",AVERAGE($E33:CD33)+$EI34,"") ->  | CE34: =IF(CE33<>"",AVERAGE($E33:CE33)+$EI34,"") ->  | CF34: =IF(CF33<>"",AVERAGE($E33:CF33)+$EI34,"") ->  | CG34: =IF(CG33<>"",AVERAGE($E33:CG33)+$EI34,"") ->  | CH34: =IF(CH33<>"",AVERAGE($E33:CH33)+$EI34,"") ->  | CI34: =IF(CI33<>"",AVERAGE($E33:CI33)+$EI34,"") ->  | CJ34: =IF(CJ33<>"",AVERAGE($E33:CJ33)+$EI34,"") ->  | CK34: =IF(CK33<>"",AVERAGE($E33:CK33)+$EI34,"") ->  | CL34: =IF(CL33<>"",AVERAGE($E33:CL33)+$EI34,"") ->  | CM34: =IF(CM33<>"",AVERAGE($E33:CM33)+$EI34,"") ->  | CN34: =IF(CN33<>"",AVERAGE($E33:CN33)+$EI34,"") ->  | CO34: =IF(CO33<>"",AVERAGE($E33:CO33)+$EI34,"") ->  | CP34: =IF(CP33<>"",AVERAGE($E33:CP33)+$EI34,"") ->  | CQ34: =IF(CQ33<>"",AVERAGE($E33:CQ33)+$EI34,"") ->  | CR34: =IF(CR33<>"",AVERAGE($E33:CR33)+$EI34,"") ->  | CS34: =IF(CS33<>"",AVERAGE($E33:CS33)+$EI34,"") ->  | CT34: =IF(CT33<>"",AVERAGE($E33:CT33)+$EI34,"") ->  | CU34: =IF(CU33<>"",AVERAGE($E33:CU33)+$EI34,"") ->  | CV34: =IF(CV33<>"",AVERAGE($E33:CV33)+$EI34,"") ->  | CW34: =IF(CW33<>"",AVERAGE($E33:CW33)+$EI34,"") ->  | CX34: =IF(CX33<>"",AVERAGE($E33:CX33)+$EI34,"") ->  | CY34: =IF(CY33<>"",AVERAGE($E33:CY33)+$EI34,"") ->  | CZ34: =IF(CZ33<>"",AVERAGE($E33:CZ33)+$EI34,"") ->  | DA34: =IF(DA33<>"",AVERAGE($E33:DA33)+$EI34,"") ->  | DB34: =IF(DB33<>"",AVERAGE($E33:DB33)+$EI34,"") ->  | DC34: =IF(DC33<>"",AVERAGE($E33:DC33)+$EI34,"") ->  | DD34: =IF(DD33<>"",AVERAGE($E33:DD33)+$EI34,"") ->  | DE34: =IF(DE33<>"",AVERAGE($E33:DE33)+$EI34,"") ->  | DF34: =IF(DF33<>"",AVERAGE($E33:DF33)+$EI34,"") ->  | DG34: =IF(DG33<>"",AVERAGE($E33:DG33)+$EI34,"") ->  | DH34: =IF(DH33<>"",AVERAGE($E33:DH33)+$EI34,"") ->  | DI34: =IF(DI33<>"",AVERAGE($E33:DI33)+$EI34,"") ->  | DJ34: =IF(DJ33<>"",AVERAGE($E33:DJ33)+$EI34,"") ->  | DK34: =IF(DK33<>"",AVERAGE($E33:DK33)+$EI34,"") ->  | DL34: =IF(DL33<>"",AVERAGE($E33:DL33)+$EI34,"") ->  | DM34: =IF(DM33<>"",AVERAGE($E33:DM33)+$EI34,"") ->  | DN34: =IF(DN33<>"",AVERAGE($E33:DN33)+$EI34,"") ->  | DO34: =IF(DO33<>"",AVERAGE($E33:DO33)+$EI34,"") ->  | DP34: =IF(DP33<>"",AVERAGE($E33:DP33)+$EI34,"") ->  | DQ34: =IF(DQ33<>"",AVERAGE($E33:DQ33)+$EI34,"") ->  | DR34: =IF(DR33<>"",AVERAGE($E33:DR33)+$EI34,"") ->  | DS34: =IF(DS33<>"",AVERAGE($E33:DS33)+$EI34,"") ->  | DT34: =IF(DT33<>"",AVERAGE($E33:DT33)+$EI34,"") ->  | DU34: =IF(DU33<>"",AVERAGE($E33:DU33)+$EI34,"") ->  | DV34: =IF(DV33<>"",AVERAGE($E33:DV33)+$EI34,"") ->  | DW34: =IF(DW33<>"",AVERAGE($E33:DW33)+$EI34,"") ->  | DX34: =IF(DX33<>"",AVERAGE($E33:DX33)+$EI34,"") ->  | DY34: =IF(DY33<>"",AVERAGE($E33:DY33)+$EI34,"") ->  | DZ34: =IF(DZ33<>"",AVERAGE($E33:DZ33)+$EI34,"") ->  | EA34: =IF(EA33<>"",AVERAGE($E33:EA33)+$EI34,"") ->  | EB34: =IF(EB33<>"",AVERAGE($E33:EB33)+$EI34,"") ->  | EC34: =IF(EC33<>"",AVERAGE($E33:EC33)+$EI34,"") ->  | ED34: =IF(ED33<>"",AVERAGE($E33:ED33)+$EI34,"") ->  | EE34: =IF(AND(SUM(Tabulka!$AG$19)>0.99,(SUM(Tabulka!$AH$23)<6)),50000+C28/1000,IF(OR(SUM(Tabulka!$AG$19)<2),90000,SUM(E33:ED33)/COUNT(E34:ED34)))+EG34 -> 50118.004 | EG34: 118 | EH34: =CONCATENATE(C29," ",C30) -> Jiří Blín | EI34: =INDEX(List4!$E$2:$E$19,MATCH(CONCATENATE(C29," ",C30),List4!$A$2:$A$19,0),1) -> 1e-05
A35: Jiří BlínPočet šipek | B35: =CONCATENATE(C29," ",C30) -> Jiří Blín | D35: Počet šipek | EE35: =IF(AND(SUM(Tabulka!$AG$19)>0.99,(SUM(Tabulka!$AG$19)<2)),-50000+(SUM(E35:ED35)),IF(OR(SUM(Tabulka!$AG$19)<2),-90000,SUM(E35:ED35))) -> -50000 | EG35: 0
A36: =CONCATENATE($C$37," ",$C$38,D36) -> Petr ŠumVýhry | B36: =CONCATENATE(C37," ",C38) -> Petr Šum | C36: =Tabulka!A24 -> 5 | D36: Výhry | E36: 0 | EE36: =IF(AND(SUM(Tabulka!$AG$24)>0.99,(SUM(Tabulka!$AG$24)<2)),-50000+(SUM(E36:ED36)),IF(OR(SUM(Tabulka!$AG$24)<2),-90000,SUM(E36:ED36))) -> -50000 | EG36: 0
A37: Petr ŠumProhry | B37: Petr Šum | C37: =Tabulka!B25 -> Petr | D37: Prohry | E37: 2 | EE37: =IF(AND(SUM(Tabulka!$AG$24)>0.99,(SUM(Tabulka!$AG$24)<2)),-50000+(SUM(E37:ED37)),IF(OR(SUM(Tabulka!$AG$24)<2),-90000,SUM(E37:ED37))) -> -49998 | EF37: =SUM(EE36-EE37) -> -2 | EG37: 2
A38: Petr ŠumPlaceno panáků | B38: =CONCATENATE(C37," ",C38) -> Petr Šum | C38: =Tabulka!B26 -> Šum | D38: Placeno panáků | E38: 4 | EE38: =IF(AND(SUM(Tabulka!$AG$24)>0.99,(SUM(Tabulka!$AG$24)<2)),-50000+(SUM(E38:ED38)),IF(OR(SUM(Tabulka!$AG$24)<2),-90000,SUM(E38:ED38))) -> -49996 | EG38: =SUM(E38:ED38)+0.2 -> 4.2
A39: Petr ŠumPřehozy | B39: =CONCATENATE(C37," ",C38) -> Petr Šum | C39: =Tabulka!B27 -> Petr Š | D39: Přehozy | E39: 0 | EE39: =IF(AND(SUM(Tabulka!$AG$24)>0.99,(SUM(Tabulka!$AG$24)<2)),-50000+(SUM(E39:ED39)),IF(OR(SUM(Tabulka!$AG$24)<2),-90000,SUM(E39:ED39))) -> -50000 | EG39: 0
A40: Petr ŠumPoč. kol | B40: =CONCATENATE(C37," ",C38) -> Petr Šum | C40: =Tabulka!B28 -> 0 | D40: Poč. kol | E40: 4 | EE40: =IF(AND(SUM(Tabulka!$AG$24)>0.99,(SUM(Tabulka!$AG$24)<2)),-50000+(SUM(E40:ED40)),IF(OR(SUM(Tabulka!$AG$24)<2),-90000,SUM(E40:ED40))) -> -49996 | EG40: 4
A41: Petr ŠumPočet konečných bodů | B41: =CONCATENATE(C37," ",C38) -> Petr Šum | D41: Počet konečných bodů | E41: 173 | F41: 2 | G41: 204 | H41: 164 | EE41: =IF(AND(SUM(Tabulka!$AG$24)>0.99,(SUM(Tabulka!$AH$28)<6)),50000+C36/1000,IF(OR(SUM(Tabulka!$AG$24)<2),90000,SUM(E41:ED41)))+EG41 -> 50543.005 | EG41: 543 | EI41: =$EJ$17-EG41 -> 4457
A42: Petr ŠumPrůměr konečných bodů na kolo | B42: =CONCATENATE(C37," ",C38) -> Petr Šum | D42: Průměr konečných bodů na kolo | E42: =IF(E41<>"",AVERAGE($E41:E41)+$EI42,"") -> 173.0000243 | F42: =IF(F41<>"",AVERAGE($E41:F41)+$EI42,"") -> 87.5000243 | G42: =IF(G41<>"",AVERAGE($E41:G41)+$EI42,"") -> 126.3333576 | H42: =IF(H41<>"",AVERAGE($E41:H41)+$EI42,"") -> 135.7500243 | I42: =IF(I41<>"",AVERAGE($E41:I41)+$EI42,"") ->  | J42: =IF(J41<>"",AVERAGE($E41:J41)+$EI42,"") ->  | K42: =IF(K41<>"",AVERAGE($E41:K41)+$EI42,"") ->  | L42: =IF(L41<>"",AVERAGE($E41:L41)+$EI42,"") ->  | M42: =IF(M41<>"",AVERAGE($E41:M41)+$EI42,"") ->  | N42: =IF(N41<>"",AVERAGE($E41:N41)+$EI42,"") ->  | O42: =IF(O41<>"",AVERAGE($E41:O41)+$EI42,"") ->  | P42: =IF(P41<>"",AVERAGE($E41:P41)+$EI42,"") ->  | Q42: =IF(Q41<>"",AVERAGE($E41:Q41)+$EI42,"") ->  | R42: =IF(R41<>"",AVERAGE($E41:R41)+$EI42,"") ->  | S42: =IF(S41<>"",AVERAGE($E41:S41)+$EI42,"") ->  | T42: =IF(T41<>"",AVERAGE($E41:T41)+$EI42,"") ->  | U42: =IF(U41<>"",AVERAGE($E41:U41)+$EI42,"") ->  | V42: =IF(V41<>"",AVERAGE($E41:V41)+$EI42,"") ->  | W42: =IF(W41<>"",AVERAGE($E41:W41)+$EI42,"") ->  | X42: =IF(X41<>"",AVERAGE($E41:X41)+$EI42,"") ->  | Y42: =IF(Y41<>"",AVERAGE($E41:Y41)+$EI42,"") ->  | Z42: =IF(Z41<>"",AVERAGE($E41:Z41)+$EI42,"") ->  | AA42: =IF(AA41<>"",AVERAGE($E41:AA41)+$EI42,"") ->  | AB42: =IF(AB41<>"",AVERAGE($E41:AB41)+$EI42,"") ->  | AC42: =IF(AC41<>"",AVERAGE($E41:AC41)+$EI42,"") ->  | AD42: =IF(AD41<>"",AVERAGE($E41:AD41)+$EI42,"") ->  | AE42: =IF(AE41<>"",AVERAGE($E41:AE41)+$EI42,"") ->  | AF42: =IF(AF41<>"",AVERAGE($E41:AF41)+$EI42,"") ->  | AG42: =IF(AG41<>"",AVERAGE($E41:AG41)+$EI42,"") ->  | AH42: =IF(AH41<>"",AVERAGE($E41:AH41)+$EI42,"") ->  | AI42: =IF(AI41<>"",AVERAGE($E41:AI41)+$EI42,"") ->  | AJ42: =IF(AJ41<>"",AVERAGE($E41:AJ41)+$EI42,"") ->  | AK42: =IF(AK41<>"",AVERAGE($E41:AK41)+$EI42,"") ->  | AL42: =IF(AL41<>"",AVERAGE($E41:AL41)+$EI42,"") ->  | AM42: =IF(AM41<>"",AVERAGE($E41:AM41)+$EI42,"") ->  | AN42: =IF(AN41<>"",AVERAGE($E41:AN41)+$EI42,"") ->  | AO42: =IF(AO41<>"",AVERAGE($E41:AO41)+$EI42,"") ->  | AP42: =IF(AP41<>"",AVERAGE($E41:AP41)+$EI42,"") ->  | AQ42: =IF(AQ41<>"",AVERAGE($E41:AQ41)+$EI42,"") ->  | AR42: =IF(AR41<>"",AVERAGE($E41:AR41)+$EI42,"") ->  | AS42: =IF(AS41<>"",AVERAGE($E41:AS41)+$EI42,"") ->  | AT42: =IF(AT41<>"",AVERAGE($E41:AT41)+$EI42,"") ->  | AU42: =IF(AU41<>"",AVERAGE($E41:AU41)+$EI42,"") ->  | AV42: =IF(AV41<>"",AVERAGE($E41:AV41)+$EI42,"") ->  | AW42: =IF(AW41<>"",AVERAGE($E41:AW41)+$EI42,"") ->  | AX42: =IF(AX41<>"",AVERAGE($E41:AX41)+$EI42,"") ->  | AY42: =IF(AY41<>"",AVERAGE($E41:AY41)+$EI42,"") ->  | AZ42: =IF(AZ41<>"",AVERAGE($E41:AZ41)+$EI42,"") ->  | BA42: =IF(BA41<>"",AVERAGE($E41:BA41)+$EI42,"") ->  | BB42: =IF(BB41<>"",AVERAGE($E41:BB41)+$EI42,"") ->  | BC42: =IF(BC41<>"",AVERAGE($E41:BC41)+$EI42,"") ->  | BD42: =IF(BD41<>"",AVERAGE($E41:BD41)+$EI42,"") ->  | BE42: =IF(BE41<>"",AVERAGE($E41:BE41)+$EI42,"") ->  | BF42: =IF(BF41<>"",AVERAGE($E41:BF41)+$EI42,"") ->  | BG42: =IF(BG41<>"",AVERAGE($E41:BG41)+$EI42,"") ->  | BH42: =IF(BH41<>"",AVERAGE($E41:BH41)+$EI42,"") ->  | BI42: =IF(BI41<>"",AVERAGE($E41:BI41)+$EI42,"") ->  | BJ42: =IF(BJ41<>"",AVERAGE($E41:BJ41)+$EI42,"") ->  | BK42: =IF(BK41<>"",AVERAGE($E41:BK41)+$EI42,"") ->  | BL42: =IF(BL41<>"",AVERAGE($E41:BL41)+$EI42,"") ->  | BM42: =IF(BM41<>"",AVERAGE($E41:BM41)+$EI42,"") ->  | BN42: =IF(BN41<>"",AVERAGE($E41:BN41)+$EI42,"") ->  | BO42: =IF(BO41<>"",AVERAGE($E41:BO41)+$EI42,"") ->  | BP42: =IF(BP41<>"",AVERAGE($E41:BP41)+$EI42,"") ->  | BQ42: =IF(BQ41<>"",AVERAGE($E41:BQ41)+$EI42,"") ->  | BR42: =IF(BR41<>"",AVERAGE($E41:BR41)+$EI42,"") ->  | BS42: =IF(BS41<>"",AVERAGE($E41:BS41)+$EI42,"") ->  | BT42: =IF(BT41<>"",AVERAGE($E41:BT41)+$EI42,"") ->  | BU42: =IF(BU41<>"",AVERAGE($E41:BU41)+$EI42,"") ->  | BV42: =IF(BV41<>"",AVERAGE($E41:BV41)+$EI42,"") ->  | BW42: =IF(BW41<>"",AVERAGE($E41:BW41)+$EI42,"") ->  | BX42: =IF(BX41<>"",AVERAGE($E41:BX41)+$EI42,"") ->  | BY42: =IF(BY41<>"",AVERAGE($E41:BY41)+$EI42,"") ->  | BZ42: =IF(BZ41<>"",AVERAGE($E41:BZ41)+$EI42,"") ->  | CA42: =IF(CA41<>"",AVERAGE($E41:CA41)+$EI42,"") ->  | CB42: =IF(CB41<>"",AVERAGE($E41:CB41)+$EI42,"") ->  | CC42: =IF(CC41<>"",AVERAGE($E41:CC41)+$EI42,"") ->  | CD42: =IF(CD41<>"",AVERAGE($E41:CD41)+$EI42,"") ->  | CE42: =IF(CE41<>"",AVERAGE($E41:CE41)+$EI42,"") ->  | CF42: =IF(CF41<>"",AVERAGE($E41:CF41)+$EI42,"") ->  | CG42: =IF(CG41<>"",AVERAGE($E41:CG41)+$EI42,"") ->  | CH42: =IF(CH41<>"",AVERAGE($E41:CH41)+$EI42,"") ->  | CI42: =IF(CI41<>"",AVERAGE($E41:CI41)+$EI42,"") ->  | CJ42: =IF(CJ41<>"",AVERAGE($E41:CJ41)+$EI42,"") ->  | CK42: =IF(CK41<>"",AVERAGE($E41:CK41)+$EI42,"") ->  | CL42: =IF(CL41<>"",AVERAGE($E41:CL41)+$EI42,"") ->  | CM42: =IF(CM41<>"",AVERAGE($E41:CM41)+$EI42,"") ->  | CN42: =IF(CN41<>"",AVERAGE($E41:CN41)+$EI42,"") ->  | CO42: =IF(CO41<>"",AVERAGE($E41:CO41)+$EI42,"") ->  | CP42: =IF(CP41<>"",AVERAGE($E41:CP41)+$EI42,"") ->  | CQ42: =IF(CQ41<>"",AVERAGE($E41:CQ41)+$EI42,"") ->  | CR42: =IF(CR41<>"",AVERAGE($E41:CR41)+$EI42,"") ->  | CS42: =IF(CS41<>"",AVERAGE($E41:CS41)+$EI42,"") ->  | CT42: =IF(CT41<>"",AVERAGE($E41:CT41)+$EI42,"") ->  | CU42: =IF(CU41<>"",AVERAGE($E41:CU41)+$EI42,"") ->  | CV42: =IF(CV41<>"",AVERAGE($E41:CV41)+$EI42,"") ->  | CW42: =IF(CW41<>"",AVERAGE($E41:CW41)+$EI42,"") ->  | CX42: =IF(CX41<>"",AVERAGE($E41:CX41)+$EI42,"") ->  | CY42: =IF(CY41<>"",AVERAGE($E41:CY41)+$EI42,"") ->  | CZ42: =IF(CZ41<>"",AVERAGE($E41:CZ41)+$EI42,"") ->  | DA42: =IF(DA41<>"",AVERAGE($E41:DA41)+$EI42,"") ->  | DB42: =IF(DB41<>"",AVERAGE($E41:DB41)+$EI42,"") ->  | DC42: =IF(DC41<>"",AVERAGE($E41:DC41)+$EI42,"") ->  | DD42: =IF(DD41<>"",AVERAGE($E41:DD41)+$EI42,"") ->  | DE42: =IF(DE41<>"",AVERAGE($E41:DE41)+$EI42,"") ->  | DF42: =IF(DF41<>"",AVERAGE($E41:DF41)+$EI42,"") ->  | DG42: =IF(DG41<>"",AVERAGE($E41:DG41)+$EI42,"") ->  | DH42: =IF(DH41<>"",AVERAGE($E41:DH41)+$EI42,"") ->  | DI42: =IF(DI41<>"",AVERAGE($E41:DI41)+$EI42,"") ->  | DJ42: =IF(DJ41<>"",AVERAGE($E41:DJ41)+$EI42,"") ->  | DK42: =IF(DK41<>"",AVERAGE($E41:DK41)+$EI42,"") ->  | DL42: =IF(DL41<>"",AVERAGE($E41:DL41)+$EI42,"") ->  | DM42: =IF(DM41<>"",AVERAGE($E41:DM41)+$EI42,"") ->  | DN42: =IF(DN41<>"",AVERAGE($E41:DN41)+$EI42,"") ->  | DO42: =IF(DO41<>"",AVERAGE($E41:DO41)+$EI42,"") ->  | DP42: =IF(DP41<>"",AVERAGE($E41:DP41)+$EI42,"") ->  | DQ42: =IF(DQ41<>"",AVERAGE($E41:DQ41)+$EI42,"") ->  | DR42: =IF(DR41<>"",AVERAGE($E41:DR41)+$EI42,"") ->  | DS42: =IF(DS41<>"",AVERAGE($E41:DS41)+$EI42,"") ->  | DT42: =IF(DT41<>"",AVERAGE($E41:DT41)+$EI42,"") ->  | DU42: =IF(DU41<>"",AVERAGE($E41:DU41)+$EI42,"") ->  | DV42: =IF(DV41<>"",AVERAGE($E41:DV41)+$EI42,"") ->  | DW42: =IF(DW41<>"",AVERAGE($E41:DW41)+$EI42,"") ->  | DX42: =IF(DX41<>"",AVERAGE($E41:DX41)+$EI42,"") ->  | DY42: =IF(DY41<>"",AVERAGE($E41:DY41)+$EI42,"") ->  | DZ42: =IF(DZ41<>"",AVERAGE($E41:DZ41)+$EI42,"") ->  | EA42: =IF(EA41<>"",AVERAGE($E41:EA41)+$EI42,"") ->  | EB42: =IF(EB41<>"",AVERAGE($E41:EB41)+$EI42,"") ->  | EC42: =IF(EC41<>"",AVERAGE($E41:EC41)+$EI42,"") ->  | ED42: =IF(ED41<>"",AVERAGE($E41:ED41)+$EI42,"") ->  | EE42: =IF(AND(SUM(Tabulka!$AG$24)>0.99,(SUM(Tabulka!$AH$28)<6)),50000+C36/1000,IF(OR(SUM(Tabulka!$AG$24)<2),90000,SUM(E41:ED41)/COUNT(E42:ED42)))+EG42 -> 50135.755 | EG42: 135.75 | EH42: =CONCATENATE(C37," ",C38) -> Petr Šum | EI42: =INDEX(List4!$E$2:$E$19,MATCH(CONCATENATE(C37," ",C38),List4!$A$2:$A$19,0),1) -> 2.43e-05
A43: Petr ŠumPočet šipek | B43: =CONCATENATE(C37," ",C38) -> Petr Šum | D43: Počet šipek | EE43: =IF(AND(SUM(Tabulka!$AG$24)>0.99,(SUM(Tabulka!$AG$24)<2)),-50000+(SUM(E43:ED43)),IF(OR(SUM(Tabulka!$AG$24)<2),-90000,SUM(E43:ED43))) -> -50000 | EG43: 0
A44: =CONCATENATE($C$45," ",$C$46,D44) -> Standa RothVýhry | B44: =CONCATENATE(C45," ",C46) -> Standa Roth | C44: =Tabulka!A29 -> 6 | D44: Výhry | E44: 0 | EE44: =IF(AND(SUM(Tabulka!$AG$29)>0.99,(SUM(Tabulka!$AG$29)<2)),-50000+(SUM(E44:ED44)),IF(OR(SUM(Tabulka!$AG$29)<2),-90000,SUM(E44:ED44))) -> -50000 | EG44: 0
A45: Standa RothProhry | B45: Standa Roth | C45: =Tabulka!B30 -> Standa | D45: Prohry | E45: 0 | EE45: =IF(AND(SUM(Tabulka!$AG$29)>0.99,(SUM(Tabulka!$AG$29)<2)),-50000+(SUM(E45:ED45)),IF(OR(SUM(Tabulka!$AG$29)<2),-90000,SUM(E45:ED45))) -> -50000 | EF45: =SUM(EE44-EE45) -> 0 | EG45: 0
A46: Standa RothPlaceno panáků | B46: =CONCATENATE(C45," ",C46) -> Standa Roth | C46: =Tabulka!B31 -> Roth | D46: Placeno panáků | E46: 0 | EE46: =IF(AND(SUM(Tabulka!$AG$29)>0.99,(SUM(Tabulka!$AG$29)<2)),-50000+(SUM(E46:ED46)),IF(OR(SUM(Tabulka!$AG$29)<2),-90000,SUM(E46:ED46))) -> -50000 | EG46: =SUM(E46:ED46)+0.2 -> 0.2
A47: Standa RothPřehozy | B47: =CONCATENATE(C45," ",C46) -> Standa Roth | C47: =Tabulka!B32 -> 0 | D47: Přehozy | E47: 0 | EE47: =IF(AND(SUM(Tabulka!$AG$29)>0.99,(SUM(Tabulka!$AG$29)<2)),-50000+(SUM(E47:ED47)),IF(OR(SUM(Tabulka!$AG$29)<2),-90000,SUM(E47:ED47))) -> -50000 | EG47: 0
A48: Standa RothPoč. kol | B48: =CONCATENATE(C45," ",C46) -> Standa Roth | C48: =Tabulka!B33 -> 0 | D48: Poč. kol | E48: 4 | EE48: =IF(AND(SUM(Tabulka!$AG$29)>0.99,(SUM(Tabulka!$AG$29)<2)),-50000+(SUM(E48:ED48)),IF(OR(SUM(Tabulka!$AG$29)<2),-90000,SUM(E48:ED48))) -> -49996 | EG48: 4
A49: Standa RothPočet konečných bodů | B49: =CONCATENATE(C45," ",C46) -> Standa Roth | D49: Počet konečných bodů | E49: 111 | F49: 35 | G49: 71 | H49: 43 | EE49: =IF(AND(SUM(Tabulka!$AG$29)>0.99,(SUM(Tabulka!$AH$33)<6)),50000+C44/1000,IF(OR(SUM(Tabulka!$AG$29)<2),90000,SUM(E49:ED49)))+EG49 -> 50260.006 | EG49: 260 | EI49: =$EJ$17-EG49 -> 4740
A50: Standa RothPrůměr konečných bodů na kolo | B50: =CONCATENATE(C45," ",C46) -> Standa Roth | D50: Průměr konečných bodů na kolo | E50: =IF(E49<>"",AVERAGE($E49:E49)+$EI50,"") -> 111.0000199 | F50: =IF(F49<>"",AVERAGE($E49:F49)+$EI50,"") -> 73.0000199 | G50: =IF(G49<>"",AVERAGE($E49:G49)+$EI50,"") -> 72.33335323 | H50: =IF(H49<>"",AVERAGE($E49:H49)+$EI50,"") -> 65.0000199 | I50: =IF(I49<>"",AVERAGE($E49:I49)+$EI50,"") ->  | J50: =IF(J49<>"",AVERAGE($E49:J49)+$EI50,"") ->  | K50: =IF(K49<>"",AVERAGE($E49:K49)+$EI50,"") ->  | L50: =IF(L49<>"",AVERAGE($E49:L49)+$EI50,"") ->  | M50: =IF(M49<>"",AVERAGE($E49:M49)+$EI50,"") ->  | N50: =IF(N49<>"",AVERAGE($E49:N49)+$EI50,"") ->  | O50: =IF(O49<>"",AVERAGE($E49:O49)+$EI50,"") ->  | P50: =IF(P49<>"",AVERAGE($E49:P49)+$EI50,"") ->  | Q50: =IF(Q49<>"",AVERAGE($E49:Q49)+$EI50,"") ->  | R50: =IF(R49<>"",AVERAGE($E49:R49)+$EI50,"") ->  | S50: =IF(S49<>"",AVERAGE($E49:S49)+$EI50,"") ->  | T50: =IF(T49<>"",AVERAGE($E49:T49)+$EI50,"") ->  | U50: =IF(U49<>"",AVERAGE($E49:U49)+$EI50,"") ->  | V50: =IF(V49<>"",AVERAGE($E49:V49)+$EI50,"") ->  | W50: =IF(W49<>"",AVERAGE($E49:W49)+$EI50,"") ->  | X50: =IF(X49<>"",AVERAGE($E49:X49)+$EI50,"") ->  | Y50: =IF(Y49<>"",AVERAGE($E49:Y49)+$EI50,"") ->  | Z50: =IF(Z49<>"",AVERAGE($E49:Z49)+$EI50,"") ->  | AA50: =IF(AA49<>"",AVERAGE($E49:AA49)+$EI50,"") ->  | AB50: =IF(AB49<>"",AVERAGE($E49:AB49)+$EI50,"") ->  | AC50: =IF(AC49<>"",AVERAGE($E49:AC49)+$EI50,"") ->  | AD50: =IF(AD49<>"",AVERAGE($E49:AD49)+$EI50,"") ->  | AE50: =IF(AE49<>"",AVERAGE($E49:AE49)+$EI50,"") ->  | AF50: =IF(AF49<>"",AVERAGE($E49:AF49)+$EI50,"") ->  | AG50: =IF(AG49<>"",AVERAGE($E49:AG49)+$EI50,"") ->  | AH50: =IF(AH49<>"",AVERAGE($E49:AH49)+$EI50,"") ->  | AI50: =IF(AI49<>"",AVERAGE($E49:AI49)+$EI50,"") ->  | AJ50: =IF(AJ49<>"",AVERAGE($E49:AJ49)+$EI50,"") ->  | AK50: =IF(AK49<>"",AVERAGE($E49:AK49)+$EI50,"") ->  | AL50: =IF(AL49<>"",AVERAGE($E49:AL49)+$EI50,"") ->  | AM50: =IF(AM49<>"",AVERAGE($E49:AM49)+$EI50,"") ->  | AN50: =IF(AN49<>"",AVERAGE($E49:AN49)+$EI50,"") ->  | AO50: =IF(AO49<>"",AVERAGE($E49:AO49)+$EI50,"") ->  | AP50: =IF(AP49<>"",AVERAGE($E49:AP49)+$EI50,"") ->  | AQ50: =IF(AQ49<>"",AVERAGE($E49:AQ49)+$EI50,"") ->  | AR50: =IF(AR49<>"",AVERAGE($E49:AR49)+$EI50,"") ->  | AS50: =IF(AS49<>"",AVERAGE($E49:AS49)+$EI50,"") ->  | AT50: =IF(AT49<>"",AVERAGE($E49:AT49)+$EI50,"") ->  | AU50: =IF(AU49<>"",AVERAGE($E49:AU49)+$EI50,"") ->  | AV50: =IF(AV49<>"",AVERAGE($E49:AV49)+$EI50,"") ->  | AW50: =IF(AW49<>"",AVERAGE($E49:AW49)+$EI50,"") ->  | AX50: =IF(AX49<>"",AVERAGE($E49:AX49)+$EI50,"") ->  | AY50: =IF(AY49<>"",AVERAGE($E49:AY49)+$EI50,"") ->  | AZ50: =IF(AZ49<>"",AVERAGE($E49:AZ49)+$EI50,"") ->  | BA50: =IF(BA49<>"",AVERAGE($E49:BA49)+$EI50,"") ->  | BB50: =IF(BB49<>"",AVERAGE($E49:BB49)+$EI50,"") ->  | BC50: =IF(BC49<>"",AVERAGE($E49:BC49)+$EI50,"") ->  | BD50: =IF(BD49<>"",AVERAGE($E49:BD49)+$EI50,"") ->  | BE50: =IF(BE49<>"",AVERAGE($E49:BE49)+$EI50,"") ->  | BF50: =IF(BF49<>"",AVERAGE($E49:BF49)+$EI50,"") ->  | BG50: =IF(BG49<>"",AVERAGE($E49:BG49)+$EI50,"") ->  | BH50: =IF(BH49<>"",AVERAGE($E49:BH49)+$EI50,"") ->  | BI50: =IF(BI49<>"",AVERAGE($E49:BI49)+$EI50,"") ->  | BJ50: =IF(BJ49<>"",AVERAGE($E49:BJ49)+$EI50,"") ->  | BK50: =IF(BK49<>"",AVERAGE($E49:BK49)+$EI50,"") ->  | BL50: =IF(BL49<>"",AVERAGE($E49:BL49)+$EI50,"") ->  | BM50: =IF(BM49<>"",AVERAGE($E49:BM49)+$EI50,"") ->  | BN50: =IF(BN49<>"",AVERAGE($E49:BN49)+$EI50,"") ->  | BO50: =IF(BO49<>"",AVERAGE($E49:BO49)+$EI50,"") ->  | BP50: =IF(BP49<>"",AVERAGE($E49:BP49)+$EI50,"") ->  | BQ50: =IF(BQ49<>"",AVERAGE($E49:BQ49)+$EI50,"") ->  | BR50: =IF(BR49<>"",AVERAGE($E49:BR49)+$EI50,"") ->  | BS50: =IF(BS49<>"",AVERAGE($E49:BS49)+$EI50,"") ->  | BT50: =IF(BT49<>"",AVERAGE($E49:BT49)+$EI50,"") ->  | BU50: =IF(BU49<>"",AVERAGE($E49:BU49)+$EI50,"") ->  | BV50: =IF(BV49<>"",AVERAGE($E49:BV49)+$EI50,"") ->  | BW50: =IF(BW49<>"",AVERAGE($E49:BW49)+$EI50,"") ->  | BX50: =IF(BX49<>"",AVERAGE($E49:BX49)+$EI50,"") ->  | BY50: =IF(BY49<>"",AVERAGE($E49:BY49)+$EI50,"") ->  | BZ50: =IF(BZ49<>"",AVERAGE($E49:BZ49)+$EI50,"") ->  | CA50: =IF(CA49<>"",AVERAGE($E49:CA49)+$EI50,"") ->  | CB50: =IF(CB49<>"",AVERAGE($E49:CB49)+$EI50,"") ->  | CC50: =IF(CC49<>"",AVERAGE($E49:CC49)+$EI50,"") ->  | CD50: =IF(CD49<>"",AVERAGE($E49:CD49)+$EI50,"") ->  | CE50: =IF(CE49<>"",AVERAGE($E49:CE49)+$EI50,"") ->  | CF50: =IF(CF49<>"",AVERAGE($E49:CF49)+$EI50,"") ->  | CG50: =IF(CG49<>"",AVERAGE($E49:CG49)+$EI50,"") ->  | CH50: =IF(CH49<>"",AVERAGE($E49:CH49)+$EI50,"") ->  | CI50: =IF(CI49<>"",AVERAGE($E49:CI49)+$EI50,"") ->  | CJ50: =IF(CJ49<>"",AVERAGE($E49:CJ49)+$EI50,"") ->  | CK50: =IF(CK49<>"",AVERAGE($E49:CK49)+$EI50,"") ->  | CL50: =IF(CL49<>"",AVERAGE($E49:CL49)+$EI50,"") ->  | CM50: =IF(CM49<>"",AVERAGE($E49:CM49)+$EI50,"") ->  | CN50: =IF(CN49<>"",AVERAGE($E49:CN49)+$EI50,"") ->  | CO50: =IF(CO49<>"",AVERAGE($E49:CO49)+$EI50,"") ->  | CP50: =IF(CP49<>"",AVERAGE($E49:CP49)+$EI50,"") ->  | CQ50: =IF(CQ49<>"",AVERAGE($E49:CQ49)+$EI50,"") ->  | CR50: =IF(CR49<>"",AVERAGE($E49:CR49)+$EI50,"") ->  | CS50: =IF(CS49<>"",AVERAGE($E49:CS49)+$EI50,"") ->  | CT50: =IF(CT49<>"",AVERAGE($E49:CT49)+$EI50,"") ->  | CU50: =IF(CU49<>"",AVERAGE($E49:CU49)+$EI50,"") ->  | CV50: =IF(CV49<>"",AVERAGE($E49:CV49)+$EI50,"") ->  | CW50: =IF(CW49<>"",AVERAGE($E49:CW49)+$EI50,"") ->  | CX50: =IF(CX49<>"",AVERAGE($E49:CX49)+$EI50,"") ->  | CY50: =IF(CY49<>"",AVERAGE($E49:CY49)+$EI50,"") ->  | CZ50: =IF(CZ49<>"",AVERAGE($E49:CZ49)+$EI50,"") ->  | DA50: =IF(DA49<>"",AVERAGE($E49:DA49)+$EI50,"") ->  | DB50: =IF(DB49<>"",AVERAGE($E49:DB49)+$EI50,"") ->  | DC50: =IF(DC49<>"",AVERAGE($E49:DC49)+$EI50,"") ->  | DD50: =IF(DD49<>"",AVERAGE($E49:DD49)+$EI50,"") ->  | DE50: =IF(DE49<>"",AVERAGE($E49:DE49)+$EI50,"") ->  | DF50: =IF(DF49<>"",AVERAGE($E49:DF49)+$EI50,"") ->  | DG50: =IF(DG49<>"",AVERAGE($E49:DG49)+$EI50,"") ->  | DH50: =IF(DH49<>"",AVERAGE($E49:DH49)+$EI50,"") ->  | DI50: =IF(DI49<>"",AVERAGE($E49:DI49)+$EI50,"") ->  | DJ50: =IF(DJ49<>"",AVERAGE($E49:DJ49)+$EI50,"") ->  | DK50: =IF(DK49<>"",AVERAGE($E49:DK49)+$EI50,"") ->  | DL50: =IF(DL49<>"",AVERAGE($E49:DL49)+$EI50,"") ->  | DM50: =IF(DM49<>"",AVERAGE($E49:DM49)+$EI50,"") ->  | DN50: =IF(DN49<>"",AVERAGE($E49:DN49)+$EI50,"") ->  | DO50: =IF(DO49<>"",AVERAGE($E49:DO49)+$EI50,"") ->  | DP50: =IF(DP49<>"",AVERAGE($E49:DP49)+$EI50,"") ->  | DQ50: =IF(DQ49<>"",AVERAGE($E49:DQ49)+$EI50,"") ->  | DR50: =IF(DR49<>"",AVERAGE($E49:DR49)+$EI50,"") ->  | DS50: =IF(DS49<>"",AVERAGE($E49:DS49)+$EI50,"") ->  | DT50: =IF(DT49<>"",AVERAGE($E49:DT49)+$EI50,"") ->  | DU50: =IF(DU49<>"",AVERAGE($E49:DU49)+$EI50,"") ->  | DV50: =IF(DV49<>"",AVERAGE($E49:DV49)+$EI50,"") ->  | DW50: =IF(DW49<>"",AVERAGE($E49:DW49)+$EI50,"") ->  | DX50: =IF(DX49<>"",AVERAGE($E49:DX49)+$EI50,"") ->  | DY50: =IF(DY49<>"",AVERAGE($E49:DY49)+$EI50,"") ->  | DZ50: =IF(DZ49<>"",AVERAGE($E49:DZ49)+$EI50,"") ->  | EA50: =IF(EA49<>"",AVERAGE($E49:EA49)+$EI50,"") ->  | EB50: =IF(EB49<>"",AVERAGE($E49:EB49)+$EI50,"") ->  | EC50: =IF(EC49<>"",AVERAGE($E49:EC49)+$EI50,"") ->  | ED50: =IF(ED49<>"",AVERAGE($E49:ED49)+$EI50,"") ->  | EE50: =IF(AND(SUM(Tabulka!$AG$29)>0.99,(SUM(Tabulka!$AH$33)<6)),50000+C44/1000,IF(OR(SUM(Tabulka!$AG$29)<2),90000,SUM(E49:ED49)/COUNT(E50:ED50)))+EG50 -> 50065.006 | EG50: 65 | EH50: =CONCATENATE(C45," ",C46) -> Standa Roth | EI50: =INDEX(List4!$E$2:$E$19,MATCH(CONCATENATE(C45," ",C46),List4!$A$2:$A$19,0),1) -> 1.99e-05
A51: Standa RothPočet šipek | B51: =CONCATENATE(C45," ",C46) -> Standa Roth | D51: Počet šipek | EE51: =IF(AND(SUM(Tabulka!$AG$29)>0.99,(SUM(Tabulka!$AG$29)<2)),-50000+(SUM(E51:ED51)),IF(OR(SUM(Tabulka!$AG$29)<2),-90000,SUM(E51:ED51))) -> -50000 | EG51: 0
A52: =CONCATENATE($C$53," ",$C$54,D52) -> Jarda KleinVýhry | B52: =CONCATENATE(C53," ",C54) -> Jarda Klein | C52: =Tabulka!A34 -> 7 | D52: Výhry | E52: 1 | EE52: =IF(AND(SUM(Tabulka!$AG$34)>0.99,(SUM(Tabulka!$AG$34)<2)),-50000+(SUM(E52:ED52)),IF(OR(SUM(Tabulka!$AG$34)<2),-90000,SUM(E52:ED52))) -> -49999 | EG52: 1
A53: Jarda KleinProhry | B53: Jarda Klein | C53: =Tabulka!B35 -> Jarda | D53: Prohry | E53: 0 | EE53: =IF(AND(SUM(Tabulka!$AG$34)>0.99,(SUM(Tabulka!$AG$34)<2)),-50000+(SUM(E53:ED53)),IF(OR(SUM(Tabulka!$AG$34)<2),-90000,SUM(E53:ED53))) -> -50000 | EF53: =SUM(EE52-EE53) -> 1 | EG53: 0
A54: Jarda KleinPlaceno panáků | B54: =CONCATENATE(C53," ",C54) -> Jarda Klein | C54: =Tabulka!B36 -> Klein | D54: Placeno panáků | E54: 0 | EE54: =IF(AND(SUM(Tabulka!$AG$34)>0.99,(SUM(Tabulka!$AG$34)<2)),-50000+(SUM(E54:ED54)),IF(OR(SUM(Tabulka!$AG$34)<2),-90000,SUM(E54:ED54))) -> -50000 | EG54: =SUM(E54:ED54)+0.2 -> 0.2
A55: Jarda KleinPřehozy | B55: =CONCATENATE(C53," ",C54) -> Jarda Klein | C55: =Tabulka!B37 -> 0 | D55: Přehozy | E55: 0 | EE55: =IF(AND(SUM(Tabulka!$AG$34)>0.99,(SUM(Tabulka!$AG$34)<2)),-50000+(SUM(E55:ED55)),IF(OR(SUM(Tabulka!$AG$34)<2),-90000,SUM(E55:ED55))) -> -50000 | EG55: 0
A56: Jarda KleinPoč. kol | B56: =CONCATENATE(C53," ",C54) -> Jarda Klein | C56: =Tabulka!B38 -> 0 | D56: Poč. kol | E56: 4 | EE56: =IF(AND(SUM(Tabulka!$AG$34)>0.99,(SUM(Tabulka!$AG$34)<2)),-50000+(SUM(E56:ED56)),IF(OR(SUM(Tabulka!$AG$34)<2),-90000,SUM(E56:ED56))) -> -49996 | EG56: 4
A57: Jarda KleinPočet konečných bodů | B57: =CONCATENATE(C53," ",C54) -> Jarda Klein | D57: Počet konečných bodů | E57: 6 | F57: 0 | G57: 91 | H57: 42 | EE57: =IF(AND(SUM(Tabulka!$AG$34)>0.99,(SUM(Tabulka!$AH$38)<6)),50000+C52/1000,IF(OR(SUM(Tabulka!$AG$34)<2),90000,SUM(E57:ED57)))+EG57 -> 50139.007 | EG57: 139 | EI57: =$EJ$17-EG57 -> 4861
A58: Jarda KleinPrůměr konečných bodů na kolo | B58: =CONCATENATE(C53," ",C54) -> Jarda Klein | D58: Průměr konečných bodů na kolo | E58: =IF(E57<>"",AVERAGE($E57:E57)+$EI58,"") -> 6.0000166 | F58: =IF(F57<>"",AVERAGE($E57:F57)+$EI58,"") -> 3.0000166 | G58: =IF(G57<>"",AVERAGE($E57:G57)+$EI58,"") -> 32.33334993 | H58: =IF(H57<>"",AVERAGE($E57:H57)+$EI58,"") -> 34.7500166 | I58: =IF(I57<>"",AVERAGE($E57:I57)+$EI58,"") ->  | J58: =IF(J57<>"",AVERAGE($E57:J57)+$EI58,"") ->  | K58: =IF(K57<>"",AVERAGE($E57:K57)+$EI58,"") ->  | L58: =IF(L57<>"",AVERAGE($E57:L57)+$EI58,"") ->  | M58: =IF(M57<>"",AVERAGE($E57:M57)+$EI58,"") ->  | N58: =IF(N57<>"",AVERAGE($E57:N57)+$EI58,"") ->  | O58: =IF(O57<>"",AVERAGE($E57:O57)+$EI58,"") ->  | P58: =IF(P57<>"",AVERAGE($E57:P57)+$EI58,"") ->  | Q58: =IF(Q57<>"",AVERAGE($E57:Q57)+$EI58,"") ->  | R58: =IF(R57<>"",AVERAGE($E57:R57)+$EI58,"") ->  | S58: =IF(S57<>"",AVERAGE($E57:S57)+$EI58,"") ->  | T58: =IF(T57<>"",AVERAGE($E57:T57)+$EI58,"") ->  | U58: =IF(U57<>"",AVERAGE($E57:U57)+$EI58,"") ->  | V58: =IF(V57<>"",AVERAGE($E57:V57)+$EI58,"") ->  | W58: =IF(W57<>"",AVERAGE($E57:W57)+$EI58,"") ->  | X58: =IF(X57<>"",AVERAGE($E57:X57)+$EI58,"") ->  | Y58: =IF(Y57<>"",AVERAGE($E57:Y57)+$EI58,"") ->  | Z58: =IF(Z57<>"",AVERAGE($E57:Z57)+$EI58,"") ->  | AA58: =IF(AA57<>"",AVERAGE($E57:AA57)+$EI58,"") ->  | AB58: =IF(AB57<>"",AVERAGE($E57:AB57)+$EI58,"") ->  | AC58: =IF(AC57<>"",AVERAGE($E57:AC57)+$EI58,"") ->  | AD58: =IF(AD57<>"",AVERAGE($E57:AD57)+$EI58,"") ->  | AE58: =IF(AE57<>"",AVERAGE($E57:AE57)+$EI58,"") ->  | AF58: =IF(AF57<>"",AVERAGE($E57:AF57)+$EI58,"") ->  | AG58: =IF(AG57<>"",AVERAGE($E57:AG57)+$EI58,"") ->  | AH58: =IF(AH57<>"",AVERAGE($E57:AH57)+$EI58,"") ->  | AI58: =IF(AI57<>"",AVERAGE($E57:AI57)+$EI58,"") ->  | AJ58: =IF(AJ57<>"",AVERAGE($E57:AJ57)+$EI58,"") ->  | AK58: =IF(AK57<>"",AVERAGE($E57:AK57)+$EI58,"") ->  | AL58: =IF(AL57<>"",AVERAGE($E57:AL57)+$EI58,"") ->  | AM58: =IF(AM57<>"",AVERAGE($E57:AM57)+$EI58,"") ->  | AN58: =IF(AN57<>"",AVERAGE($E57:AN57)+$EI58,"") ->  | AO58: =IF(AO57<>"",AVERAGE($E57:AO57)+$EI58,"") ->  | AP58: =IF(AP57<>"",AVERAGE($E57:AP57)+$EI58,"") ->  | AQ58: =IF(AQ57<>"",AVERAGE($E57:AQ57)+$EI58,"") ->  | AR58: =IF(AR57<>"",AVERAGE($E57:AR57)+$EI58,"") ->  | AS58: =IF(AS57<>"",AVERAGE($E57:AS57)+$EI58,"") ->  | AT58: =IF(AT57<>"",AVERAGE($E57:AT57)+$EI58,"") ->  | AU58: =IF(AU57<>"",AVERAGE($E57:AU57)+$EI58,"") ->  | AV58: =IF(AV57<>"",AVERAGE($E57:AV57)+$EI58,"") ->  | AW58: =IF(AW57<>"",AVERAGE($E57:AW57)+$EI58,"") ->  | AX58: =IF(AX57<>"",AVERAGE($E57:AX57)+$EI58,"") ->  | AY58: =IF(AY57<>"",AVERAGE($E57:AY57)+$EI58,"") ->  | AZ58: =IF(AZ57<>"",AVERAGE($E57:AZ57)+$EI58,"") ->  | BA58: =IF(BA57<>"",AVERAGE($E57:BA57)+$EI58,"") ->  | BB58: =IF(BB57<>"",AVERAGE($E57:BB57)+$EI58,"") ->  | BC58: =IF(BC57<>"",AVERAGE($E57:BC57)+$EI58,"") ->  | BD58: =IF(BD57<>"",AVERAGE($E57:BD57)+$EI58,"") ->  | BE58: =IF(BE57<>"",AVERAGE($E57:BE57)+$EI58,"") ->  | BF58: =IF(BF57<>"",AVERAGE($E57:BF57)+$EI58,"") ->  | BG58: =IF(BG57<>"",AVERAGE($E57:BG57)+$EI58,"") ->  | BH58: =IF(BH57<>"",AVERAGE($E57:BH57)+$EI58,"") ->  | BI58: =IF(BI57<>"",AVERAGE($E57:BI57)+$EI58,"") ->  | BJ58: =IF(BJ57<>"",AVERAGE($E57:BJ57)+$EI58,"") ->  | BK58: =IF(BK57<>"",AVERAGE($E57:BK57)+$EI58,"") ->  | BL58: =IF(BL57<>"",AVERAGE($E57:BL57)+$EI58,"") ->  | BM58: =IF(BM57<>"",AVERAGE($E57:BM57)+$EI58,"") ->  | BN58: =IF(BN57<>"",AVERAGE($E57:BN57)+$EI58,"") ->  | BO58: =IF(BO57<>"",AVERAGE($E57:BO57)+$EI58,"") ->  | BP58: =IF(BP57<>"",AVERAGE($E57:BP57)+$EI58,"") ->  | BQ58: =IF(BQ57<>"",AVERAGE($E57:BQ57)+$EI58,"") ->  | BR58: =IF(BR57<>"",AVERAGE($E57:BR57)+$EI58,"") ->  | BS58: =IF(BS57<>"",AVERAGE($E57:BS57)+$EI58,"") ->  | BT58: =IF(BT57<>"",AVERAGE($E57:BT57)+$EI58,"") ->  | BU58: =IF(BU57<>"",AVERAGE($E57:BU57)+$EI58,"") ->  | BV58: =IF(BV57<>"",AVERAGE($E57:BV57)+$EI58,"") ->  | BW58: =IF(BW57<>"",AVERAGE($E57:BW57)+$EI58,"") ->  | BX58: =IF(BX57<>"",AVERAGE($E57:BX57)+$EI58,"") ->  | BY58: =IF(BY57<>"",AVERAGE($E57:BY57)+$EI58,"") ->  | BZ58: =IF(BZ57<>"",AVERAGE($E57:BZ57)+$EI58,"") ->  | CA58: =IF(CA57<>"",AVERAGE($E57:CA57)+$EI58,"") ->  | CB58: =IF(CB57<>"",AVERAGE($E57:CB57)+$EI58,"") ->  | CC58: =IF(CC57<>"",AVERAGE($E57:CC57)+$EI58,"") ->  | CD58: =IF(CD57<>"",AVERAGE($E57:CD57)+$EI58,"") ->  | CE58: =IF(CE57<>"",AVERAGE($E57:CE57)+$EI58,"") ->  | CF58: =IF(CF57<>"",AVERAGE($E57:CF57)+$EI58,"") ->  | CG58: =IF(CG57<>"",AVERAGE($E57:CG57)+$EI58,"") ->  | CH58: =IF(CH57<>"",AVERAGE($E57:CH57)+$EI58,"") ->  | CI58: =IF(CI57<>"",AVERAGE($E57:CI57)+$EI58,"") ->  | CJ58: =IF(CJ57<>"",AVERAGE($E57:CJ57)+$EI58,"") ->  | CK58: =IF(CK57<>"",AVERAGE($E57:CK57)+$EI58,"") ->  | CL58: =IF(CL57<>"",AVERAGE($E57:CL57)+$EI58,"") ->  | CM58: =IF(CM57<>"",AVERAGE($E57:CM57)+$EI58,"") ->  | CN58: =IF(CN57<>"",AVERAGE($E57:CN57)+$EI58,"") ->  | CO58: =IF(CO57<>"",AVERAGE($E57:CO57)+$EI58,"") ->  | CP58: =IF(CP57<>"",AVERAGE($E57:CP57)+$EI58,"") ->  | CQ58: =IF(CQ57<>"",AVERAGE($E57:CQ57)+$EI58,"") ->  | CR58: =IF(CR57<>"",AVERAGE($E57:CR57)+$EI58,"") ->  | CS58: =IF(CS57<>"",AVERAGE($E57:CS57)+$EI58,"") ->  | CT58: =IF(CT57<>"",AVERAGE($E57:CT57)+$EI58,"") ->  | CU58: =IF(CU57<>"",AVERAGE($E57:CU57)+$EI58,"") ->  | CV58: =IF(CV57<>"",AVERAGE($E57:CV57)+$EI58,"") ->  | CW58: =IF(CW57<>"",AVERAGE($E57:CW57)+$EI58,"") ->  | CX58: =IF(CX57<>"",AVERAGE($E57:CX57)+$EI58,"") ->  | CY58: =IF(CY57<>"",AVERAGE($E57:CY57)+$EI58,"") ->  | CZ58: =IF(CZ57<>"",AVERAGE($E57:CZ57)+$EI58,"") ->  | DA58: =IF(DA57<>"",AVERAGE($E57:DA57)+$EI58,"") ->  | DB58: =IF(DB57<>"",AVERAGE($E57:DB57)+$EI58,"") ->  | DC58: =IF(DC57<>"",AVERAGE($E57:DC57)+$EI58,"") ->  | DD58: =IF(DD57<>"",AVERAGE($E57:DD57)+$EI58,"") ->  | DE58: =IF(DE57<>"",AVERAGE($E57:DE57)+$EI58,"") ->  | DF58: =IF(DF57<>"",AVERAGE($E57:DF57)+$EI58,"") ->  | DG58: =IF(DG57<>"",AVERAGE($E57:DG57)+$EI58,"") ->  | DH58: =IF(DH57<>"",AVERAGE($E57:DH57)+$EI58,"") ->  | DI58: =IF(DI57<>"",AVERAGE($E57:DI57)+$EI58,"") ->  | DJ58: =IF(DJ57<>"",AVERAGE($E57:DJ57)+$EI58,"") ->  | DK58: =IF(DK57<>"",AVERAGE($E57:DK57)+$EI58,"") ->  | DL58: =IF(DL57<>"",AVERAGE($E57:DL57)+$EI58,"") ->  | DM58: =IF(DM57<>"",AVERAGE($E57:DM57)+$EI58,"") ->  | DN58: =IF(DN57<>"",AVERAGE($E57:DN57)+$EI58,"") ->  | DO58: =IF(DO57<>"",AVERAGE($E57:DO57)+$EI58,"") ->  | DP58: =IF(DP57<>"",AVERAGE($E57:DP57)+$EI58,"") ->  | DQ58: =IF(DQ57<>"",AVERAGE($E57:DQ57)+$EI58,"") ->  | DR58: =IF(DR57<>"",AVERAGE($E57:DR57)+$EI58,"") ->  | DS58: =IF(DS57<>"",AVERAGE($E57:DS57)+$EI58,"") ->  | DT58: =IF(DT57<>"",AVERAGE($E57:DT57)+$EI58,"") ->  | DU58: =IF(DU57<>"",AVERAGE($E57:DU57)+$EI58,"") ->  | DV58: =IF(DV57<>"",AVERAGE($E57:DV57)+$EI58,"") ->  | DW58: =IF(DW57<>"",AVERAGE($E57:DW57)+$EI58,"") ->  | DX58: =IF(DX57<>"",AVERAGE($E57:DX57)+$EI58,"") ->  | DY58: =IF(DY57<>"",AVERAGE($E57:DY57)+$EI58,"") ->  | DZ58: =IF(DZ57<>"",AVERAGE($E57:DZ57)+$EI58,"") ->  | EA58: =IF(EA57<>"",AVERAGE($E57:EA57)+$EI58,"") ->  | EB58: =IF(EB57<>"",AVERAGE($E57:EB57)+$EI58,"") ->  | EC58: =IF(EC57<>"",AVERAGE($E57:EC57)+$EI58,"") ->  | ED58: =IF(ED57<>"",AVERAGE($E57:ED57)+$EI58,"") ->  | EE58: =IF(AND(SUM(Tabulka!$AG$34)>0.99,(SUM(Tabulka!$AH$38)<6)),50000+C52/1000,IF(OR(SUM(Tabulka!$AG$34)<2),90000,SUM(E57:ED57)/COUNT(E58:ED58)))+EG58 -> 50034.757 | EG58: 34.75 | EH58: =CONCATENATE(C53," ",C54) -> Jarda Klein | EI58: =INDEX(List4!$E$2:$E$19,MATCH(CONCATENATE(C53," ",C54),List4!$A$2:$A$19,0),1) -> 1.66e-05
A59: Jarda KleinPočet šipek | B59: =CONCATENATE(C53," ",C54) -> Jarda Klein | D59: Počet šipek | EE59: =IF(AND(SUM(Tabulka!$AG$34)>0.99,(SUM(Tabulka!$AG$34)<2)),-50000+(SUM(E59:ED59)),IF(OR(SUM(Tabulka!$AG$34)<2),-90000,SUM(E59:ED59))) -> -50000 | EG59: 0
A60: =CONCATENATE($C$61," ",$C$62,D60) -> Adam ŠmídVýhry | B60: =CONCATENATE(C61," ",C62) -> Adam Šmíd | C60: =Tabulka!A39 -> 8 | D60: Výhry | E60: 0 | EE60: =IF(AND(SUM(Tabulka!$AG$39)>0.99,(SUM(Tabulka!$AG$39)<2)),-50000+(SUM(E60:ED60)),IF(OR(SUM(Tabulka!$AG$39)<2),-90000,SUM(E60:ED60))) -> -50000 | EG60: 0
A61: Adam ŠmídProhry | B61: Adam Šmíd | C61: =Tabulka!B40 -> Adam | D61: Prohry | E61: 0 | EE61: =IF(AND(SUM(Tabulka!$AG$39)>0.99,(SUM(Tabulka!$AG$39)<2)),-50000+(SUM(E61:ED61)),IF(OR(SUM(Tabulka!$AG$39)<2),-90000,SUM(E61:ED61))) -> -50000 | EF61: =SUM(EE60-EE61) -> 0 | EG61: 0
A62: Adam ŠmídPlaceno panáků | B62: =CONCATENATE(C61," ",C62) -> Adam Šmíd | C62: =Tabulka!B41 -> Šmíd | D62: Placeno panáků | E62: 0 | EE62: =IF(AND(SUM(Tabulka!$AG$39)>0.99,(SUM(Tabulka!$AG$39)<2)),-50000+(SUM(E62:ED62)),IF(OR(SUM(Tabulka!$AG$39)<2),-90000,SUM(E62:ED62))) -> -50000 | EG62: =SUM(E62:ED62)+0.2 -> 0.2
A63: Adam ŠmídPřehozy | B63: =CONCATENATE(C61," ",C62) -> Adam Šmíd | C63: =Tabulka!B42 -> 0 | D63: Přehozy | E63: 0 | EE63: =IF(AND(SUM(Tabulka!$AG$39)>0.99,(SUM(Tabulka!$AG$39)<2)),-50000+(SUM(E63:ED63)),IF(OR(SUM(Tabulka!$AG$39)<2),-90000,SUM(E63:ED63))) -> -50000 | EG63: 0
A64: Adam ŠmídPoč. kol | B64: =CONCATENATE(C61," ",C62) -> Adam Šmíd | C64: =Tabulka!B43 -> 0 | D64: Poč. kol | E64: 2 | EE64: =IF(AND(SUM(Tabulka!$AG$39)>0.99,(SUM(Tabulka!$AG$39)<2)),-50000+(SUM(E64:ED64)),IF(OR(SUM(Tabulka!$AG$39)<2),-90000,SUM(E64:ED64))) -> -49998 | EG64: 2
A65: Adam ŠmídPočet konečných bodů | B65: =CONCATENATE(C61," ",C62) -> Adam Šmíd | D65: Počet konečných bodů | G65: 151 | H65: 82 | EE65: =IF(AND(SUM(Tabulka!$AG$39)>0.99,(SUM(Tabulka!$AG$39)<6)),50000+(SUM(E65:ED65)),IF(OR(SUM(Tabulka!$AG$39)<2),90000,SUM(E65:ED65)))+EG65 -> 50466 | EG65: 233 | EI65: =$EJ$17-EG65 -> 4767
A66: Adam ŠmídPrůměr konečných bodů na kolo | B66: =CONCATENATE(C61," ",C62) -> Adam Šmíd | D66: Průměr konečných bodů na kolo | E66: =IF(E65<>"",AVERAGE($E65:E65)+$EI66,"") ->  | F66: =IF(F65<>"",AVERAGE($E65:F65)+$EI66,"") ->  | G66: =IF(G65<>"",AVERAGE($E65:G65)+$EI66,"") -> 151.0000232 | H66: =IF(H65<>"",AVERAGE($E65:H65)+$EI66,"") -> 116.5000232 | I66: =IF(I65<>"",AVERAGE($E65:I65)+$EI66,"") ->  | J66: =IF(J65<>"",AVERAGE($E65:J65)+$EI66,"") ->  | K66: =IF(K65<>"",AVERAGE($E65:K65)+$EI66,"") ->  | L66: =IF(L65<>"",AVERAGE($E65:L65)+$EI66,"") ->  | M66: =IF(M65<>"",AVERAGE($E65:M65)+$EI66,"") ->  | N66: =IF(N65<>"",AVERAGE($E65:N65)+$EI66,"") ->  | O66: =IF(O65<>"",AVERAGE($E65:O65)+$EI66,"") ->  | P66: =IF(P65<>"",AVERAGE($E65:P65)+$EI66,"") ->  | Q66: =IF(Q65<>"",AVERAGE($E65:Q65)+$EI66,"") ->  | R66: =IF(R65<>"",AVERAGE($E65:R65)+$EI66,"") ->  | S66: =IF(S65<>"",AVERAGE($E65:S65)+$EI66,"") ->  | T66: =IF(T65<>"",AVERAGE($E65:T65)+$EI66,"") ->  | U66: =IF(U65<>"",AVERAGE($E65:U65)+$EI66,"") ->  | V66: =IF(V65<>"",AVERAGE($E65:V65)+$EI66,"") ->  | W66: =IF(W65<>"",AVERAGE($E65:W65)+$EI66,"") ->  | X66: =IF(X65<>"",AVERAGE($E65:X65)+$EI66,"") ->  | Y66: =IF(Y65<>"",AVERAGE($E65:Y65)+$EI66,"") ->  | Z66: =IF(Z65<>"",AVERAGE($E65:Z65)+$EI66,"") ->  | AA66: =IF(AA65<>"",AVERAGE($E65:AA65)+$EI66,"") ->  | AB66: =IF(AB65<>"",AVERAGE($E65:AB65)+$EI66,"") ->  | AC66: =IF(AC65<>"",AVERAGE($E65:AC65)+$EI66,"") ->  | AD66: =IF(AD65<>"",AVERAGE($E65:AD65)+$EI66,"") ->  | AE66: =IF(AE65<>"",AVERAGE($E65:AE65)+$EI66,"") ->  | AF66: =IF(AF65<>"",AVERAGE($E65:AF65)+$EI66,"") ->  | AG66: =IF(AG65<>"",AVERAGE($E65:AG65)+$EI66,"") ->  | AH66: =IF(AH65<>"",AVERAGE($E65:AH65)+$EI66,"") ->  | AI66: =IF(AI65<>"",AVERAGE($E65:AI65)+$EI66,"") ->  | AJ66: =IF(AJ65<>"",AVERAGE($E65:AJ65)+$EI66,"") ->  | AK66: =IF(AK65<>"",AVERAGE($E65:AK65)+$EI66,"") ->  | AL66: =IF(AL65<>"",AVERAGE($E65:AL65)+$EI66,"") ->  | AM66: =IF(AM65<>"",AVERAGE($E65:AM65)+$EI66,"") ->  | AN66: =IF(AN65<>"",AVERAGE($E65:AN65)+$EI66,"") ->  | AO66: =IF(AO65<>"",AVERAGE($E65:AO65)+$EI66,"") ->  | AP66: =IF(AP65<>"",AVERAGE($E65:AP65)+$EI66,"") ->  | AQ66: =IF(AQ65<>"",AVERAGE($E65:AQ65)+$EI66,"") ->  | AR66: =IF(AR65<>"",AVERAGE($E65:AR65)+$EI66,"") ->  | AS66: =IF(AS65<>"",AVERAGE($E65:AS65)+$EI66,"") ->  | AT66: =IF(AT65<>"",AVERAGE($E65:AT65)+$EI66,"") ->  | AU66: =IF(AU65<>"",AVERAGE($E65:AU65)+$EI66,"") ->  | AV66: =IF(AV65<>"",AVERAGE($E65:AV65)+$EI66,"") ->  | AW66: =IF(AW65<>"",AVERAGE($E65:AW65)+$EI66,"") ->  | AX66: =IF(AX65<>"",AVERAGE($E65:AX65)+$EI66,"") ->  | AY66: =IF(AY65<>"",AVERAGE($E65:AY65)+$EI66,"") ->  | AZ66: =IF(AZ65<>"",AVERAGE($E65:AZ65)+$EI66,"") ->  | BA66: =IF(BA65<>"",AVERAGE($E65:BA65)+$EI66,"") ->  | BB66: =IF(BB65<>"",AVERAGE($E65:BB65)+$EI66,"") ->  | BC66: =IF(BC65<>"",AVERAGE($E65:BC65)+$EI66,"") ->  | BD66: =IF(BD65<>"",AVERAGE($E65:BD65)+$EI66,"") ->  | BE66: =IF(BE65<>"",AVERAGE($E65:BE65)+$EI66,"") ->  | BF66: =IF(BF65<>"",AVERAGE($E65:BF65)+$EI66,"") ->  | BG66: =IF(BG65<>"",AVERAGE($E65:BG65)+$EI66,"") ->  | BH66: =IF(BH65<>"",AVERAGE($E65:BH65)+$EI66,"") ->  | BI66: =IF(BI65<>"",AVERAGE($E65:BI65)+$EI66,"") ->  | BJ66: =IF(BJ65<>"",AVERAGE($E65:BJ65)+$EI66,"") ->  | BK66: =IF(BK65<>"",AVERAGE($E65:BK65)+$EI66,"") ->  | BL66: =IF(BL65<>"",AVERAGE($E65:BL65)+$EI66,"") ->  | BM66: =IF(BM65<>"",AVERAGE($E65:BM65)+$EI66,"") ->  | BN66: =IF(BN65<>"",AVERAGE($E65:BN65)+$EI66,"") ->  | BO66: =IF(BO65<>"",AVERAGE($E65:BO65)+$EI66,"") ->  | BP66: =IF(BP65<>"",AVERAGE($E65:BP65)+$EI66,"") ->  | BQ66: =IF(BQ65<>"",AVERAGE($E65:BQ65)+$EI66,"") ->  | BR66: =IF(BR65<>"",AVERAGE($E65:BR65)+$EI66,"") ->  | BS66: =IF(BS65<>"",AVERAGE($E65:BS65)+$EI66,"") ->  | BT66: =IF(BT65<>"",AVERAGE($E65:BT65)+$EI66,"") ->  | BU66: =IF(BU65<>"",AVERAGE($E65:BU65)+$EI66,"") ->  | BV66: =IF(BV65<>"",AVERAGE($E65:BV65)+$EI66,"") ->  | BW66: =IF(BW65<>"",AVERAGE($E65:BW65)+$EI66,"") ->  | BX66: =IF(BX65<>"",AVERAGE($E65:BX65)+$EI66,"") ->  | BY66: =IF(BY65<>"",AVERAGE($E65:BY65)+$EI66,"") ->  | BZ66: =IF(BZ65<>"",AVERAGE($E65:BZ65)+$EI66,"") ->  | CA66: =IF(CA65<>"",AVERAGE($E65:CA65)+$EI66,"") ->  | CB66: =IF(CB65<>"",AVERAGE($E65:CB65)+$EI66,"") ->  | CC66: =IF(CC65<>"",AVERAGE($E65:CC65)+$EI66,"") ->  | CD66: =IF(CD65<>"",AVERAGE($E65:CD65)+$EI66,"") ->  | CE66: =IF(CE65<>"",AVERAGE($E65:CE65)+$EI66,"") ->  | CF66: =IF(CF65<>"",AVERAGE($E65:CF65)+$EI66,"") ->  | CG66: =IF(CG65<>"",AVERAGE($E65:CG65)+$EI66,"") ->  | CH66: =IF(CH65<>"",AVERAGE($E65:CH65)+$EI66,"") ->  | CI66: =IF(CI65<>"",AVERAGE($E65:CI65)+$EI66,"") ->  | CJ66: =IF(CJ65<>"",AVERAGE($E65:CJ65)+$EI66,"") ->  | CK66: =IF(CK65<>"",AVERAGE($E65:CK65)+$EI66,"") ->  | CL66: =IF(CL65<>"",AVERAGE($E65:CL65)+$EI66,"") ->  | CM66: =IF(CM65<>"",AVERAGE($E65:CM65)+$EI66,"") ->  | CN66: =IF(CN65<>"",AVERAGE($E65:CN65)+$EI66,"") ->  | CO66: =IF(CO65<>"",AVERAGE($E65:CO65)+$EI66,"") ->  | CP66: =IF(CP65<>"",AVERAGE($E65:CP65)+$EI66,"") ->  | CQ66: =IF(CQ65<>"",AVERAGE($E65:CQ65)+$EI66,"") ->  | CR66: =IF(CR65<>"",AVERAGE($E65:CR65)+$EI66,"") ->  | CS66: =IF(CS65<>"",AVERAGE($E65:CS65)+$EI66,"") ->  | CT66: =IF(CT65<>"",AVERAGE($E65:CT65)+$EI66,"") ->  | CU66: =IF(CU65<>"",AVERAGE($E65:CU65)+$EI66,"") ->  | CV66: =IF(CV65<>"",AVERAGE($E65:CV65)+$EI66,"") ->  | CW66: =IF(CW65<>"",AVERAGE($E65:CW65)+$EI66,"") ->  | CX66: =IF(CX65<>"",AVERAGE($E65:CX65)+$EI66,"") ->  | CY66: =IF(CY65<>"",AVERAGE($E65:CY65)+$EI66,"") ->  | CZ66: =IF(CZ65<>"",AVERAGE($E65:CZ65)+$EI66,"") ->  | DA66: =IF(DA65<>"",AVERAGE($E65:DA65)+$EI66,"") ->  | DB66: =IF(DB65<>"",AVERAGE($E65:DB65)+$EI66,"") ->  | DC66: =IF(DC65<>"",AVERAGE($E65:DC65)+$EI66,"") ->  | DD66: =IF(DD65<>"",AVERAGE($E65:DD65)+$EI66,"") ->  | DE66: =IF(DE65<>"",AVERAGE($E65:DE65)+$EI66,"") ->  | DF66: =IF(DF65<>"",AVERAGE($E65:DF65)+$EI66,"") ->  | DG66: =IF(DG65<>"",AVERAGE($E65:DG65)+$EI66,"") ->  | DH66: =IF(DH65<>"",AVERAGE($E65:DH65)+$EI66,"") ->  | DI66: =IF(DI65<>"",AVERAGE($E65:DI65)+$EI66,"") ->  | DJ66: =IF(DJ65<>"",AVERAGE($E65:DJ65)+$EI66,"") ->  | DK66: =IF(DK65<>"",AVERAGE($E65:DK65)+$EI66,"") ->  | DL66: =IF(DL65<>"",AVERAGE($E65:DL65)+$EI66,"") ->  | DM66: =IF(DM65<>"",AVERAGE($E65:DM65)+$EI66,"") ->  | DN66: =IF(DN65<>"",AVERAGE($E65:DN65)+$EI66,"") ->  | DO66: =IF(DO65<>"",AVERAGE($E65:DO65)+$EI66,"") ->  | DP66: =IF(DP65<>"",AVERAGE($E65:DP65)+$EI66,"") ->  | DQ66: =IF(DQ65<>"",AVERAGE($E65:DQ65)+$EI66,"") ->  | DR66: =IF(DR65<>"",AVERAGE($E65:DR65)+$EI66,"") ->  | DS66: =IF(DS65<>"",AVERAGE($E65:DS65)+$EI66,"") ->  | DT66: =IF(DT65<>"",AVERAGE($E65:DT65)+$EI66,"") ->  | DU66: =IF(DU65<>"",AVERAGE($E65:DU65)+$EI66,"") ->  | DV66: =IF(DV65<>"",AVERAGE($E65:DV65)+$EI66,"") ->  | DW66: =IF(DW65<>"",AVERAGE($E65:DW65)+$EI66,"") ->  | DX66: =IF(DX65<>"",AVERAGE($E65:DX65)+$EI66,"") ->  | DY66: =IF(DY65<>"",AVERAGE($E65:DY65)+$EI66,"") ->  | DZ66: =IF(DZ65<>"",AVERAGE($E65:DZ65)+$EI66,"") ->  | EA66: =IF(EA65<>"",AVERAGE($E65:EA65)+$EI66,"") ->  | EB66: =IF(EB65<>"",AVERAGE($E65:EB65)+$EI66,"") ->  | EC66: =IF(EC65<>"",AVERAGE($E65:EC65)+$EI66,"") ->  | ED66: =IF(ED65<>"",AVERAGE($E65:ED65)+$EI66,"") ->  | EE66: =IF(AND(SUM(Tabulka!$AG$39)>0.99,(SUM(Tabulka!$AG$39)<6)),50000+C60/1000,IF(OR(SUM(Tabulka!$AG$39)<2),90000,SUM(E65:ED65)/COUNT(E66:ED66)))+EG66 -> 50116.508 | EG66: 116.5 | EH66: =CONCATENATE(C61," ",C62) -> Adam Šmíd | EI66: =INDEX(List4!$E$2:$E$19,MATCH(CONCATENATE(C61," ",C62),List4!$A$2:$A$19,0),1) -> 2.32e-05
A67: Adam ŠmídPočet šipek | B67: =CONCATENATE(C61," ",C62) -> Adam Šmíd | D67: Počet šipek | EE67: =IF(AND(SUM(Tabulka!$AG$39)>0.99,(SUM(Tabulka!$AG$39)<2)),-50000+(SUM(E67:ED67)),IF(OR(SUM(Tabulka!$AG$39)<2),-90000,SUM(E67:ED67))) -> -50000 | EG67: 0
A68: =CONCATENATE($C$69," ",$C$70,D68) -> Kuba ŠedivýVýhry | B68: =CONCATENATE(C69," ",C70) -> Kuba Šedivý | C68: =Tabulka!A44 -> 9 | D68: Výhry | EE68: =IF(AND(SUM(Tabulka!$AG$44)>0.99,(SUM(Tabulka!$AG$44)<2)),-50000+(SUM(E68:ED68)),IF(OR(SUM(Tabulka!$AG$44)<2),-90000,SUM(E68:ED68))) -> -90000 | EG68: 0
A69: Kuba ŠedivýProhry | B69: =CONCATENATE(C69," ",C70) -> Kuba Šedivý | C69: =Tabulka!B45 -> Kuba | D69: Prohry | EE69: =IF(AND(SUM(Tabulka!$AG$44)>0.6,(SUM(Tabulka!$AG$44)<2)),-50000+(SUM(E69:ED69)),IF(OR(SUM(Tabulka!$AG$44)<2),-90000,SUM(E69:ED69))) -> -90000 | EF69: =SUM(EE68-EE69) -> 0 | EG69: 0
A70: Kuba ŠedivýPlaceno panáků | B70: =CONCATENATE(C69," ",C70) -> Kuba Šedivý | C70: =Tabulka!B46 -> Šedivý | D70: Placeno panáků | EE70: =IF(AND(SUM(Tabulka!$AG$44)>0.99,(SUM(Tabulka!$AG$44)<2)),-50000+(SUM(E70:ED70)),IF(OR(SUM(Tabulka!$AG$44)<2),-90000,SUM(E70:ED70))) -> -90000 | EG70: =SUM(E70:ED70)+0.2 -> 0.2
A71: Kuba ŠedivýPřehozy | B71: =CONCATENATE(C69," ",C70) -> Kuba Šedivý | C71: =Tabulka!B47 -> Kuba | D71: Přehozy | EE71: =IF(AND(SUM(Tabulka!$AG$44)>0.99,(SUM(Tabulka!$AG$44)<2)),-50000+(SUM(E71:ED71)),IF(OR(SUM(Tabulka!$AG$44)<2),-90000,SUM(E71:ED71))) -> -90000 | EG71: 0
A72: Kuba ŠedivýPoč. kol | B72: =CONCATENATE(C69," ",C70) -> Kuba Šedivý | C72: =Tabulka!B48 -> 0 | D72: Poč. kol | EE72: =IF(AND(SUM(Tabulka!$AG$44)>0.99,(SUM(Tabulka!$AG$44)<2)),-50000+(SUM(E72:ED72)),IF(OR(SUM(Tabulka!$AG$44)<2),-90000,SUM(E72:ED72))) -> -90000 | EG72: 0
A73: Kuba ŠedivýPočet konečných bodů | B73: =CONCATENATE(C69," ",C70) -> Kuba Šedivý | D73: Počet konečných bodů | EE73: =IF(AND(SUM(Tabulka!$AG$44)>0.99,(SUM(Tabulka!$AG$44)<6)),50000+C68/1000,IF(OR(SUM(Tabulka!$AG$44)<2),90000,SUM(E73:ED73)))+EG73 -> 90000 | EG73: 0 | EI73: =$EJ$17-EG73 -> 5000
A74: Kuba ŠedivýPrůměr konečných bodů na kolo | B74: =CONCATENATE(C69," ",C70) -> Kuba Šedivý | D74: Průměr konečných bodů na kolo | E74: =IF(E73<>"",AVERAGE($E73:E73)+$EI74,"") ->  | F74: =IF(F73<>"",AVERAGE($E73:F73)+$EI74,"") ->  | G74: =IF(G73<>"",AVERAGE($E73:G73)+$EI74,"") ->  | H74: =IF(H73<>"",AVERAGE($E73:H73)+$EI74,"") ->  | I74: =IF(I73<>"",AVERAGE($E73:I73)+$EI74,"") ->  | J74: =IF(J73<>"",AVERAGE($E73:J73)+$EI74,"") ->  | K74: =IF(K73<>"",AVERAGE($E73:K73)+$EI74,"") ->  | L74: =IF(L73<>"",AVERAGE($E73:L73)+$EI74,"") ->  | M74: =IF(M73<>"",AVERAGE($E73:M73)+$EI74,"") ->  | N74: =IF(N73<>"",AVERAGE($E73:N73)+$EI74,"") ->  | O74: =IF(O73<>"",AVERAGE($E73:O73)+$EI74,"") ->  | P74: =IF(P73<>"",AVERAGE($E73:P73)+$EI74,"") ->  | Q74: =IF(Q73<>"",AVERAGE($E73:Q73)+$EI74,"") ->  | R74: =IF(R73<>"",AVERAGE($E73:R73)+$EI74,"") ->  | S74: =IF(S73<>"",AVERAGE($E73:S73)+$EI74,"") ->  | T74: =IF(T73<>"",AVERAGE($E73:T73)+$EI74,"") ->  | U74: =IF(U73<>"",AVERAGE($E73:U73)+$EI74,"") ->  | V74: =IF(V73<>"",AVERAGE($E73:V73)+$EI74,"") ->  | W74: =IF(W73<>"",AVERAGE($E73:W73)+$EI74,"") ->  | X74: =IF(X73<>"",AVERAGE($E73:X73)+$EI74,"") ->  | Y74: =IF(Y73<>"",AVERAGE($E73:Y73)+$EI74,"") ->  | Z74: =IF(Z73<>"",AVERAGE($E73:Z73)+$EI74,"") ->  | AA74: =IF(AA73<>"",AVERAGE($E73:AA73)+$EI74,"") ->  | AB74: =IF(AB73<>"",AVERAGE($E73:AB73)+$EI74,"") ->  | AC74: =IF(AC73<>"",AVERAGE($E73:AC73)+$EI74,"") ->  | AD74: =IF(AD73<>"",AVERAGE($E73:AD73)+$EI74,"") ->  | AE74: =IF(AE73<>"",AVERAGE($E73:AE73)+$EI74,"") ->  | AF74: =IF(AF73<>"",AVERAGE($E73:AF73)+$EI74,"") ->  | AG74: =IF(AG73<>"",AVERAGE($E73:AG73)+$EI74,"") ->  | AH74: =IF(AH73<>"",AVERAGE($E73:AH73)+$EI74,"") ->  | AI74: =IF(AI73<>"",AVERAGE($E73:AI73)+$EI74,"") ->  | AJ74: =IF(AJ73<>"",AVERAGE($E73:AJ73)+$EI74,"") ->  | AK74: =IF(AK73<>"",AVERAGE($E73:AK73)+$EI74,"") ->  | AL74: =IF(AL73<>"",AVERAGE($E73:AL73)+$EI74,"") ->  | AM74: =IF(AM73<>"",AVERAGE($E73:AM73)+$EI74,"") ->  | AN74: =IF(AN73<>"",AVERAGE($E73:AN73)+$EI74,"") ->  | AO74: =IF(AO73<>"",AVERAGE($E73:AO73)+$EI74,"") ->  | AP74: =IF(AP73<>"",AVERAGE($E73:AP73)+$EI74,"") ->  | AQ74: =IF(AQ73<>"",AVERAGE($E73:AQ73)+$EI74,"") ->  | AR74: =IF(AR73<>"",AVERAGE($E73:AR73)+$EI74,"") ->  | AS74: =IF(AS73<>"",AVERAGE($E73:AS73)+$EI74,"") ->  | AT74: =IF(AT73<>"",AVERAGE($E73:AT73)+$EI74,"") ->  | AU74: =IF(AU73<>"",AVERAGE($E73:AU73)+$EI74,"") ->  | AV74: =IF(AV73<>"",AVERAGE($E73:AV73)+$EI74,"") ->  | AW74: =IF(AW73<>"",AVERAGE($E73:AW73)+$EI74,"") ->  | AX74: =IF(AX73<>"",AVERAGE($E73:AX73)+$EI74,"") ->  | AY74: =IF(AY73<>"",AVERAGE($E73:AY73)+$EI74,"") ->  | AZ74: =IF(AZ73<>"",AVERAGE($E73:AZ73)+$EI74,"") ->  | BA74: =IF(BA73<>"",AVERAGE($E73:BA73)+$EI74,"") ->  | BB74: =IF(BB73<>"",AVERAGE($E73:BB73)+$EI74,"") ->  | BC74: =IF(BC73<>"",AVERAGE($E73:BC73)+$EI74,"") ->  | BD74: =IF(BD73<>"",AVERAGE($E73:BD73)+$EI74,"") ->  | BE74: =IF(BE73<>"",AVERAGE($E73:BE73)+$EI74,"") ->  | BF74: =IF(BF73<>"",AVERAGE($E73:BF73)+$EI74,"") ->  | BG74: =IF(BG73<>"",AVERAGE($E73:BG73)+$EI74,"") ->  | BH74: =IF(BH73<>"",AVERAGE($E73:BH73)+$EI74,"") ->  | BI74: =IF(BI73<>"",AVERAGE($E73:BI73)+$EI74,"") ->  | BJ74: =IF(BJ73<>"",AVERAGE($E73:BJ73)+$EI74,"") ->  | BK74: =IF(BK73<>"",AVERAGE($E73:BK73)+$EI74,"") ->  | BL74: =IF(BL73<>"",AVERAGE($E73:BL73)+$EI74,"") ->  | BM74: =IF(BM73<>"",AVERAGE($E73:BM73)+$EI74,"") ->  | BN74: =IF(BN73<>"",AVERAGE($E73:BN73)+$EI74,"") ->  | BO74: =IF(BO73<>"",AVERAGE($E73:BO73)+$EI74,"") ->  | BP74: =IF(BP73<>"",AVERAGE($E73:BP73)+$EI74,"") ->  | BQ74: =IF(BQ73<>"",AVERAGE($E73:BQ73)+$EI74,"") ->  | BR74: =IF(BR73<>"",AVERAGE($E73:BR73)+$EI74,"") ->  | BS74: =IF(BS73<>"",AVERAGE($E73:BS73)+$EI74,"") ->  | BT74: =IF(BT73<>"",AVERAGE($E73:BT73)+$EI74,"") ->  | BU74: =IF(BU73<>"",AVERAGE($E73:BU73)+$EI74,"") ->  | BV74: =IF(BV73<>"",AVERAGE($E73:BV73)+$EI74,"") ->  | BW74: =IF(BW73<>"",AVERAGE($E73:BW73)+$EI74,"") ->  | BX74: =IF(BX73<>"",AVERAGE($E73:BX73)+$EI74,"") ->  | BY74: =IF(BY73<>"",AVERAGE($E73:BY73)+$EI74,"") ->  | BZ74: =IF(BZ73<>"",AVERAGE($E73:BZ73)+$EI74,"") ->  | CA74: =IF(CA73<>"",AVERAGE($E73:CA73)+$EI74,"") ->  | CB74: =IF(CB73<>"",AVERAGE($E73:CB73)+$EI74,"") ->  | CC74: =IF(CC73<>"",AVERAGE($E73:CC73)+$EI74,"") ->  | CD74: =IF(CD73<>"",AVERAGE($E73:CD73)+$EI74,"") ->  | CE74: =IF(CE73<>"",AVERAGE($E73:CE73)+$EI74,"") ->  | CF74: =IF(CF73<>"",AVERAGE($E73:CF73)+$EI74,"") ->  | CG74: =IF(CG73<>"",AVERAGE($E73:CG73)+$EI74,"") ->  | CH74: =IF(CH73<>"",AVERAGE($E73:CH73)+$EI74,"") ->  | CI74: =IF(CI73<>"",AVERAGE($E73:CI73)+$EI74,"") ->  | CJ74: =IF(CJ73<>"",AVERAGE($E73:CJ73)+$EI74,"") ->  | CK74: =IF(CK73<>"",AVERAGE($E73:CK73)+$EI74,"") ->  | CL74: =IF(CL73<>"",AVERAGE($E73:CL73)+$EI74,"") ->  | CM74: =IF(CM73<>"",AVERAGE($E73:CM73)+$EI74,"") ->  | CN74: =IF(CN73<>"",AVERAGE($E73:CN73)+$EI74,"") ->  | CO74: =IF(CO73<>"",AVERAGE($E73:CO73)+$EI74,"") ->  | CP74: =IF(CP73<>"",AVERAGE($E73:CP73)+$EI74,"") ->  | CQ74: =IF(CQ73<>"",AVERAGE($E73:CQ73)+$EI74,"") ->  | CR74: =IF(CR73<>"",AVERAGE($E73:CR73)+$EI74,"") ->  | CS74: =IF(CS73<>"",AVERAGE($E73:CS73)+$EI74,"") ->  | CT74: =IF(CT73<>"",AVERAGE($E73:CT73)+$EI74,"") ->  | CU74: =IF(CU73<>"",AVERAGE($E73:CU73)+$EI74,"") ->  | CV74: =IF(CV73<>"",AVERAGE($E73:CV73)+$EI74,"") ->  | CW74: =IF(CW73<>"",AVERAGE($E73:CW73)+$EI74,"") ->  | CX74: =IF(CX73<>"",AVERAGE($E73:CX73)+$EI74,"") ->  | CY74: =IF(CY73<>"",AVERAGE($E73:CY73)+$EI74,"") ->  | CZ74: =IF(CZ73<>"",AVERAGE($E73:CZ73)+$EI74,"") ->  | DA74: =IF(DA73<>"",AVERAGE($E73:DA73)+$EI74,"") ->  | DB74: =IF(DB73<>"",AVERAGE($E73:DB73)+$EI74,"") ->  | DC74: =IF(DC73<>"",AVERAGE($E73:DC73)+$EI74,"") ->  | DD74: =IF(DD73<>"",AVERAGE($E73:DD73)+$EI74,"") ->  | DE74: =IF(DE73<>"",AVERAGE($E73:DE73)+$EI74,"") ->  | DF74: =IF(DF73<>"",AVERAGE($E73:DF73)+$EI74,"") ->  | DG74: =IF(DG73<>"",AVERAGE($E73:DG73)+$EI74,"") ->  | DH74: =IF(DH73<>"",AVERAGE($E73:DH73)+$EI74,"") ->  | DI74: =IF(DI73<>"",AVERAGE($E73:DI73)+$EI74,"") ->  | DJ74: =IF(DJ73<>"",AVERAGE($E73:DJ73)+$EI74,"") ->  | DK74: =IF(DK73<>"",AVERAGE($E73:DK73)+$EI74,"") ->  | DL74: =IF(DL73<>"",AVERAGE($E73:DL73)+$EI74,"") ->  | DM74: =IF(DM73<>"",AVERAGE($E73:DM73)+$EI74,"") ->  | DN74: =IF(DN73<>"",AVERAGE($E73:DN73)+$EI74,"") ->  | DO74: =IF(DO73<>"",AVERAGE($E73:DO73)+$EI74,"") ->  | DP74: =IF(DP73<>"",AVERAGE($E73:DP73)+$EI74,"") ->  | DQ74: =IF(DQ73<>"",AVERAGE($E73:DQ73)+$EI74,"") ->  | DR74: =IF(DR73<>"",AVERAGE($E73:DR73)+$EI74,"") ->  | DS74: =IF(DS73<>"",AVERAGE($E73:DS73)+$EI74,"") ->  | DT74: =IF(DT73<>"",AVERAGE($E73:DT73)+$EI74,"") ->  | DU74: =IF(DU73<>"",AVERAGE($E73:DU73)+$EI74,"") ->  | DV74: =IF(DV73<>"",AVERAGE($E73:DV73)+$EI74,"") ->  | DW74: =IF(DW73<>"",AVERAGE($E73:DW73)+$EI74,"") ->  | DX74: =IF(DX73<>"",AVERAGE($E73:DX73)+$EI74,"") ->  | DY74: =IF(DY73<>"",AVERAGE($E73:DY73)+$EI74,"") ->  | DZ74: =IF(DZ73<>"",AVERAGE($E73:DZ73)+$EI74,"") ->  | EA74: =IF(EA73<>"",AVERAGE($E73:EA73)+$EI74,"") ->  | EB74: =IF(EB73<>"",AVERAGE($E73:EB73)+$EI74,"") ->  | EC74: =IF(EC73<>"",AVERAGE($E73:EC73)+$EI74,"") ->  | ED74: =IF(ED73<>"",AVERAGE($E73:ED73)+$EI74,"") ->  | EE74: =IF(AND(SUM(Tabulka!$AG$44)>0.99,(SUM(Tabulka!$AG$44)<6)),50000+C68/1000,IF(OR(SUM(Tabulka!$AG$44)<2),90000,SUM(E73:ED73)/COUNT(E74:ED74)))+EG74 -> 90000 | EG74: =IFERROR(SUM(E73:ED73)/COUNT(E73:ED73),) -> 0 | EH74: =CONCATENATE(C69," ",C70) -> Kuba Šedivý | EI74: =INDEX(List4!$E$2:$E$19,MATCH(CONCATENATE(C69," ",C70),List4!$A$2:$A$19,0),1) -> 2.1e-05
A75: Kuba ŠedivýPočet šipek | B75: =CONCATENATE(C69," ",C70) -> Kuba Šedivý | D75: Počet šipek | EE75: =IF(AND(SUM(Tabulka!$AG$44)>0.99,(SUM(Tabulka!$AG$44)<2)),-50000+(SUM(E75:ED75)),IF(OR(SUM(Tabulka!$AG$44)<2),-90000,SUM(E75:ED75))) -> -90000 | EG75: =SUM(E75:ED75) -> 0
A76: =CONCATENATE($C$77," ",$C$78,D76) -> Petr WeinerVýhry | B76: =CONCATENATE(C77," ",C78) -> Petr Weiner | C76: =Tabulka!A49 -> 10 | D76: Výhry | EE76: =IF(AND(SUM(Tabulka!$AG$49)>0.99,(SUM(Tabulka!$AG$49)<2)),-50000+(SUM(E76:ED76)),IF(OR(SUM(Tabulka!$AG$49)<2),-90000,SUM(E76:ED76))) -> -90000 | EG76: 0
A77: Petr WeinerProhry | B77: Petr Weiner | C77: =Tabulka!B50 -> Petr | D77: Prohry | EE77: =IF(AND(SUM(Tabulka!$AG$49)>0.99,(SUM(Tabulka!$AG$49)<2)),-50000+(SUM(E77:ED77)),IF(OR(SUM(Tabulka!$AG$49)<2),-90000,SUM(E77:ED77))) -> -90000 | EF77: =SUM(EE76-EE77) -> 0 | EG77: 0
A78: Petr WeinerPlaceno panáků | B78: =CONCATENATE(C77," ",C78) -> Petr Weiner | C78: =Tabulka!B51 -> Weiner | D78: Placeno panáků | EE78: =IF(AND(SUM(Tabulka!$AG$49)>0.99,(SUM(Tabulka!$AG$49)<2)),-50000+(SUM(E78:ED78)),IF(OR(SUM(Tabulka!$AG$49)<2),-90000,SUM(E78:ED78))) -> -90000 | EG78: =SUM(E78:ED78)+0.2 -> 0.2
A79: Petr WeinerPřehozy | B79: =CONCATENATE(C77," ",C78) -> Petr Weiner | C79: =Tabulka!B52 -> Petr W | D79: Přehozy | EE79: =IF(AND(SUM(Tabulka!$AG$49)>0.99,(SUM(Tabulka!$AG$49)<2)),-50000+(SUM(E79:ED79)),IF(OR(SUM(Tabulka!$AG$49)<2),-90000,SUM(E79:ED79))) -> -90000 | EG79: 0
A80: Petr WeinerPoč. kol | B80: =CONCATENATE(C77," ",C78) -> Petr Weiner | C80: =Tabulka!B53 -> 0 | D80: Poč. kol | EE80: =IF(AND(SUM(Tabulka!$AG$49)>0.99,(SUM(Tabulka!$AG$49)<2)),-50000+(SUM(E80:ED80)),IF(OR(SUM(Tabulka!$AG$49)<2),-90000,SUM(E80:ED80))) -> -90000 | EG80: 0
A81: Petr WeinerPočet konečných bodů | B81: =CONCATENATE(C77," ",C78) -> Petr Weiner | D81: Počet konečných bodů | EE81: =IF(AND(SUM(Tabulka!$AG$49)>0.99,(SUM(Tabulka!$AG$49)<6)),50000+C76/1000,IF(OR(SUM(Tabulka!$AG$49)<2),90000,SUM(E81:ED81)))+EG81 -> 90000 | EG81: 0 | EI81: =$EJ$17-EG81 -> 5000
A82: Petr WeinerPrůměr konečných bodů na kolo | B82: =CONCATENATE(C77," ",C78) -> Petr Weiner | D82: Průměr konečných bodů na kolo | E82: =IF(E81<>"",AVERAGE($E81:E81)+$EI82,"") ->  | F82: =IF(F81<>"",AVERAGE($E81:F81)+$EI82,"") ->  | G82: =IF(G81<>"",AVERAGE($E81:G81)+$EI82,"") ->  | H82: =IF(H81<>"",AVERAGE($E81:H81)+$EI82,"") ->  | I82: =IF(I81<>"",AVERAGE($E81:I81)+$EI82,"") ->  | J82: =IF(J81<>"",AVERAGE($E81:J81)+$EI82,"") ->  | K82: =IF(K81<>"",AVERAGE($E81:K81)+$EI82,"") ->  | L82: =IF(L81<>"",AVERAGE($E81:L81)+$EI82,"") ->  | M82: =IF(M81<>"",AVERAGE($E81:M81)+$EI82,"") ->  | N82: =IF(N81<>"",AVERAGE($E81:N81)+$EI82,"") ->  | O82: =IF(O81<>"",AVERAGE($E81:O81)+$EI82,"") ->  | P82: =IF(P81<>"",AVERAGE($E81:P81)+$EI82,"") ->  | Q82: =IF(Q81<>"",AVERAGE($E81:Q81)+$EI82,"") ->  | R82: =IF(R81<>"",AVERAGE($E81:R81)+$EI82,"") ->  | S82: =IF(S81<>"",AVERAGE($E81:S81)+$EI82,"") ->  | T82: =IF(T81<>"",AVERAGE($E81:T81)+$EI82,"") ->  | U82: =IF(U81<>"",AVERAGE($E81:U81)+$EI82,"") ->  | V82: =IF(V81<>"",AVERAGE($E81:V81)+$EI82,"") ->  | W82: =IF(W81<>"",AVERAGE($E81:W81)+$EI82,"") ->  | X82: =IF(X81<>"",AVERAGE($E81:X81)+$EI82,"") ->  | Y82: =IF(Y81<>"",AVERAGE($E81:Y81)+$EI82,"") ->  | Z82: =IF(Z81<>"",AVERAGE($E81:Z81)+$EI82,"") ->  | AA82: =IF(AA81<>"",AVERAGE($E81:AA81)+$EI82,"") ->  | AB82: =IF(AB81<>"",AVERAGE($E81:AB81)+$EI82,"") ->  | AC82: =IF(AC81<>"",AVERAGE($E81:AC81)+$EI82,"") ->  | AD82: =IF(AD81<>"",AVERAGE($E81:AD81)+$EI82,"") ->  | AE82: =IF(AE81<>"",AVERAGE($E81:AE81)+$EI82,"") ->  | AF82: =IF(AF81<>"",AVERAGE($E81:AF81)+$EI82,"") ->  | AG82: =IF(AG81<>"",AVERAGE($E81:AG81)+$EI82,"") ->  | AH82: =IF(AH81<>"",AVERAGE($E81:AH81)+$EI82,"") ->  | AI82: =IF(AI81<>"",AVERAGE($E81:AI81)+$EI82,"") ->  | AJ82: =IF(AJ81<>"",AVERAGE($E81:AJ81)+$EI82,"") ->  | AK82: =IF(AK81<>"",AVERAGE($E81:AK81)+$EI82,"") ->  | AL82: =IF(AL81<>"",AVERAGE($E81:AL81)+$EI82,"") ->  | AM82: =IF(AM81<>"",AVERAGE($E81:AM81)+$EI82,"") ->  | AN82: =IF(AN81<>"",AVERAGE($E81:AN81)+$EI82,"") ->  | AO82: =IF(AO81<>"",AVERAGE($E81:AO81)+$EI82,"") ->  | AP82: =IF(AP81<>"",AVERAGE($E81:AP81)+$EI82,"") ->  | AQ82: =IF(AQ81<>"",AVERAGE($E81:AQ81)+$EI82,"") ->  | AR82: =IF(AR81<>"",AVERAGE($E81:AR81)+$EI82,"") ->  | AS82: =IF(AS81<>"",AVERAGE($E81:AS81)+$EI82,"") ->  | AT82: =IF(AT81<>"",AVERAGE($E81:AT81)+$EI82,"") ->  | AU82: =IF(AU81<>"",AVERAGE($E81:AU81)+$EI82,"") ->  | AV82: =IF(AV81<>"",AVERAGE($E81:AV81)+$EI82,"") ->  | AW82: =IF(AW81<>"",AVERAGE($E81:AW81)+$EI82,"") ->  | AX82: =IF(AX81<>"",AVERAGE($E81:AX81)+$EI82,"") ->  | AY82: =IF(AY81<>"",AVERAGE($E81:AY81)+$EI82,"") ->  | AZ82: =IF(AZ81<>"",AVERAGE($E81:AZ81)+$EI82,"") ->  | BA82: =IF(BA81<>"",AVERAGE($E81:BA81)+$EI82,"") ->  | BB82: =IF(BB81<>"",AVERAGE($E81:BB81)+$EI82,"") ->  | BC82: =IF(BC81<>"",AVERAGE($E81:BC81)+$EI82,"") ->  | BD82: =IF(BD81<>"",AVERAGE($E81:BD81)+$EI82,"") ->  | BE82: =IF(BE81<>"",AVERAGE($E81:BE81)+$EI82,"") ->  | BF82: =IF(BF81<>"",AVERAGE($E81:BF81)+$EI82,"") ->  | BG82: =IF(BG81<>"",AVERAGE($E81:BG81)+$EI82,"") ->  | BH82: =IF(BH81<>"",AVERAGE($E81:BH81)+$EI82,"") ->  | BI82: =IF(BI81<>"",AVERAGE($E81:BI81)+$EI82,"") ->  | BJ82: =IF(BJ81<>"",AVERAGE($E81:BJ81)+$EI82,"") ->  | BK82: =IF(BK81<>"",AVERAGE($E81:BK81)+$EI82,"") ->  | BL82: =IF(BL81<>"",AVERAGE($E81:BL81)+$EI82,"") ->  | BM82: =IF(BM81<>"",AVERAGE($E81:BM81)+$EI82,"") ->  | BN82: =IF(BN81<>"",AVERAGE($E81:BN81)+$EI82,"") ->  | BO82: =IF(BO81<>"",AVERAGE($E81:BO81)+$EI82,"") ->  | BP82: =IF(BP81<>"",AVERAGE($E81:BP81)+$EI82,"") ->  | BQ82: =IF(BQ81<>"",AVERAGE($E81:BQ81)+$EI82,"") ->  | BR82: =IF(BR81<>"",AVERAGE($E81:BR81)+$EI82,"") ->  | BS82: =IF(BS81<>"",AVERAGE($E81:BS81)+$EI82,"") ->  | BT82: =IF(BT81<>"",AVERAGE($E81:BT81)+$EI82,"") ->  | BU82: =IF(BU81<>"",AVERAGE($E81:BU81)+$EI82,"") ->  | BV82: =IF(BV81<>"",AVERAGE($E81:BV81)+$EI82,"") ->  | BW82: =IF(BW81<>"",AVERAGE($E81:BW81)+$EI82,"") ->  | BX82: =IF(BX81<>"",AVERAGE($E81:BX81)+$EI82,"") ->  | BY82: =IF(BY81<>"",AVERAGE($E81:BY81)+$EI82,"") ->  | BZ82: =IF(BZ81<>"",AVERAGE($E81:BZ81)+$EI82,"") ->  | CA82: =IF(CA81<>"",AVERAGE($E81:CA81)+$EI82,"") ->  | CB82: =IF(CB81<>"",AVERAGE($E81:CB81)+$EI82,"") ->  | CC82: =IF(CC81<>"",AVERAGE($E81:CC81)+$EI82,"") ->  | CD82: =IF(CD81<>"",AVERAGE($E81:CD81)+$EI82,"") ->  | CE82: =IF(CE81<>"",AVERAGE($E81:CE81)+$EI82,"") ->  | CF82: =IF(CF81<>"",AVERAGE($E81:CF81)+$EI82,"") ->  | CG82: =IF(CG81<>"",AVERAGE($E81:CG81)+$EI82,"") ->  | CH82: =IF(CH81<>"",AVERAGE($E81:CH81)+$EI82,"") ->  | CI82: =IF(CI81<>"",AVERAGE($E81:CI81)+$EI82,"") ->  | CJ82: =IF(CJ81<>"",AVERAGE($E81:CJ81)+$EI82,"") ->  | CK82: =IF(CK81<>"",AVERAGE($E81:CK81)+$EI82,"") ->  | CL82: =IF(CL81<>"",AVERAGE($E81:CL81)+$EI82,"") ->  | CM82: =IF(CM81<>"",AVERAGE($E81:CM81)+$EI82,"") ->  | CN82: =IF(CN81<>"",AVERAGE($E81:CN81)+$EI82,"") ->  | CO82: =IF(CO81<>"",AVERAGE($E81:CO81)+$EI82,"") ->  | CP82: =IF(CP81<>"",AVERAGE($E81:CP81)+$EI82,"") ->  | CQ82: =IF(CQ81<>"",AVERAGE($E81:CQ81)+$EI82,"") ->  | CR82: =IF(CR81<>"",AVERAGE($E81:CR81)+$EI82,"") ->  | CS82: =IF(CS81<>"",AVERAGE($E81:CS81)+$EI82,"") ->  | CT82: =IF(CT81<>"",AVERAGE($E81:CT81)+$EI82,"") ->  | CU82: =IF(CU81<>"",AVERAGE($E81:CU81)+$EI82,"") ->  | CV82: =IF(CV81<>"",AVERAGE($E81:CV81)+$EI82,"") ->  | CW82: =IF(CW81<>"",AVERAGE($E81:CW81)+$EI82,"") ->  | CX82: =IF(CX81<>"",AVERAGE($E81:CX81)+$EI82,"") ->  | CY82: =IF(CY81<>"",AVERAGE($E81:CY81)+$EI82,"") ->  | CZ82: =IF(CZ81<>"",AVERAGE($E81:CZ81)+$EI82,"") ->  | DA82: =IF(DA81<>"",AVERAGE($E81:DA81)+$EI82,"") ->  | DB82: =IF(DB81<>"",AVERAGE($E81:DB81)+$EI82,"") ->  | DC82: =IF(DC81<>"",AVERAGE($E81:DC81)+$EI82,"") ->  | DD82: =IF(DD81<>"",AVERAGE($E81:DD81)+$EI82,"") ->  | DE82: =IF(DE81<>"",AVERAGE($E81:DE81)+$EI82,"") ->  | DF82: =IF(DF81<>"",AVERAGE($E81:DF81)+$EI82,"") ->  | DG82: =IF(DG81<>"",AVERAGE($E81:DG81)+$EI82,"") ->  | DH82: =IF(DH81<>"",AVERAGE($E81:DH81)+$EI82,"") ->  | DI82: =IF(DI81<>"",AVERAGE($E81:DI81)+$EI82,"") ->  | DJ82: =IF(DJ81<>"",AVERAGE($E81:DJ81)+$EI82,"") ->  | DK82: =IF(DK81<>"",AVERAGE($E81:DK81)+$EI82,"") ->  | DL82: =IF(DL81<>"",AVERAGE($E81:DL81)+$EI82,"") ->  | DM82: =IF(DM81<>"",AVERAGE($E81:DM81)+$EI82,"") ->  | DN82: =IF(DN81<>"",AVERAGE($E81:DN81)+$EI82,"") ->  | DO82: =IF(DO81<>"",AVERAGE($E81:DO81)+$EI82,"") ->  | DP82: =IF(DP81<>"",AVERAGE($E81:DP81)+$EI82,"") ->  | DQ82: =IF(DQ81<>"",AVERAGE($E81:DQ81)+$EI82,"") ->  | DR82: =IF(DR81<>"",AVERAGE($E81:DR81)+$EI82,"") ->  | DS82: =IF(DS81<>"",AVERAGE($E81:DS81)+$EI82,"") ->  | DT82: =IF(DT81<>"",AVERAGE($E81:DT81)+$EI82,"") ->  | DU82: =IF(DU81<>"",AVERAGE($E81:DU81)+$EI82,"") ->  | DV82: =IF(DV81<>"",AVERAGE($E81:DV81)+$EI82,"") ->  | DW82: =IF(DW81<>"",AVERAGE($E81:DW81)+$EI82,"") ->  | DX82: =IF(DX81<>"",AVERAGE($E81:DX81)+$EI82,"") ->  | DY82: =IF(DY81<>"",AVERAGE($E81:DY81)+$EI82,"") ->  | DZ82: =IF(DZ81<>"",AVERAGE($E81:DZ81)+$EI82,"") ->  | EA82: =IF(EA81<>"",AVERAGE($E81:EA81)+$EI82,"") ->  | EB82: =IF(EB81<>"",AVERAGE($E81:EB81)+$EI82,"") ->  | EC82: =IF(EC81<>"",AVERAGE($E81:EC81)+$EI82,"") ->  | ED82: =IF(ED81<>"",AVERAGE($E81:ED81)+$EI82,"") ->  | EE82: =IF(AND(SUM(Tabulka!$AG$49)>0.99,(SUM(Tabulka!$AG$49)<6)),50000+C76/1000,IF(OR(SUM(Tabulka!$AG$49)<2),90000,SUM(E81:ED81)/COUNT(E82:ED82)))+EG82 -> 90000 | EG82: 0 | EH82: =CONCATENATE(C77," ",C78) -> Petr Weiner | EI82: =INDEX(List4!$E$2:$E$19,MATCH(CONCATENATE(C77," ",C78),List4!$A$2:$A$19,0),1) -> 2.65e-05
A83: Petr WeinerPočet šipek | B83: =CONCATENATE(C77," ",C78) -> Petr Weiner | D83: Počet šipek | EE83: =IF(AND(SUM(Tabulka!$AG$49)>0.99,(SUM(Tabulka!$AG$49)<2)),-50000+(SUM(E83:ED83)),IF(OR(SUM(Tabulka!$AG$49)<2),-90000,SUM(E83:ED83))) -> -90000 | EG83: 0
A84: =CONCATENATE($C$85," ",$C$86,D84) -> Jiří FialaVýhry | B84: =CONCATENATE(C85," ",C86) -> Jiří Fiala | C84: =Tabulka!A54 -> 11 | D84: Výhry | EE84: =IF(AND(SUM(Tabulka!$AG$54)>0.99,(SUM(Tabulka!$AG$54)<2)),-50000+(SUM(E84:ED84)),IF(OR(SUM(Tabulka!$AG$54)<2),-90000,SUM(E84:ED84))) -> -90000 | EG84: 0
A85: Jiří FialaProhry | B85: Jiří Fiala | C85: =Tabulka!B55 -> Jiří | D85: Prohry | EE85: =IF(AND(SUM(Tabulka!$AG$54)>0.99,(SUM(Tabulka!$AG$54)<2)),-50000+(SUM(E85:ED85)),IF(OR(SUM(Tabulka!$AG$54)<2),-90000,SUM(E85:ED85))) -> -90000 | EF85: =SUM(EE84-EE85) -> 0 | EG85: 0
A86: Jiří FialaPlaceno panáků | B86: =CONCATENATE(C85," ",C86) -> Jiří Fiala | C86: =Tabulka!B56 -> Fiala | D86: Placeno panáků | EE86: =IF(AND(SUM(Tabulka!$AG$54)>0.99,(SUM(Tabulka!$AG$54)<2)),-50000+(SUM(E86:ED86)),IF(OR(SUM(Tabulka!$AG$54)<2),-90000,SUM(E86:ED86))) -> -90000 | EG86: =SUM(E86:ED86)+0.2 -> 0.2
A87: Jiří FialaPřehozy | B87: =CONCATENATE(C85," ",C86) -> Jiří Fiala | C87: =Tabulka!B57 -> Jirka F | D87: Přehozy | EE87: =IF(AND(SUM(Tabulka!$AG$54)>0.99,(SUM(Tabulka!$AG$54)<2)),-50000+(SUM(E87:ED87)),IF(OR(SUM(Tabulka!$AG$54)<2),-90000,SUM(E87:ED87))) -> -90000 | EG87: 0
A88: Jiří FialaPoč. kol | B88: =CONCATENATE(C85," ",C86) -> Jiří Fiala | C88: =Tabulka!B58 -> 0 | D88: Poč. kol | EE88: =IF(AND(SUM(Tabulka!$AG$54)>0.99,(SUM(Tabulka!$AG$54)<2)),-50000+(SUM(E88:ED88)),IF(OR(SUM(Tabulka!$AG$54)<2),-90000,SUM(E88:ED88))) -> -90000 | EG88: 0
A89: Jiří FialaPočet konečných bodů | B89: =CONCATENATE(C85," ",C86) -> Jiří Fiala | D89: Počet konečných bodů | EE89: =IF(AND(SUM(Tabulka!$AG$54)>0.99,(SUM(Tabulka!$AG$54)<6)),50000+C84/1000,IF(OR(SUM(Tabulka!$AG$54)<2),90000,SUM(E89:ED89)))+EG89 -> 90000 | EG89: 0 | EI89: =$EJ$17-EG89 -> 5000
A90: Jiří FialaPrůměr konečných bodů na kolo | B90: =CONCATENATE(C85," ",C86) -> Jiří Fiala | D90: Průměr konečných bodů na kolo | E90: =IF(E89<>"",AVERAGE($E89:E89)+$EI90,"") ->  | F90: =IF(F89<>"",AVERAGE($E89:F89)+$EI90,"") ->  | G90: =IF(G89<>"",AVERAGE($E89:G89)+$EI90,"") ->  | H90: =IF(H89<>"",AVERAGE($E89:H89)+$EI90,"") ->  | I90: =IF(I89<>"",AVERAGE($E89:I89)+$EI90,"") ->  | J90: =IF(J89<>"",AVERAGE($E89:J89)+$EI90,"") ->  | K90: =IF(K89<>"",AVERAGE($E89:K89)+$EI90,"") ->  | L90: =IF(L89<>"",AVERAGE($E89:L89)+$EI90,"") ->  | M90: =IF(M89<>"",AVERAGE($E89:M89)+$EI90,"") ->  | N90: =IF(N89<>"",AVERAGE($E89:N89)+$EI90,"") ->  | O90: =IF(O89<>"",AVERAGE($E89:O89)+$EI90,"") ->  | P90: =IF(P89<>"",AVERAGE($E89:P89)+$EI90,"") ->  | Q90: =IF(Q89<>"",AVERAGE($E89:Q89)+$EI90,"") ->  | R90: =IF(R89<>"",AVERAGE($E89:R89)+$EI90,"") ->  | S90: =IF(S89<>"",AVERAGE($E89:S89)+$EI90,"") ->  | T90: =IF(T89<>"",AVERAGE($E89:T89)+$EI90,"") ->  | U90: =IF(U89<>"",AVERAGE($E89:U89)+$EI90,"") ->  | V90: =IF(V89<>"",AVERAGE($E89:V89)+$EI90,"") ->  | W90: =IF(W89<>"",AVERAGE($E89:W89)+$EI90,"") ->  | X90: =IF(X89<>"",AVERAGE($E89:X89)+$EI90,"") ->  | Y90: =IF(Y89<>"",AVERAGE($E89:Y89)+$EI90,"") ->  | Z90: =IF(Z89<>"",AVERAGE($E89:Z89)+$EI90,"") ->  | AA90: =IF(AA89<>"",AVERAGE($E89:AA89)+$EI90,"") ->  | AB90: =IF(AB89<>"",AVERAGE($E89:AB89)+$EI90,"") ->  | AC90: =IF(AC89<>"",AVERAGE($E89:AC89)+$EI90,"") ->  | AD90: =IF(AD89<>"",AVERAGE($E89:AD89)+$EI90,"") ->  | AE90: =IF(AE89<>"",AVERAGE($E89:AE89)+$EI90,"") ->  | AF90: =IF(AF89<>"",AVERAGE($E89:AF89)+$EI90,"") ->  | AG90: =IF(AG89<>"",AVERAGE($E89:AG89)+$EI90,"") ->  | AH90: =IF(AH89<>"",AVERAGE($E89:AH89)+$EI90,"") ->  | AI90: =IF(AI89<>"",AVERAGE($E89:AI89)+$EI90,"") ->  | AJ90: =IF(AJ89<>"",AVERAGE($E89:AJ89)+$EI90,"") ->  | AK90: =IF(AK89<>"",AVERAGE($E89:AK89)+$EI90,"") ->  | AL90: =IF(AL89<>"",AVERAGE($E89:AL89)+$EI90,"") ->  | AM90: =IF(AM89<>"",AVERAGE($E89:AM89)+$EI90,"") ->  | AN90: =IF(AN89<>"",AVERAGE($E89:AN89)+$EI90,"") ->  | AO90: =IF(AO89<>"",AVERAGE($E89:AO89)+$EI90,"") ->  | AP90: =IF(AP89<>"",AVERAGE($E89:AP89)+$EI90,"") ->  | AQ90: =IF(AQ89<>"",AVERAGE($E89:AQ89)+$EI90,"") ->  | AR90: =IF(AR89<>"",AVERAGE($E89:AR89)+$EI90,"") ->  | AS90: =IF(AS89<>"",AVERAGE($E89:AS89)+$EI90,"") ->  | AT90: =IF(AT89<>"",AVERAGE($E89:AT89)+$EI90,"") ->  | AU90: =IF(AU89<>"",AVERAGE($E89:AU89)+$EI90,"") ->  | AV90: =IF(AV89<>"",AVERAGE($E89:AV89)+$EI90,"") ->  | AW90: =IF(AW89<>"",AVERAGE($E89:AW89)+$EI90,"") ->  | AX90: =IF(AX89<>"",AVERAGE($E89:AX89)+$EI90,"") ->  | AY90: =IF(AY89<>"",AVERAGE($E89:AY89)+$EI90,"") ->  | AZ90: =IF(AZ89<>"",AVERAGE($E89:AZ89)+$EI90,"") ->  | BA90: =IF(BA89<>"",AVERAGE($E89:BA89)+$EI90,"") ->  | BB90: =IF(BB89<>"",AVERAGE($E89:BB89)+$EI90,"") ->  | BC90: =IF(BC89<>"",AVERAGE($E89:BC89)+$EI90,"") ->  | BD90: =IF(BD89<>"",AVERAGE($E89:BD89)+$EI90,"") ->  | BE90: =IF(BE89<>"",AVERAGE($E89:BE89)+$EI90,"") ->  | BF90: =IF(BF89<>"",AVERAGE($E89:BF89)+$EI90,"") ->  | BG90: =IF(BG89<>"",AVERAGE($E89:BG89)+$EI90,"") ->  | BH90: =IF(BH89<>"",AVERAGE($E89:BH89)+$EI90,"") ->  | BI90: =IF(BI89<>"",AVERAGE($E89:BI89)+$EI90,"") ->  | BJ90: =IF(BJ89<>"",AVERAGE($E89:BJ89)+$EI90,"") ->  | BK90: =IF(BK89<>"",AVERAGE($E89:BK89)+$EI90,"") ->  | BL90: =IF(BL89<>"",AVERAGE($E89:BL89)+$EI90,"") ->  | BM90: =IF(BM89<>"",AVERAGE($E89:BM89)+$EI90,"") ->  | BN90: =IF(BN89<>"",AVERAGE($E89:BN89)+$EI90,"") ->  | BO90: =IF(BO89<>"",AVERAGE($E89:BO89)+$EI90,"") ->  | BP90: =IF(BP89<>"",AVERAGE($E89:BP89)+$EI90,"") ->  | BQ90: =IF(BQ89<>"",AVERAGE($E89:BQ89)+$EI90,"") ->  | BR90: =IF(BR89<>"",AVERAGE($E89:BR89)+$EI90,"") ->  | BS90: =IF(BS89<>"",AVERAGE($E89:BS89)+$EI90,"") ->  | BT90: =IF(BT89<>"",AVERAGE($E89:BT89)+$EI90,"") ->  | BU90: =IF(BU89<>"",AVERAGE($E89:BU89)+$EI90,"") ->  | BV90: =IF(BV89<>"",AVERAGE($E89:BV89)+$EI90,"") ->  | BW90: =IF(BW89<>"",AVERAGE($E89:BW89)+$EI90,"") ->  | BX90: =IF(BX89<>"",AVERAGE($E89:BX89)+$EI90,"") ->  | BY90: =IF(BY89<>"",AVERAGE($E89:BY89)+$EI90,"") ->  | BZ90: =IF(BZ89<>"",AVERAGE($E89:BZ89)+$EI90,"") ->  | CA90: =IF(CA89<>"",AVERAGE($E89:CA89)+$EI90,"") ->  | CB90: =IF(CB89<>"",AVERAGE($E89:CB89)+$EI90,"") ->  | CC90: =IF(CC89<>"",AVERAGE($E89:CC89)+$EI90,"") ->  | CD90: =IF(CD89<>"",AVERAGE($E89:CD89)+$EI90,"") ->  | CE90: =IF(CE89<>"",AVERAGE($E89:CE89)+$EI90,"") ->  | CF90: =IF(CF89<>"",AVERAGE($E89:CF89)+$EI90,"") ->  | CG90: =IF(CG89<>"",AVERAGE($E89:CG89)+$EI90,"") ->  | CH90: =IF(CH89<>"",AVERAGE($E89:CH89)+$EI90,"") ->  | CI90: =IF(CI89<>"",AVERAGE($E89:CI89)+$EI90,"") ->  | CJ90: =IF(CJ89<>"",AVERAGE($E89:CJ89)+$EI90,"") ->  | CK90: =IF(CK89<>"",AVERAGE($E89:CK89)+$EI90,"") ->  | CL90: =IF(CL89<>"",AVERAGE($E89:CL89)+$EI90,"") ->  | CM90: =IF(CM89<>"",AVERAGE($E89:CM89)+$EI90,"") ->  | CN90: =IF(CN89<>"",AVERAGE($E89:CN89)+$EI90,"") ->  | CO90: =IF(CO89<>"",AVERAGE($E89:CO89)+$EI90,"") ->  | CP90: =IF(CP89<>"",AVERAGE($E89:CP89)+$EI90,"") ->  | CQ90: =IF(CQ89<>"",AVERAGE($E89:CQ89)+$EI90,"") ->  | CR90: =IF(CR89<>"",AVERAGE($E89:CR89)+$EI90,"") ->  | CS90: =IF(CS89<>"",AVERAGE($E89:CS89)+$EI90,"") ->  | CT90: =IF(CT89<>"",AVERAGE($E89:CT89)+$EI90,"") ->  | CU90: =IF(CU89<>"",AVERAGE($E89:CU89)+$EI90,"") ->  | CV90: =IF(CV89<>"",AVERAGE($E89:CV89)+$EI90,"") ->  | CW90: =IF(CW89<>"",AVERAGE($E89:CW89)+$EI90,"") ->  | CX90: =IF(CX89<>"",AVERAGE($E89:CX89)+$EI90,"") ->  | CY90: =IF(CY89<>"",AVERAGE($E89:CY89)+$EI90,"") ->  | CZ90: =IF(CZ89<>"",AVERAGE($E89:CZ89)+$EI90,"") ->  | DA90: =IF(DA89<>"",AVERAGE($E89:DA89)+$EI90,"") ->  | DB90: =IF(DB89<>"",AVERAGE($E89:DB89)+$EI90,"") ->  | DC90: =IF(DC89<>"",AVERAGE($E89:DC89)+$EI90,"") ->  | DD90: =IF(DD89<>"",AVERAGE($E89:DD89)+$EI90,"") ->  | DE90: =IF(DE89<>"",AVERAGE($E89:DE89)+$EI90,"") ->  | DF90: =IF(DF89<>"",AVERAGE($E89:DF89)+$EI90,"") ->  | DG90: =IF(DG89<>"",AVERAGE($E89:DG89)+$EI90,"") ->  | DH90: =IF(DH89<>"",AVERAGE($E89:DH89)+$EI90,"") ->  | DI90: =IF(DI89<>"",AVERAGE($E89:DI89)+$EI90,"") ->  | DJ90: =IF(DJ89<>"",AVERAGE($E89:DJ89)+$EI90,"") ->  | DK90: =IF(DK89<>"",AVERAGE($E89:DK89)+$EI90,"") ->  | DL90: =IF(DL89<>"",AVERAGE($E89:DL89)+$EI90,"") ->  | DM90: =IF(DM89<>"",AVERAGE($E89:DM89)+$EI90,"") ->  | DN90: =IF(DN89<>"",AVERAGE($E89:DN89)+$EI90,"") ->  | DO90: =IF(DO89<>"",AVERAGE($E89:DO89)+$EI90,"") ->  | DP90: =IF(DP89<>"",AVERAGE($E89:DP89)+$EI90,"") ->  | DQ90: =IF(DQ89<>"",AVERAGE($E89:DQ89)+$EI90,"") ->  | DR90: =IF(DR89<>"",AVERAGE($E89:DR89)+$EI90,"") ->  | DS90: =IF(DS89<>"",AVERAGE($E89:DS89)+$EI90,"") ->  | DT90: =IF(DT89<>"",AVERAGE($E89:DT89)+$EI90,"") ->  | DU90: =IF(DU89<>"",AVERAGE($E89:DU89)+$EI90,"") ->  | DV90: =IF(DV89<>"",AVERAGE($E89:DV89)+$EI90,"") ->  | DW90: =IF(DW89<>"",AVERAGE($E89:DW89)+$EI90,"") ->  | DX90: =IF(DX89<>"",AVERAGE($E89:DX89)+$EI90,"") ->  | DY90: =IF(DY89<>"",AVERAGE($E89:DY89)+$EI90,"") ->  | DZ90: =IF(DZ89<>"",AVERAGE($E89:DZ89)+$EI90,"") ->  | EA90: =IF(EA89<>"",AVERAGE($E89:EA89)+$EI90,"") ->  | EB90: =IF(EB89<>"",AVERAGE($E89:EB89)+$EI90,"") ->  | EC90: =IF(EC89<>"",AVERAGE($E89:EC89)+$EI90,"") ->  | ED90: =IF(ED89<>"",AVERAGE($E89:ED89)+$EI90,"") ->  | EE90: =IF(AND(SUM(Tabulka!$AG$54)>0.99,(SUM(Tabulka!$AG$54)<6)),50000+C84/1000,IF(OR(SUM(Tabulka!$AG$54)<2),90000,SUM(E89:ED89)/COUNT(E90:ED90)))+EG90 -> 90000 | EG90: 0 | EH90: =CONCATENATE(C85," ",C86) -> Jiří Fiala | EI90: =INDEX(List4!$E$2:$E$19,MATCH(CONCATENATE(C85," ",C86),List4!$A$2:$A$19,0),1) -> 1.11e-05
A91: Jiří FialaPočet šipek | B91: =CONCATENATE(C85," ",C86) -> Jiří Fiala | D91: Počet šipek | EE91: =IF(AND(SUM(Tabulka!$AG$54)>0.99,(SUM(Tabulka!$AG$54)<6)),-50000+(SUM(E91:ED91)),IF(OR(SUM(Tabulka!$AG$54)<2),-90000,SUM(E91:ED91))) -> -90000 | EG91: 0
A92: =CONCATENATE($C$93," ",$C$94,D92) -> Míra ChalupníkVýhry | B92: =CONCATENATE(C93," ",C94) -> Míra Chalupník | C92: =Tabulka!A59 -> 12 | D92: Výhry | EE92: =IF(AND(SUM(Tabulka!$AG$59)>0.99,(SUM(Tabulka!$AG$59)<2)),-50000+(SUM(E92:ED92)),IF(OR(SUM(Tabulka!$AG$59)<2),-90000,SUM(E92:ED92))) -> -90000 | EG92: 0
A93: Míra ChalupníkProhry | B93: Míra Chalupník | C93: =Tabulka!B60 -> Míra | D93: Prohry | EE93: =IF(AND(SUM(Tabulka!$AG$59)>0.99,(SUM(Tabulka!$AG$59)<2)),-50000+(SUM(E93:ED93)),IF(OR(SUM(Tabulka!$AG$59)<2),-90000,SUM(E93:ED93))) -> -90000 | EF93: =SUM(EE92-EE93) -> 0 | EG93: 0
A94: Míra ChalupníkPlaceno panáků | B94: =CONCATENATE(C93," ",C94) -> Míra Chalupník | C94: =Tabulka!B61 -> Chalupník | D94: Placeno panáků | EE94: =IF(AND(SUM(Tabulka!$AG$59)>0.99,(SUM(Tabulka!$AG$59)<2)),-50000+(SUM(E94:ED94)),IF(OR(SUM(Tabulka!$AG$59)<2),-90000,SUM(E94:ED94))) -> -90000 | EG94: =SUM(E94:ED94)+0.2 -> 0.2
A95: Míra ChalupníkPřehozy | B95: =CONCATENATE(C93," ",C94) -> Míra Chalupník | C95: =Tabulka!B62 -> Míra Ch | D95: Přehozy | EE95: =IF(AND(SUM(Tabulka!$AG$59)>0.99,(SUM(Tabulka!$AG$59)<2)),-50000+(SUM(E95:ED95)),IF(OR(SUM(Tabulka!$AG$59)<2),-90000,SUM(E95:ED95))) -> -90000 | EG95: 0
A96: Míra ChalupníkPoč. kol | B96: =CONCATENATE(C93," ",C94) -> Míra Chalupník | C96: =Tabulka!B63 -> 0 | D96: Poč. kol | EE96: =IF(AND(SUM(Tabulka!$AG$59)>0.99,(SUM(Tabulka!$AG$59)<2)),-50000+(SUM(E96:ED96)),IF(OR(SUM(Tabulka!$AG$59)<2),-90000,SUM(E96:ED96))) -> -90000 | EG96: 0
A97: Míra ChalupníkPočet konečných bodů | B97: =CONCATENATE(C93," ",C94) -> Míra Chalupník | D97: Počet konečných bodů | EE97: =IF(AND(SUM(Tabulka!$AG$59)>0.99,(SUM(Tabulka!$AG$59)<6)),50000+C92/1000,IF(OR(SUM(Tabulka!$AG$59)<2),90000,SUM(E97:ED97)))+EG97 -> 90000 | EG97: 0 | EI97: =$EJ$17-EG97 -> 5000
A98: Míra ChalupníkPrůměr konečných bodů na kolo | B98: =CONCATENATE(C93," ",C94) -> Míra Chalupník | D98: Průměr konečných bodů na kolo | E98: =IF(E97<>"",AVERAGE($E97:E97)+$EI98,"") ->  | F98: =IF(F97<>"",AVERAGE($E97:F97)+$EI98,"") ->  | G98: =IF(G97<>"",AVERAGE($E97:G97)+$EI98,"") ->  | H98: =IF(H97<>"",AVERAGE($E97:H97)+$EI98,"") ->  | I98: =IF(I97<>"",AVERAGE($E97:I97)+$EI98,"") ->  | J98: =IF(J97<>"",AVERAGE($E97:J97)+$EI98,"") ->  | K98: =IF(K97<>"",AVERAGE($E97:K97)+$EI98,"") ->  | L98: =IF(L97<>"",AVERAGE($E97:L97)+$EI98,"") ->  | M98: =IF(M97<>"",AVERAGE($E97:M97)+$EI98,"") ->  | N98: =IF(N97<>"",AVERAGE($E97:N97)+$EI98,"") ->  | O98: =IF(O97<>"",AVERAGE($E97:O97)+$EI98,"") ->  | P98: =IF(P97<>"",AVERAGE($E97:P97)+$EI98,"") ->  | Q98: =IF(Q97<>"",AVERAGE($E97:Q97)+$EI98,"") ->  | R98: =IF(R97<>"",AVERAGE($E97:R97)+$EI98,"") ->  | S98: =IF(S97<>"",AVERAGE($E97:S97)+$EI98,"") ->  | T98: =IF(T97<>"",AVERAGE($E97:T97)+$EI98,"") ->  | U98: =IF(U97<>"",AVERAGE($E97:U97)+$EI98,"") ->  | V98: =IF(V97<>"",AVERAGE($E97:V97)+$EI98,"") ->  | W98: =IF(W97<>"",AVERAGE($E97:W97)+$EI98,"") ->  | X98: =IF(X97<>"",AVERAGE($E97:X97)+$EI98,"") ->  | Y98: =IF(Y97<>"",AVERAGE($E97:Y97)+$EI98,"") ->  | Z98: =IF(Z97<>"",AVERAGE($E97:Z97)+$EI98,"") ->  | AA98: =IF(AA97<>"",AVERAGE($E97:AA97)+$EI98,"") ->  | AB98: =IF(AB97<>"",AVERAGE($E97:AB97)+$EI98,"") ->  | AC98: =IF(AC97<>"",AVERAGE($E97:AC97)+$EI98,"") ->  | AD98: =IF(AD97<>"",AVERAGE($E97:AD97)+$EI98,"") ->  | AE98: =IF(AE97<>"",AVERAGE($E97:AE97)+$EI98,"") ->  | AF98: =IF(AF97<>"",AVERAGE($E97:AF97)+$EI98,"") ->  | AG98: =IF(AG97<>"",AVERAGE($E97:AG97)+$EI98,"") ->  | AH98: =IF(AH97<>"",AVERAGE($E97:AH97)+$EI98,"") ->  | AI98: =IF(AI97<>"",AVERAGE($E97:AI97)+$EI98,"") ->  | AJ98: =IF(AJ97<>"",AVERAGE($E97:AJ97)+$EI98,"") ->  | AK98: =IF(AK97<>"",AVERAGE($E97:AK97)+$EI98,"") ->  | AL98: =IF(AL97<>"",AVERAGE($E97:AL97)+$EI98,"") ->  | AM98: =IF(AM97<>"",AVERAGE($E97:AM97)+$EI98,"") ->  | AN98: =IF(AN97<>"",AVERAGE($E97:AN97)+$EI98,"") ->  | AO98: =IF(AO97<>"",AVERAGE($E97:AO97)+$EI98,"") ->  | AP98: =IF(AP97<>"",AVERAGE($E97:AP97)+$EI98,"") ->  | AQ98: =IF(AQ97<>"",AVERAGE($E97:AQ97)+$EI98,"") ->  | AR98: =IF(AR97<>"",AVERAGE($E97:AR97)+$EI98,"") ->  | AS98: =IF(AS97<>"",AVERAGE($E97:AS97)+$EI98,"") ->  | AT98: =IF(AT97<>"",AVERAGE($E97:AT97)+$EI98,"") ->  | AU98: =IF(AU97<>"",AVERAGE($E97:AU97)+$EI98,"") ->  | AV98: =IF(AV97<>"",AVERAGE($E97:AV97)+$EI98,"") ->  | AW98: =IF(AW97<>"",AVERAGE($E97:AW97)+$EI98,"") ->  | AX98: =IF(AX97<>"",AVERAGE($E97:AX97)+$EI98,"") ->  | AY98: =IF(AY97<>"",AVERAGE($E97:AY97)+$EI98,"") ->  | AZ98: =IF(AZ97<>"",AVERAGE($E97:AZ97)+$EI98,"") ->  | BA98: =IF(BA97<>"",AVERAGE($E97:BA97)+$EI98,"") ->  | BB98: =IF(BB97<>"",AVERAGE($E97:BB97)+$EI98,"") ->  | BC98: =IF(BC97<>"",AVERAGE($E97:BC97)+$EI98,"") ->  | BD98: =IF(BD97<>"",AVERAGE($E97:BD97)+$EI98,"") ->  | BE98: =IF(BE97<>"",AVERAGE($E97:BE97)+$EI98,"") ->  | BF98: =IF(BF97<>"",AVERAGE($E97:BF97)+$EI98,"") ->  | BG98: =IF(BG97<>"",AVERAGE($E97:BG97)+$EI98,"") ->  | BH98: =IF(BH97<>"",AVERAGE($E97:BH97)+$EI98,"") ->  | BI98: =IF(BI97<>"",AVERAGE($E97:BI97)+$EI98,"") ->  | BJ98: =IF(BJ97<>"",AVERAGE($E97:BJ97)+$EI98,"") ->  | BK98: =IF(BK97<>"",AVERAGE($E97:BK97)+$EI98,"") ->  | BL98: =IF(BL97<>"",AVERAGE($E97:BL97)+$EI98,"") ->  | BM98: =IF(BM97<>"",AVERAGE($E97:BM97)+$EI98,"") ->  | BN98: =IF(BN97<>"",AVERAGE($E97:BN97)+$EI98,"") ->  | BO98: =IF(BO97<>"",AVERAGE($E97:BO97)+$EI98,"") ->  | BP98: =IF(BP97<>"",AVERAGE($E97:BP97)+$EI98,"") ->  | BQ98: =IF(BQ97<>"",AVERAGE($E97:BQ97)+$EI98,"") ->  | BR98: =IF(BR97<>"",AVERAGE($E97:BR97)+$EI98,"") ->  | BS98: =IF(BS97<>"",AVERAGE($E97:BS97)+$EI98,"") ->  | BT98: =IF(BT97<>"",AVERAGE($E97:BT97)+$EI98,"") ->  | BU98: =IF(BU97<>"",AVERAGE($E97:BU97)+$EI98,"") ->  | BV98: =IF(BV97<>"",AVERAGE($E97:BV97)+$EI98,"") ->  | BW98: =IF(BW97<>"",AVERAGE($E97:BW97)+$EI98,"") ->  | BX98: =IF(BX97<>"",AVERAGE($E97:BX97)+$EI98,"") ->  | BY98: =IF(BY97<>"",AVERAGE($E97:BY97)+$EI98,"") ->  | BZ98: =IF(BZ97<>"",AVERAGE($E97:BZ97)+$EI98,"") ->  | CA98: =IF(CA97<>"",AVERAGE($E97:CA97)+$EI98,"") ->  | CB98: =IF(CB97<>"",AVERAGE($E97:CB97)+$EI98,"") ->  | CC98: =IF(CC97<>"",AVERAGE($E97:CC97)+$EI98,"") ->  | CD98: =IF(CD97<>"",AVERAGE($E97:CD97)+$EI98,"") ->  | CE98: =IF(CE97<>"",AVERAGE($E97:CE97)+$EI98,"") ->  | CF98: =IF(CF97<>"",AVERAGE($E97:CF97)+$EI98,"") ->  | CG98: =IF(CG97<>"",AVERAGE($E97:CG97)+$EI98,"") ->  | CH98: =IF(CH97<>"",AVERAGE($E97:CH97)+$EI98,"") ->  | CI98: =IF(CI97<>"",AVERAGE($E97:CI97)+$EI98,"") ->  | CJ98: =IF(CJ97<>"",AVERAGE($E97:CJ97)+$EI98,"") ->  | CK98: =IF(CK97<>"",AVERAGE($E97:CK97)+$EI98,"") ->  | CL98: =IF(CL97<>"",AVERAGE($E97:CL97)+$EI98,"") ->  | CM98: =IF(CM97<>"",AVERAGE($E97:CM97)+$EI98,"") ->  | CN98: =IF(CN97<>"",AVERAGE($E97:CN97)+$EI98,"") ->  | CO98: =IF(CO97<>"",AVERAGE($E97:CO97)+$EI98,"") ->  | CP98: =IF(CP97<>"",AVERAGE($E97:CP97)+$EI98,"") ->  | CQ98: =IF(CQ97<>"",AVERAGE($E97:CQ97)+$EI98,"") ->  | CR98: =IF(CR97<>"",AVERAGE($E97:CR97)+$EI98,"") ->  | CS98: =IF(CS97<>"",AVERAGE($E97:CS97)+$EI98,"") ->  | CT98: =IF(CT97<>"",AVERAGE($E97:CT97)+$EI98,"") ->  | CU98: =IF(CU97<>"",AVERAGE($E97:CU97)+$EI98,"") ->  | CV98: =IF(CV97<>"",AVERAGE($E97:CV97)+$EI98,"") ->  | CW98: =IF(CW97<>"",AVERAGE($E97:CW97)+$EI98,"") ->  | CX98: =IF(CX97<>"",AVERAGE($E97:CX97)+$EI98,"") ->  | CY98: =IF(CY97<>"",AVERAGE($E97:CY97)+$EI98,"") ->  | CZ98: =IF(CZ97<>"",AVERAGE($E97:CZ97)+$EI98,"") ->  | DA98: =IF(DA97<>"",AVERAGE($E97:DA97)+$EI98,"") ->  | DB98: =IF(DB97<>"",AVERAGE($E97:DB97)+$EI98,"") ->  | DC98: =IF(DC97<>"",AVERAGE($E97:DC97)+$EI98,"") ->  | DD98: =IF(DD97<>"",AVERAGE($E97:DD97)+$EI98,"") ->  | DE98: =IF(DE97<>"",AVERAGE($E97:DE97)+$EI98,"") ->  | DF98: =IF(DF97<>"",AVERAGE($E97:DF97)+$EI98,"") ->  | DG98: =IF(DG97<>"",AVERAGE($E97:DG97)+$EI98,"") ->  | DH98: =IF(DH97<>"",AVERAGE($E97:DH97)+$EI98,"") ->  | DI98: =IF(DI97<>"",AVERAGE($E97:DI97)+$EI98,"") ->  | DJ98: =IF(DJ97<>"",AVERAGE($E97:DJ97)+$EI98,"") ->  | DK98: =IF(DK97<>"",AVERAGE($E97:DK97)+$EI98,"") ->  | DL98: =IF(DL97<>"",AVERAGE($E97:DL97)+$EI98,"") ->  | DM98: =IF(DM97<>"",AVERAGE($E97:DM97)+$EI98,"") ->  | DN98: =IF(DN97<>"",AVERAGE($E97:DN97)+$EI98,"") ->  | DO98: =IF(DO97<>"",AVERAGE($E97:DO97)+$EI98,"") ->  | DP98: =IF(DP97<>"",AVERAGE($E97:DP97)+$EI98,"") ->  | DQ98: =IF(DQ97<>"",AVERAGE($E97:DQ97)+$EI98,"") ->  | DR98: =IF(DR97<>"",AVERAGE($E97:DR97)+$EI98,"") ->  | DS98: =IF(DS97<>"",AVERAGE($E97:DS97)+$EI98,"") ->  | DT98: =IF(DT97<>"",AVERAGE($E97:DT97)+$EI98,"") ->  | DU98: =IF(DU97<>"",AVERAGE($E97:DU97)+$EI98,"") ->  | DV98: =IF(DV97<>"",AVERAGE($E97:DV97)+$EI98,"") ->  | DW98: =IF(DW97<>"",AVERAGE($E97:DW97)+$EI98,"") ->  | DX98: =IF(DX97<>"",AVERAGE($E97:DX97)+$EI98,"") ->  | DY98: =IF(DY97<>"",AVERAGE($E97:DY97)+$EI98,"") ->  | DZ98: =IF(DZ97<>"",AVERAGE($E97:DZ97)+$EI98,"") ->  | EA98: =IF(EA97<>"",AVERAGE($E97:EA97)+$EI98,"") ->  | EB98: =IF(EB97<>"",AVERAGE($E97:EB97)+$EI98,"") ->  | EC98: =IF(EC97<>"",AVERAGE($E97:EC97)+$EI98,"") ->  | ED98: =IF(ED97<>"",AVERAGE($E97:ED97)+$EI98,"") ->  | EE98: =IF(AND(SUM(Tabulka!$AG$59)>0.99,(SUM(Tabulka!$AG$59)<6)),50000+C92/1000,IF(OR(SUM(Tabulka!$AG$59)<2),90000,SUM(E97:ED97)/COUNT(E98:ED98)))+EG98 -> 90000 | EG98: 0 | EH98: =CONCATENATE(C93," ",C94) -> Míra Chalupník | EI98: =INDEX(List4!$E$2:$E$19,MATCH(CONCATENATE(C93," ",C94),List4!$A$2:$A$19,0),1) -> 1.44e-05
A99: Míra ChalupníkPočet šipek | B99: =CONCATENATE(C93," ",C94) -> Míra Chalupník | D99: Počet šipek | EE99: =IF(AND(SUM(Tabulka!$AG$59)>0.99,(SUM(Tabulka!$AG$59)<2)),-50000+(SUM(E99:ED99)),IF(OR(SUM(Tabulka!$AG$59)<2),-90000,SUM(E99:ED99))) -> -90000 | EG99: 0
A100: =CONCATENATE($C$101," ",$C$102,D100) -> Karel HobzaVýhry | B100: =CONCATENATE(C101," ",C102) -> Karel Hobza | C100: =Tabulka!A64 -> 13 | D100: Výhry | EE100: =IF(AND(SUM(Tabulka!$AG$64)>0.99,(SUM(Tabulka!$AG$64)<2)),-50000+(SUM(E100:ED100)),IF(OR(SUM(Tabulka!$AG$64)<2),-90000,SUM(E100:ED100))) -> -90000 | EG100: =SUM(E100:ED100) -> 0
A101: Karel HobzaProhry | B101: Karel Hobza | C101: =Tabulka!B65 -> Karel | D101: Prohry | EE101: =IF(AND(SUM(Tabulka!$AG$64)>0.99,(SUM(Tabulka!$AG$64)<2)),-50000+(SUM(E101:ED101)),IF(OR(SUM(Tabulka!$AG$64)<2),-90000,SUM(E101:ED101))) -> -90000 | EF101: =SUM(EE100-EE101) -> 0 | EG101: 0
A102: Karel HobzaPlaceno panáků | B102: =CONCATENATE(C101," ",C102) -> Karel Hobza | C102: =Tabulka!B66 -> Hobza | D102: Placeno panáků | EE102: =IF(AND(SUM(Tabulka!$AG$64)>0.99,(SUM(Tabulka!$AG$64)<2)),-50000+(SUM(E102:ED102)),IF(OR(SUM(Tabulka!$AG$64)<2),-90000,SUM(E102:ED102))) -> -90000 | EG102: =SUM(E102:ED102)+0.2 -> 0.2
A103: Karel HobzaPřehozy | B103: =CONCATENATE(C101," ",C102) -> Karel Hobza | C103: =Tabulka!B67 -> 0 | D103: Přehozy | EE103: =IF(AND(SUM(Tabulka!$AG$64)>0.99,(SUM(Tabulka!$AG$64)<2)),-50000+(SUM(E103:ED103)),IF(OR(SUM(Tabulka!$AG$64)<2),-90000,SUM(E103:ED103))) -> -90000 | EG103: 0
A104: Karel HobzaPoč. kol | B104: =CONCATENATE(C101," ",C102) -> Karel Hobza | C104: =Tabulka!B68 -> 0 | D104: Poč. kol | EE104: =IF(AND(SUM(Tabulka!$AG$64)>0.99,(SUM(Tabulka!$AG$64)<2)),-50000+(SUM(E104:ED104)),IF(OR(SUM(Tabulka!$AG$64)<2),-90000,SUM(E104:ED104))) -> -90000 | EG104: 0
A105: Karel HobzaPočet konečných bodů | B105: =CONCATENATE(C101," ",C102) -> Karel Hobza | D105: Počet konečných bodů | EE105: =IF(AND(SUM(Tabulka!$AG$64)>0.99,(SUM(Tabulka!$AG$64)<6)),50000+C100/100,IF(OR(SUM(Tabulka!$AG$64)<2),90000,SUM(E105:ED105)))+EG105 -> 90000 | EG105: 0 | EI105: =$EJ$17-EG105 -> 5000
A106: Karel HobzaPrůměr konečných bodů na kolo | B106: =CONCATENATE(C101," ",C102) -> Karel Hobza | D106: Průměr konečných bodů na kolo | E106: =IF(E105<>"",AVERAGE($E105:E105)+$EI106,"") ->  | F106: =IF(F105<>"",AVERAGE($E105:F105)+$EI106,"") ->  | G106: =IF(G105<>"",AVERAGE($E105:G105)+$EI106,"") ->  | H106: =IF(H105<>"",AVERAGE($E105:H105)+$EI106,"") ->  | I106: =IF(I105<>"",AVERAGE($E105:I105)+$EI106,"") ->  | J106: =IF(J105<>"",AVERAGE($E105:J105)+$EI106,"") ->  | K106: =IF(K105<>"",AVERAGE($E105:K105)+$EI106,"") ->  | L106: =IF(L105<>"",AVERAGE($E105:L105)+$EI106,"") ->  | M106: =IF(M105<>"",AVERAGE($E105:M105)+$EI106,"") ->  | N106: =IF(N105<>"",AVERAGE($E105:N105)+$EI106,"") ->  | O106: =IF(O105<>"",AVERAGE($E105:O105)+$EI106,"") ->  | P106: =IF(P105<>"",AVERAGE($E105:P105)+$EI106,"") ->  | Q106: =IF(Q105<>"",AVERAGE($E105:Q105)+$EI106,"") ->  | R106: =IF(R105<>"",AVERAGE($E105:R105)+$EI106,"") ->  | S106: =IF(S105<>"",AVERAGE($E105:S105)+$EI106,"") ->  | T106: =IF(T105<>"",AVERAGE($E105:T105)+$EI106,"") ->  | U106: =IF(U105<>"",AVERAGE($E105:U105)+$EI106,"") ->  | V106: =IF(V105<>"",AVERAGE($E105:V105)+$EI106,"") ->  | W106: =IF(W105<>"",AVERAGE($E105:W105)+$EI106,"") ->  | X106: =IF(X105<>"",AVERAGE($E105:X105)+$EI106,"") ->  | Y106: =IF(Y105<>"",AVERAGE($E105:Y105)+$EI106,"") ->  | Z106: =IF(Z105<>"",AVERAGE($E105:Z105)+$EI106,"") ->  | AA106: =IF(AA105<>"",AVERAGE($E105:AA105)+$EI106,"") ->  | AB106: =IF(AB105<>"",AVERAGE($E105:AB105)+$EI106,"") ->  | AC106: =IF(AC105<>"",AVERAGE($E105:AC105)+$EI106,"") ->  | AD106: =IF(AD105<>"",AVERAGE($E105:AD105)+$EI106,"") ->  | AE106: =IF(AE105<>"",AVERAGE($E105:AE105)+$EI106,"") ->  | AF106: =IF(AF105<>"",AVERAGE($E105:AF105)+$EI106,"") ->  | AG106: =IF(AG105<>"",AVERAGE($E105:AG105)+$EI106,"") ->  | AH106: =IF(AH105<>"",AVERAGE($E105:AH105)+$EI106,"") ->  | AI106: =IF(AI105<>"",AVERAGE($E105:AI105)+$EI106,"") ->  | AJ106: =IF(AJ105<>"",AVERAGE($E105:AJ105)+$EI106,"") ->  | AK106: =IF(AK105<>"",AVERAGE($E105:AK105)+$EI106,"") ->  | AL106: =IF(AL105<>"",AVERAGE($E105:AL105)+$EI106,"") ->  | AM106: =IF(AM105<>"",AVERAGE($E105:AM105)+$EI106,"") ->  | AN106: =IF(AN105<>"",AVERAGE($E105:AN105)+$EI106,"") ->  | AO106: =IF(AO105<>"",AVERAGE($E105:AO105)+$EI106,"") ->  | AP106: =IF(AP105<>"",AVERAGE($E105:AP105)+$EI106,"") ->  | AQ106: =IF(AQ105<>"",AVERAGE($E105:AQ105)+$EI106,"") ->  | AR106: =IF(AR105<>"",AVERAGE($E105:AR105)+$EI106,"") ->  | AS106: =IF(AS105<>"",AVERAGE($E105:AS105)+$EI106,"") ->  | AT106: =IF(AT105<>"",AVERAGE($E105:AT105)+$EI106,"") ->  | AU106: =IF(AU105<>"",AVERAGE($E105:AU105)+$EI106,"") ->  | AV106: =IF(AV105<>"",AVERAGE($E105:AV105)+$EI106,"") ->  | AW106: =IF(AW105<>"",AVERAGE($E105:AW105)+$EI106,"") ->  | AX106: =IF(AX105<>"",AVERAGE($E105:AX105)+$EI106,"") ->  | AY106: =IF(AY105<>"",AVERAGE($E105:AY105)+$EI106,"") ->  | AZ106: =IF(AZ105<>"",AVERAGE($E105:AZ105)+$EI106,"") ->  | BA106: =IF(BA105<>"",AVERAGE($E105:BA105)+$EI106,"") ->  | BB106: =IF(BB105<>"",AVERAGE($E105:BB105)+$EI106,"") ->  | BC106: =IF(BC105<>"",AVERAGE($E105:BC105)+$EI106,"") ->  | BD106: =IF(BD105<>"",AVERAGE($E105:BD105)+$EI106,"") ->  | BE106: =IF(BE105<>"",AVERAGE($E105:BE105)+$EI106,"") ->  | BF106: =IF(BF105<>"",AVERAGE($E105:BF105)+$EI106,"") ->  | BG106: =IF(BG105<>"",AVERAGE($E105:BG105)+$EI106,"") ->  | BH106: =IF(BH105<>"",AVERAGE($E105:BH105)+$EI106,"") ->  | BI106: =IF(BI105<>"",AVERAGE($E105:BI105)+$EI106,"") ->  | BJ106: =IF(BJ105<>"",AVERAGE($E105:BJ105)+$EI106,"") ->  | BK106: =IF(BK105<>"",AVERAGE($E105:BK105)+$EI106,"") ->  | BL106: =IF(BL105<>"",AVERAGE($E105:BL105)+$EI106,"") ->  | BM106: =IF(BM105<>"",AVERAGE($E105:BM105)+$EI106,"") ->  | BN106: =IF(BN105<>"",AVERAGE($E105:BN105)+$EI106,"") ->  | BO106: =IF(BO105<>"",AVERAGE($E105:BO105)+$EI106,"") ->  | BP106: =IF(BP105<>"",AVERAGE($E105:BP105)+$EI106,"") ->  | BQ106: =IF(BQ105<>"",AVERAGE($E105:BQ105)+$EI106,"") ->  | BR106: =IF(BR105<>"",AVERAGE($E105:BR105)+$EI106,"") ->  | BS106: =IF(BS105<>"",AVERAGE($E105:BS105)+$EI106,"") ->  | BT106: =IF(BT105<>"",AVERAGE($E105:BT105)+$EI106,"") ->  | BU106: =IF(BU105<>"",AVERAGE($E105:BU105)+$EI106,"") ->  | BV106: =IF(BV105<>"",AVERAGE($E105:BV105)+$EI106,"") ->  | BW106: =IF(BW105<>"",AVERAGE($E105:BW105)+$EI106,"") ->  | BX106: =IF(BX105<>"",AVERAGE($E105:BX105)+$EI106,"") ->  | BY106: =IF(BY105<>"",AVERAGE($E105:BY105)+$EI106,"") ->  | BZ106: =IF(BZ105<>"",AVERAGE($E105:BZ105)+$EI106,"") ->  | CA106: =IF(CA105<>"",AVERAGE($E105:CA105)+$EI106,"") ->  | CB106: =IF(CB105<>"",AVERAGE($E105:CB105)+$EI106,"") ->  | CC106: =IF(CC105<>"",AVERAGE($E105:CC105)+$EI106,"") ->  | CD106: =IF(CD105<>"",AVERAGE($E105:CD105)+$EI106,"") ->  | CE106: =IF(CE105<>"",AVERAGE($E105:CE105)+$EI106,"") ->  | CF106: =IF(CF105<>"",AVERAGE($E105:CF105)+$EI106,"") ->  | CG106: =IF(CG105<>"",AVERAGE($E105:CG105)+$EI106,"") ->  | CH106: =IF(CH105<>"",AVERAGE($E105:CH105)+$EI106,"") ->  | CI106: =IF(CI105<>"",AVERAGE($E105:CI105)+$EI106,"") ->  | CJ106: =IF(CJ105<>"",AVERAGE($E105:CJ105)+$EI106,"") ->  | CK106: =IF(CK105<>"",AVERAGE($E105:CK105)+$EI106,"") ->  | CL106: =IF(CL105<>"",AVERAGE($E105:CL105)+$EI106,"") ->  | CM106: =IF(CM105<>"",AVERAGE($E105:CM105)+$EI106,"") ->  | CN106: =IF(CN105<>"",AVERAGE($E105:CN105)+$EI106,"") ->  | CO106: =IF(CO105<>"",AVERAGE($E105:CO105)+$EI106,"") ->  | CP106: =IF(CP105<>"",AVERAGE($E105:CP105)+$EI106,"") ->  | CQ106: =IF(CQ105<>"",AVERAGE($E105:CQ105)+$EI106,"") ->  | CR106: =IF(CR105<>"",AVERAGE($E105:CR105)+$EI106,"") ->  | CS106: =IF(CS105<>"",AVERAGE($E105:CS105)+$EI106,"") ->  | CT106: =IF(CT105<>"",AVERAGE($E105:CT105)+$EI106,"") ->  | CU106: =IF(CU105<>"",AVERAGE($E105:CU105)+$EI106,"") ->  | CV106: =IF(CV105<>"",AVERAGE($E105:CV105)+$EI106,"") ->  | CW106: =IF(CW105<>"",AVERAGE($E105:CW105)+$EI106,"") ->  | CX106: =IF(CX105<>"",AVERAGE($E105:CX105)+$EI106,"") ->  | CY106: =IF(CY105<>"",AVERAGE($E105:CY105)+$EI106,"") ->  | CZ106: =IF(CZ105<>"",AVERAGE($E105:CZ105)+$EI106,"") ->  | DA106: =IF(DA105<>"",AVERAGE($E105:DA105)+$EI106,"") ->  | DB106: =IF(DB105<>"",AVERAGE($E105:DB105)+$EI106,"") ->  | DC106: =IF(DC105<>"",AVERAGE($E105:DC105)+$EI106,"") ->  | DD106: =IF(DD105<>"",AVERAGE($E105:DD105)+$EI106,"") ->  | DE106: =IF(DE105<>"",AVERAGE($E105:DE105)+$EI106,"") ->  | DF106: =IF(DF105<>"",AVERAGE($E105:DF105)+$EI106,"") ->  | DG106: =IF(DG105<>"",AVERAGE($E105:DG105)+$EI106,"") ->  | DH106: =IF(DH105<>"",AVERAGE($E105:DH105)+$EI106,"") ->  | DI106: =IF(DI105<>"",AVERAGE($E105:DI105)+$EI106,"") ->  | DJ106: =IF(DJ105<>"",AVERAGE($E105:DJ105)+$EI106,"") ->  | DK106: =IF(DK105<>"",AVERAGE($E105:DK105)+$EI106,"") ->  | DL106: =IF(DL105<>"",AVERAGE($E105:DL105)+$EI106,"") ->  | DM106: =IF(DM105<>"",AVERAGE($E105:DM105)+$EI106,"") ->  | DN106: =IF(DN105<>"",AVERAGE($E105:DN105)+$EI106,"") ->  | DO106: =IF(DO105<>"",AVERAGE($E105:DO105)+$EI106,"") ->  | DP106: =IF(DP105<>"",AVERAGE($E105:DP105)+$EI106,"") ->  | DQ106: =IF(DQ105<>"",AVERAGE($E105:DQ105)+$EI106,"") ->  | DR106: =IF(DR105<>"",AVERAGE($E105:DR105)+$EI106,"") ->  | DS106: =IF(DS105<>"",AVERAGE($E105:DS105)+$EI106,"") ->  | DT106: =IF(DT105<>"",AVERAGE($E105:DT105)+$EI106,"") ->  | DU106: =IF(DU105<>"",AVERAGE($E105:DU105)+$EI106,"") ->  | DV106: =IF(DV105<>"",AVERAGE($E105:DV105)+$EI106,"") ->  | DW106: =IF(DW105<>"",AVERAGE($E105:DW105)+$EI106,"") ->  | DX106: =IF(DX105<>"",AVERAGE($E105:DX105)+$EI106,"") ->  | DY106: =IF(DY105<>"",AVERAGE($E105:DY105)+$EI106,"") ->  | DZ106: =IF(DZ105<>"",AVERAGE($E105:DZ105)+$EI106,"") ->  | EA106: =IF(EA105<>"",AVERAGE($E105:EA105)+$EI106,"") ->  | EB106: =IF(EB105<>"",AVERAGE($E105:EB105)+$EI106,"") ->  | EC106: =IF(EC105<>"",AVERAGE($E105:EC105)+$EI106,"") ->  | ED106: =IF(ED105<>"",AVERAGE($E105:ED105)+$EI106,"") ->  | EE106: =IF(AND(SUM(Tabulka!$AG$64)>0.99,(SUM(Tabulka!$AG$64)<6)),50000+C100/1000,IF(OR(SUM(Tabulka!$AG$64)<2),90000,SUM(E105:ED105)/COUNT(E106:ED106)))+EG106 -> 90000 | EG106: =IFERROR(SUM(E105:ED105)/COUNT(E105:ED105),) -> 0 | EH106: =CONCATENATE(C101," ",C102) -> Karel Hobza | EI106: =INDEX(List4!$E$2:$E$19,MATCH(CONCATENATE(C101," ",C102),List4!$A$2:$A$19,0),1) -> 1.22e-05
A107: Karel HobzaPočet šipek | B107: =CONCATENATE(C101," ",C102) -> Karel Hobza | D107: Počet šipek | EE107: =IF(AND(SUM(Tabulka!$AG$64)>0.99,(SUM(Tabulka!$AG$64)<2)),-50000+(SUM(E107:ED107)),IF(OR(SUM(Tabulka!$AG$64)<2),-90000,SUM(E107:ED107))) -> -90000 | EG107: =SUM(E107:ED107) -> 0
A108: =CONCATENATE($C$109," ",$C$110,D108) -> Míra KulhanVýhry | B108: =CONCATENATE(C109," ",C110) -> Míra Kulhan | C108: =C100+1 -> 14 | D108: Výhry | EE108: =IF(AND(SUM(Tabulka!$AG$69)>0.99,(SUM(Tabulka!$AG$69)<2)),-50000+(SUM(E108:ED108)),IF(OR(SUM(Tabulka!$AG$69)<2),-90000,SUM(E108:ED108))) -> -90000 | EG108: 0
A109: Míra KulhanProhry | B109: Míra Kulhan | C109: =Tabulka!B70 -> Míra | D109: Prohry | EE109: =IF(AND(SUM(Tabulka!$AG$69)>0.99,(SUM(Tabulka!$AG$69)<2)),-50000+(SUM(E109:ED109)),IF(OR(SUM(Tabulka!$AG$69)<2),-90000,SUM(E109:ED109))) -> -90000 | EF109: =SUM(EE108-EE109) -> 0 | EG109: 0
A110: Míra KulhanPlaceno panáků | B110: =CONCATENATE(C109," ",C110) -> Míra Kulhan | C110: =Tabulka!B71 -> Kulhan | D110: Placeno panáků | EE110: =IF(AND(SUM(Tabulka!$AG$69)>0.99,(SUM(Tabulka!$AG$69)<2)),-50000+(SUM(E110:ED110)),IF(OR(SUM(Tabulka!$AG$69)<2),-90000,SUM(E110:ED110))) -> -90000 | EG110: =SUM(E110:ED110)+0.2 -> 0.2
A111: Míra KulhanPřehozy | B111: =CONCATENATE(C109," ",C110) -> Míra Kulhan | C111: =Tabulka!B72 -> Míra K | D111: Přehozy | EE111: =IF(AND(SUM(Tabulka!$AG$69)>0.99,(SUM(Tabulka!$AG$69)<2)),-50000+(SUM(E111:ED111)),IF(OR(SUM(Tabulka!$AG$69)<2),-90000,SUM(E111:ED111))) -> -90000 | EG111: 0
A112: Míra KulhanPoč. kol | B112: =CONCATENATE(C109," ",C110) -> Míra Kulhan | C112: =Tabulka!B73 -> 0 | D112: Poč. kol | EE112: =IF(AND(SUM(Tabulka!$AG$69)>0.99,(SUM(Tabulka!$AG$69)<2)),-50000+(SUM(E112:ED112)),IF(OR(SUM(Tabulka!$AG$69)<2),-90000,SUM(E112:ED112))) -> -90000 | EG112: 0
A113: Míra KulhanPočet konečných bodů | B113: =CONCATENATE(C109," ",C110) -> Míra Kulhan | D113: Počet konečných bodů | EE113: =IF(AND(SUM(Tabulka!$AG$69)>0.99,(SUM(Tabulka!$AG$69)<6)),50000+C108/1000,IF(OR(SUM(Tabulka!$AG$69)<2),90000,SUM(E113:ED113)))+EG113 -> 90000 | EG113: 0 | EI113: =$EJ$17-EG113 -> 5000
A114: Míra KulhanPrůměr konečných bodů na kolo | B114: =CONCATENATE(C109," ",C110) -> Míra Kulhan | D114: Průměr konečných bodů na kolo | E114: =IF(E113<>"",AVERAGE($E113:E113)+$EI114,"") ->  | F114: =IF(F113<>"",AVERAGE($E113:F113)+$EI114,"") ->  | G114: =IF(G113<>"",AVERAGE($E113:G113)+$EI114,"") ->  | H114: =IF(H113<>"",AVERAGE($E113:H113)+$EI114,"") ->  | I114: =IF(I113<>"",AVERAGE($E113:I113)+$EI114,"") ->  | J114: =IF(J113<>"",AVERAGE($E113:J113)+$EI114,"") ->  | K114: =IF(K113<>"",AVERAGE($E113:K113)+$EI114,"") ->  | L114: =IF(L113<>"",AVERAGE($E113:L113)+$EI114,"") ->  | M114: =IF(M113<>"",AVERAGE($E113:M113)+$EI114,"") ->  | N114: =IF(N113<>"",AVERAGE($E113:N113)+$EI114,"") ->  | O114: =IF(O113<>"",AVERAGE($E113:O113)+$EI114,"") ->  | P114: =IF(P113<>"",AVERAGE($E113:P113)+$EI114,"") ->  | Q114: =IF(Q113<>"",AVERAGE($E113:Q113)+$EI114,"") ->  | R114: =IF(R113<>"",AVERAGE($E113:R113)+$EI114,"") ->  | S114: =IF(S113<>"",AVERAGE($E113:S113)+$EI114,"") ->  | T114: =IF(T113<>"",AVERAGE($E113:T113)+$EI114,"") ->  | U114: =IF(U113<>"",AVERAGE($E113:U113)+$EI114,"") ->  | V114: =IF(V113<>"",AVERAGE($E113:V113)+$EI114,"") ->  | W114: =IF(W113<>"",AVERAGE($E113:W113)+$EI114,"") ->  | X114: =IF(X113<>"",AVERAGE($E113:X113)+$EI114,"") ->  | Y114: =IF(Y113<>"",AVERAGE($E113:Y113)+$EI114,"") ->  | Z114: =IF(Z113<>"",AVERAGE($E113:Z113)+$EI114,"") ->  | AA114: =IF(AA113<>"",AVERAGE($E113:AA113)+$EI114,"") ->  | AB114: =IF(AB113<>"",AVERAGE($E113:AB113)+$EI114,"") ->  | AC114: =IF(AC113<>"",AVERAGE($E113:AC113)+$EI114,"") ->  | AD114: =IF(AD113<>"",AVERAGE($E113:AD113)+$EI114,"") ->  | AE114: =IF(AE113<>"",AVERAGE($E113:AE113)+$EI114,"") ->  | AF114: =IF(AF113<>"",AVERAGE($E113:AF113)+$EI114,"") ->  | AG114: =IF(AG113<>"",AVERAGE($E113:AG113)+$EI114,"") ->  | AH114: =IF(AH113<>"",AVERAGE($E113:AH113)+$EI114,"") ->  | AI114: =IF(AI113<>"",AVERAGE($E113:AI113)+$EI114,"") ->  | AJ114: =IF(AJ113<>"",AVERAGE($E113:AJ113)+$EI114,"") ->  | AK114: =IF(AK113<>"",AVERAGE($E113:AK113)+$EI114,"") ->  | AL114: =IF(AL113<>"",AVERAGE($E113:AL113)+$EI114,"") ->  | AM114: =IF(AM113<>"",AVERAGE($E113:AM113)+$EI114,"") ->  | AN114: =IF(AN113<>"",AVERAGE($E113:AN113)+$EI114,"") ->  | AO114: =IF(AO113<>"",AVERAGE($E113:AO113)+$EI114,"") ->  | AP114: =IF(AP113<>"",AVERAGE($E113:AP113)+$EI114,"") ->  | AQ114: =IF(AQ113<>"",AVERAGE($E113:AQ113)+$EI114,"") ->  | AR114: =IF(AR113<>"",AVERAGE($E113:AR113)+$EI114,"") ->  | AS114: =IF(AS113<>"",AVERAGE($E113:AS113)+$EI114,"") ->  | AT114: =IF(AT113<>"",AVERAGE($E113:AT113)+$EI114,"") ->  | AU114: =IF(AU113<>"",AVERAGE($E113:AU113)+$EI114,"") ->  | AV114: =IF(AV113<>"",AVERAGE($E113:AV113)+$EI114,"") ->  | AW114: =IF(AW113<>"",AVERAGE($E113:AW113)+$EI114,"") ->  | AX114: =IF(AX113<>"",AVERAGE($E113:AX113)+$EI114,"") ->  | AY114: =IF(AY113<>"",AVERAGE($E113:AY113)+$EI114,"") ->  | AZ114: =IF(AZ113<>"",AVERAGE($E113:AZ113)+$EI114,"") ->  | BA114: =IF(BA113<>"",AVERAGE($E113:BA113)+$EI114,"") ->  | BB114: =IF(BB113<>"",AVERAGE($E113:BB113)+$EI114,"") ->  | BC114: =IF(BC113<>"",AVERAGE($E113:BC113)+$EI114,"") ->  | BD114: =IF(BD113<>"",AVERAGE($E113:BD113)+$EI114,"") ->  | BE114: =IF(BE113<>"",AVERAGE($E113:BE113)+$EI114,"") ->  | BF114: =IF(BF113<>"",AVERAGE($E113:BF113)+$EI114,"") ->  | BG114: =IF(BG113<>"",AVERAGE($E113:BG113)+$EI114,"") ->  | BH114: =IF(BH113<>"",AVERAGE($E113:BH113)+$EI114,"") ->  | BI114: =IF(BI113<>"",AVERAGE($E113:BI113)+$EI114,"") ->  | BJ114: =IF(BJ113<>"",AVERAGE($E113:BJ113)+$EI114,"") ->  | BK114: =IF(BK113<>"",AVERAGE($E113:BK113)+$EI114,"") ->  | BL114: =IF(BL113<>"",AVERAGE($E113:BL113)+$EI114,"") ->  | BM114: =IF(BM113<>"",AVERAGE($E113:BM113)+$EI114,"") ->  | BN114: =IF(BN113<>"",AVERAGE($E113:BN113)+$EI114,"") ->  | BO114: =IF(BO113<>"",AVERAGE($E113:BO113)+$EI114,"") ->  | BP114: =IF(BP113<>"",AVERAGE($E113:BP113)+$EI114,"") ->  | BQ114: =IF(BQ113<>"",AVERAGE($E113:BQ113)+$EI114,"") ->  | BR114: =IF(BR113<>"",AVERAGE($E113:BR113)+$EI114,"") ->  | BS114: =IF(BS113<>"",AVERAGE($E113:BS113)+$EI114,"") ->  | BT114: =IF(BT113<>"",AVERAGE($E113:BT113)+$EI114,"") ->  | BU114: =IF(BU113<>"",AVERAGE($E113:BU113)+$EI114,"") ->  | BV114: =IF(BV113<>"",AVERAGE($E113:BV113)+$EI114,"") ->  | BW114: =IF(BW113<>"",AVERAGE($E113:BW113)+$EI114,"") ->  | BX114: =IF(BX113<>"",AVERAGE($E113:BX113)+$EI114,"") ->  | BY114: =IF(BY113<>"",AVERAGE($E113:BY113)+$EI114,"") ->  | BZ114: =IF(BZ113<>"",AVERAGE($E113:BZ113)+$EI114,"") ->  | CA114: =IF(CA113<>"",AVERAGE($E113:CA113)+$EI114,"") ->  | CB114: =IF(CB113<>"",AVERAGE($E113:CB113)+$EI114,"") ->  | CC114: =IF(CC113<>"",AVERAGE($E113:CC113)+$EI114,"") ->  | CD114: =IF(CD113<>"",AVERAGE($E113:CD113)+$EI114,"") ->  | CE114: =IF(CE113<>"",AVERAGE($E113:CE113)+$EI114,"") ->  | CF114: =IF(CF113<>"",AVERAGE($E113:CF113)+$EI114,"") ->  | CG114: =IF(CG113<>"",AVERAGE($E113:CG113)+$EI114,"") ->  | CH114: =IF(CH113<>"",AVERAGE($E113:CH113)+$EI114,"") ->  | CI114: =IF(CI113<>"",AVERAGE($E113:CI113)+$EI114,"") ->  | CJ114: =IF(CJ113<>"",AVERAGE($E113:CJ113)+$EI114,"") ->  | CK114: =IF(CK113<>"",AVERAGE($E113:CK113)+$EI114,"") ->  | CL114: =IF(CL113<>"",AVERAGE($E113:CL113)+$EI114,"") ->  | CM114: =IF(CM113<>"",AVERAGE($E113:CM113)+$EI114,"") ->  | CN114: =IF(CN113<>"",AVERAGE($E113:CN113)+$EI114,"") ->  | CO114: =IF(CO113<>"",AVERAGE($E113:CO113)+$EI114,"") ->  | CP114: =IF(CP113<>"",AVERAGE($E113:CP113)+$EI114,"") ->  | CQ114: =IF(CQ113<>"",AVERAGE($E113:CQ113)+$EI114,"") ->  | CR114: =IF(CR113<>"",AVERAGE($E113:CR113)+$EI114,"") ->  | CS114: =IF(CS113<>"",AVERAGE($E113:CS113)+$EI114,"") ->  | CT114: =IF(CT113<>"",AVERAGE($E113:CT113)+$EI114,"") ->  | CU114: =IF(CU113<>"",AVERAGE($E113:CU113)+$EI114,"") ->  | CV114: =IF(CV113<>"",AVERAGE($E113:CV113)+$EI114,"") ->  | CW114: =IF(CW113<>"",AVERAGE($E113:CW113)+$EI114,"") ->  | CX114: =IF(CX113<>"",AVERAGE($E113:CX113)+$EI114,"") ->  | CY114: =IF(CY113<>"",AVERAGE($E113:CY113)+$EI114,"") ->  | CZ114: =IF(CZ113<>"",AVERAGE($E113:CZ113)+$EI114,"") ->  | DA114: =IF(DA113<>"",AVERAGE($E113:DA113)+$EI114,"") ->  | DB114: =IF(DB113<>"",AVERAGE($E113:DB113)+$EI114,"") ->  | DC114: =IF(DC113<>"",AVERAGE($E113:DC113)+$EI114,"") ->  | DD114: =IF(DD113<>"",AVERAGE($E113:DD113)+$EI114,"") ->  | DE114: =IF(DE113<>"",AVERAGE($E113:DE113)+$EI114,"") ->  | DF114: =IF(DF113<>"",AVERAGE($E113:DF113)+$EI114,"") ->  | DG114: =IF(DG113<>"",AVERAGE($E113:DG113)+$EI114,"") ->  | DH114: =IF(DH113<>"",AVERAGE($E113:DH113)+$EI114,"") ->  | DI114: =IF(DI113<>"",AVERAGE($E113:DI113)+$EI114,"") ->  | DJ114: =IF(DJ113<>"",AVERAGE($E113:DJ113)+$EI114,"") ->  | DK114: =IF(DK113<>"",AVERAGE($E113:DK113)+$EI114,"") ->  | DL114: =IF(DL113<>"",AVERAGE($E113:DL113)+$EI114,"") ->  | DM114: =IF(DM113<>"",AVERAGE($E113:DM113)+$EI114,"") ->  | DN114: =IF(DN113<>"",AVERAGE($E113:DN113)+$EI114,"") ->  | DO114: =IF(DO113<>"",AVERAGE($E113:DO113)+$EI114,"") ->  | DP114: =IF(DP113<>"",AVERAGE($E113:DP113)+$EI114,"") ->  | DQ114: =IF(DQ113<>"",AVERAGE($E113:DQ113)+$EI114,"") ->  | DR114: =IF(DR113<>"",AVERAGE($E113:DR113)+$EI114,"") ->  | DS114: =IF(DS113<>"",AVERAGE($E113:DS113)+$EI114,"") ->  | DT114: =IF(DT113<>"",AVERAGE($E113:DT113)+$EI114,"") ->  | DU114: =IF(DU113<>"",AVERAGE($E113:DU113)+$EI114,"") ->  | DV114: =IF(DV113<>"",AVERAGE($E113:DV113)+$EI114,"") ->  | DW114: =IF(DW113<>"",AVERAGE($E113:DW113)+$EI114,"") ->  | DX114: =IF(DX113<>"",AVERAGE($E113:DX113)+$EI114,"") ->  | DY114: =IF(DY113<>"",AVERAGE($E113:DY113)+$EI114,"") ->  | DZ114: =IF(DZ113<>"",AVERAGE($E113:DZ113)+$EI114,"") ->  | EA114: =IF(EA113<>"",AVERAGE($E113:EA113)+$EI114,"") ->  | EB114: =IF(EB113<>"",AVERAGE($E113:EB113)+$EI114,"") ->  | EC114: =IF(EC113<>"",AVERAGE($E113:EC113)+$EI114,"") ->  | ED114: =IF(ED113<>"",AVERAGE($E113:ED113)+$EI114,"") ->  | EE114: =IF(AND(SUM(Tabulka!$AG$69)>0.99,(SUM(Tabulka!$AG$69)<6)),50000+C108/1000,IF(OR(SUM(Tabulka!$AG$69)<2),90000,SUM(E113:ED113)/COUNT(E114:ED114)))+EG114 -> 90000 | EG114: =IFERROR(SUM(E113:ED113)/COUNT(E113:ED113),) -> 0 | EH114: =CONCATENATE(C109," ",C110) -> Míra Kulhan | EI114: =INDEX(List4!$E$2:$E$19,MATCH(CONCATENATE(C109," ",C110),List4!$A$2:$A$19,0),1) -> 1.77e-05
A115: Míra KulhanPočet šipek | B115: =CONCATENATE(C109," ",C110) -> Míra Kulhan | D115: Počet šipek | EE115: =IF(AND(SUM(Tabulka!$AG$69)>0.99,(SUM(Tabulka!$AG$69)<2)),-50000+(SUM(E115:ED115)),IF(OR(SUM(Tabulka!$AG$69)<2),-90000,SUM(E115:ED115))) -> -90000 | EG115: 0
A116: =CONCATENATE($C$117," ",$C$118,D116) -> Pavel PernekerVýhry | B116: =CONCATENATE(C117," ",C118) -> Pavel Perneker | C116: =C108+1 -> 15 | D116: Výhry | EE116: =IF(AND(SUM(Tabulka!$AG$74)>0.99,(SUM(Tabulka!$AG$74)<2)),-50000+(SUM(E116:ED116)),IF(OR(SUM(Tabulka!$AG$74)<2),-90000,SUM(E116:ED116))) -> -90000 | EG116: 0
A117: Pavel PernekerProhry | B117: =CONCATENATE(C117," ",C118) -> Pavel Perneker | C117: =Tabulka!B75 -> Pavel | D117: Prohry | EE117: =IF(AND(SUM(Tabulka!$AG$74)>0.99,(SUM(Tabulka!$AG$74)<2)),-50000+(SUM(E117:ED117)),IF(OR(SUM(Tabulka!$AG$74)<2),-90000,SUM(E117:ED117))) -> -90000 | EF117: =SUM(EE116-EE117) -> 0 | EG117: 0
A118: Pavel PernekerPlaceno panáků | B118: =CONCATENATE(C117," ",C118) -> Pavel Perneker | C118: =Tabulka!B76 -> Perneker | D118: Placeno panáků | EE118: =IF(AND(SUM(Tabulka!$AG$74)>0.99,(SUM(Tabulka!$AG$74)<2)),-50000+(SUM(E118:ED118)),IF(OR(SUM(Tabulka!$AG$74)<2),-90000,SUM(E118:ED118))) -> -90000 | EG118: =SUM(E118:ED118)+0.2 -> 0.2
A119: Pavel PernekerPřehozy | B119: =CONCATENATE(C117," ",C118) -> Pavel Perneker | C119: =Tabulka!B77 -> 0 | D119: Přehozy | EE119: =IF(AND(SUM(Tabulka!$AG$74)>0.99,(SUM(Tabulka!$AG$74)<2)),-50000+(SUM(E119:ED119)),IF(OR(SUM(Tabulka!$AG$74)<2),-90000,SUM(E119:ED119))) -> -90000 | EG119: 0
A120: Pavel PernekerPoč. kol | B120: =CONCATENATE(C117," ",C118) -> Pavel Perneker | C120: =Tabulka!B78 -> 0 | D120: Poč. kol | EE120: =IF(AND(SUM(Tabulka!$AG$74)>0.99,(SUM(Tabulka!$AG$74)<2)),-50000+(SUM(E120:ED120)),IF(OR(SUM(Tabulka!$AG$74)<2),-90000,SUM(E120:ED120))) -> -90000 | EG120: 0
A121: Pavel PernekerPočet konečných bodů | B121: =CONCATENATE(C117," ",C118) -> Pavel Perneker | D121: Počet konečných bodů | EE121: =IF(AND(SUM(Tabulka!$AG$74)>0.99,(SUM(Tabulka!$AG$74)<6)),50000+C116/1000,IF(OR(SUM(Tabulka!$AG$74)<2),90000,SUM(E121:ED121)))+EG121 -> 90000 | EG121: 0 | EI121: =$EJ$17-EG121 -> 5000
A122: Pavel PernekerPrůměr konečných bodů na kolo | B122: =CONCATENATE(C117," ",C118) -> Pavel Perneker | D122: Průměr konečných bodů na kolo | E122: =IF(E121<>"",AVERAGE($E121:E121)+$EI122,"") ->  | F122: =IF(F121<>"",AVERAGE($E121:F121)+$EI122,"") ->  | G122: =IF(G121<>"",AVERAGE($E121:G121)+$EI122,"") ->  | H122: =IF(H121<>"",AVERAGE($E121:H121)+$EI122,"") ->  | I122: =IF(I121<>"",AVERAGE($E121:I121)+$EI122,"") ->  | J122: =IF(J121<>"",AVERAGE($E121:J121)+$EI122,"") ->  | K122: =IF(K121<>"",AVERAGE($E121:K121)+$EI122,"") ->  | L122: =IF(L121<>"",AVERAGE($E121:L121)+$EI122,"") ->  | M122: =IF(M121<>"",AVERAGE($E121:M121)+$EI122,"") ->  | N122: =IF(N121<>"",AVERAGE($E121:N121)+$EI122,"") ->  | O122: =IF(O121<>"",AVERAGE($E121:O121)+$EI122,"") ->  | P122: =IF(P121<>"",AVERAGE($E121:P121)+$EI122,"") ->  | Q122: =IF(Q121<>"",AVERAGE($E121:Q121)+$EI122,"") ->  | R122: =IF(R121<>"",AVERAGE($E121:R121)+$EI122,"") ->  | S122: =IF(S121<>"",AVERAGE($E121:S121)+$EI122,"") ->  | T122: =IF(T121<>"",AVERAGE($E121:T121)+$EI122,"") ->  | U122: =IF(U121<>"",AVERAGE($E121:U121)+$EI122,"") ->  | V122: =IF(V121<>"",AVERAGE($E121:V121)+$EI122,"") ->  | W122: =IF(W121<>"",AVERAGE($E121:W121)+$EI122,"") ->  | X122: =IF(X121<>"",AVERAGE($E121:X121)+$EI122,"") ->  | Y122: =IF(Y121<>"",AVERAGE($E121:Y121)+$EI122,"") ->  | Z122: =IF(Z121<>"",AVERAGE($E121:Z121)+$EI122,"") ->  | AA122: =IF(AA121<>"",AVERAGE($E121:AA121)+$EI122,"") ->  | AB122: =IF(AB121<>"",AVERAGE($E121:AB121)+$EI122,"") ->  | AC122: =IF(AC121<>"",AVERAGE($E121:AC121)+$EI122,"") ->  | AD122: =IF(AD121<>"",AVERAGE($E121:AD121)+$EI122,"") ->  | AE122: =IF(AE121<>"",AVERAGE($E121:AE121)+$EI122,"") ->  | AF122: =IF(AF121<>"",AVERAGE($E121:AF121)+$EI122,"") ->  | AG122: =IF(AG121<>"",AVERAGE($E121:AG121)+$EI122,"") ->  | AH122: =IF(AH121<>"",AVERAGE($E121:AH121)+$EI122,"") ->  | AI122: =IF(AI121<>"",AVERAGE($E121:AI121)+$EI122,"") ->  | AJ122: =IF(AJ121<>"",AVERAGE($E121:AJ121)+$EI122,"") ->  | AK122: =IF(AK121<>"",AVERAGE($E121:AK121)+$EI122,"") ->  | AL122: =IF(AL121<>"",AVERAGE($E121:AL121)+$EI122,"") ->  | AM122: =IF(AM121<>"",AVERAGE($E121:AM121)+$EI122,"") ->  | AN122: =IF(AN121<>"",AVERAGE($E121:AN121)+$EI122,"") ->  | AO122: =IF(AO121<>"",AVERAGE($E121:AO121)+$EI122,"") ->  | AP122: =IF(AP121<>"",AVERAGE($E121:AP121)+$EI122,"") ->  | AQ122: =IF(AQ121<>"",AVERAGE($E121:AQ121)+$EI122,"") ->  | AR122: =IF(AR121<>"",AVERAGE($E121:AR121)+$EI122,"") ->  | AS122: =IF(AS121<>"",AVERAGE($E121:AS121)+$EI122,"") ->  | AT122: =IF(AT121<>"",AVERAGE($E121:AT121)+$EI122,"") ->  | AU122: =IF(AU121<>"",AVERAGE($E121:AU121)+$EI122,"") ->  | AV122: =IF(AV121<>"",AVERAGE($E121:AV121)+$EI122,"") ->  | AW122: =IF(AW121<>"",AVERAGE($E121:AW121)+$EI122,"") ->  | AX122: =IF(AX121<>"",AVERAGE($E121:AX121)+$EI122,"") ->  | AY122: =IF(AY121<>"",AVERAGE($E121:AY121)+$EI122,"") ->  | AZ122: =IF(AZ121<>"",AVERAGE($E121:AZ121)+$EI122,"") ->  | BA122: =IF(BA121<>"",AVERAGE($E121:BA121)+$EI122,"") ->  | BB122: =IF(BB121<>"",AVERAGE($E121:BB121)+$EI122,"") ->  | BC122: =IF(BC121<>"",AVERAGE($E121:BC121)+$EI122,"") ->  | BD122: =IF(BD121<>"",AVERAGE($E121:BD121)+$EI122,"") ->  | BE122: =IF(BE121<>"",AVERAGE($E121:BE121)+$EI122,"") ->  | BF122: =IF(BF121<>"",AVERAGE($E121:BF121)+$EI122,"") ->  | BG122: =IF(BG121<>"",AVERAGE($E121:BG121)+$EI122,"") ->  | BH122: =IF(BH121<>"",AVERAGE($E121:BH121)+$EI122,"") ->  | BI122: =IF(BI121<>"",AVERAGE($E121:BI121)+$EI122,"") ->  | BJ122: =IF(BJ121<>"",AVERAGE($E121:BJ121)+$EI122,"") ->  | BK122: =IF(BK121<>"",AVERAGE($E121:BK121)+$EI122,"") ->  | BL122: =IF(BL121<>"",AVERAGE($E121:BL121)+$EI122,"") ->  | BM122: =IF(BM121<>"",AVERAGE($E121:BM121)+$EI122,"") ->  | BN122: =IF(BN121<>"",AVERAGE($E121:BN121)+$EI122,"") ->  | BO122: =IF(BO121<>"",AVERAGE($E121:BO121)+$EI122,"") ->  | BP122: =IF(BP121<>"",AVERAGE($E121:BP121)+$EI122,"") ->  | BQ122: =IF(BQ121<>"",AVERAGE($E121:BQ121)+$EI122,"") ->  | BR122: =IF(BR121<>"",AVERAGE($E121:BR121)+$EI122,"") ->  | BS122: =IF(BS121<>"",AVERAGE($E121:BS121)+$EI122,"") ->  | BT122: =IF(BT121<>"",AVERAGE($E121:BT121)+$EI122,"") ->  | BU122: =IF(BU121<>"",AVERAGE($E121:BU121)+$EI122,"") ->  | BV122: =IF(BV121<>"",AVERAGE($E121:BV121)+$EI122,"") ->  | BW122: =IF(BW121<>"",AVERAGE($E121:BW121)+$EI122,"") ->  | BX122: =IF(BX121<>"",AVERAGE($E121:BX121)+$EI122,"") ->  | BY122: =IF(BY121<>"",AVERAGE($E121:BY121)+$EI122,"") ->  | BZ122: =IF(BZ121<>"",AVERAGE($E121:BZ121)+$EI122,"") ->  | CA122: =IF(CA121<>"",AVERAGE($E121:CA121)+$EI122,"") ->  | CB122: =IF(CB121<>"",AVERAGE($E121:CB121)+$EI122,"") ->  | CC122: =IF(CC121<>"",AVERAGE($E121:CC121)+$EI122,"") ->  | CD122: =IF(CD121<>"",AVERAGE($E121:CD121)+$EI122,"") ->  | CE122: =IF(CE121<>"",AVERAGE($E121:CE121)+$EI122,"") ->  | CF122: =IF(CF121<>"",AVERAGE($E121:CF121)+$EI122,"") ->  | CG122: =IF(CG121<>"",AVERAGE($E121:CG121)+$EI122,"") ->  | CH122: =IF(CH121<>"",AVERAGE($E121:CH121)+$EI122,"") ->  | CI122: =IF(CI121<>"",AVERAGE($E121:CI121)+$EI122,"") ->  | CJ122: =IF(CJ121<>"",AVERAGE($E121:CJ121)+$EI122,"") ->  | CK122: =IF(CK121<>"",AVERAGE($E121:CK121)+$EI122,"") ->  | CL122: =IF(CL121<>"",AVERAGE($E121:CL121)+$EI122,"") ->  | CM122: =IF(CM121<>"",AVERAGE($E121:CM121)+$EI122,"") ->  | CN122: =IF(CN121<>"",AVERAGE($E121:CN121)+$EI122,"") ->  | CO122: =IF(CO121<>"",AVERAGE($E121:CO121)+$EI122,"") ->  | CP122: =IF(CP121<>"",AVERAGE($E121:CP121)+$EI122,"") ->  | CQ122: =IF(CQ121<>"",AVERAGE($E121:CQ121)+$EI122,"") ->  | CR122: =IF(CR121<>"",AVERAGE($E121:CR121)+$EI122,"") ->  | CS122: =IF(CS121<>"",AVERAGE($E121:CS121)+$EI122,"") ->  | CT122: =IF(CT121<>"",AVERAGE($E121:CT121)+$EI122,"") ->  | CU122: =IF(CU121<>"",AVERAGE($E121:CU121)+$EI122,"") ->  | CV122: =IF(CV121<>"",AVERAGE($E121:CV121)+$EI122,"") ->  | CW122: =IF(CW121<>"",AVERAGE($E121:CW121)+$EI122,"") ->  | CX122: =IF(CX121<>"",AVERAGE($E121:CX121)+$EI122,"") ->  | CY122: =IF(CY121<>"",AVERAGE($E121:CY121)+$EI122,"") ->  | CZ122: =IF(CZ121<>"",AVERAGE($E121:CZ121)+$EI122,"") ->  | DA122: =IF(DA121<>"",AVERAGE($E121:DA121)+$EI122,"") ->  | DB122: =IF(DB121<>"",AVERAGE($E121:DB121)+$EI122,"") ->  | DC122: =IF(DC121<>"",AVERAGE($E121:DC121)+$EI122,"") ->  | DD122: =IF(DD121<>"",AVERAGE($E121:DD121)+$EI122,"") ->  | DE122: =IF(DE121<>"",AVERAGE($E121:DE121)+$EI122,"") ->  | DF122: =IF(DF121<>"",AVERAGE($E121:DF121)+$EI122,"") ->  | DG122: =IF(DG121<>"",AVERAGE($E121:DG121)+$EI122,"") ->  | DH122: =IF(DH121<>"",AVERAGE($E121:DH121)+$EI122,"") ->  | DI122: =IF(DI121<>"",AVERAGE($E121:DI121)+$EI122,"") ->  | DJ122: =IF(DJ121<>"",AVERAGE($E121:DJ121)+$EI122,"") ->  | DK122: =IF(DK121<>"",AVERAGE($E121:DK121)+$EI122,"") ->  | DL122: =IF(DL121<>"",AVERAGE($E121:DL121)+$EI122,"") ->  | DM122: =IF(DM121<>"",AVERAGE($E121:DM121)+$EI122,"") ->  | DN122: =IF(DN121<>"",AVERAGE($E121:DN121)+$EI122,"") ->  | DO122: =IF(DO121<>"",AVERAGE($E121:DO121)+$EI122,"") ->  | DP122: =IF(DP121<>"",AVERAGE($E121:DP121)+$EI122,"") ->  | DQ122: =IF(DQ121<>"",AVERAGE($E121:DQ121)+$EI122,"") ->  | DR122: =IF(DR121<>"",AVERAGE($E121:DR121)+$EI122,"") ->  | DS122: =IF(DS121<>"",AVERAGE($E121:DS121)+$EI122,"") ->  | DT122: =IF(DT121<>"",AVERAGE($E121:DT121)+$EI122,"") ->  | DU122: =IF(DU121<>"",AVERAGE($E121:DU121)+$EI122,"") ->  | DV122: =IF(DV121<>"",AVERAGE($E121:DV121)+$EI122,"") ->  | DW122: =IF(DW121<>"",AVERAGE($E121:DW121)+$EI122,"") ->  | DX122: =IF(DX121<>"",AVERAGE($E121:DX121)+$EI122,"") ->  | DY122: =IF(DY121<>"",AVERAGE($E121:DY121)+$EI122,"") ->  | DZ122: =IF(DZ121<>"",AVERAGE($E121:DZ121)+$EI122,"") ->  | EA122: =IF(EA121<>"",AVERAGE($E121:EA121)+$EI122,"") ->  | EB122: =IF(EB121<>"",AVERAGE($E121:EB121)+$EI122,"") ->  | EC122: =IF(EC121<>"",AVERAGE($E121:EC121)+$EI122,"") ->  | ED122: =IF(ED121<>"",AVERAGE($E121:ED121)+$EI122,"") ->  | EE122: =IF(AND(SUM(Tabulka!$AG$74)>0.99,(SUM(Tabulka!$AG$74)<6)),50000+C116/1000,IF(OR(SUM(Tabulka!$AG$44)<2),90000,SUM(E121:ED121)/COUNT(E122:ED122)))+EG122 -> 90000 | EG122: 0 | EH122: =CONCATENATE(C117," ",C118) -> Pavel Perneker | EI122: =INDEX(List4!$E$2:$E$19,MATCH(CONCATENATE(C117," ",C118),List4!$A$2:$A$19,0),1) -> 1.88e-05
A123: Pavel PernekerPočet šipek | B123: =CONCATENATE(C117," ",C118) -> Pavel Perneker | D123: Počet šipek | EE123: =IF(AND(SUM(Tabulka!$AG$74)>0.99,(SUM(Tabulka!$AG$74)<2)),-50000+(SUM(E123:ED123)),IF(OR(SUM(Tabulka!$AG$74)<2),-90000,SUM(E123:ED123))) -> -90000 | EG123: 0
A124: =CONCATENATE($C$125," ",$C$126,D124) -> Iva IvankaVýhry | B124: =CONCATENATE(C125," ",C126) -> Iva Ivanka | C124: =C116+1 -> 16 | D124: Výhry | EE124: =IF(AND(SUM(Tabulka!$AG$79)>0.99,(SUM(Tabulka!$AG$79)<2)),-50000+(SUM(E124:ED124)),IF(OR(SUM(Tabulka!$AG$79)<2),-90000,SUM(E124:ED124))) -> -90000 | EG124: 0
A125: Iva IvankaProhry | B125: Iva Ivanka | C125: =Tabulka!B80 -> Iva | D125: Prohry | EE125: =IF(AND(SUM(Tabulka!$AG$79)>0.99,(SUM(Tabulka!$AG$79)<2)),-50000+(SUM(E125:ED125)),IF(OR(SUM(Tabulka!$AG$79)<2),-90000,SUM(E125:ED125))) -> -90000 | EF125: =SUM(EE124-EE125) -> 0 | EG125: 0
A126: Iva IvankaPlaceno panáků | B126: =CONCATENATE(C125," ",C126) -> Iva Ivanka | C126: =Tabulka!B81 -> Ivanka | D126: Placeno panáků | EE126: =IF(AND(SUM(Tabulka!$AG$79)>0.99,(SUM(Tabulka!$AG$79)<2)),-50000+(SUM(E126:ED126)),IF(OR(SUM(Tabulka!$AG$79)<2),-90000,SUM(E126:ED126))) -> -90000 | EG126: =SUM(E126:ED126)+0.2 -> 0.2
A127: Iva IvankaPřehozy | B127: =CONCATENATE(C125," ",C126) -> Iva Ivanka | C127: =Tabulka!B82 -> Ivka | D127: Přehozy | EE127: =IF(AND(SUM(Tabulka!$AG$79)>0.99,(SUM(Tabulka!$AG$79)<2)),-50000+(SUM(E127:ED127)),IF(OR(SUM(Tabulka!$AG$79)<2),-90000,SUM(E127:ED127))) -> -90000 | EG127: 0
A128: Iva IvankaPoč. kol | B128: =CONCATENATE(C125," ",C126) -> Iva Ivanka | C128: =Tabulka!B83 -> 0 | D128: Poč. kol | EE128: =IF(AND(SUM(Tabulka!$AG$79)>0.99,(SUM(Tabulka!$AG$79)<2)),-50000+(SUM(E128:ED128)),IF(OR(SUM(Tabulka!$AG$79)<2),-90000,SUM(E128:ED128))) -> -90000 | EG128: 0
A129: Iva IvankaPočet konečných bodů | B129: =CONCATENATE(C125," ",C126) -> Iva Ivanka | D129: Počet konečných bodů | EE129: =IF(AND(SUM(Tabulka!$AG$79)>0.99,(SUM(Tabulka!$AG$79)<6)),50000+C124/1000,IF(OR(SUM(Tabulka!$AG$79)<2),90000,SUM(E129:ED129)))+EG129 -> 90000 | EG129: 0 | EI129: =$EJ$17-EG129 -> 5000
A130: Iva IvankaPrůměr konečných bodů na kolo | B130: =CONCATENATE(C125," ",C126) -> Iva Ivanka | D130: Průměr konečných bodů na kolo | E130: =IF(E129<>"",AVERAGE($E129:E129)+$EI130,"") ->  | F130: =IF(F129<>"",AVERAGE($E129:F129)+$EI130,"") ->  | G130: =IF(G129<>"",AVERAGE($E129:G129)+$EI130,"") ->  | H130: =IF(H129<>"",AVERAGE($E129:H129)+$EI130,"") ->  | I130: =IF(I129<>"",AVERAGE($E129:I129)+$EI130,"") ->  | J130: =IF(J129<>"",AVERAGE($E129:J129)+$EI130,"") ->  | K130: =IF(K129<>"",AVERAGE($E129:K129)+$EI130,"") ->  | L130: =IF(L129<>"",AVERAGE($E129:L129)+$EI130,"") ->  | M130: =IF(M129<>"",AVERAGE($E129:M129)+$EI130,"") ->  | N130: =IF(N129<>"",AVERAGE($E129:N129)+$EI130,"") ->  | O130: =IF(O129<>"",AVERAGE($E129:O129)+$EI130,"") ->  | P130: =IF(P129<>"",AVERAGE($E129:P129)+$EI130,"") ->  | Q130: =IF(Q129<>"",AVERAGE($E129:Q129)+$EI130,"") ->  | R130: =IF(R129<>"",AVERAGE($E129:R129)+$EI130,"") ->  | S130: =IF(S129<>"",AVERAGE($E129:S129)+$EI130,"") ->  | T130: =IF(T129<>"",AVERAGE($E129:T129)+$EI130,"") ->  | U130: =IF(U129<>"",AVERAGE($E129:U129)+$EI130,"") ->  | V130: =IF(V129<>"",AVERAGE($E129:V129)+$EI130,"") ->  | W130: =IF(W129<>"",AVERAGE($E129:W129)+$EI130,"") ->  | X130: =IF(X129<>"",AVERAGE($E129:X129)+$EI130,"") ->  | Y130: =IF(Y129<>"",AVERAGE($E129:Y129)+$EI130,"") ->  | Z130: =IF(Z129<>"",AVERAGE($E129:Z129)+$EI130,"") ->  | AA130: =IF(AA129<>"",AVERAGE($E129:AA129)+$EI130,"") ->  | AB130: =IF(AB129<>"",AVERAGE($E129:AB129)+$EI130,"") ->  | AC130: =IF(AC129<>"",AVERAGE($E129:AC129)+$EI130,"") ->  | AD130: =IF(AD129<>"",AVERAGE($E129:AD129)+$EI130,"") ->  | AE130: =IF(AE129<>"",AVERAGE($E129:AE129)+$EI130,"") ->  | AF130: =IF(AF129<>"",AVERAGE($E129:AF129)+$EI130,"") ->  | AG130: =IF(AG129<>"",AVERAGE($E129:AG129)+$EI130,"") ->  | AH130: =IF(AH129<>"",AVERAGE($E129:AH129)+$EI130,"") ->  | AI130: =IF(AI129<>"",AVERAGE($E129:AI129)+$EI130,"") ->  | AJ130: =IF(AJ129<>"",AVERAGE($E129:AJ129)+$EI130,"") ->  | AK130: =IF(AK129<>"",AVERAGE($E129:AK129)+$EI130,"") ->  | AL130: =IF(AL129<>"",AVERAGE($E129:AL129)+$EI130,"") ->  | AM130: =IF(AM129<>"",AVERAGE($E129:AM129)+$EI130,"") ->  | AN130: =IF(AN129<>"",AVERAGE($E129:AN129)+$EI130,"") ->  | AO130: =IF(AO129<>"",AVERAGE($E129:AO129)+$EI130,"") ->  | AP130: =IF(AP129<>"",AVERAGE($E129:AP129)+$EI130,"") ->  | AQ130: =IF(AQ129<>"",AVERAGE($E129:AQ129)+$EI130,"") ->  | AR130: =IF(AR129<>"",AVERAGE($E129:AR129)+$EI130,"") ->  | AS130: =IF(AS129<>"",AVERAGE($E129:AS129)+$EI130,"") ->  | AT130: =IF(AT129<>"",AVERAGE($E129:AT129)+$EI130,"") ->  | AU130: =IF(AU129<>"",AVERAGE($E129:AU129)+$EI130,"") ->  | AV130: =IF(AV129<>"",AVERAGE($E129:AV129)+$EI130,"") ->  | AW130: =IF(AW129<>"",AVERAGE($E129:AW129)+$EI130,"") ->  | AX130: =IF(AX129<>"",AVERAGE($E129:AX129)+$EI130,"") ->  | AY130: =IF(AY129<>"",AVERAGE($E129:AY129)+$EI130,"") ->  | AZ130: =IF(AZ129<>"",AVERAGE($E129:AZ129)+$EI130,"") ->  | BA130: =IF(BA129<>"",AVERAGE($E129:BA129)+$EI130,"") ->  | BB130: =IF(BB129<>"",AVERAGE($E129:BB129)+$EI130,"") ->  | BC130: =IF(BC129<>"",AVERAGE($E129:BC129)+$EI130,"") ->  | BD130: =IF(BD129<>"",AVERAGE($E129:BD129)+$EI130,"") ->  | BE130: =IF(BE129<>"",AVERAGE($E129:BE129)+$EI130,"") ->  | BF130: =IF(BF129<>"",AVERAGE($E129:BF129)+$EI130,"") ->  | BG130: =IF(BG129<>"",AVERAGE($E129:BG129)+$EI130,"") ->  | BH130: =IF(BH129<>"",AVERAGE($E129:BH129)+$EI130,"") ->  | BI130: =IF(BI129<>"",AVERAGE($E129:BI129)+$EI130,"") ->  | BJ130: =IF(BJ129<>"",AVERAGE($E129:BJ129)+$EI130,"") ->  | BK130: =IF(BK129<>"",AVERAGE($E129:BK129)+$EI130,"") ->  | BL130: =IF(BL129<>"",AVERAGE($E129:BL129)+$EI130,"") ->  | BM130: =IF(BM129<>"",AVERAGE($E129:BM129)+$EI130,"") ->  | BN130: =IF(BN129<>"",AVERAGE($E129:BN129)+$EI130,"") ->  | BO130: =IF(BO129<>"",AVERAGE($E129:BO129)+$EI130,"") ->  | BP130: =IF(BP129<>"",AVERAGE($E129:BP129)+$EI130,"") ->  | BQ130: =IF(BQ129<>"",AVERAGE($E129:BQ129)+$EI130,"") ->  | BR130: =IF(BR129<>"",AVERAGE($E129:BR129)+$EI130,"") ->  | BS130: =IF(BS129<>"",AVERAGE($E129:BS129)+$EI130,"") ->  | BT130: =IF(BT129<>"",AVERAGE($E129:BT129)+$EI130,"") ->  | BU130: =IF(BU129<>"",AVERAGE($E129:BU129)+$EI130,"") ->  | BV130: =IF(BV129<>"",AVERAGE($E129:BV129)+$EI130,"") ->  | BW130: =IF(BW129<>"",AVERAGE($E129:BW129)+$EI130,"") ->  | BX130: =IF(BX129<>"",AVERAGE($E129:BX129)+$EI130,"") ->  | BY130: =IF(BY129<>"",AVERAGE($E129:BY129)+$EI130,"") ->  | BZ130: =IF(BZ129<>"",AVERAGE($E129:BZ129)+$EI130,"") ->  | CA130: =IF(CA129<>"",AVERAGE($E129:CA129)+$EI130,"") ->  | CB130: =IF(CB129<>"",AVERAGE($E129:CB129)+$EI130,"") ->  | CC130: =IF(CC129<>"",AVERAGE($E129:CC129)+$EI130,"") ->  | CD130: =IF(CD129<>"",AVERAGE($E129:CD129)+$EI130,"") ->  | CE130: =IF(CE129<>"",AVERAGE($E129:CE129)+$EI130,"") ->  | CF130: =IF(CF129<>"",AVERAGE($E129:CF129)+$EI130,"") ->  | CG130: =IF(CG129<>"",AVERAGE($E129:CG129)+$EI130,"") ->  | CH130: =IF(CH129<>"",AVERAGE($E129:CH129)+$EI130,"") ->  | CI130: =IF(CI129<>"",AVERAGE($E129:CI129)+$EI130,"") ->  | CJ130: =IF(CJ129<>"",AVERAGE($E129:CJ129)+$EI130,"") ->  | CK130: =IF(CK129<>"",AVERAGE($E129:CK129)+$EI130,"") ->  | CL130: =IF(CL129<>"",AVERAGE($E129:CL129)+$EI130,"") ->  | CM130: =IF(CM129<>"",AVERAGE($E129:CM129)+$EI130,"") ->  | CN130: =IF(CN129<>"",AVERAGE($E129:CN129)+$EI130,"") ->  | CO130: =IF(CO129<>"",AVERAGE($E129:CO129)+$EI130,"") ->  | CP130: =IF(CP129<>"",AVERAGE($E129:CP129)+$EI130,"") ->  | CQ130: =IF(CQ129<>"",AVERAGE($E129:CQ129)+$EI130,"") ->  | CR130: =IF(CR129<>"",AVERAGE($E129:CR129)+$EI130,"") ->  | CS130: =IF(CS129<>"",AVERAGE($E129:CS129)+$EI130,"") ->  | CT130: =IF(CT129<>"",AVERAGE($E129:CT129)+$EI130,"") ->  | CU130: =IF(CU129<>"",AVERAGE($E129:CU129)+$EI130,"") ->  | CV130: =IF(CV129<>"",AVERAGE($E129:CV129)+$EI130,"") ->  | CW130: =IF(CW129<>"",AVERAGE($E129:CW129)+$EI130,"") ->  | CX130: =IF(CX129<>"",AVERAGE($E129:CX129)+$EI130,"") ->  | CY130: =IF(CY129<>"",AVERAGE($E129:CY129)+$EI130,"") ->  | CZ130: =IF(CZ129<>"",AVERAGE($E129:CZ129)+$EI130,"") ->  | DA130: =IF(DA129<>"",AVERAGE($E129:DA129)+$EI130,"") ->  | DB130: =IF(DB129<>"",AVERAGE($E129:DB129)+$EI130,"") ->  | DC130: =IF(DC129<>"",AVERAGE($E129:DC129)+$EI130,"") ->  | DD130: =IF(DD129<>"",AVERAGE($E129:DD129)+$EI130,"") ->  | DE130: =IF(DE129<>"",AVERAGE($E129:DE129)+$EI130,"") ->  | DF130: =IF(DF129<>"",AVERAGE($E129:DF129)+$EI130,"") ->  | DG130: =IF(DG129<>"",AVERAGE($E129:DG129)+$EI130,"") ->  | DH130: =IF(DH129<>"",AVERAGE($E129:DH129)+$EI130,"") ->  | DI130: =IF(DI129<>"",AVERAGE($E129:DI129)+$EI130,"") ->  | DJ130: =IF(DJ129<>"",AVERAGE($E129:DJ129)+$EI130,"") ->  | DK130: =IF(DK129<>"",AVERAGE($E129:DK129)+$EI130,"") ->  | DL130: =IF(DL129<>"",AVERAGE($E129:DL129)+$EI130,"") ->  | DM130: =IF(DM129<>"",AVERAGE($E129:DM129)+$EI130,"") ->  | DN130: =IF(DN129<>"",AVERAGE($E129:DN129)+$EI130,"") ->  | DO130: =IF(DO129<>"",AVERAGE($E129:DO129)+$EI130,"") ->  | DP130: =IF(DP129<>"",AVERAGE($E129:DP129)+$EI130,"") ->  | DQ130: =IF(DQ129<>"",AVERAGE($E129:DQ129)+$EI130,"") ->  | DR130: =IF(DR129<>"",AVERAGE($E129:DR129)+$EI130,"") ->  | DS130: =IF(DS129<>"",AVERAGE($E129:DS129)+$EI130,"") ->  | DT130: =IF(DT129<>"",AVERAGE($E129:DT129)+$EI130,"") ->  | DU130: =IF(DU129<>"",AVERAGE($E129:DU129)+$EI130,"") ->  | DV130: =IF(DV129<>"",AVERAGE($E129:DV129)+$EI130,"") ->  | DW130: =IF(DW129<>"",AVERAGE($E129:DW129)+$EI130,"") ->  | DX130: =IF(DX129<>"",AVERAGE($E129:DX129)+$EI130,"") ->  | DY130: =IF(DY129<>"",AVERAGE($E129:DY129)+$EI130,"") ->  | DZ130: =IF(DZ129<>"",AVERAGE($E129:DZ129)+$EI130,"") ->  | EA130: =IF(EA129<>"",AVERAGE($E129:EA129)+$EI130,"") ->  | EB130: =IF(EB129<>"",AVERAGE($E129:EB129)+$EI130,"") ->  | EC130: =IF(EC129<>"",AVERAGE($E129:EC129)+$EI130,"") ->  | ED130: =IF(ED129<>"",AVERAGE($E129:ED129)+$EI130,"") ->  | EE130: =IF(AND(SUM(Tabulka!$AG$79)>0.99,(SUM(Tabulka!$AG$79)<6)),50000+C124/1000,IF(OR(SUM(Tabulka!$AG$79)<2),90000,SUM(E129:ED129)/COUNT(E130:ED130)))+EG130 -> 90000 | EG130: 0 | EH130: =CONCATENATE(C125," ",C126) -> Iva Ivanka | EI130: =INDEX(List4!$E$2:$E$19,MATCH(CONCATENATE(C125," ",C126),List4!$A$2:$A$19,0),1) -> 1.55e-05
A131: Iva IvankaPočet šipek | B131: =CONCATENATE(C125," ",C126) -> Iva Ivanka | D131: Počet šipek | EE131: =IF(AND(SUM(Tabulka!$AG$79)>0.99,(SUM(Tabulka!$AG$79)<2)),-50000+(SUM(E131:ED131)),IF(OR(SUM(Tabulka!$AG$79)<2),-90000,SUM(E131:ED131))) -> -90000 | EG131: 0
A132: =CONCATENATE($C$133," ",$C$134,D132) -> Jmeno Z1_PříjmeníVýhry | B132: =CONCATENATE(C133," ",C134) -> Jmeno Z1_Příjmení | C132: =C124+1 -> 17 | D132: Výhry | EE132: =IF(AND(SUM(Tabulka!$AG$74)>0.99,(SUM(Tabulka!$AG$74)<2)),-50000+(SUM(E132:ED132)),IF(OR(SUM(Tabulka!$AG$74)<2),-90000,SUM(E132:ED132))) -> -90000 | EG132: =SUM(E132:ED132) -> 0
A133: Jmeno Z1_PříjmeníProhry | B133: =CONCATENATE(C133," ",C134) -> Jmeno Z1_Příjmení | C133: =Tabulka!B85 -> Jmeno | D133: Prohry | EE133: =IF(AND(SUM(Tabulka!$AG$74)>0.99,(SUM(Tabulka!$AG$74)<2)),-50000+(SUM(E133:ED133)),IF(OR(SUM(Tabulka!$AG$74)<2),-90000,SUM(E133:ED133))) -> -90000 | EF133: =SUM(EE132-EE133) -> 0 | EG133: 0
A134: Jmeno Z1_PříjmeníPlaceno panáků | B134: =CONCATENATE(C133," ",C134) -> Jmeno Z1_Příjmení | C134: =Tabulka!B86 -> Z1_Příjmení | D134: Placeno panáků | EE134: =IF(AND(SUM(Tabulka!$AG$74)>0.99,(SUM(Tabulka!$AG$74)<2)),-50000+(SUM(E134:ED134)),IF(OR(SUM(Tabulka!$AG$74)<2),-90000,SUM(E134:ED134))) -> -90000 | EG134: 0
A135: Jmeno Z1_PříjmeníPřehozy | B135: =CONCATENATE(C133," ",C134) -> Jmeno Z1_Příjmení | C135: =Tabulka!B87 -> 0 | D135: Přehozy | EE135: =IF(AND(SUM(Tabulka!$AG$74)>0.99,(SUM(Tabulka!$AG$74)<2)),-50000+(SUM(E135:ED135)),IF(OR(SUM(Tabulka!$AG$74)<2),-90000,SUM(E135:ED135))) -> -90000 | EG135: 0
A136: Jmeno Z1_PříjmeníPoč. kol | B136: =CONCATENATE(C133," ",C134) -> Jmeno Z1_Příjmení | C136: =Tabulka!B88 -> 0 | D136: Poč. kol | EE136: =IF(AND(SUM(Tabulka!$AG$74)>0.99,(SUM(Tabulka!$AG$74)<2)),-50000+(SUM(E136:ED136)),IF(OR(SUM(Tabulka!$AG$74)<2),-90000,SUM(E136:ED136))) -> -90000 | EG136: 0
A137: Jmeno Z1_PříjmeníPočet konečných bodů | B137: =CONCATENATE(C133," ",C134) -> Jmeno Z1_Příjmení | D137: Počet konečných bodů | EE137: =IF(AND(SUM(Tabulka!$AG$84)>0.99,(SUM(Tabulka!$AG$88)<6)),50000+(SUM(E137:ED137)),IF(OR(SUM(Tabulka!$AG$84)<2),90000,SUM(E137:ED137))) -> 90000 | EG137: 0 | EI137: =$EJ$17-EG137 -> 5000
A138: Jmeno Z1_PříjmeníPrůměr konečných bodů na kolo | B138: =CONCATENATE(C133," ",C134) -> Jmeno Z1_Příjmení | D138: Průměr konečných bodů na kolo | E138: =IF(E137<>"",AVERAGE($E137:E137)+$EI138,"") ->  | F138: =IF(F137<>"",AVERAGE($E137:F137)+$EI138,"") ->  | G138: =IF(G137<>"",AVERAGE($E137:G137)+$EI138,"") ->  | H138: =IF(H137<>"",AVERAGE($E137:H137)+$EI138,"") ->  | I138: =IF(I137<>"",AVERAGE($E137:I137)+$EI138,"") ->  | J138: =IF(J137<>"",AVERAGE($E137:J137)+$EI138,"") ->  | K138: =IF(K137<>"",AVERAGE($E137:K137)+$EI138,"") ->  | L138: =IF(L137<>"",AVERAGE($E137:L137)+$EI138,"") ->  | M138: =IF(M137<>"",AVERAGE($E137:M137)+$EI138,"") ->  | N138: =IF(N137<>"",AVERAGE($E137:N137)+$EI138,"") ->  | O138: =IF(O137<>"",AVERAGE($E137:O137)+$EI138,"") ->  | P138: =IF(P137<>"",AVERAGE($E137:P137)+$EI138,"") ->  | Q138: =IF(Q137<>"",AVERAGE($E137:Q137)+$EI138,"") ->  | R138: =IF(R137<>"",AVERAGE($E137:R137)+$EI138,"") ->  | S138: =IF(S137<>"",AVERAGE($E137:S137)+$EI138,"") ->  | T138: =IF(T137<>"",AVERAGE($E137:T137)+$EI138,"") ->  | U138: =IF(U137<>"",AVERAGE($E137:U137)+$EI138,"") ->  | V138: =IF(V137<>"",AVERAGE($E137:V137)+$EI138,"") ->  | W138: =IF(W137<>"",AVERAGE($E137:W137)+$EI138,"") ->  | X138: =IF(X137<>"",AVERAGE($E137:X137)+$EI138,"") ->  | Y138: =IF(Y137<>"",AVERAGE($E137:Y137)+$EI138,"") ->  | Z138: =IF(Z137<>"",AVERAGE($E137:Z137)+$EI138,"") ->  | AA138: =IF(AA137<>"",AVERAGE($E137:AA137)+$EI138,"") ->  | AB138: =IF(AB137<>"",AVERAGE($E137:AB137)+$EI138,"") ->  | AC138: =IF(AC137<>"",AVERAGE($E137:AC137)+$EI138,"") ->  | AD138: =IF(AD137<>"",AVERAGE($E137:AD137)+$EI138,"") ->  | AE138: =IF(AE137<>"",AVERAGE($E137:AE137)+$EI138,"") ->  | AF138: =IF(AF137<>"",AVERAGE($E137:AF137)+$EI138,"") ->  | AG138: =IF(AG137<>"",AVERAGE($E137:AG137)+$EI138,"") ->  | AH138: =IF(AH137<>"",AVERAGE($E137:AH137)+$EI138,"") ->  | AI138: =IF(AI137<>"",AVERAGE($E137:AI137)+$EI138,"") ->  | AJ138: =IF(AJ137<>"",AVERAGE($E137:AJ137)+$EI138,"") ->  | AK138: =IF(AK137<>"",AVERAGE($E137:AK137)+$EI138,"") ->  | AL138: =IF(AL137<>"",AVERAGE($E137:AL137)+$EI138,"") ->  | AM138: =IF(AM137<>"",AVERAGE($E137:AM137)+$EI138,"") ->  | AN138: =IF(AN137<>"",AVERAGE($E137:AN137)+$EI138,"") ->  | AO138: =IF(AO137<>"",AVERAGE($E137:AO137)+$EI138,"") ->  | AP138: =IF(AP137<>"",AVERAGE($E137:AP137)+$EI138,"") ->  | AQ138: =IF(AQ137<>"",AVERAGE($E137:AQ137)+$EI138,"") ->  | AR138: =IF(AR137<>"",AVERAGE($E137:AR137)+$EI138,"") ->  | AS138: =IF(AS137<>"",AVERAGE($E137:AS137)+$EI138,"") ->  | AT138: =IF(AT137<>"",AVERAGE($E137:AT137)+$EI138,"") ->  | AU138: =IF(AU137<>"",AVERAGE($E137:AU137)+$EI138,"") ->  | AV138: =IF(AV137<>"",AVERAGE($E137:AV137)+$EI138,"") ->  | AW138: =IF(AW137<>"",AVERAGE($E137:AW137)+$EI138,"") ->  | AX138: =IF(AX137<>"",AVERAGE($E137:AX137)+$EI138,"") ->  | AY138: =IF(AY137<>"",AVERAGE($E137:AY137)+$EI138,"") ->  | AZ138: =IF(AZ137<>"",AVERAGE($E137:AZ137)+$EI138,"") ->  | BA138: =IF(BA137<>"",AVERAGE($E137:BA137)+$EI138,"") ->  | BB138: =IF(BB137<>"",AVERAGE($E137:BB137)+$EI138,"") ->  | BC138: =IF(BC137<>"",AVERAGE($E137:BC137)+$EI138,"") ->  | BD138: =IF(BD137<>"",AVERAGE($E137:BD137)+$EI138,"") ->  | BE138: =IF(BE137<>"",AVERAGE($E137:BE137)+$EI138,"") ->  | BF138: =IF(BF137<>"",AVERAGE($E137:BF137)+$EI138,"") ->  | BG138: =IF(BG137<>"",AVERAGE($E137:BG137)+$EI138,"") ->  | BH138: =IF(BH137<>"",AVERAGE($E137:BH137)+$EI138,"") ->  | BI138: =IF(BI137<>"",AVERAGE($E137:BI137)+$EI138,"") ->  | BJ138: =IF(BJ137<>"",AVERAGE($E137:BJ137)+$EI138,"") ->  | BK138: =IF(BK137<>"",AVERAGE($E137:BK137)+$EI138,"") ->  | BL138: =IF(BL137<>"",AVERAGE($E137:BL137)+$EI138,"") ->  | BM138: =IF(BM137<>"",AVERAGE($E137:BM137)+$EI138,"") ->  | BN138: =IF(BN137<>"",AVERAGE($E137:BN137)+$EI138,"") ->  | BO138: =IF(BO137<>"",AVERAGE($E137:BO137)+$EI138,"") ->  | BP138: =IF(BP137<>"",AVERAGE($E137:BP137)+$EI138,"") ->  | BQ138: =IF(BQ137<>"",AVERAGE($E137:BQ137)+$EI138,"") ->  | BR138: =IF(BR137<>"",AVERAGE($E137:BR137)+$EI138,"") ->  | BS138: =IF(BS137<>"",AVERAGE($E137:BS137)+$EI138,"") ->  | BT138: =IF(BT137<>"",AVERAGE($E137:BT137)+$EI138,"") ->  | BU138: =IF(BU137<>"",AVERAGE($E137:BU137)+$EI138,"") ->  | BV138: =IF(BV137<>"",AVERAGE($E137:BV137)+$EI138,"") ->  | BW138: =IF(BW137<>"",AVERAGE($E137:BW137)+$EI138,"") ->  | BX138: =IF(BX137<>"",AVERAGE($E137:BX137)+$EI138,"") ->  | BY138: =IF(BY137<>"",AVERAGE($E137:BY137)+$EI138,"") ->  | BZ138: =IF(BZ137<>"",AVERAGE($E137:BZ137)+$EI138,"") ->  | CA138: =IF(CA137<>"",AVERAGE($E137:CA137)+$EI138,"") ->  | CB138: =IF(CB137<>"",AVERAGE($E137:CB137)+$EI138,"") ->  | CC138: =IF(CC137<>"",AVERAGE($E137:CC137)+$EI138,"") ->  | CD138: =IF(CD137<>"",AVERAGE($E137:CD137)+$EI138,"") ->  | CE138: =IF(CE137<>"",AVERAGE($E137:CE137)+$EI138,"") ->  | CF138: =IF(CF137<>"",AVERAGE($E137:CF137)+$EI138,"") ->  | CG138: =IF(CG137<>"",AVERAGE($E137:CG137)+$EI138,"") ->  | CH138: =IF(CH137<>"",AVERAGE($E137:CH137)+$EI138,"") ->  | CI138: =IF(CI137<>"",AVERAGE($E137:CI137)+$EI138,"") ->  | CJ138: =IF(CJ137<>"",AVERAGE($E137:CJ137)+$EI138,"") ->  | CK138: =IF(CK137<>"",AVERAGE($E137:CK137)+$EI138,"") ->  | CL138: =IF(CL137<>"",AVERAGE($E137:CL137)+$EI138,"") ->  | CM138: =IF(CM137<>"",AVERAGE($E137:CM137)+$EI138,"") ->  | CN138: =IF(CN137<>"",AVERAGE($E137:CN137)+$EI138,"") ->  | CO138: =IF(CO137<>"",AVERAGE($E137:CO137)+$EI138,"") ->  | CP138: =IF(CP137<>"",AVERAGE($E137:CP137)+$EI138,"") ->  | CQ138: =IF(CQ137<>"",AVERAGE($E137:CQ137)+$EI138,"") ->  | CR138: =IF(CR137<>"",AVERAGE($E137:CR137)+$EI138,"") ->  | CS138: =IF(CS137<>"",AVERAGE($E137:CS137)+$EI138,"") ->  | CT138: =IF(CT137<>"",AVERAGE($E137:CT137)+$EI138,"") ->  | CU138: =IF(CU137<>"",AVERAGE($E137:CU137)+$EI138,"") ->  | CV138: =IF(CV137<>"",AVERAGE($E137:CV137)+$EI138,"") ->  | CW138: =IF(CW137<>"",AVERAGE($E137:CW137)+$EI138,"") ->  | CX138: =IF(CX137<>"",AVERAGE($E137:CX137)+$EI138,"") ->  | CY138: =IF(CY137<>"",AVERAGE($E137:CY137)+$EI138,"") ->  | CZ138: =IF(CZ137<>"",AVERAGE($E137:CZ137)+$EI138,"") ->  | DA138: =IF(DA137<>"",AVERAGE($E137:DA137)+$EI138,"") ->  | DB138: =IF(DB137<>"",AVERAGE($E137:DB137)+$EI138,"") ->  | DC138: =IF(DC137<>"",AVERAGE($E137:DC137)+$EI138,"") ->  | DD138: =IF(DD137<>"",AVERAGE($E137:DD137)+$EI138,"") ->  | DE138: =IF(DE137<>"",AVERAGE($E137:DE137)+$EI138,"") ->  | DF138: =IF(DF137<>"",AVERAGE($E137:DF137)+$EI138,"") ->  | DG138: =IF(DG137<>"",AVERAGE($E137:DG137)+$EI138,"") ->  | DH138: =IF(DH137<>"",AVERAGE($E137:DH137)+$EI138,"") ->  | DI138: =IF(DI137<>"",AVERAGE($E137:DI137)+$EI138,"") ->  | DJ138: =IF(DJ137<>"",AVERAGE($E137:DJ137)+$EI138,"") ->  | DK138: =IF(DK137<>"",AVERAGE($E137:DK137)+$EI138,"") ->  | DL138: =IF(DL137<>"",AVERAGE($E137:DL137)+$EI138,"") ->  | DM138: =IF(DM137<>"",AVERAGE($E137:DM137)+$EI138,"") ->  | DN138: =IF(DN137<>"",AVERAGE($E137:DN137)+$EI138,"") ->  | DO138: =IF(DO137<>"",AVERAGE($E137:DO137)+$EI138,"") ->  | DP138: =IF(DP137<>"",AVERAGE($E137:DP137)+$EI138,"") ->  | DQ138: =IF(DQ137<>"",AVERAGE($E137:DQ137)+$EI138,"") ->  | DR138: =IF(DR137<>"",AVERAGE($E137:DR137)+$EI138,"") ->  | DS138: =IF(DS137<>"",AVERAGE($E137:DS137)+$EI138,"") ->  | DT138: =IF(DT137<>"",AVERAGE($E137:DT137)+$EI138,"") ->  | DU138: =IF(DU137<>"",AVERAGE($E137:DU137)+$EI138,"") ->  | DV138: =IF(DV137<>"",AVERAGE($E137:DV137)+$EI138,"") ->  | DW138: =IF(DW137<>"",AVERAGE($E137:DW137)+$EI138,"") ->  | DX138: =IF(DX137<>"",AVERAGE($E137:DX137)+$EI138,"") ->  | DY138: =IF(DY137<>"",AVERAGE($E137:DY137)+$EI138,"") ->  | DZ138: =IF(DZ137<>"",AVERAGE($E137:DZ137)+$EI138,"") ->  | EA138: =IF(EA137<>"",AVERAGE($E137:EA137)+$EI138,"") ->  | EB138: =IF(EB137<>"",AVERAGE($E137:EB137)+$EI138,"") ->  | EC138: =IF(EC137<>"",AVERAGE($E137:EC137)+$EI138,"") ->  | ED138: =IF(ED137<>"",AVERAGE($E137:ED137)+$EI138,"") ->  | EE138: =IF(AND(SUM(Tabulka!$AG$84)>0.99,(SUM(Tabulka!$AH$88)<6)),50000+C132/1000,IF(OR(SUM(Tabulka!$AG$84)<2),90000,SUM(E137:ED137)/COUNT(E138:ED138))) -> 90000 | EG138: =IFERROR(SUM(E137:ED137)/COUNT(E137:ED137),) -> 0 | EH138: =CONCATENATE(C133," ",C134) -> Jmeno Z1_Příjmení | EI138: =INDEX(List4!$E$2:$E$19,MATCH(CONCATENATE(C133," ",C134),List4!$A$2:$A$19,0),1) -> 
A139: Jmeno Z1_PříjmeníPočet šipek | B139: =CONCATENATE(C133," ",C134) -> Jmeno Z1_Příjmení | D139: Počet šipek | EE139: =IF(AND(SUM(Tabulka!$AG$74)>0.99,(SUM(Tabulka!$AG$74)<2)),-50000+(SUM(E139:ED139)),IF(OR(SUM(Tabulka!$AG$74)<2),-90000,SUM(E139:ED139))) -> -90000 | EG139: =SUM(E139:ED139) -> 0
A140: =CONCATENATE($C$141," ",$C$142,D140) -> Jméno Z2_PříjmeníVýhry | B140: =CONCATENATE(C141," ",C142) -> Jméno Z2_Příjmení | C140: =C132+1 -> 18 | D140: Výhry | EE140: =IF(AND(SUM(Tabulka!$AG$79)>0.99,(SUM(Tabulka!$AG$79)<2)),-50000+(SUM(E140:ED140)),IF(OR(SUM(Tabulka!$AG$79)<2),-90000,SUM(E140:ED140))) -> -90000 | EG140: 0
A141: Jméno Z2_PříjmeníProhry | B141: =CONCATENATE(C141," ",C142) -> Jméno Z2_Příjmení | C141: =Tabulka!B90 -> Jméno | D141: Prohry | EE141: =IF(AND(SUM(Tabulka!$AG$79)>0.99,(SUM(Tabulka!$AG$79)<2)),-50000+(SUM(E141:ED141)),IF(OR(SUM(Tabulka!$AG$79)<2),-90000,SUM(E141:ED141))) -> -90000 | EF141: =SUM(EE140-EE141) -> 0 | EG141: 0
A142: Jméno Z2_PříjmeníPlaceno panáků | B142: =CONCATENATE(C141," ",C142) -> Jméno Z2_Příjmení | C142: =Tabulka!B91 -> Z2_Příjmení | D142: Placeno panáků | EE142: =IF(AND(SUM(Tabulka!$AG$79)>0.99,(SUM(Tabulka!$AG$79)<2)),-50000+(SUM(E142:ED142)),IF(OR(SUM(Tabulka!$AG$79)<2),-90000,SUM(E142:ED142))) -> -90000 | EG142: 0
A143: Jméno Z2_PříjmeníPřehozy | B143: =CONCATENATE(C141," ",C142) -> Jméno Z2_Příjmení | C143: =Tabulka!B92 -> 0 | D143: Přehozy | EE143: =IF(AND(SUM(Tabulka!$AG$79)>0.99,(SUM(Tabulka!$AG$79)<2)),-50000+(SUM(E143:ED143)),IF(OR(SUM(Tabulka!$AG$79)<2),-90000,SUM(E143:ED143))) -> -90000 | EG143: 0
A144: Jméno Z2_PříjmeníPoč. kol | B144: =CONCATENATE(C141," ",C142) -> Jméno Z2_Příjmení | C144: =Tabulka!B93 -> 0 | D144: Poč. kol | EE144: =IF(AND(SUM(Tabulka!$AG$79)>0.99,(SUM(Tabulka!$AG$79)<2)),-50000+(SUM(E144:ED144)),IF(OR(SUM(Tabulka!$AG$79)<2),-90000,SUM(E144:ED144))) -> -90000 | EG144: 0
A145: Jméno Z2_PříjmeníPočet konečných bodů | B145: =CONCATENATE(C141," ",C142) -> Jméno Z2_Příjmení | D145: Počet konečných bodů | EE145: =IF(AND(SUM(Tabulka!$AG$89)>0.99,(SUM(Tabulka!$A$93)<6)),50000+C140/1000,IF(OR(SUM(Tabulka!$AG$94)<2),90000,SUM(E145:ED145))) -> 90000 | EG145: 0 | EI145: =$EJ$17-EG145 -> 5000
A146: Jméno Z2_PříjmeníPrůměr konečných bodů na kolo | B146: =CONCATENATE(C141," ",C142) -> Jméno Z2_Příjmení | D146: Průměr konečných bodů na kolo | E146: =IF(E145<>"",AVERAGE($E145:E145)+$EI146,"") ->  | F146: =IF(F145<>"",AVERAGE($E145:F145)+$EI146,"") ->  | G146: =IF(G145<>"",AVERAGE($E145:G145)+$EI146,"") ->  | H146: =IF(H145<>"",AVERAGE($E145:H145)+$EI146,"") ->  | I146: =IF(I145<>"",AVERAGE($E145:I145)+$EI146,"") ->  | J146: =IF(J145<>"",AVERAGE($E145:J145)+$EI146,"") ->  | K146: =IF(K145<>"",AVERAGE($E145:K145)+$EI146,"") ->  | L146: =IF(L145<>"",AVERAGE($E145:L145)+$EI146,"") ->  | M146: =IF(M145<>"",AVERAGE($E145:M145)+$EI146,"") ->  | N146: =IF(N145<>"",AVERAGE($E145:N145)+$EI146,"") ->  | O146: =IF(O145<>"",AVERAGE($E145:O145)+$EI146,"") ->  | P146: =IF(P145<>"",AVERAGE($E145:P145)+$EI146,"") ->  | Q146: =IF(Q145<>"",AVERAGE($E145:Q145)+$EI146,"") ->  | R146: =IF(R145<>"",AVERAGE($E145:R145)+$EI146,"") ->  | S146: =IF(S145<>"",AVERAGE($E145:S145)+$EI146,"") ->  | T146: =IF(T145<>"",AVERAGE($E145:T145)+$EI146,"") ->  | U146: =IF(U145<>"",AVERAGE($E145:U145)+$EI146,"") ->  | V146: =IF(V145<>"",AVERAGE($E145:V145)+$EI146,"") ->  | W146: =IF(W145<>"",AVERAGE($E145:W145)+$EI146,"") ->  | X146: =IF(X145<>"",AVERAGE($E145:X145)+$EI146,"") ->  | Y146: =IF(Y145<>"",AVERAGE($E145:Y145)+$EI146,"") ->  | Z146: =IF(Z145<>"",AVERAGE($E145:Z145)+$EI146,"") ->  | AA146: =IF(AA145<>"",AVERAGE($E145:AA145)+$EI146,"") ->  | AB146: =IF(AB145<>"",AVERAGE($E145:AB145)+$EI146,"") ->  | AC146: =IF(AC145<>"",AVERAGE($E145:AC145)+$EI146,"") ->  | AD146: =IF(AD145<>"",AVERAGE($E145:AD145)+$EI146,"") ->  | AE146: =IF(AE145<>"",AVERAGE($E145:AE145)+$EI146,"") ->  | AF146: =IF(AF145<>"",AVERAGE($E145:AF145)+$EI146,"") ->  | AG146: =IF(AG145<>"",AVERAGE($E145:AG145)+$EI146,"") ->  | AH146: =IF(AH145<>"",AVERAGE($E145:AH145)+$EI146,"") ->  | AI146: =IF(AI145<>"",AVERAGE($E145:AI145)+$EI146,"") ->  | AJ146: =IF(AJ145<>"",AVERAGE($E145:AJ145)+$EI146,"") ->  | AK146: =IF(AK145<>"",AVERAGE($E145:AK145)+$EI146,"") ->  | AL146: =IF(AL145<>"",AVERAGE($E145:AL145)+$EI146,"") ->  | AM146: =IF(AM145<>"",AVERAGE($E145:AM145)+$EI146,"") ->  | AN146: =IF(AN145<>"",AVERAGE($E145:AN145)+$EI146,"") ->  | AO146: =IF(AO145<>"",AVERAGE($E145:AO145)+$EI146,"") ->  | AP146: =IF(AP145<>"",AVERAGE($E145:AP145)+$EI146,"") ->  | AQ146: =IF(AQ145<>"",AVERAGE($E145:AQ145)+$EI146,"") ->  | AR146: =IF(AR145<>"",AVERAGE($E145:AR145)+$EI146,"") ->  | AS146: =IF(AS145<>"",AVERAGE($E145:AS145)+$EI146,"") ->  | AT146: =IF(AT145<>"",AVERAGE($E145:AT145)+$EI146,"") ->  | AU146: =IF(AU145<>"",AVERAGE($E145:AU145)+$EI146,"") ->  | AV146: =IF(AV145<>"",AVERAGE($E145:AV145)+$EI146,"") ->  | AW146: =IF(AW145<>"",AVERAGE($E145:AW145)+$EI146,"") ->  | AX146: =IF(AX145<>"",AVERAGE($E145:AX145)+$EI146,"") ->  | AY146: =IF(AY145<>"",AVERAGE($E145:AY145)+$EI146,"") ->  | AZ146: =IF(AZ145<>"",AVERAGE($E145:AZ145)+$EI146,"") ->  | BA146: =IF(BA145<>"",AVERAGE($E145:BA145)+$EI146,"") ->  | BB146: =IF(BB145<>"",AVERAGE($E145:BB145)+$EI146,"") ->  | BC146: =IF(BC145<>"",AVERAGE($E145:BC145)+$EI146,"") ->  | BD146: =IF(BD145<>"",AVERAGE($E145:BD145)+$EI146,"") ->  | BE146: =IF(BE145<>"",AVERAGE($E145:BE145)+$EI146,"") ->  | BF146: =IF(BF145<>"",AVERAGE($E145:BF145)+$EI146,"") ->  | BG146: =IF(BG145<>"",AVERAGE($E145:BG145)+$EI146,"") ->  | BH146: =IF(BH145<>"",AVERAGE($E145:BH145)+$EI146,"") ->  | BI146: =IF(BI145<>"",AVERAGE($E145:BI145)+$EI146,"") ->  | BJ146: =IF(BJ145<>"",AVERAGE($E145:BJ145)+$EI146,"") ->  | BK146: =IF(BK145<>"",AVERAGE($E145:BK145)+$EI146,"") ->  | BL146: =IF(BL145<>"",AVERAGE($E145:BL145)+$EI146,"") ->  | BM146: =IF(BM145<>"",AVERAGE($E145:BM145)+$EI146,"") ->  | BN146: =IF(BN145<>"",AVERAGE($E145:BN145)+$EI146,"") ->  | BO146: =IF(BO145<>"",AVERAGE($E145:BO145)+$EI146,"") ->  | BP146: =IF(BP145<>"",AVERAGE($E145:BP145)+$EI146,"") ->  | BQ146: =IF(BQ145<>"",AVERAGE($E145:BQ145)+$EI146,"") ->  | BR146: =IF(BR145<>"",AVERAGE($E145:BR145)+$EI146,"") ->  | BS146: =IF(BS145<>"",AVERAGE($E145:BS145)+$EI146,"") ->  | BT146: =IF(BT145<>"",AVERAGE($E145:BT145)+$EI146,"") ->  | BU146: =IF(BU145<>"",AVERAGE($E145:BU145)+$EI146,"") ->  | BV146: =IF(BV145<>"",AVERAGE($E145:BV145)+$EI146,"") ->  | BW146: =IF(BW145<>"",AVERAGE($E145:BW145)+$EI146,"") ->  | BX146: =IF(BX145<>"",AVERAGE($E145:BX145)+$EI146,"") ->  | BY146: =IF(BY145<>"",AVERAGE($E145:BY145)+$EI146,"") ->  | BZ146: =IF(BZ145<>"",AVERAGE($E145:BZ145)+$EI146,"") ->  | CA146: =IF(CA145<>"",AVERAGE($E145:CA145)+$EI146,"") ->  | CB146: =IF(CB145<>"",AVERAGE($E145:CB145)+$EI146,"") ->  | CC146: =IF(CC145<>"",AVERAGE($E145:CC145)+$EI146,"") ->  | CD146: =IF(CD145<>"",AVERAGE($E145:CD145)+$EI146,"") ->  | CE146: =IF(CE145<>"",AVERAGE($E145:CE145)+$EI146,"") ->  | CF146: =IF(CF145<>"",AVERAGE($E145:CF145)+$EI146,"") ->  | CG146: =IF(CG145<>"",AVERAGE($E145:CG145)+$EI146,"") ->  | CH146: =IF(CH145<>"",AVERAGE($E145:CH145)+$EI146,"") ->  | CI146: =IF(CI145<>"",AVERAGE($E145:CI145)+$EI146,"") ->  | CJ146: =IF(CJ145<>"",AVERAGE($E145:CJ145)+$EI146,"") ->  | CK146: =IF(CK145<>"",AVERAGE($E145:CK145)+$EI146,"") ->  | CL146: =IF(CL145<>"",AVERAGE($E145:CL145)+$EI146,"") ->  | CM146: =IF(CM145<>"",AVERAGE($E145:CM145)+$EI146,"") ->  | CN146: =IF(CN145<>"",AVERAGE($E145:CN145)+$EI146,"") ->  | CO146: =IF(CO145<>"",AVERAGE($E145:CO145)+$EI146,"") ->  | CP146: =IF(CP145<>"",AVERAGE($E145:CP145)+$EI146,"") ->  | CQ146: =IF(CQ145<>"",AVERAGE($E145:CQ145)+$EI146,"") ->  | CR146: =IF(CR145<>"",AVERAGE($E145:CR145)+$EI146,"") ->  | CS146: =IF(CS145<>"",AVERAGE($E145:CS145)+$EI146,"") ->  | CT146: =IF(CT145<>"",AVERAGE($E145:CT145)+$EI146,"") ->  | CU146: =IF(CU145<>"",AVERAGE($E145:CU145)+$EI146,"") ->  | CV146: =IF(CV145<>"",AVERAGE($E145:CV145)+$EI146,"") ->  | CW146: =IF(CW145<>"",AVERAGE($E145:CW145)+$EI146,"") ->  | CX146: =IF(CX145<>"",AVERAGE($E145:CX145)+$EI146,"") ->  | CY146: =IF(CY145<>"",AVERAGE($E145:CY145)+$EI146,"") ->  | CZ146: =IF(CZ145<>"",AVERAGE($E145:CZ145)+$EI146,"") ->  | DA146: =IF(DA145<>"",AVERAGE($E145:DA145)+$EI146,"") ->  | DB146: =IF(DB145<>"",AVERAGE($E145:DB145)+$EI146,"") ->  | DC146: =IF(DC145<>"",AVERAGE($E145:DC145)+$EI146,"") ->  | DD146: =IF(DD145<>"",AVERAGE($E145:DD145)+$EI146,"") ->  | DE146: =IF(DE145<>"",AVERAGE($E145:DE145)+$EI146,"") ->  | DF146: =IF(DF145<>"",AVERAGE($E145:DF145)+$EI146,"") ->  | DG146: =IF(DG145<>"",AVERAGE($E145:DG145)+$EI146,"") ->  | DH146: =IF(DH145<>"",AVERAGE($E145:DH145)+$EI146,"") ->  | DI146: =IF(DI145<>"",AVERAGE($E145:DI145)+$EI146,"") ->  | DJ146: =IF(DJ145<>"",AVERAGE($E145:DJ145)+$EI146,"") ->  | DK146: =IF(DK145<>"",AVERAGE($E145:DK145)+$EI146,"") ->  | DL146: =IF(DL145<>"",AVERAGE($E145:DL145)+$EI146,"") ->  | DM146: =IF(DM145<>"",AVERAGE($E145:DM145)+$EI146,"") ->  | DN146: =IF(DN145<>"",AVERAGE($E145:DN145)+$EI146,"") ->  | DO146: =IF(DO145<>"",AVERAGE($E145:DO145)+$EI146,"") ->  | DP146: =IF(DP145<>"",AVERAGE($E145:DP145)+$EI146,"") ->  | DQ146: =IF(DQ145<>"",AVERAGE($E145:DQ145)+$EI146,"") ->  | DR146: =IF(DR145<>"",AVERAGE($E145:DR145)+$EI146,"") ->  | DS146: =IF(DS145<>"",AVERAGE($E145:DS145)+$EI146,"") ->  | DT146: =IF(DT145<>"",AVERAGE($E145:DT145)+$EI146,"") ->  | DU146: =IF(DU145<>"",AVERAGE($E145:DU145)+$EI146,"") ->  | DV146: =IF(DV145<>"",AVERAGE($E145:DV145)+$EI146,"") ->  | DW146: =IF(DW145<>"",AVERAGE($E145:DW145)+$EI146,"") ->  | DX146: =IF(DX145<>"",AVERAGE($E145:DX145)+$EI146,"") ->  | DY146: =IF(DY145<>"",AVERAGE($E145:DY145)+$EI146,"") ->  | DZ146: =IF(DZ145<>"",AVERAGE($E145:DZ145)+$EI146,"") ->  | EA146: =IF(EA145<>"",AVERAGE($E145:EA145)+$EI146,"") ->  | EB146: =IF(EB145<>"",AVERAGE($E145:EB145)+$EI146,"") ->  | EC146: =IF(EC145<>"",AVERAGE($E145:EC145)+$EI146,"") ->  | ED146: =IF(ED145<>"",AVERAGE($E145:ED145)+$EI146,"") ->  | EE146: =IF(AND(SUM(Tabulka!$AG$94)>0.99,(SUM(Tabulka!$AH$98)<6)),50000+C140/1000,IF(OR(SUM(Tabulka!$AG$94)<2),90000,SUM(E145:ED145)/COUNT(E146:ED146))) -> 90000 | EG146: =IFERROR(SUM(E145:ED145)/COUNT(E145:ED145),) -> 0 | EH146: =CONCATENATE(C141," ",C142) -> Jméno Z2_Příjmení | EI146: =INDEX(List4!$E$2:$E$19,MATCH(CONCATENATE(C141," ",C142),List4!$A$2:$A$19,0),1) -> 
A147: Jméno Z2_PříjmeníPočet šipek | B147: =CONCATENATE(C141," ",C142) -> Jméno Z2_Příjmení | D147: Počet šipek | EE147: =IF(AND(SUM(Tabulka!$AG$79)>0.99,(SUM(Tabulka!$AG$79)<2)),-50000+(SUM(E147:ED147)),IF(OR(SUM(Tabulka!$AG$79)<2),-90000,SUM(E147:ED147))) -> -90000 | EG147: =SUM(E147:ED147) -> 0

Sheet Tabulka
B1: sipy.zlatyruce.cz / hrací den číslo | D1: =IF(D2=0,"",C1+1) -> 1 | E1: =IF(E2="","",D1+1) ->  | AE1: =MAX(D1:AD1) -> 1
B2: =Přehled_body!C2 -> 2022 | C2: 1. pololetí Datum | D2: =IFERROR(Přehled_body!E2,"") -> 2022-01-04 | E2: =IFERROR(IF(INDEX(Přehled_body!$E$2:$ED$2,1,MATCH(Tabulka!D2,Přehled_body!$D$2:$ED$2,0)+4)="","",INDEX(Přehled_body!$E$2:$ED$2,1,MATCH(Tabulka!D2,Přehled_body!$D$2:$ED$2,0)+4)),"") ->  | F2: =IFERROR(IF(INDEX(Přehled_body!$E$2:$ED$2,1,MATCH(Tabulka!E2,Přehled_body!$D$2:$ED$2,0)+4)="","",INDEX(Přehled_body!$E$2:$ED$2,1,MATCH(Tabulka!E2,Přehled_body!$D$2:$ED$2,0)+4)),"") ->  | G2: =IFERROR(IF(INDEX(Přehled_body!$E$2:$ED$2,1,MATCH(Tabulka!F2,Přehled_body!$D$2:$ED$2,0)+4)="","",INDEX(Přehled_body!$E$2:$ED$2,1,MATCH(Tabulka!F2,Přehled_body!$D$2:$ED$2,0)+4)),"") ->  | H2: =IFERROR(IF(INDEX(Přehled_body!$E$2:$ED$2,1,MATCH(Tabulka!G2,Přehled_body!$D$2:$ED$2,0)+4)="","",INDEX(Přehled_body!$E$2:$ED$2,1,MATCH(Tabulka!G2,Přehled_body!$D$2:$ED$2,0)+4)),"") ->  | I2: =IFERROR(IF(INDEX(Přehled_body!$E$2:$ED$2,1,MATCH(Tabulka!H2,Přehled_body!$D$2:$ED$2,0)+4)="","",INDEX(Přehled_body!$E$2:$ED$2,1,MATCH(Tabulka!H2,Přehled_body!$D$2:$ED$2,0)+4)),"") ->  | J2: =IFERROR(IF(INDEX(Přehled_body!$E$2:$ED$2,1,MATCH(Tabulka!I2,Přehled_body!$D$2:$ED$2,0)+4)="","",INDEX(Přehled_body!$E$2:$ED$2,1,MATCH(Tabulka!I2,Přehled_body!$D$2:$ED$2,0)+4)),"") ->  | K2: =IFERROR(IF(INDEX(Přehled_body!$E$2:$ED$2,1,MATCH(Tabulka!J2,Přehled_body!$D$2:$ED$2,0)+4)="","",INDEX(Přehled_body!$E$2:$ED$2,1,MATCH(Tabulka!J2,Přehled_body!$D$2:$ED$2,0)+4)),"") ->  | L2: =IFERROR(IF(INDEX(Přehled_body!$E$2:$ED$2,1,MATCH(Tabulka!K2,Přehled_body!$D$2:$ED$2,0)+4)="","",INDEX(Přehled_body!$E$2:$ED$2,1,MATCH(Tabulka!K2,Přehled_body!$D$2:$ED$2,0)+4)),"") ->  | M2: =IFERROR(IF(INDEX(Přehled_body!$E$2:$ED$2,1,MATCH(Tabulka!L2,Přehled_body!$D$2:$ED$2,0)+4)="","",INDEX(Přehled_body!$E$2:$ED$2,1,MATCH(Tabulka!L2,Přehled_body!$D$2:$ED$2,0)+4)),"") ->  | N2: =IFERROR(IF(INDEX(Přehled_body!$E$2:$ED$2,1,MATCH(Tabulka!M2,Přehled_body!$D$2:$ED$2,0)+4)="","",INDEX(Přehled_body!$E$2:$ED$2,1,MATCH(Tabulka!M2,Přehled_body!$D$2:$ED$2,0)+4)),"") ->  | O2: =IFERROR(IF(INDEX(Přehled_body!$E$2:$ED$2,1,MATCH(Tabulka!N2,Přehled_body!$D$2:$ED$2,0)+4)="","",INDEX(Přehled_body!$E$2:$ED$2,1,MATCH(Tabulka!N2,Přehled_body!$D$2:$ED$2,0)+4)),"") ->  | P2: =IFERROR(IF(INDEX(Přehled_body!$E$2:$ED$2,1,MATCH(Tabulka!O2,Přehled_body!$D$2:$ED$2,0)+4)="","",INDEX(Přehled_body!$E$2:$ED$2,1,MATCH(Tabulka!O2,Přehled_body!$D$2:$ED$2,0)+4)),"") ->  | Q2: =IFERROR(IF(INDEX(Přehled_body!$E$2:$ED$2,1,MATCH(Tabulka!P2,Přehled_body!$D$2:$ED$2,0)+4)="","",INDEX(Přehled_body!$E$2:$ED$2,1,MATCH(Tabulka!P2,Přehled_body!$D$2:$ED$2,0)+4)),"") ->  | R2: =IFERROR(IF(INDEX(Přehled_body!$E$2:$ED$2,1,MATCH(Tabulka!Q2,Přehled_body!$D$2:$ED$2,0)+4)="","",INDEX(Přehled_body!$E$2:$ED$2,1,MATCH(Tabulka!Q2,Přehled_body!$D$2:$ED$2,0)+4)),"") ->  | S2: =IFERROR(IF(INDEX(Přehled_body!$E$2:$ED$2,1,MATCH(Tabulka!R2,Přehled_body!$D$2:$ED$2,0)+4)="","",INDEX(Přehled_body!$E$2:$ED$2,1,MATCH(Tabulka!R2,Přehled_body!$D$2:$ED$2,0)+4)),"") ->  | T2: =IFERROR(IF(INDEX(Přehled_body!$E$2:$ED$2,1,MATCH(Tabulka!S2,Přehled_body!$D$2:$ED$2,0)+4)="","",INDEX(Přehled_body!$E$2:$ED$2,1,MATCH(Tabulka!S2,Přehled_body!$D$2:$ED$2,0)+4)),"") ->  | U2: =IFERROR(IF(INDEX(Přehled_body!$E$2:$ED$2,1,MATCH(Tabulka!T2,Přehled_body!$D$2:$ED$2,0)+4)="","",INDEX(Přehled_body!$E$2:$ED$2,1,MATCH(Tabulka!T2,Přehled_body!$D$2:$ED$2,0)+4)),"") ->  | V2: =IFERROR(IF(INDEX(Přehled_body!$E$2:$ED$2,1,MATCH(Tabulka!U2,Přehled_body!$D$2:$ED$2,0)+4)="","",INDEX(Přehled_body!$E$2:$ED$2,1,MATCH(Tabulka!U2,Přehled_body!$D$2:$ED$2,0)+4)),"") ->  | W2: =IFERROR(IF(INDEX(Přehled_body!$E$2:$ED$2,1,MATCH(Tabulka!V2,Přehled_body!$D$2:$ED$2,0)+4)="","",INDEX(Přehled_body!$E$2:$ED$2,1,MATCH(Tabulka!V2,Přehled_body!$D$2:$ED$2,0)+4)),"") ->  | X2: =IFERROR(IF(INDEX(Přehled_body!$E$2:$ED$2,1,MATCH(Tabulka!W2,Přehled_body!$D$2:$ED$2,0)+4)="","",INDEX(Přehled_body!$E$2:$ED$2,1,MATCH(Tabulka!W2,Přehled_body!$D$2:$ED$2,0)+4)),"") ->  | Y2: =IFERROR(IF(INDEX(Přehled_body!$E$2:$ED$2,1,MATCH(Tabulka!X2,Přehled_body!$D$2:$ED$2,0)+4)="","",INDEX(Přehled_body!$E$2:$ED$2,1,MATCH(Tabulka!X2,Přehled_body!$D$2:$ED$2,0)+4)),"") ->  | Z2: =IFERROR(IF(INDEX(Přehled_body!$E$2:$ED$2,1,MATCH(Tabulka!Y2,Přehled_body!$D$2:$ED$2,0)+4)="","",INDEX(Přehled_body!$E$2:$ED$2,1,MATCH(Tabulka!Y2,Přehled_body!$D$2:$ED$2,0)+4)),"") ->  | AA2: =IFERROR(IF(INDEX(Přehled_body!$E$2:$ED$2,1,MATCH(Tabulka!Z2,Přehled_body!$D$2:$ED$2,0)+4)="","",INDEX(Přehled_body!$E$2:$ED$2,1,MATCH(Tabulka!Z2,Přehled_body!$D$2:$ED$2,0)+4)),"") ->  | AB2: =IFERROR(IF(INDEX(Přehled_body!$E$2:$ED$2,1,MATCH(Tabulka!AA2,Přehled_body!$D$2:$ED$2,0)+4)="","",INDEX(Přehled_body!$E$2:$ED$2,1,MATCH(Tabulka!AA2,Přehled_body!$D$2:$ED$2,0)+4)),"") ->  | AC2: =IFERROR(IF(INDEX(Přehled_body!$E$2:$ED$2,1,MATCH(Tabulka!AB2,Přehled_body!$D$2:$ED$2,0)+4)="","",INDEX(Přehled_body!$E$2:$ED$2,1,MATCH(Tabulka!AB2,Přehled_body!$D$2:$ED$2,0)+4)),"") ->  | AD2: =IFERROR(IF(INDEX(Přehled_body!$E$2:$ED$2,1,MATCH(Tabulka!AC2,Přehled_body!$D$2:$ED$2,0)+4)="","",INDEX(Přehled_body!$E$2:$ED$2,1,MATCH(Tabulka!AC2,Přehled_body!$D$2:$ED$2,0)+4)),"") ->  | AE2: Součet | AF2: Body | AG2: Účast dny
C3: Počet hrájících | D3: =IF(D2="","",IF(D8>0,1,0)+IF(D13>0,1,0)+IF(D18>0,1,0)+IF(D23>0,1,0)+IF(D28>0,1,0)+IF(D33>0,1,0)+IF(D38>0,1,0)+IF(D43>0,1,0)+IF(D48>0,1,0)+IF(D53>0,1,0)+IF(D58>0,1,0)+IF(D63>0,1,0)+IF(D68>0,1,0)+IF(D73>0,1,0)+IF(D78>0,1,0)+IF(D83>0,1,0)) -> 8 | E3: =IF(E2="","",IF(E8>0,1,0)+IF(E13>0,1,0)+IF(E18>0,1,0)+IF(E23>0,1,0)+IF(E28>0,1,0)+IF(E33>0,1,0)+IF(E38>0,1,0)+IF(E43>0,1,0)+IF(E48>0,1,0)+IF(E53>0,1,0)+IF(E58>0,1,0)+IF(E63>0,1,0)+IF(E68>0,1,0)+IF(E73>0,1,0)+IF(E78>0,1,0)+IF(E83>0,1,0)) ->  | AE3: celkem
A4: 1 | C4: Výhry | D4: =IF(IFERROR(INDEX(Přehled_body!$E$4:$ED$147,MATCH(Tabulka!$AI4,Přehled_body!$A$4:$A$147,0),MATCH(Tabulka!D$2,Přehled_body!$E$2:$ED$2,0)),)="",,IF(IFERROR(INDEX(Přehled_body!$E$4:$ED$147,MATCH(Tabulka!$AI4,Přehled_body!$A$4:$A$147,0),MATCH(Tabulka!D$2,Přehled_body!$E$2:$ED$2,0)),)=0,0.00000000001,IFERROR(INDEX(Přehled_body!$E$4:$ED$147,MATCH(Tabulka!$AI4,Přehled_body!$A$4:$A$147,0),MATCH(Tabulka!D$2,Přehled_body!$E$2:$ED$2,0)),))) -> 1 | E4: =IF(IFERROR(INDEX(Přehled_body!$E$4:$ED$147,MATCH(Tabulka!$AI4,Přehled_body!$A$4:$A$147,0),MATCH(Tabulka!E$2,Přehled_body!$E$2:$ED$2,0)),)="",,IF(IFERROR(INDEX(Přehled_body!$E$4:$ED$147,MATCH(Tabulka!$AI4,Přehled_body!$A$4:$A$147,0),MATCH(Tabulka!E$2,Přehled_body!$E$2:$ED$2,0)),)=0,0.00000000001,IFERROR(INDEX(Přehled_body!$E$4:$ED$147,MATCH(Tabulka!$AI4,Přehled_body!$A$4:$A$147,0),MATCH(Tabulka!E$2,Přehled_body!$E$2:$ED$2,0)),))) -> 0 | F4: =IF(IFERROR(INDEX(Přehled_body!$E$4:$ED$147,MATCH(Tabulka!$AI4,Přehled_body!$A$4:$A$147,0),MATCH(Tabulka!F$2,Přehled_body!$E$2:$ED$2,0)),)="",,IF(IFERROR(INDEX(Přehled_body!$E$4:$ED$147,MATCH(Tabulka!$AI4,Přehled_body!$A$4:$A$147,0),MATCH(Tabulka!F$2,Přehled_body!$E$2:$ED$2,0)),)=0,0.00000000001,IFERROR(INDEX(Přehled_body!$E$4:$ED$147,MATCH(Tabulka!$AI4,Přehled_body!$A$4:$A$147,0),MATCH(Tabulka!F$2,Přehled_body!$E$2:$ED$2,0)),))) -> 0 | G4: =IF(IFERROR(INDEX(Přehled_body!$E$4:$ED$147,MATCH(Tabulka!$AI4,Přehled_body!$A$4:$A$147,0),MATCH(Tabulka!G$2,Přehled_body!$E$2:$ED$2,0)),)="",,IF(IFERROR(INDEX(Přehled_body!$E$4:$ED$147,MATCH(Tabulka!$AI4,Přehled_body!$A$4:$A$147,0),MATCH(Tabulka!G$2,Přehled_body!$E$2:$ED$2,0)),)=0,0.00000000001,IFERROR(INDEX(Přehled_body!$E$4:$ED$147,MATCH(Tabulka!$AI4,Přehled_body!$A$4:$A$147,0),MATCH(Tabulka!G$2,Přehled_body!$E$2:$ED$2,0)),))) -> 0 | H4: =IF(IFERROR(INDEX(Přehled_body!$E$4:$ED$147,MATCH(Tabulka!$AI4,Přehled_body!$A$4:$A$147,0),MATCH(Tabulka!H$2,Přehled_body!$E$2:$ED$2,0)),)="",,IF(IFERROR(INDEX(Přehled_body!$E$4:$ED$147,MATCH(Tabulka!$AI4,Přehled_body!$A$4:$A$147,0),MATCH(Tabulka!H$2,Přehled_body!$E$2:$ED$2,0)),)=0,0.00000000001,IFERROR(INDEX(Přehled_body!$E$4:$ED$147,MATCH(Tabulka!$AI4,Přehled_body!$A$4:$A$147,0),MATCH(Tabulka!H$2,Přehled_body!$E$2:$ED$2,0)),))) -> 0 | I4: =IF(IFERROR(INDEX(Přehled_body!$E$4:$ED$147,MATCH(Tabulka!$AI4,Přehled_body!$A$4:$A$147,0),MATCH(Tabulka!I$2,Přehled_body!$E$2:$ED$2,0)),)="",,IF(IFERROR(INDEX(Přehled_body!$E$4:$ED$147,MATCH(Tabulka!$AI4,Přehled_body!$A$4:$A$147,0),MATCH(Tabulka!I$2,Přehled_body!$E$2:$ED$2,0)),)=0,0.00000000001,IFERROR(INDEX(Přehled_body!$E$4:$ED$147,MATCH(Tabulka!$AI4,Přehled_body!$A$4:$A$147,0),MATCH(Tabulka!I$2,Přehled_body!$E$2:$ED$2,0)),))) -> 0 | J4: =IF(IFERROR(INDEX(Přehled_body!$E$4:$ED$147,MATCH(Tabulka!$AI4,Přehled_body!$A$4:$A$147,0),MATCH(Tabulka!J$2,Přehled_body!$E$2:$ED$2,0)),)="",,IF(IFERROR(INDEX(Přehled_body!$E$4:$ED$147,MATCH(Tabulka!$AI4,Přehled_body!$A$4:$A$147,0),MATCH(Tabulka!J$2,Přehled_body!$E$2:$ED$2,0)),)=0,0.00000000001,IFERROR(INDEX(Přehled_body!$E$4:$ED$147,MATCH(Tabulka!$AI4,Přehled_body!$A$4:$A$147,0),MATCH(Tabulka!J$2,Přehled_body!$E$2:$ED$2,0)),))) -> 0 | K4: =IF(IFERROR(INDEX(Přehled_body!$E$4:$ED$147,MATCH(Tabulka!$AI4,Přehled_body!$A$4:$A$147,0),MATCH(Tabulka!K$2,Přehled_body!$E$2:$ED$2,0)),)="",,IF(IFERROR(INDEX(Přehled_body!$E$4:$ED$147,MATCH(Tabulka!$AI4,Přehled_body!$A$4:$A$147,0),MATCH(Tabulka!K$2,Přehled_body!$E$2:$ED$2,0)),)=0,0.00000000001,IFERROR(INDEX(Přehled_body!$E$4:$ED$147,MATCH(Tabulka!$AI4,Přehled_body!$A$4:$A$147,0),MATCH(Tabulka!K$2,Přehled_body!$E$2:$ED$2,0)),))) -> 0 | L4: =IF(IFERROR(INDEX(Přehled_body!$E$4:$ED$147,MATCH(Tabulka!$AI4,Přehled_body!$A$4:$A$147,0),MATCH(Tabulka!L$2,Přehled_body!$E$2:$ED$2,0)),)="",,IF(IFERROR(INDEX(Přehled_body!$E$4:$ED$147,MATCH(Tabulka!$AI4,Přehled_body!$A$4:$A$147,0),MATCH(Tabulka!L$2,Přehled_body!$E$2:$ED$2,0)),)=0,0.00000000001,IFERROR(INDEX(Přehled_body!$E$4:$ED$147,MATCH(Tabulka!$AI4,Přehled_body!$A$4:$A$147,0),MATCH(Tabulka!L$2,Přehled_body!$E$2:$ED$2,0)),))) -> 0 | M4: =IF(IFERROR(INDEX(Přehled_body!$E$4:$ED$147,MATCH(Tabulka!$AI4,Přehled_body!$A$4:$A$147,0),MATCH(Tabulka!M$2,Přehled_body!$E$2:$ED$2,0)),)="",,IF(IFERROR(INDEX(Přehled_body!$E$4:$ED$147,MATCH(Tabulka!$AI4,Přehled_body!$A$4:$A$147,0),MATCH(Tabulka!M$2,Přehled_body!$E$2:$ED$2,0)),)=0,0.00000000001,IFERROR(INDEX(Přehled_body!$E$4:$ED$147,MATCH(Tabulka!$AI4,Přehled_body!$A$4:$A$147,0),MATCH(Tabulka!M$2,Přehled_body!$E$2:$ED$2,0)),))) -> 0 | N4: =IF(IFERROR(INDEX(Přehled_body!$E$4:$ED$147,MATCH(Tabulka!$AI4,Přehled_body!$A$4:$A$147,0),MATCH(Tabulka!N$2,Přehled_body!$E$2:$ED$2,0)),)="",,IF(IFERROR(INDEX(Přehled_body!$E$4:$ED$147,MATCH(Tabulka!$AI4,Přehled_body!$A$4:$A$147,0),MATCH(Tabulka!N$2,Přehled_body!$E$2:$ED$2,0)),)=0,0.00000000001,IFERROR(INDEX(Přehled_body!$E$4:$ED$147,MATCH(Tabulka!$AI4,Přehled_body!$A$4:$A$147,0),MATCH(Tabulka!N$2,Přehled_body!$E$2:$ED$2,0)),))) -> 0 | O4: =IF(IFERROR(INDEX(Přehled_body!$E$4:$ED$147,MATCH(Tabulka!$AI4,Přehled_body!$A$4:$A$147,0),MATCH(Tabulka!O$2,Přehled_body!$E$2:$ED$2,0)),)="",,IF(IFERROR(INDEX(Přehled_body!$E$4:$ED$147,MATCH(Tabulka!$AI4,Přehled_body!$A$4:$A$147,0),MATCH(Tabulka!O$2,Přehled_body!$E$2:$ED$2,0)),)=0,0.00000000001,IFERROR(INDEX(Přehled_body!$E$4:$ED$147,MATCH(Tabulka!$AI4,Přehled_body!$A$4:$A$147,0),MATCH(Tabulka!O$2,Přehled_body!$E$2:$ED$2,0)),))) -> 0 | P4: =IF(IFERROR(INDEX(Přehled_body!$E$4:$ED$147,MATCH(Tabulka!$AI4,Přehled_body!$A$4:$A$147,0),MATCH(Tabulka!P$2,Přehled_body!$E$2:$ED$2,0)),)="",,IF(IFERROR(INDEX(Přehled_body!$E$4:$ED$147,MATCH(Tabulka!$AI4,Přehled_body!$A$4:$A$147,0),MATCH(Tabulka!P$2,Přehled_body!$E$2:$ED$2,0)),)=0,0.00000000001,IFERROR(INDEX(Přehled_body!$E$4:$ED$147,MATCH(Tabulka!$AI4,Přehled_body!$A$4:$A$147,0),MATCH(Tabulka!P$2,Přehled_body!$E$2:$ED$2,0)),))) -> 0 | Q4: =IF(IFERROR(INDEX(Přehled_body!$E$4:$ED$147,MATCH(Tabulka!$AI4,Přehled_body!$A$4:$A$147,0),MATCH(Tabulka!Q$2,Přehled_body!$E$2:$ED$2,0)),)="",,IF(IFERROR(INDEX(Přehled_body!$E$4:$ED$147,MATCH(Tabulka!$AI4,Přehled_body!$A$4:$A$147,0),MATCH(Tabulka!Q$2,Přehled_body!$E$2:$ED$2,0)),)=0,0.00000000001,IFERROR(INDEX(Přehled_body!$E$4:$ED$147,MATCH(Tabulka!$AI4,Přehled_body!$A$4:$A$147,0),MATCH(Tabulka!Q$2,Přehled_body!$E$2:$ED$2,0)),))) -> 0 | R4: =IF(IFERROR(INDEX(Přehled_body!$E$4:$ED$147,MATCH(Tabulka!$AI4,Přehled_body!$A$4:$A$147,0),MATCH(Tabulka!R$2,Přehled_body!$E$2:$ED$2,0)),)="",,IF(IFERROR(INDEX(Přehled_body!$E$4:$ED$147,MATCH(Tabulka!$AI4,Přehled_body!$A$4:$A$147,0),MATCH(Tabulka!R$2,Přehled_body!$E$2:$ED$2,0)),)=0,0.00000000001,IFERROR(INDEX(Přehled_body!$E$4:$ED$147,MATCH(Tabulka!$AI4,Přehled_body!$A$4:$A$147,0),MATCH(Tabulka!R$2,Přehled_body!$E$2:$ED$2,0)),))) -> 0 | S4: =IF(IFERROR(INDEX(Přehled_body!$E$4:$ED$147,MATCH(Tabulka!$AI4,Přehled_body!$A$4:$A$147,0),MATCH(Tabulka!S$2,Přehled_body!$E$2:$ED$2,0)),)="",,IF(IFERROR(INDEX(Přehled_body!$E$4:$ED$147,MATCH(Tabulka!$AI4,Přehled_body!$A$4:$A$147,0),MATCH(Tabulka!S$2,Přehled_body!$E$2:$ED$2,0)),)=0,0.00000000001,IFERROR(INDEX(Přehled_body!$E$4:$ED$147,MATCH(Tabulka!$AI4,Přehled_body!$A$4:$A$147,0),MATCH(Tabulka!S$2,Přehled_body!$E$2:$ED$2,0)),))) -> 0 | T4: =IF(IFERROR(INDEX(Přehled_body!$E$4:$ED$147,MATCH(Tabulka!$AI4,Přehled_body!$A$4:$A$147,0),MATCH(Tabulka!T$2,Přehled_body!$E$2:$ED$2,0)),)="",,IF(IFERROR(INDEX(Přehled_body!$E$4:$ED$147,MATCH(Tabulka!$AI4,Přehled_body!$A$4:$A$147,0),MATCH(Tabulka!T$2,Přehled_body!$E$2:$ED$2,0)),)=0,0.00000000001,IFERROR(INDEX(Přehled_body!$E$4:$ED$147,MATCH(Tabulka!$AI4,Přehled_body!$A$4:$A$147,0),MATCH(Tabulka!T$2,Přehled_body!$E$2:$ED$2,0)),))) -> 0 | U4: =IF(IFERROR(INDEX(Přehled_body!$E$4:$ED$147,MATCH(Tabulka!$AI4,Přehled_body!$A$4:$A$147,0),MATCH(Tabulka!U$2,Přehled_body!$E$2:$ED$2,0)),)="",,IF(IFERROR(INDEX(Přehled_body!$E$4:$ED$147,MATCH(Tabulka!$AI4,Přehled_body!$A$4:$A$147,0),MATCH(Tabulka!U$2,Přehled_body!$E$2:$ED$2,0)),)=0,0.00000000001,IFERROR(INDEX(Přehled_body!$E$4:$ED$147,MATCH(Tabulka!$AI4,Přehled_body!$A$4:$A$147,0),MATCH(Tabulka!U$2,Přehled_body!$E$2:$ED$2,0)),))) -> 0 | V4: =IF(IFERROR(INDEX(Přehled_body!$E$4:$ED$147,MATCH(Tabulka!$AI4,Přehled_body!$A$4:$A$147,0),MATCH(Tabulka!V$2,Přehled_body!$E$2:$ED$2,0)),)="",,IF(IFERROR(INDEX(Přehled_body!$E$4:$ED$147,MATCH(Tabulka!$AI4,Přehled_body!$A$4:$A$147,0),MATCH(Tabulka!V$2,Přehled_body!$E$2:$ED$2,0)),)=0,0.00000000001,IFERROR(INDEX(Přehled_body!$E$4:$ED$147,MATCH(Tabulka!$AI4,Přehled_body!$A$4:$A$147,0),MATCH(Tabulka!V$2,Přehled_body!$E$2:$ED$2,0)),))) -> 0 | W4: =IF(IFERROR(INDEX(Přehled_body!$E$4:$ED$147,MATCH(Tabulka!$AI4,Přehled_body!$A$4:$A$147,0),MATCH(Tabulka!W$2,Přehled_body!$E$2:$ED$2,0)),)="",,IF(IFERROR(INDEX(Přehled_body!$E$4:$ED$147,MATCH(Tabulka!$AI4,Přehled_body!$A$4:$A$147,0),MATCH(Tabulka!W$2,Přehled_body!$E$2:$ED$2,0)),)=0,0.00000000001,IFERROR(INDEX(Přehled_body!$E$4:$ED$147,MATCH(Tabulka!$AI4,Přehled_body!$A$4:$A$147,0),MATCH(Tabulka!W$2,Přehled_body!$E$2:$ED$2,0)),))) -> 0 | X4: =IF(IFERROR(INDEX(Přehled_body!$E$4:$ED$147,MATCH(Tabulka!$AI4,Přehled_body!$A$4:$A$147,0),MATCH(Tabulka!X$2,Přehled_body!$E$2:$ED$2,0)),)="",,IF(IFERROR(INDEX(Přehled_body!$E$4:$ED$147,MATCH(Tabulka!$AI4,Přehled_body!$A$4:$A$147,0),MATCH(Tabulka!X$2,Přehled_body!$E$2:$ED$2,0)),)=0,0.00000000001,IFERROR(INDEX(Přehled_body!$E$4:$ED$147,MATCH(Tabulka!$AI4,Přehled_body!$A$4:$A$147,0),MATCH(Tabulka!X$2,Přehled_body!$E$2:$ED$2,0)),))) -> 0 | Y4: =IF(IFERROR(INDEX(Přehled_body!$E$4:$ED$147,MATCH(Tabulka!$AI4,Přehled_body!$A$4:$A$147,0),MATCH(Tabulka!Y$2,Přehled_body!$E$2:$ED$2,0)),)="",,IF(IFERROR(INDEX(Přehled_body!$E$4:$ED$147,MATCH(Tabulka!$AI4,Přehled_body!$A$4:$A$147,0),MATCH(Tabulka!Y$2,Přehled_body!$E$2:$ED$2,0)),)=0,0.00000000001,IFERROR(INDEX(Přehled_body!$E$4:$ED$147,MATCH(Tabulka!$AI4,Přehled_body!$A$4:$A$147,0),MATCH(Tabulka!Y$2,Přehled_body!$E$2:$ED$2,0)),))) -> 0 | Z4: =IF(IFERROR(INDEX(Přehled_body!$E$4:$ED$147,MATCH(Tabulka!$AI4,Přehled_body!$A$4:$A$147,0),MATCH(Tabulka!Z$2,Přehled_body!$E$2:$ED$2,0)),)="",,IF(IFERROR(INDEX(Přehled_body!$E$4:$ED$147,MATCH(Tabulka!$AI4,Přehled_body!$A$4:$A$147,0),MATCH(Tabulka!Z$2,Přehled_body!$E$2:$ED$2,0)),)=0,0.00000000001,IFERROR(INDEX(Přehled_body!$E$4:$ED$147,MATCH(Tabulka!$AI4,Přehled_body!$A$4:$A$147,0),MATCH(Tabulka!Z$2,Přehled_body!$E$2:$ED$2,0)),))) -> 0 | AA4: =IF(IFERROR(INDEX(Přehled_body!$E$4:$ED$147,MATCH(Tabulka!$AI4,Přehled_body!$A$4:$A$147,0),MATCH(Tabulka!AA$2,Přehled_body!$E$2:$ED$2,0)),)="",,IF(IFERROR(INDEX(Přehled_body!$E$4:$ED$147,MATCH(Tabulka!$AI4,Přehled_body!$A$4:$A$147,0),MATCH(Tabulka!AA$2,Přehled_body!$E$2:$ED$2,0)),)=0,0.00000000001,IFERROR(INDEX(Přehled_body!$E$4:$ED$147,MATCH(Tabulka!$AI4,Přehled_body!$A$4:$A$147,0),MATCH(Tabulka!AA$2,Přehled_body!$E$2:$ED$2,0)),))) -> 0 | AB4: =IF(IFERROR(INDEX(Přehled_body!$E$4:$ED$147,MATCH(Tabulka!$AI4,Přehled_body!$A$4:$A$147,0),MATCH(Tabulka!AB$2,Přehled_body!$E$2:$ED$2,0)),)="",,IF(IFERROR(INDEX(Přehled_body!$E$4:$ED$147,MATCH(Tabulka!$AI4,Přehled_body!$A$4:$A$147,0),MATCH(Tabulka!AB$2,Přehled_body!$E$2:$ED$2,0)),)=0,0.00000000001,IFERROR(INDEX(Přehled_body!$E$4:$ED$147,MATCH(Tabulka!$AI4,Přehled_body!$A$4:$A$147,0),MATCH(Tabulka!AB$2,Přehled_body!$E$2:$ED$2,0)),))) -> 0 | AC4: =IF(IFERROR(INDEX(Přehled_body!$E$4:$ED$147,MATCH(Tabulka!$AI4,Přehled_body!$A$4:$A$147,0),MATCH(Tabulka!AC$2,Přehled_body!$E$2:$ED$2,0)),)="",,IF(IFERROR(INDEX(Přehled_body!$E$4:$ED$147,MATCH(Tabulka!$AI4,Přehled_body!$A$4:$A$147,0),MATCH(Tabulka!AC$2,Přehled_body!$E$2:$ED$2,0)),)=0,0.00000000001,IFERROR(INDEX(Přehled_body!$E$4:$ED$147,MATCH(Tabulka!$AI4,Přehled_body!$A$4:$A$147,0),MATCH(Tabulka!AC$2,Přehled_body!$E$2:$ED$2,0)),))) -> 0 | AD4: =IF(IFERROR(INDEX(Přehled_body!$E$4:$ED$147,MATCH(Tabulka!$AI4,Přehled_body!$A$4:$A$147,0),MATCH(Tabulka!AD$2,Přehled_body!$E$2:$ED$2,0)),)="",,IF(IFERROR(INDEX(Přehled_body!$E$4:$ED$147,MATCH(Tabulka!$AI4,Přehled_body!$A$4:$A$147,0),MATCH(Tabulka!AD$2,Přehled_body!$E$2:$ED$2,0)),)=0,0.00000000001,IFERROR(INDEX(Přehled_body!$E$4:$ED$147,MATCH(Tabulka!$AI4,Přehled_body!$A$4:$A$147,0),MATCH(Tabulka!AD$2,Přehled_body!$E$2:$ED$2,0)),))) -> 0 | AE4: =IF(SUM(AG4)<2,-90000+SUM(D4:AD4),SUM(D4:AD4)) -> -89999 | AG4: =COUNTIF(D4:AD4,">0") -> 1 | AH4: =ROUND(SUM(D4:AD4),0) -> 1 | AI4: =CONCATENATE($B$5," ",$B$6,C4) -> Libor HruškaVýhry | AL4: =COUNTIF(D4:AD4,">0") -> 1 | AT4: =T2 -> 
A5: =CONCATENATE(B5," ",B6) -> Libor Hruška | B5: Libor | C5: Prohry | D5: =IF(IFERROR(INDEX(Přehled_body!$E$4:$ED$147,MATCH(Tabulka!$AI5,Přehled_body!$A$4:$A$147,0),MATCH(Tabulka!D$2,Přehled_body!$E$2:$ED$2,0)),)="",,IF(IFERROR(INDEX(Přehled_body!$E$4:$ED$147,MATCH(Tabulka!$AI5,Přehled_body!$A$4:$A$147,0),MATCH(Tabulka!D$2,Přehled_body!$E$2:$ED$2,0)),)=0,0.00000000001,IFERROR(INDEX(Přehled_body!$E$4:$ED$147,MATCH(Tabulka!$AI5,Přehled_body!$A$4:$A$147,0),MATCH(Tabulka!D$2,Přehled_body!$E$2:$ED$2,0)),))) -> 1e-11 | E5: =IF(IFERROR(INDEX(Přehled_body!$E$4:$ED$147,MATCH(Tabulka!$AI5,Přehled_body!$A$4:$A$147,0),MATCH(Tabulka!E$2,Přehled_body!$E$2:$ED$2,0)),)="",,IF(IFERROR(INDEX(Přehled_body!$E$4:$ED$147,MATCH(Tabulka!$AI5,Přehled_body!$A$4:$A$147,0),MATCH(Tabulka!E$2,Přehled_body!$E$2:$ED$2,0)),)=0,0.00000000001,IFERROR(INDEX(Přehled_body!$E$4:$ED$147,MATCH(Tabulka!$AI5,Přehled_body!$A$4:$A$147,0),MATCH(Tabulka!E$2,Přehled_body!$E$2:$ED$2,0)),))) -> 0 | F5: =IF(IFERROR(INDEX(Přehled_body!$E$4:$ED$147,MATCH(Tabulka!$AI5,Přehled_body!$A$4:$A$147,0),MATCH(Tabulka!F$2,Přehled_body!$E$2:$ED$2,0)),)="",,IF(IFERROR(INDEX(Přehled_body!$E$4:$ED$147,MATCH(Tabulka!$AI5,Přehled_body!$A$4:$A$147,0),MATCH(Tabulka!F$2,Přehled_body!$E$2:$ED$2,0)),)=0,0.00000000001,IFERROR(INDEX(Přehled_body!$E$4:$ED$147,MATCH(Tabulka!$AI5,Přehled_body!$A$4:$A$147,0),MATCH(Tabulka!F$2,Přehled_body!$E$2:$ED$2,0)),))) -> 0 | G5: =IF(IFERROR(INDEX(Přehled_body!$E$4:$ED$147,MATCH(Tabulka!$AI5,Přehled_body!$A$4:$A$147,0),MATCH(Tabulka!G$2,Přehled_body!$E$2:$ED$2,0)),)="",,IF(IFERROR(INDEX(Přehled_body!$E$4:$ED$147,MATCH(Tabulka!$AI5,Přehled_body!$A$4:$A$147,0),MATCH(Tabulka!G$2,Přehled_body!$E$2:$ED$2,0)),)=0,0.00000000001,IFERROR(INDEX(Přehled_body!$E$4:$ED$147,MATCH(Tabulka!$AI5,Přehled_body!$A$4:$A$147,0),MATCH(Tabulka!G$2,Přehled_body!$E$2:$ED$2,0)),))) -> 0 | H5: =IF(IFERROR(INDEX(Přehled_body!$E$4:$ED$147,MATCH(Tabulka!$AI5,Přehled_body!$A$4:$A$147,0),MATCH(Tabulka!H$2,Přehled_body!$E$2:$ED$2,0)),)="",,IF(IFERROR(INDEX(Přehled_body!$E$4:$ED$147,MATCH(Tabulka!$AI5,Přehled_body!$A$4:$A$147,0),MATCH(Tabulka!H$2,Přehled_body!$E$2:$ED$2,0)),)=0,0.00000000001,IFERROR(INDEX(Přehled_body!$E$4:$ED$147,MATCH(Tabulka!$AI5,Přehled_body!$A$4:$A$147,0),MATCH(Tabulka!H$2,Přehled_body!$E$2:$ED$2,0)),))) -> 0 | I5: =IF(IFERROR(INDEX(Přehled_body!$E$4:$ED$147,MATCH(Tabulka!$AI5,Přehled_body!$A$4:$A$147,0),MATCH(Tabulka!I$2,Přehled_body!$E$2:$ED$2,0)),)="",,IF(IFERROR(INDEX(Přehled_body!$E$4:$ED$147,MATCH(Tabulka!$AI5,Přehled_body!$A$4:$A$147,0),MATCH(Tabulka!I$2,Přehled_body!$E$2:$ED$2,0)),)=0,0.00000000001,IFERROR(INDEX(Přehled_body!$E$4:$ED$147,MATCH(Tabulka!$AI5,Přehled_body!$A$4:$A$147,0),MATCH(Tabulka!I$2,Přehled_body!$E$2:$ED$2,0)),))) -> 0 | J5: =IF(IFERROR(INDEX(Přehled_body!$E$4:$ED$147,MATCH(Tabulka!$AI5,Přehled_body!$A$4:$A$147,0),MATCH(Tabulka!J$2,Přehled_body!$E$2:$ED$2,0)),)="",,IF(IFERROR(INDEX(Přehled_body!$E$4:$ED$147,MATCH(Tabulka!$AI5,Přehled_body!$A$4:$A$147,0),MATCH(Tabulka!J$2,Přehled_body!$E$2:$ED$2,0)),)=0,0.00000000001,IFERROR(INDEX(Přehled_body!$E$4:$ED$147,MATCH(Tabulka!$AI5,Přehled_body!$A$4:$A$147,0),MATCH(Tabulka!J$2,Přehled_body!$E$2:$ED$2,0)),))) -> 0 | K5: =IF(IFERROR(INDEX(Přehled_body!$E$4:$ED$147,MATCH(Tabulka!$AI5,Přehled_body!$A$4:$A$147,0),MATCH(Tabulka!K$2,Přehled_body!$E$2:$ED$2,0)),)="",,IF(IFERROR(INDEX(Přehled_body!$E$4:$ED$147,MATCH(Tabulka!$AI5,Přehled_body!$A$4:$A$147,0),MATCH(Tabulka!K$2,Přehled_body!$E$2:$ED$2,0)),)=0,0.00000000001,IFERROR(INDEX(Přehled_body!$E$4:$ED$147,MATCH(Tabulka!$AI5,Přehled_body!$A$4:$A$147,0),MATCH(Tabulka!K$2,Přehled_body!$E$2:$ED$2,0)),))) -> 0 | L5: =IF(IFERROR(INDEX(Přehled_body!$E$4:$ED$147,MATCH(Tabulka!$AI5,Přehled_body!$A$4:$A$147,0),MATCH(Tabulka!L$2,Přehled_body!$E$2:$ED$2,0)),)="",,IF(IFERROR(INDEX(Přehled_body!$E$4:$ED$147,MATCH(Tabulka!$AI5,Přehled_body!$A$4:$A$147,0),MATCH(Tabulka!L$2,Přehled_body!$E$2:$ED$2,0)),)=0,0.00000000001,IFERROR(INDEX(Přehled_body!$E$4:$ED$147,MATCH(Tabulka!$AI5,Přehled_body!$A$4:$A$147,0),MATCH(Tabulka!L$2,Přehled_body!$E$2:$ED$2,0)),))) -> 0 | M5: =IF(IFERROR(INDEX(Přehled_body!$E$4:$ED$147,MATCH(Tabulka!$AI5,Přehled_body!$A$4:$A$147,0),MATCH(Tabulka!M$2,Přehled_body!$E$2:$ED$2,0)),)="",,IF(IFERROR(INDEX(Přehled_body!$E$4:$ED$147,MATCH(Tabulka!$AI5,Přehled_body!$A$4:$A$147,0),MATCH(Tabulka!M$2,Přehled_body!$E$2:$ED$2,0)),)=0,0.00000000001,IFERROR(INDEX(Přehled_body!$E$4:$ED$147,MATCH(Tabulka!$AI5,Přehled_body!$A$4:$A$147,0),MATCH(Tabulka!M$2,Přehled_body!$E$2:$ED$2,0)),))) -> 0 | N5: =IF(IFERROR(INDEX(Přehled_body!$E$4:$ED$147,MATCH(Tabulka!$AI5,Přehled_body!$A$4:$A$147,0),MATCH(Tabulka!N$2,Přehled_body!$E$2:$ED$2,0)),)="",,IF(IFERROR(INDEX(Přehled_body!$E$4:$ED$147,MATCH(Tabulka!$AI5,Přehled_body!$A$4:$A$147,0),MATCH(Tabulka!N$2,Přehled_body!$E$2:$ED$2,0)),)=0,0.00000000001,IFERROR(INDEX(Přehled_body!$E$4:$ED$147,MATCH(Tabulka!$AI5,Přehled_body!$A$4:$A$147,0),MATCH(Tabulka!N$2,Přehled_body!$E$2:$ED$2,0)),))) -> 0 | O5: =IF(IFERROR(INDEX(Přehled_body!$E$4:$ED$147,MATCH(Tabulka!$AI5,Přehled_body!$A$4:$A$147,0),MATCH(Tabulka!O$2,Přehled_body!$E$2:$ED$2,0)),)="",,IF(IFERROR(INDEX(Přehled_body!$E$4:$ED$147,MATCH(Tabulka!$AI5,Přehled_body!$A$4:$A$147,0),MATCH(Tabulka!O$2,Přehled_body!$E$2:$ED$2,0)),)=0,0.00000000001,IFERROR(INDEX(Přehled_body!$E$4:$ED$147,MATCH(Tabulka!$AI5,Přehled_body!$A$4:$A$147,0),MATCH(Tabulka!O$2,Přehled_body!$E$2:$ED$2,0)),))) -> 0 | P5: =IF(IFERROR(INDEX(Přehled_body!$E$4:$ED$147,MATCH(Tabulka!$AI5,Přehled_body!$A$4:$A$147,0),MATCH(Tabulka!P$2,Přehled_body!$E$2:$ED$2,0)),)="",,IF(IFERROR(INDEX(Přehled_body!$E$4:$ED$147,MATCH(Tabulka!$AI5,Přehled_body!$A$4:$A$147,0),MATCH(Tabulka!P$2,Přehled_body!$E$2:$ED$2,0)),)=0,0.00000000001,IFERROR(INDEX(Přehled_body!$E$4:$ED$147,MATCH(Tabulka!$AI5,Přehled_body!$A$4:$A$147,0),MATCH(Tabulka!P$2,Přehled_body!$E$2:$ED$2,0)),))) -> 0 | Q5: =IF(IFERROR(INDEX(Přehled_body!$E$4:$ED$147,MATCH(Tabulka!$AI5,Přehled_body!$A$4:$A$147,0),MATCH(Tabulka!Q$2,Přehled_body!$E$2:$ED$2,0)),)="",,IF(IFERROR(INDEX(Přehled_body!$E$4:$ED$147,MATCH(Tabulka!$AI5,Přehled_body!$A$4:$A$147,0),MATCH(Tabulka!Q$2,Přehled_body!$E$2:$ED$2,0)),)=0,0.00000000001,IFERROR(INDEX(Přehled_body!$E$4:$ED$147,MATCH(Tabulka!$AI5,Přehled_body!$A$4:$A$147,0),MATCH(Tabulka!Q$2,Přehled_body!$E$2:$ED$2,0)),))) -> 0 | R5: =IF(IFERROR(INDEX(Přehled_body!$E$4:$ED$147,MATCH(Tabulka!$AI5,Přehled_body!$A$4:$A$147,0),MATCH(Tabulka!R$2,Přehled_body!$E$2:$ED$2,0)),)="",,IF(IFERROR(INDEX(Přehled_body!$E$4:$ED$147,MATCH(Tabulka!$AI5,Přehled_body!$A$4:$A$147,0),MATCH(Tabulka!R$2,Přehled_body!$E$2:$ED$2,0)),)=0,0.00000000001,IFERROR(INDEX(Přehled_body!$E$4:$ED$147,MATCH(Tabulka!$AI5,Přehled_body!$A$4:$A$147,0),MATCH(Tabulka!R$2,Přehled_body!$E$2:$ED$2,0)),))) -> 0 | S5: =IF(IFERROR(INDEX(Přehled_body!$E$4:$ED$147,MATCH(Tabulka!$AI5,Přehled_body!$A$4:$A$147,0),MATCH(Tabulka!S$2,Přehled_body!$E$2:$ED$2,0)),)="",,IF(IFERROR(INDEX(Přehled_body!$E$4:$ED$147,MATCH(Tabulka!$AI5,Přehled_body!$A$4:$A$147,0),MATCH(Tabulka!S$2,Přehled_body!$E$2:$ED$2,0)),)=0,0.00000000001,IFERROR(INDEX(Přehled_body!$E$4:$ED$147,MATCH(Tabulka!$AI5,Přehled_body!$A$4:$A$147,0),MATCH(Tabulka!S$2,Přehled_body!$E$2:$ED$2,0)),))) -> 0 | T5: =IF(IFERROR(INDEX(Přehled_body!$E$4:$ED$147,MATCH(Tabulka!$AI5,Přehled_body!$A$4:$A$147,0),MATCH(Tabulka!T$2,Přehled_body!$E$2:$ED$2,0)),)="",,IF(IFERROR(INDEX(Přehled_body!$E$4:$ED$147,MATCH(Tabulka!$AI5,Přehled_body!$A$4:$A$147,0),MATCH(Tabulka!T$2,Přehled_body!$E$2:$ED$2,0)),)=0,0.00000000001,IFERROR(INDEX(Přehled_body!$E$4:$ED$147,MATCH(Tabulka!$AI5,Přehled_body!$A$4:$A$147,0),MATCH(Tabulka!T$2,Přehled_body!$E$2:$ED$2,0)),))) -> 0 | U5: =IF(IFERROR(INDEX(Přehled_body!$E$4:$ED$147,MATCH(Tabulka!$AI5,Přehled_body!$A$4:$A$147,0),MATCH(Tabulka!U$2,Přehled_body!$E$2:$ED$2,0)),)="",,IF(IFERROR(INDEX(Přehled_body!$E$4:$ED$147,MATCH(Tabulka!$AI5,Přehled_body!$A$4:$A$147,0),MATCH(Tabulka!U$2,Přehled_body!$E$2:$ED$2,0)),)=0,0.00000000001,IFERROR(INDEX(Přehled_body!$E$4:$ED$147,MATCH(Tabulka!$AI5,Přehled_body!$A$4:$A$147,0),MATCH(Tabulka!U$2,Přehled_body!$E$2:$ED$2,0)),))) -> 0 | V5: =IF(IFERROR(INDEX(Přehled_body!$E$4:$ED$147,MATCH(Tabulka!$AI5,Přehled_body!$A$4:$A$147,0),MATCH(Tabulka!V$2,Přehled_body!$E$2:$ED$2,0)),)="",,IF(IFERROR(INDEX(Přehled_body!$E$4:$ED$147,MATCH(Tabulka!$AI5,Přehled_body!$A$4:$A$147,0),MATCH(Tabulka!V$2,Přehled_body!$E$2:$ED$2,0)),)=0,0.00000000001,IFERROR(INDEX(Přehled_body!$E$4:$ED$147,MATCH(Tabulka!$AI5,Přehled_body!$A$4:$A$147,0),MATCH(Tabulka!V$2,Přehled_body!$E$2:$ED$2,0)),))) -> 0 | W5: =IF(IFERROR(INDEX(Přehled_body!$E$4:$ED$147,MATCH(Tabulka!$AI5,Přehled_body!$A$4:$A$147,0),MATCH(Tabulka!W$2,Přehled_body!$E$2:$ED$2,0)),)="",,IF(IFERROR(INDEX(Přehled_body!$E$4:$ED$147,MATCH(Tabulka!$AI5,Přehled_body!$A$4:$A$147,0),MATCH(Tabulka!W$2,Přehled_body!$E$2:$ED$2,0)),)=0,0.00000000001,IFERROR(INDEX(Přehled_body!$E$4:$ED$147,MATCH(Tabulka!$AI5,Přehled_body!$A$4:$A$147,0),MATCH(Tabulka!W$2,Přehled_body!$E$2:$ED$2,0)),))) -> 0 | X5: =IF(IFERROR(INDEX(Přehled_body!$E$4:$ED$147,MATCH(Tabulka!$AI5,Přehled_body!$A$4:$A$147,0),MATCH(Tabulka!X$2,Přehled_body!$E$2:$ED$2,0)),)="",,IF(IFERROR(INDEX(Přehled_body!$E$4:$ED$147,MATCH(Tabulka!$AI5,Přehled_body!$A$4:$A$147,0),MATCH(Tabulka!X$2,Přehled_body!$E$2:$ED$2,0)),)=0,0.00000000001,IFERROR(INDEX(Přehled_body!$E$4:$ED$147,MATCH(Tabulka!$AI5,Přehled_body!$A$4:$A$147,0),MATCH(Tabulka!X$2,Přehled_body!$E$2:$ED$2,0)),))) -> 0 | Y5: =IF(IFERROR(INDEX(Přehled_body!$E$4:$ED$147,MATCH(Tabulka!$AI5,Přehled_body!$A$4:$A$147,0),MATCH(Tabulka!Y$2,Přehled_body!$E$2:$ED$2,0)),)="",,IF(IFERROR(INDEX(Přehled_body!$E$4:$ED$147,MATCH(Tabulka!$AI5,Přehled_body!$A$4:$A$147,0),MATCH(Tabulka!Y$2,Přehled_body!$E$2:$ED$2,0)),)=0,0.00000000001,IFERROR(INDEX(Přehled_body!$E$4:$ED$147,MATCH(Tabulka!$AI5,Přehled_body!$A$4:$A$147,0),MATCH(Tabulka!Y$2,Přehled_body!$E$2:$ED$2,0)),))) -> 0 | Z5: =IF(IFERROR(INDEX(Přehled_body!$E$4:$ED$147,MATCH(Tabulka!$AI5,Přehled_body!$A$4:$A$147,0),MATCH(Tabulka!Z$2,Přehled_body!$E$2:$ED$2,0)),)="",,IF(IFERROR(INDEX(Přehled_body!$E$4:$ED$147,MATCH(Tabulka!$AI5,Přehled_body!$A$4:$A$147,0),MATCH(Tabulka!Z$2,Přehled_body!$E$2:$ED$2,0)),)=0,0.00000000001,IFERROR(INDEX(Přehled_body!$E$4:$ED$147,MATCH(Tabulka!$AI5,Přehled_body!$A$4:$A$147,0),MATCH(Tabulka!Z$2,Přehled_body!$E$2:$ED$2,0)),))) -> 0 | AA5: =IF(IFERROR(INDEX(Přehled_body!$E$4:$ED$147,MATCH(Tabulka!$AI5,Přehled_body!$A$4:$A$147,0),MATCH(Tabulka!AA$2,Přehled_body!$E$2:$ED$2,0)),)="",,IF(IFERROR(INDEX(Přehled_body!$E$4:$ED$147,MATCH(Tabulka!$AI5,Přehled_body!$A$4:$A$147,0),MATCH(Tabulka!AA$2,Přehled_body!$E$2:$ED$2,0)),)=0,0.00000000001,IFERROR(INDEX(Přehled_body!$E$4:$ED$147,MATCH(Tabulka!$AI5,Přehled_body!$A$4:$A$147,0),MATCH(Tabulka!AA$2,Přehled_body!$E$2:$ED$2,0)),))) -> 0 | AB5: =IF(IFERROR(INDEX(Přehled_body!$E$4:$ED$147,MATCH(Tabulka!$AI5,Přehled_body!$A$4:$A$147,0),MATCH(Tabulka!AB$2,Přehled_body!$E$2:$ED$2,0)),)="",,IF(IFERROR(INDEX(Přehled_body!$E$4:$ED$147,MATCH(Tabulka!$AI5,Přehled_body!$A$4:$A$147,0),MATCH(Tabulka!AB$2,Přehled_body!$E$2:$ED$2,0)),)=0,0.00000000001,IFERROR(INDEX(Přehled_body!$E$4:$ED$147,MATCH(Tabulka!$AI5,Přehled_body!$A$4:$A$147,0),MATCH(Tabulka!AB$2,Přehled_body!$E$2:$ED$2,0)),))) -> 0 | AC5: =IF(IFERROR(INDEX(Přehled_body!$E$4:$ED$147,MATCH(Tabulka!$AI5,Přehled_body!$A$4:$A$147,0),MATCH(Tabulka!AC$2,Přehled_body!$E$2:$ED$2,0)),)="",,IF(IFERROR(INDEX(Přehled_body!$E$4:$ED$147,MATCH(Tabulka!$AI5,Přehled_body!$A$4:$A$147,0),MATCH(Tabulka!AC$2,Přehled_body!$E$2:$ED$2,0)),)=0,0.00000000001,IFERROR(INDEX(Přehled_body!$E$4:$ED$147,MATCH(Tabulka!$AI5,Přehled_body!$A$4:$A$147,0),MATCH(Tabulka!AC$2,Přehled_body!$E$2:$ED$2,0)),))) -> 0 | AD5: =IF(IFERROR(INDEX(Přehled_body!$E$4:$ED$147,MATCH(Tabulka!$AI5,Přehled_body!$A$4:$A$147,0),MATCH(Tabulka!AD$2,Přehled_body!$E$2:$ED$2,0)),)="",,IF(IFERROR(INDEX(Přehled_body!$E$4:$ED$147,MATCH(Tabulka!$AI5,Přehled_body!$A$4:$A$147,0),MATCH(Tabulka!AD$2,Přehled_body!$E$2:$ED$2,0)),)=0,0.00000000001,IFERROR(INDEX(Přehled_body!$E$4:$ED$147,MATCH(Tabulka!$AI5,Přehled_body!$A$4:$A$147,0),MATCH(Tabulka!AD$2,Přehled_body!$E$2:$ED$2,0)),))) -> 0 | AE5: =IF(SUM(AG4)<2,-90000+SUM(D5:AD5),SUM(D5:AD5)) -> -90000 | AF5: =ROUND(SUM(AH4-AH5),0) -> 1 | AH5: 0 | AI5: =CONCATENATE($B$5," ",$B$6,C5) -> Libor HruškaProhry | AL5: 1 | AO5: Jiří | AP5: 1 | AQ5: Libor | AR5: Libor
A6: =CONCATENATE(B6," ",B5) -> Hruška Libor | B6: Hruška | C6: Placeno panáků | D6: =IF(IFERROR(INDEX(Přehled_body!$E$4:$ED$147,MATCH(Tabulka!$AI6,Přehled_body!$A$4:$A$147,0),MATCH(Tabulka!D$2,Přehled_body!$E$2:$ED$2,0)),)="",,IF(IFERROR(INDEX(Přehled_body!$E$4:$ED$147,MATCH(Tabulka!$AI6,Přehled_body!$A$4:$A$147,0),MATCH(Tabulka!D$2,Přehled_body!$E$2:$ED$2,0)),)=0,0.00000000001,IFERROR(INDEX(Přehled_body!$E$4:$ED$147,MATCH(Tabulka!$AI6,Přehled_body!$A$4:$A$147,0),MATCH(Tabulka!D$2,Přehled_body!$E$2:$ED$2,0)),))) -> 1e-11 | E6: =IF(IFERROR(INDEX(Přehled_body!$E$4:$ED$147,MATCH(Tabulka!$AI6,Přehled_body!$A$4:$A$147,0),MATCH(Tabulka!E$2,Přehled_body!$E$2:$ED$2,0)),)="",,IF(IFERROR(INDEX(Přehled_body!$E$4:$ED$147,MATCH(Tabulka!$AI6,Přehled_body!$A$4:$A$147,0),MATCH(Tabulka!E$2,Přehled_body!$E$2:$ED$2,0)),)=0,0.00000000001,IFERROR(INDEX(Přehled_body!$E$4:$ED$147,MATCH(Tabulka!$AI6,Přehled_body!$A$4:$A$147,0),MATCH(Tabulka!E$2,Přehled_body!$E$2:$ED$2,0)),))) -> 0 | F6: =IF(IFERROR(INDEX(Přehled_body!$E$4:$ED$147,MATCH(Tabulka!$AI6,Přehled_body!$A$4:$A$147,0),MATCH(Tabulka!F$2,Přehled_body!$E$2:$ED$2,0)),)="",,IF(IFERROR(INDEX(Přehled_body!$E$4:$ED$147,MATCH(Tabulka!$AI6,Přehled_body!$A$4:$A$147,0),MATCH(Tabulka!F$2,Přehled_body!$E$2:$ED$2,0)),)=0,0.00000000001,IFERROR(INDEX(Přehled_body!$E$4:$ED$147,MATCH(Tabulka!$AI6,Přehled_body!$A$4:$A$147,0),MATCH(Tabulka!F$2,Přehled_body!$E$2:$ED$2,0)),))) -> 0 | G6: =IF(IFERROR(INDEX(Přehled_body!$E$4:$ED$147,MATCH(Tabulka!$AI6,Přehled_body!$A$4:$A$147,0),MATCH(Tabulka!G$2,Přehled_body!$E$2:$ED$2,0)),)="",,IF(IFERROR(INDEX(Přehled_body!$E$4:$ED$147,MATCH(Tabulka!$AI6,Přehled_body!$A$4:$A$147,0),MATCH(Tabulka!G$2,Přehled_body!$E$2:$ED$2,0)),)=0,0.00000000001,IFERROR(INDEX(Přehled_body!$E$4:$ED$147,MATCH(Tabulka!$AI6,Přehled_body!$A$4:$A$147,0),MATCH(Tabulka!G$2,Přehled_body!$E$2:$ED$2,0)),))) -> 0 | H6: =IF(IFERROR(INDEX(Přehled_body!$E$4:$ED$147,MATCH(Tabulka!$AI6,Přehled_body!$A$4:$A$147,0),MATCH(Tabulka!H$2,Přehled_body!$E$2:$ED$2,0)),)="",,IF(IFERROR(INDEX(Přehled_body!$E$4:$ED$147,MATCH(Tabulka!$AI6,Přehled_body!$A$4:$A$147,0),MATCH(Tabulka!H$2,Přehled_body!$E$2:$ED$2,0)),)=0,0.00000000001,IFERROR(INDEX(Přehled_body!$E$4:$ED$147,MATCH(Tabulka!$AI6,Přehled_body!$A$4:$A$147,0),MATCH(Tabulka!H$2,Přehled_body!$E$2:$ED$2,0)),))) -> 0 | I6: =IF(IFERROR(INDEX(Přehled_body!$E$4:$ED$147,MATCH(Tabulka!$AI6,Přehled_body!$A$4:$A$147,0),MATCH(Tabulka!I$2,Přehled_body!$E$2:$ED$2,0)),)="",,IF(IFERROR(INDEX(Přehled_body!$E$4:$ED$147,MATCH(Tabulka!$AI6,Přehled_body!$A$4:$A$147,0),MATCH(Tabulka!I$2,Přehled_body!$E$2:$ED$2,0)),)=0,0.00000000001,IFERROR(INDEX(Přehled_body!$E$4:$ED$147,MATCH(Tabulka!$AI6,Přehled_body!$A$4:$A$147,0),MATCH(Tabulka!I$2,Přehled_body!$E$2:$ED$2,0)),))) -> 0 | J6: =IF(IFERROR(INDEX(Přehled_body!$E$4:$ED$147,MATCH(Tabulka!$AI6,Přehled_body!$A$4:$A$147,0),MATCH(Tabulka!J$2,Přehled_body!$E$2:$ED$2,0)),)="",,IF(IFERROR(INDEX(Přehled_body!$E$4:$ED$147,MATCH(Tabulka!$AI6,Přehled_body!$A$4:$A$147,0),MATCH(Tabulka!J$2,Přehled_body!$E$2:$ED$2,0)),)=0,0.00000000001,IFERROR(INDEX(Přehled_body!$E$4:$ED$147,MATCH(Tabulka!$AI6,Přehled_body!$A$4:$A$147,0),MATCH(Tabulka!J$2,Přehled_body!$E$2:$ED$2,0)),))) -> 0 | K6: =IF(IFERROR(INDEX(Přehled_body!$E$4:$ED$147,MATCH(Tabulka!$AI6,Přehled_body!$A$4:$A$147,0),MATCH(Tabulka!K$2,Přehled_body!$E$2:$ED$2,0)),)="",,IF(IFERROR(INDEX(Přehled_body!$E$4:$ED$147,MATCH(Tabulka!$AI6,Přehled_body!$A$4:$A$147,0),MATCH(Tabulka!K$2,Přehled_body!$E$2:$ED$2,0)),)=0,0.00000000001,IFERROR(INDEX(Přehled_body!$E$4:$ED$147,MATCH(Tabulka!$AI6,Přehled_body!$A$4:$A$147,0),MATCH(Tabulka!K$2,Přehled_body!$E$2:$ED$2,0)),))) -> 0 | L6: =IF(IFERROR(INDEX(Přehled_body!$E$4:$ED$147,MATCH(Tabulka!$AI6,Přehled_body!$A$4:$A$147,0),MATCH(Tabulka!L$2,Přehled_body!$E$2:$ED$2,0)),)="",,IF(IFERROR(INDEX(Přehled_body!$E$4:$ED$147,MATCH(Tabulka!$AI6,Přehled_body!$A$4:$A$147,0),MATCH(Tabulka!L$2,Přehled_body!$E$2:$ED$2,0)),)=0,0.00000000001,IFERROR(INDEX(Přehled_body!$E$4:$ED$147,MATCH(Tabulka!$AI6,Přehled_body!$A$4:$A$147,0),MATCH(Tabulka!L$2,Přehled_body!$E$2:$ED$2,0)),))) -> 0 | M6: =IF(IFERROR(INDEX(Přehled_body!$E$4:$ED$147,MATCH(Tabulka!$AI6,Přehled_body!$A$4:$A$147,0),MATCH(Tabulka!M$2,Přehled_body!$E$2:$ED$2,0)),)="",,IF(IFERROR(INDEX(Přehled_body!$E$4:$ED$147,MATCH(Tabulka!$AI6,Přehled_body!$A$4:$A$147,0),MATCH(Tabulka!M$2,Přehled_body!$E$2:$ED$2,0)),)=0,0.00000000001,IFERROR(INDEX(Přehled_body!$E$4:$ED$147,MATCH(Tabulka!$AI6,Přehled_body!$A$4:$A$147,0),MATCH(Tabulka!M$2,Přehled_body!$E$2:$ED$2,0)),))) -> 0 | N6: =IF(IFERROR(INDEX(Přehled_body!$E$4:$ED$147,MATCH(Tabulka!$AI6,Přehled_body!$A$4:$A$147,0),MATCH(Tabulka!N$2,Přehled_body!$E$2:$ED$2,0)),)="",,IF(IFERROR(INDEX(Přehled_body!$E$4:$ED$147,MATCH(Tabulka!$AI6,Přehled_body!$A$4:$A$147,0),MATCH(Tabulka!N$2,Přehled_body!$E$2:$ED$2,0)),)=0,0.00000000001,IFERROR(INDEX(Přehled_body!$E$4:$ED$147,MATCH(Tabulka!$AI6,Přehled_body!$A$4:$A$147,0),MATCH(Tabulka!N$2,Přehled_body!$E$2:$ED$2,0)),))) -> 0 | O6: =IF(IFERROR(INDEX(Přehled_body!$E$4:$ED$147,MATCH(Tabulka!$AI6,Přehled_body!$A$4:$A$147,0),MATCH(Tabulka!O$2,Přehled_body!$E$2:$ED$2,0)),)="",,IF(IFERROR(INDEX(Přehled_body!$E$4:$ED$147,MATCH(Tabulka!$AI6,Přehled_body!$A$4:$A$147,0),MATCH(Tabulka!O$2,Přehled_body!$E$2:$ED$2,0)),)=0,0.00000000001,IFERROR(INDEX(Přehled_body!$E$4:$ED$147,MATCH(Tabulka!$AI6,Přehled_body!$A$4:$A$147,0),MATCH(Tabulka!O$2,Přehled_body!$E$2:$ED$2,0)),))) -> 0 | P6: =IF(IFERROR(INDEX(Přehled_body!$E$4:$ED$147,MATCH(Tabulka!$AI6,Přehled_body!$A$4:$A$147,0),MATCH(Tabulka!P$2,Přehled_body!$E$2:$ED$2,0)),)="",,IF(IFERROR(INDEX(Přehled_body!$E$4:$ED$147,MATCH(Tabulka!$AI6,Přehled_body!$A$4:$A$147,0),MATCH(Tabulka!P$2,Přehled_body!$E$2:$ED$2,0)),)=0,0.00000000001,IFERROR(INDEX(Přehled_body!$E$4:$ED$147,MATCH(Tabulka!$AI6,Přehled_body!$A$4:$A$147,0),MATCH(Tabulka!P$2,Přehled_body!$E$2:$ED$2,0)),))) -> 0 | Q6: =IF(IFERROR(INDEX(Přehled_body!$E$4:$ED$147,MATCH(Tabulka!$AI6,Přehled_body!$A$4:$A$147,0),MATCH(Tabulka!Q$2,Přehled_body!$E$2:$ED$2,0)),)="",,IF(IFERROR(INDEX(Přehled_body!$E$4:$ED$147,MATCH(Tabulka!$AI6,Přehled_body!$A$4:$A$147,0),MATCH(Tabulka!Q$2,Přehled_body!$E$2:$ED$2,0)),)=0,0.00000000001,IFERROR(INDEX(Přehled_body!$E$4:$ED$147,MATCH(Tabulka!$AI6,Přehled_body!$A$4:$A$147,0),MATCH(Tabulka!Q$2,Přehled_body!$E$2:$ED$2,0)),))) -> 0 | R6: =IF(IFERROR(INDEX(Přehled_body!$E$4:$ED$147,MATCH(Tabulka!$AI6,Přehled_body!$A$4:$A$147,0),MATCH(Tabulka!R$2,Přehled_body!$E$2:$ED$2,0)),)="",,IF(IFERROR(INDEX(Přehled_body!$E$4:$ED$147,MATCH(Tabulka!$AI6,Přehled_body!$A$4:$A$147,0),MATCH(Tabulka!R$2,Přehled_body!$E$2:$ED$2,0)),)=0,0.00000000001,IFERROR(INDEX(Přehled_body!$E$4:$ED$147,MATCH(Tabulka!$AI6,Přehled_body!$A$4:$A$147,0),MATCH(Tabulka!R$2,Přehled_body!$E$2:$ED$2,0)),))) -> 0 | S6: =IF(IFERROR(INDEX(Přehled_body!$E$4:$ED$147,MATCH(Tabulka!$AI6,Přehled_body!$A$4:$A$147,0),MATCH(Tabulka!S$2,Přehled_body!$E$2:$ED$2,0)),)="",,IF(IFERROR(INDEX(Přehled_body!$E$4:$ED$147,MATCH(Tabulka!$AI6,Přehled_body!$A$4:$A$147,0),MATCH(Tabulka!S$2,Přehled_body!$E$2:$ED$2,0)),)=0,0.00000000001,IFERROR(INDEX(Přehled_body!$E$4:$ED$147,MATCH(Tabulka!$AI6,Přehled_body!$A$4:$A$147,0),MATCH(Tabulka!S$2,Přehled_body!$E$2:$ED$2,0)),))) -> 0 | T6: =IF(IFERROR(INDEX(Přehled_body!$E$4:$ED$147,MATCH(Tabulka!$AI6,Přehled_body!$A$4:$A$147,0),MATCH(Tabulka!T$2,Přehled_body!$E$2:$ED$2,0)),)="",,IF(IFERROR(INDEX(Přehled_body!$E$4:$ED$147,MATCH(Tabulka!$AI6,Přehled_body!$A$4:$A$147,0),MATCH(Tabulka!T$2,Přehled_body!$E$2:$ED$2,0)),)=0,0.00000000001,IFERROR(INDEX(Přehled_body!$E$4:$ED$147,MATCH(Tabulka!$AI6,Přehled_body!$A$4:$A$147,0),MATCH(Tabulka!T$2,Přehled_body!$E$2:$ED$2,0)),))) -> 0 | U6: =IF(IFERROR(INDEX(Přehled_body!$E$4:$ED$147,MATCH(Tabulka!$AI6,Přehled_body!$A$4:$A$147,0),MATCH(Tabulka!U$2,Přehled_body!$E$2:$ED$2,0)),)="",,IF(IFERROR(INDEX(Přehled_body!$E$4:$ED$147,MATCH(Tabulka!$AI6,Přehled_body!$A$4:$A$147,0),MATCH(Tabulka!U$2,Přehled_body!$E$2:$ED$2,0)),)=0,0.00000000001,IFERROR(INDEX(Přehled_body!$E$4:$ED$147,MATCH(Tabulka!$AI6,Přehled_body!$A$4:$A$147,0),MATCH(Tabulka!U$2,Přehled_body!$E$2:$ED$2,0)),))) -> 0 | V6: =IF(IFERROR(INDEX(Přehled_body!$E$4:$ED$147,MATCH(Tabulka!$AI6,Přehled_body!$A$4:$A$147,0),MATCH(Tabulka!V$2,Přehled_body!$E$2:$ED$2,0)),)="",,IF(IFERROR(INDEX(Přehled_body!$E$4:$ED$147,MATCH(Tabulka!$AI6,Přehled_body!$A$4:$A$147,0),MATCH(Tabulka!V$2,Přehled_body!$E$2:$ED$2,0)),)=0,0.00000000001,IFERROR(INDEX(Přehled_body!$E$4:$ED$147,MATCH(Tabulka!$AI6,Přehled_body!$A$4:$A$147,0),MATCH(Tabulka!V$2,Přehled_body!$E$2:$ED$2,0)),))) -> 0 | W6: =IF(IFERROR(INDEX(Přehled_body!$E$4:$ED$147,MATCH(Tabulka!$AI6,Přehled_body!$A$4:$A$147,0),MATCH(Tabulka!W$2,Přehled_body!$E$2:$ED$2,0)),)="",,IF(IFERROR(INDEX(Přehled_body!$E$4:$ED$147,MATCH(Tabulka!$AI6,Přehled_body!$A$4:$A$147,0),MATCH(Tabulka!W$2,Přehled_body!$E$2:$ED$2,0)),)=0,0.00000000001,IFERROR(INDEX(Přehled_body!$E$4:$ED$147,MATCH(Tabulka!$AI6,Přehled_body!$A$4:$A$147,0),MATCH(Tabulka!W$2,Přehled_body!$E$2:$ED$2,0)),))) -> 0 | X6: =IF(IFERROR(INDEX(Přehled_body!$E$4:$ED$147,MATCH(Tabulka!$AI6,Přehled_body!$A$4:$A$147,0),MATCH(Tabulka!X$2,Přehled_body!$E$2:$ED$2,0)),)="",,IF(IFERROR(INDEX(Přehled_body!$E$4:$ED$147,MATCH(Tabulka!$AI6,Přehled_body!$A$4:$A$147,0),MATCH(Tabulka!X$2,Přehled_body!$E$2:$ED$2,0)),)=0,0.00000000001,IFERROR(INDEX(Přehled_body!$E$4:$ED$147,MATCH(Tabulka!$AI6,Přehled_body!$A$4:$A$147,0),MATCH(Tabulka!X$2,Přehled_body!$E$2:$ED$2,0)),))) -> 0 | Y6: =IF(IFERROR(INDEX(Přehled_body!$E$4:$ED$147,MATCH(Tabulka!$AI6,Přehled_body!$A$4:$A$147,0),MATCH(Tabulka!Y$2,Přehled_body!$E$2:$ED$2,0)),)="",,IF(IFERROR(INDEX(Přehled_body!$E$4:$ED$147,MATCH(Tabulka!$AI6,Přehled_body!$A$4:$A$147,0),MATCH(Tabulka!Y$2,Přehled_body!$E$2:$ED$2,0)),)=0,0.00000000001,IFERROR(INDEX(Přehled_body!$E$4:$ED$147,MATCH(Tabulka!$AI6,Přehled_body!$A$4:$A$147,0),MATCH(Tabulka!Y$2,Přehled_body!$E$2:$ED$2,0)),))) -> 0 | Z6: =IF(IFERROR(INDEX(Přehled_body!$E$4:$ED$147,MATCH(Tabulka!$AI6,Přehled_body!$A$4:$A$147,0),MATCH(Tabulka!Z$2,Přehled_body!$E$2:$ED$2,0)),)="",,IF(IFERROR(INDEX(Přehled_body!$E$4:$ED$147,MATCH(Tabulka!$AI6,Přehled_body!$A$4:$A$147,0),MATCH(Tabulka!Z$2,Přehled_body!$E$2:$ED$2,0)),)=0,0.00000000001,IFERROR(INDEX(Přehled_body!$E$4:$ED$147,MATCH(Tabulka!$AI6,Přehled_body!$A$4:$A$147,0),MATCH(Tabulka!Z$2,Přehled_body!$E$2:$ED$2,0)),))) -> 0 | AA6: =IF(IFERROR(INDEX(Přehled_body!$E$4:$ED$147,MATCH(Tabulka!$AI6,Přehled_body!$A$4:$A$147,0),MATCH(Tabulka!AA$2,Přehled_body!$E$2:$ED$2,0)),)="",,IF(IFERROR(INDEX(Přehled_body!$E$4:$ED$147,MATCH(Tabulka!$AI6,Přehled_body!$A$4:$A$147,0),MATCH(Tabulka!AA$2,Přehled_body!$E$2:$ED$2,0)),)=0,0.00000000001,IFERROR(INDEX(Přehled_body!$E$4:$ED$147,MATCH(Tabulka!$AI6,Přehled_body!$A$4:$A$147,0),MATCH(Tabulka!AA$2,Přehled_body!$E$2:$ED$2,0)),))) -> 0 | AB6: =IF(IFERROR(INDEX(Přehled_body!$E$4:$ED$147,MATCH(Tabulka!$AI6,Přehled_body!$A$4:$A$147,0),MATCH(Tabulka!AB$2,Přehled_body!$E$2:$ED$2,0)),)="",,IF(IFERROR(INDEX(Přehled_body!$E$4:$ED$147,MATCH(Tabulka!$AI6,Přehled_body!$A$4:$A$147,0),MATCH(Tabulka!AB$2,Přehled_body!$E$2:$ED$2,0)),)=0,0.00000000001,IFERROR(INDEX(Přehled_body!$E$4:$ED$147,MATCH(Tabulka!$AI6,Přehled_body!$A$4:$A$147,0),MATCH(Tabulka!AB$2,Přehled_body!$E$2:$ED$2,0)),))) -> 0 | AC6: =IF(IFERROR(INDEX(Přehled_body!$E$4:$ED$147,MATCH(Tabulka!$AI6,Přehled_body!$A$4:$A$147,0),MATCH(Tabulka!AC$2,Přehled_body!$E$2:$ED$2,0)),)="",,IF(IFERROR(INDEX(Přehled_body!$E$4:$ED$147,MATCH(Tabulka!$AI6,Přehled_body!$A$4:$A$147,0),MATCH(Tabulka!AC$2,Přehled_body!$E$2:$ED$2,0)),)=0,0.00000000001,IFERROR(INDEX(Přehled_body!$E$4:$ED$147,MATCH(Tabulka!$AI6,Přehled_body!$A$4:$A$147,0),MATCH(Tabulka!AC$2,Přehled_body!$E$2:$ED$2,0)),))) -> 0 | AD6: =IF(IFERROR(INDEX(Přehled_body!$E$4:$ED$147,MATCH(Tabulka!$AI6,Přehled_body!$A$4:$A$147,0),MATCH(Tabulka!AD$2,Přehled_body!$E$2:$ED$2,0)),)="",,IF(IFERROR(INDEX(Přehled_body!$E$4:$ED$147,MATCH(Tabulka!$AI6,Přehled_body!$A$4:$A$147,0),MATCH(Tabulka!AD$2,Přehled_body!$E$2:$ED$2,0)),)=0,0.00000000001,IFERROR(INDEX(Přehled_body!$E$4:$ED$147,MATCH(Tabulka!$AI6,Přehled_body!$A$4:$A$147,0),MATCH(Tabulka!AD$2,Přehled_body!$E$2:$ED$2,0)),))) -> 0 | AE6: =IF(SUM(AG4)<2,-90000+SUM(D6:AD6),SUM(D6:AD6)) -> -90000 | AH6: 0 | AI6: =CONCATENATE($B$5," ",$B$6,C6) -> Libor HruškaPlaceno panáků | AL6: 1 | AO6: Fiala | AP6: =CONCATENATE(AQ6," ",AQ7) -> Hruška | AQ6: Hruška | AR6: Hruška
A7: Libor | C7: Přehozy | D7: =IF(IFERROR(INDEX(Přehled_body!$E$4:$ED$147,MATCH(Tabulka!$AI7,Přehled_body!$A$4:$A$147,0),MATCH(Tabulka!D$2,Přehled_body!$E$2:$ED$2,0)),)="",,IF(IFERROR(INDEX(Přehled_body!$E$4:$ED$147,MATCH(Tabulka!$AI7,Přehled_body!$A$4:$A$147,0),MATCH(Tabulka!D$2,Přehled_body!$E$2:$ED$2,0)),)=0,0.00000000001,IFERROR(INDEX(Přehled_body!$E$4:$ED$147,MATCH(Tabulka!$AI7,Přehled_body!$A$4:$A$147,0),MATCH(Tabulka!D$2,Přehled_body!$E$2:$ED$2,0)),))) -> 1e-11 | E7: =IF(IFERROR(INDEX(Přehled_body!$E$4:$ED$147,MATCH(Tabulka!$AI7,Přehled_body!$A$4:$A$147,0),MATCH(Tabulka!E$2,Přehled_body!$E$2:$ED$2,0)),)="",,IF(IFERROR(INDEX(Přehled_body!$E$4:$ED$147,MATCH(Tabulka!$AI7,Přehled_body!$A$4:$A$147,0),MATCH(Tabulka!E$2,Přehled_body!$E$2:$ED$2,0)),)=0,0.00000000001,IFERROR(INDEX(Přehled_body!$E$4:$ED$147,MATCH(Tabulka!$AI7,Přehled_body!$A$4:$A$147,0),MATCH(Tabulka!E$2,Přehled_body!$E$2:$ED$2,0)),))) -> 0 | F7: =IF(IFERROR(INDEX(Přehled_body!$E$4:$ED$147,MATCH(Tabulka!$AI7,Přehled_body!$A$4:$A$147,0),MATCH(Tabulka!F$2,Přehled_body!$E$2:$ED$2,0)),)="",,IF(IFERROR(INDEX(Přehled_body!$E$4:$ED$147,MATCH(Tabulka!$AI7,Přehled_body!$A$4:$A$147,0),MATCH(Tabulka!F$2,Přehled_body!$E$2:$ED$2,0)),)=0,0.00000000001,IFERROR(INDEX(Přehled_body!$E$4:$ED$147,MATCH(Tabulka!$AI7,Přehled_body!$A$4:$A$147,0),MATCH(Tabulka!F$2,Přehled_body!$E$2:$ED$2,0)),))) -> 0 | G7: =IF(IFERROR(INDEX(Přehled_body!$E$4:$ED$147,MATCH(Tabulka!$AI7,Přehled_body!$A$4:$A$147,0),MATCH(Tabulka!G$2,Přehled_body!$E$2:$ED$2,0)),)="",,IF(IFERROR(INDEX(Přehled_body!$E$4:$ED$147,MATCH(Tabulka!$AI7,Přehled_body!$A$4:$A$147,0),MATCH(Tabulka!G$2,Přehled_body!$E$2:$ED$2,0)),)=0,0.00000000001,IFERROR(INDEX(Přehled_body!$E$4:$ED$147,MATCH(Tabulka!$AI7,Přehled_body!$A$4:$A$147,0),MATCH(Tabulka!G$2,Přehled_body!$E$2:$ED$2,0)),))) -> 0 | H7: =IF(IFERROR(INDEX(Přehled_body!$E$4:$ED$147,MATCH(Tabulka!$AI7,Přehled_body!$A$4:$A$147,0),MATCH(Tabulka!H$2,Přehled_body!$E$2:$ED$2,0)),)="",,IF(IFERROR(INDEX(Přehled_body!$E$4:$ED$147,MATCH(Tabulka!$AI7,Přehled_body!$A$4:$A$147,0),MATCH(Tabulka!H$2,Přehled_body!$E$2:$ED$2,0)),)=0,0.00000000001,IFERROR(INDEX(Přehled_body!$E$4:$ED$147,MATCH(Tabulka!$AI7,Přehled_body!$A$4:$A$147,0),MATCH(Tabulka!H$2,Přehled_body!$E$2:$ED$2,0)),))) -> 0 | I7: =IF(IFERROR(INDEX(Přehled_body!$E$4:$ED$147,MATCH(Tabulka!$AI7,Přehled_body!$A$4:$A$147,0),MATCH(Tabulka!I$2,Přehled_body!$E$2:$ED$2,0)),)="",,IF(IFERROR(INDEX(Přehled_body!$E$4:$ED$147,MATCH(Tabulka!$AI7,Přehled_body!$A$4:$A$147,0),MATCH(Tabulka!I$2,Přehled_body!$E$2:$ED$2,0)),)=0,0.00000000001,IFERROR(INDEX(Přehled_body!$E$4:$ED$147,MATCH(Tabulka!$AI7,Přehled_body!$A$4:$A$147,0),MATCH(Tabulka!I$2,Přehled_body!$E$2:$ED$2,0)),))) -> 0 | J7: =IF(IFERROR(INDEX(Přehled_body!$E$4:$ED$147,MATCH(Tabulka!$AI7,Přehled_body!$A$4:$A$147,0),MATCH(Tabulka!J$2,Přehled_body!$E$2:$ED$2,0)),)="",,IF(IFERROR(INDEX(Přehled_body!$E$4:$ED$147,MATCH(Tabulka!$AI7,Přehled_body!$A$4:$A$147,0),MATCH(Tabulka!J$2,Přehled_body!$E$2:$ED$2,0)),)=0,0.00000000001,IFERROR(INDEX(Přehled_body!$E$4:$ED$147,MATCH(Tabulka!$AI7,Přehled_body!$A$4:$A$147,0),MATCH(Tabulka!J$2,Přehled_body!$E$2:$ED$2,0)),))) -> 0 | K7: =IF(IFERROR(INDEX(Přehled_body!$E$4:$ED$147,MATCH(Tabulka!$AI7,Přehled_body!$A$4:$A$147,0),MATCH(Tabulka!K$2,Přehled_body!$E$2:$ED$2,0)),)="",,IF(IFERROR(INDEX(Přehled_body!$E$4:$ED$147,MATCH(Tabulka!$AI7,Přehled_body!$A$4:$A$147,0),MATCH(Tabulka!K$2,Přehled_body!$E$2:$ED$2,0)),)=0,0.00000000001,IFERROR(INDEX(Přehled_body!$E$4:$ED$147,MATCH(Tabulka!$AI7,Přehled_body!$A$4:$A$147,0),MATCH(Tabulka!K$2,Přehled_body!$E$2:$ED$2,0)),))) -> 0 | L7: =IF(IFERROR(INDEX(Přehled_body!$E$4:$ED$147,MATCH(Tabulka!$AI7,Přehled_body!$A$4:$A$147,0),MATCH(Tabulka!L$2,Přehled_body!$E$2:$ED$2,0)),)="",,IF(IFERROR(INDEX(Přehled_body!$E$4:$ED$147,MATCH(Tabulka!$AI7,Přehled_body!$A$4:$A$147,0),MATCH(Tabulka!L$2,Přehled_body!$E$2:$ED$2,0)),)=0,0.00000000001,IFERROR(INDEX(Přehled_body!$E$4:$ED$147,MATCH(Tabulka!$AI7,Přehled_body!$A$4:$A$147,0),MATCH(Tabulka!L$2,Přehled_body!$E$2:$ED$2,0)),))) -> 0 | M7: =IF(IFERROR(INDEX(Přehled_body!$E$4:$ED$147,MATCH(Tabulka!$AI7,Přehled_body!$A$4:$A$147,0),MATCH(Tabulka!M$2,Přehled_body!$E$2:$ED$2,0)),)="",,IF(IFERROR(INDEX(Přehled_body!$E$4:$ED$147,MATCH(Tabulka!$AI7,Přehled_body!$A$4:$A$147,0),MATCH(Tabulka!M$2,Přehled_body!$E$2:$ED$2,0)),)=0,0.00000000001,IFERROR(INDEX(Přehled_body!$E$4:$ED$147,MATCH(Tabulka!$AI7,Přehled_body!$A$4:$A$147,0),MATCH(Tabulka!M$2,Přehled_body!$E$2:$ED$2,0)),))) -> 0 | N7: =IF(IFERROR(INDEX(Přehled_body!$E$4:$ED$147,MATCH(Tabulka!$AI7,Přehled_body!$A$4:$A$147,0),MATCH(Tabulka!N$2,Přehled_body!$E$2:$ED$2,0)),)="",,IF(IFERROR(INDEX(Přehled_body!$E$4:$ED$147,MATCH(Tabulka!$AI7,Přehled_body!$A$4:$A$147,0),MATCH(Tabulka!N$2,Přehled_body!$E$2:$ED$2,0)),)=0,0.00000000001,IFERROR(INDEX(Přehled_body!$E$4:$ED$147,MATCH(Tabulka!$AI7,Přehled_body!$A$4:$A$147,0),MATCH(Tabulka!N$2,Přehled_body!$E$2:$ED$2,0)),))) -> 0 | O7: =IF(IFERROR(INDEX(Přehled_body!$E$4:$ED$147,MATCH(Tabulka!$AI7,Přehled_body!$A$4:$A$147,0),MATCH(Tabulka!O$2,Přehled_body!$E$2:$ED$2,0)),)="",,IF(IFERROR(INDEX(Přehled_body!$E$4:$ED$147,MATCH(Tabulka!$AI7,Přehled_body!$A$4:$A$147,0),MATCH(Tabulka!O$2,Přehled_body!$E$2:$ED$2,0)),)=0,0.00000000001,IFERROR(INDEX(Přehled_body!$E$4:$ED$147,MATCH(Tabulka!$AI7,Přehled_body!$A$4:$A$147,0),MATCH(Tabulka!O$2,Přehled_body!$E$2:$ED$2,0)),))) -> 0 | P7: =IF(IFERROR(INDEX(Přehled_body!$E$4:$ED$147,MATCH(Tabulka!$AI7,Přehled_body!$A$4:$A$147,0),MATCH(Tabulka!P$2,Přehled_body!$E$2:$ED$2,0)),)="",,IF(IFERROR(INDEX(Přehled_body!$E$4:$ED$147,MATCH(Tabulka!$AI7,Přehled_body!$A$4:$A$147,0),MATCH(Tabulka!P$2,Přehled_body!$E$2:$ED$2,0)),)=0,0.00000000001,IFERROR(INDEX(Přehled_body!$E$4:$ED$147,MATCH(Tabulka!$AI7,Přehled_body!$A$4:$A$147,0),MATCH(Tabulka!P$2,Přehled_body!$E$2:$ED$2,0)),))) -> 0 | Q7: =IF(IFERROR(INDEX(Přehled_body!$E$4:$ED$147,MATCH(Tabulka!$AI7,Přehled_body!$A$4:$A$147,0),MATCH(Tabulka!Q$2,Přehled_body!$E$2:$ED$2,0)),)="",,IF(IFERROR(INDEX(Přehled_body!$E$4:$ED$147,MATCH(Tabulka!$AI7,Přehled_body!$A$4:$A$147,0),MATCH(Tabulka!Q$2,Přehled_body!$E$2:$ED$2,0)),)=0,0.00000000001,IFERROR(INDEX(Přehled_body!$E$4:$ED$147,MATCH(Tabulka!$AI7,Přehled_body!$A$4:$A$147,0),MATCH(Tabulka!Q$2,Přehled_body!$E$2:$ED$2,0)),))) -> 0 | R7: =IF(IFERROR(INDEX(Přehled_body!$E$4:$ED$147,MATCH(Tabulka!$AI7,Přehled_body!$A$4:$A$147,0),MATCH(Tabulka!R$2,Přehled_body!$E$2:$ED$2,0)),)="",,IF(IFERROR(INDEX(Přehled_body!$E$4:$ED$147,MATCH(Tabulka!$AI7,Přehled_body!$A$4:$A$147,0),MATCH(Tabulka!R$2,Přehled_body!$E$2:$ED$2,0)),)=0,0.00000000001,IFERROR(INDEX(Přehled_body!$E$4:$ED$147,MATCH(Tabulka!$AI7,Přehled_body!$A$4:$A$147,0),MATCH(Tabulka!R$2,Přehled_body!$E$2:$ED$2,0)),))) -> 0 | S7: =IF(IFERROR(INDEX(Přehled_body!$E$4:$ED$147,MATCH(Tabulka!$AI7,Přehled_body!$A$4:$A$147,0),MATCH(Tabulka!S$2,Přehled_body!$E$2:$ED$2,0)),)="",,IF(IFERROR(INDEX(Přehled_body!$E$4:$ED$147,MATCH(Tabulka!$AI7,Přehled_body!$A$4:$A$147,0),MATCH(Tabulka!S$2,Přehled_body!$E$2:$ED$2,0)),)=0,0.00000000001,IFERROR(INDEX(Přehled_body!$E$4:$ED$147,MATCH(Tabulka!$AI7,Přehled_body!$A$4:$A$147,0),MATCH(Tabulka!S$2,Přehled_body!$E$2:$ED$2,0)),))) -> 0 | T7: =IF(IFERROR(INDEX(Přehled_body!$E$4:$ED$147,MATCH(Tabulka!$AI7,Přehled_body!$A$4:$A$147,0),MATCH(Tabulka!T$2,Přehled_body!$E$2:$ED$2,0)),)="",,IF(IFERROR(INDEX(Přehled_body!$E$4:$ED$147,MATCH(Tabulka!$AI7,Přehled_body!$A$4:$A$147,0),MATCH(Tabulka!T$2,Přehled_body!$E$2:$ED$2,0)),)=0,0.00000000001,IFERROR(INDEX(Přehled_body!$E$4:$ED$147,MATCH(Tabulka!$AI7,Přehled_body!$A$4:$A$147,0),MATCH(Tabulka!T$2,Přehled_body!$E$2:$ED$2,0)),))) -> 0 | U7: =IF(IFERROR(INDEX(Přehled_body!$E$4:$ED$147,MATCH(Tabulka!$AI7,Přehled_body!$A$4:$A$147,0),MATCH(Tabulka!U$2,Přehled_body!$E$2:$ED$2,0)),)="",,IF(IFERROR(INDEX(Přehled_body!$E$4:$ED$147,MATCH(Tabulka!$AI7,Přehled_body!$A$4:$A$147,0),MATCH(Tabulka!U$2,Přehled_body!$E$2:$ED$2,0)),)=0,0.00000000001,IFERROR(INDEX(Přehled_body!$E$4:$ED$147,MATCH(Tabulka!$AI7,Přehled_body!$A$4:$A$147,0),MATCH(Tabulka!U$2,Přehled_body!$E$2:$ED$2,0)),))) -> 0 | V7: =IF(IFERROR(INDEX(Přehled_body!$E$4:$ED$147,MATCH(Tabulka!$AI7,Přehled_body!$A$4:$A$147,0),MATCH(Tabulka!V$2,Přehled_body!$E$2:$ED$2,0)),)="",,IF(IFERROR(INDEX(Přehled_body!$E$4:$ED$147,MATCH(Tabulka!$AI7,Přehled_body!$A$4:$A$147,0),MATCH(Tabulka!V$2,Přehled_body!$E$2:$ED$2,0)),)=0,0.00000000001,IFERROR(INDEX(Přehled_body!$E$4:$ED$147,MATCH(Tabulka!$AI7,Přehled_body!$A$4:$A$147,0),MATCH(Tabulka!V$2,Přehled_body!$E$2:$ED$2,0)),))) -> 0 | W7: =IF(IFERROR(INDEX(Přehled_body!$E$4:$ED$147,MATCH(Tabulka!$AI7,Přehled_body!$A$4:$A$147,0),MATCH(Tabulka!W$2,Přehled_body!$E$2:$ED$2,0)),)="",,IF(IFERROR(INDEX(Přehled_body!$E$4:$ED$147,MATCH(Tabulka!$AI7,Přehled_body!$A$4:$A$147,0),MATCH(Tabulka!W$2,Přehled_body!$E$2:$ED$2,0)),)=0,0.00000000001,IFERROR(INDEX(Přehled_body!$E$4:$ED$147,MATCH(Tabulka!$AI7,Přehled_body!$A$4:$A$147,0),MATCH(Tabulka!W$2,Přehled_body!$E$2:$ED$2,0)),))) -> 0 | X7: =IF(IFERROR(INDEX(Přehled_body!$E$4:$ED$147,MATCH(Tabulka!$AI7,Přehled_body!$A$4:$A$147,0),MATCH(Tabulka!X$2,Přehled_body!$E$2:$ED$2,0)),)="",,IF(IFERROR(INDEX(Přehled_body!$E$4:$ED$147,MATCH(Tabulka!$AI7,Přehled_body!$A$4:$A$147,0),MATCH(Tabulka!X$2,Přehled_body!$E$2:$ED$2,0)),)=0,0.00000000001,IFERROR(INDEX(Přehled_body!$E$4:$ED$147,MATCH(Tabulka!$AI7,Přehled_body!$A$4:$A$147,0),MATCH(Tabulka!X$2,Přehled_body!$E$2:$ED$2,0)),))) -> 0 | Y7: =IF(IFERROR(INDEX(Přehled_body!$E$4:$ED$147,MATCH(Tabulka!$AI7,Přehled_body!$A$4:$A$147,0),MATCH(Tabulka!Y$2,Přehled_body!$E$2:$ED$2,0)),)="",,IF(IFERROR(INDEX(Přehled_body!$E$4:$ED$147,MATCH(Tabulka!$AI7,Přehled_body!$A$4:$A$147,0),MATCH(Tabulka!Y$2,Přehled_body!$E$2:$ED$2,0)),)=0,0.00000000001,IFERROR(INDEX(Přehled_body!$E$4:$ED$147,MATCH(Tabulka!$AI7,Přehled_body!$A$4:$A$147,0),MATCH(Tabulka!Y$2,Přehled_body!$E$2:$ED$2,0)),))) -> 0 | Z7: =IF(IFERROR(INDEX(Přehled_body!$E$4:$ED$147,MATCH(Tabulka!$AI7,Přehled_body!$A$4:$A$147,0),MATCH(Tabulka!Z$2,Přehled_body!$E$2:$ED$2,0)),)="",,IF(IFERROR(INDEX(Přehled_body!$E$4:$ED$147,MATCH(Tabulka!$AI7,Přehled_body!$A$4:$A$147,0),MATCH(Tabulka!Z$2,Přehled_body!$E$2:$ED$2,0)),)=0,0.00000000001,IFERROR(INDEX(Přehled_body!$E$4:$ED$147,MATCH(Tabulka!$AI7,Přehled_body!$A$4:$A$147,0),MATCH(Tabulka!Z$2,Přehled_body!$E$2:$ED$2,0)),))) -> 0 | AA7: =IF(IFERROR(INDEX(Přehled_body!$E$4:$ED$147,MATCH(Tabulka!$AI7,Přehled_body!$A$4:$A$147,0),MATCH(Tabulka!AA$2,Přehled_body!$E$2:$ED$2,0)),)="",,IF(IFERROR(INDEX(Přehled_body!$E$4:$ED$147,MATCH(Tabulka!$AI7,Přehled_body!$A$4:$A$147,0),MATCH(Tabulka!AA$2,Přehled_body!$E$2:$ED$2,0)),)=0,0.00000000001,IFERROR(INDEX(Přehled_body!$E$4:$ED$147,MATCH(Tabulka!$AI7,Přehled_body!$A$4:$A$147,0),MATCH(Tabulka!AA$2,Přehled_body!$E$2:$ED$2,0)),))) -> 0 | AB7: =IF(IFERROR(INDEX(Přehled_body!$E$4:$ED$147,MATCH(Tabulka!$AI7,Přehled_body!$A$4:$A$147,0),MATCH(Tabulka!AB$2,Přehled_body!$E$2:$ED$2,0)),)="",,IF(IFERROR(INDEX(Přehled_body!$E$4:$ED$147,MATCH(Tabulka!$AI7,Přehled_body!$A$4:$A$147,0),MATCH(Tabulka!AB$2,Přehled_body!$E$2:$ED$2,0)),)=0,0.00000000001,IFERROR(INDEX(Přehled_body!$E$4:$ED$147,MATCH(Tabulka!$AI7,Přehled_body!$A$4:$A$147,0),MATCH(Tabulka!AB$2,Přehled_body!$E$2:$ED$2,0)),))) -> 0 | AC7: =IF(IFERROR(INDEX(Přehled_body!$E$4:$ED$147,MATCH(Tabulka!$AI7,Přehled_body!$A$4:$A$147,0),MATCH(Tabulka!AC$2,Přehled_body!$E$2:$ED$2,0)),)="",,IF(IFERROR(INDEX(Přehled_body!$E$4:$ED$147,MATCH(Tabulka!$AI7,Přehled_body!$A$4:$A$147,0),MATCH(Tabulka!AC$2,Přehled_body!$E$2:$ED$2,0)),)=0,0.00000000001,IFERROR(INDEX(Přehled_body!$E$4:$ED$147,MATCH(Tabulka!$AI7,Přehled_body!$A$4:$A$147,0),MATCH(Tabulka!AC$2,Přehled_body!$E$2:$ED$2,0)),))) -> 0 | AD7: =IF(IFERROR(INDEX(Přehled_body!$E$4:$ED$147,MATCH(Tabulka!$AI7,Přehled_body!$A$4:$A$147,0),MATCH(Tabulka!AD$2,Přehled_body!$E$2:$ED$2,0)),)="",,IF(IFERROR(INDEX(Přehled_body!$E$4:$ED$147,MATCH(Tabulka!$AI7,Přehled_body!$A$4:$A$147,0),MATCH(Tabulka!AD$2,Přehled_body!$E$2:$ED$2,0)),)=0,0.00000000001,IFERROR(INDEX(Přehled_body!$E$4:$ED$147,MATCH(Tabulka!$AI7,Přehled_body!$A$4:$A$147,0),MATCH(Tabulka!AD$2,Přehled_body!$E$2:$ED$2,0)),))) -> 0 | AE7: =IF(SUM(AG4)<2,-90000+SUM(D7:AD7),SUM(D7:AD7)) -> -90000 | AH7: 0 | AI7: =CONCATENATE($B$5," ",$B$6,C7) -> Libor HruškaPřehozy | AL7: 1 | AP7: =CONCATENATE(AQ7," ",AQ6) -> Hruška
C8: Poč. kol | D8: =IF(IFERROR(INDEX(Přehled_body!$E$4:$ED$147,MATCH(Tabulka!$AI8,Přehled_body!$A$4:$A$147,0),MATCH(Tabulka!D$2,Přehled_body!$E$2:$ED$2,0)),)="",,IF(IFERROR(INDEX(Přehled_body!$E$4:$ED$147,MATCH(Tabulka!$AI8,Přehled_body!$A$4:$A$147,0),MATCH(Tabulka!D$2,Přehled_body!$E$2:$ED$2,0)),)=0,0.00000000001,IFERROR(INDEX(Přehled_body!$E$4:$ED$147,MATCH(Tabulka!$AI8,Přehled_body!$A$4:$A$147,0),MATCH(Tabulka!D$2,Přehled_body!$E$2:$ED$2,0)),))) -> 4 | E8: =IF(IFERROR(INDEX(Přehled_body!$E$4:$ED$147,MATCH(Tabulka!$AI8,Přehled_body!$A$4:$A$147,0),MATCH(Tabulka!E$2,Přehled_body!$E$2:$ED$2,0)),)="",,IF(IFERROR(INDEX(Přehled_body!$E$4:$ED$147,MATCH(Tabulka!$AI8,Přehled_body!$A$4:$A$147,0),MATCH(Tabulka!E$2,Přehled_body!$E$2:$ED$2,0)),)=0,0.00000000001,IFERROR(INDEX(Přehled_body!$E$4:$ED$147,MATCH(Tabulka!$AI8,Přehled_body!$A$4:$A$147,0),MATCH(Tabulka!E$2,Přehled_body!$E$2:$ED$2,0)),))) -> 0 | F8: =IF(IFERROR(INDEX(Přehled_body!$E$4:$ED$147,MATCH(Tabulka!$AI8,Přehled_body!$A$4:$A$147,0),MATCH(Tabulka!F$2,Přehled_body!$E$2:$ED$2,0)),)="",,IF(IFERROR(INDEX(Přehled_body!$E$4:$ED$147,MATCH(Tabulka!$AI8,Přehled_body!$A$4:$A$147,0),MATCH(Tabulka!F$2,Přehled_body!$E$2:$ED$2,0)),)=0,0.00000000001,IFERROR(INDEX(Přehled_body!$E$4:$ED$147,MATCH(Tabulka!$AI8,Přehled_body!$A$4:$A$147,0),MATCH(Tabulka!F$2,Přehled_body!$E$2:$ED$2,0)),))) -> 0 | G8: =IF(IFERROR(INDEX(Přehled_body!$E$4:$ED$147,MATCH(Tabulka!$AI8,Přehled_body!$A$4:$A$147,0),MATCH(Tabulka!G$2,Přehled_body!$E$2:$ED$2,0)),)="",,IF(IFERROR(INDEX(Přehled_body!$E$4:$ED$147,MATCH(Tabulka!$AI8,Přehled_body!$A$4:$A$147,0),MATCH(Tabulka!G$2,Přehled_body!$E$2:$ED$2,0)),)=0,0.00000000001,IFERROR(INDEX(Přehled_body!$E$4:$ED$147,MATCH(Tabulka!$AI8,Přehled_body!$A$4:$A$147,0),MATCH(Tabulka!G$2,Přehled_body!$E$2:$ED$2,0)),))) -> 0 | H8: =IF(IFERROR(INDEX(Přehled_body!$E$4:$ED$147,MATCH(Tabulka!$AI8,Přehled_body!$A$4:$A$147,0),MATCH(Tabulka!H$2,Přehled_body!$E$2:$ED$2,0)),)="",,IF(IFERROR(INDEX(Přehled_body!$E$4:$ED$147,MATCH(Tabulka!$AI8,Přehled_body!$A$4:$A$147,0),MATCH(Tabulka!H$2,Přehled_body!$E$2:$ED$2,0)),)=0,0.00000000001,IFERROR(INDEX(Přehled_body!$E$4:$ED$147,MATCH(Tabulka!$AI8,Přehled_body!$A$4:$A$147,0),MATCH(Tabulka!H$2,Přehled_body!$E$2:$ED$2,0)),))) -> 0 | I8: =IF(IFERROR(INDEX(Přehled_body!$E$4:$ED$147,MATCH(Tabulka!$AI8,Přehled_body!$A$4:$A$147,0),MATCH(Tabulka!I$2,Přehled_body!$E$2:$ED$2,0)),)="",,IF(IFERROR(INDEX(Přehled_body!$E$4:$ED$147,MATCH(Tabulka!$AI8,Přehled_body!$A$4:$A$147,0),MATCH(Tabulka!I$2,Přehled_body!$E$2:$ED$2,0)),)=0,0.00000000001,IFERROR(INDEX(Přehled_body!$E$4:$ED$147,MATCH(Tabulka!$AI8,Přehled_body!$A$4:$A$147,0),MATCH(Tabulka!I$2,Přehled_body!$E$2:$ED$2,0)),))) -> 0 | J8: =IF(IFERROR(INDEX(Přehled_body!$E$4:$ED$147,MATCH(Tabulka!$AI8,Přehled_body!$A$4:$A$147,0),MATCH(Tabulka!J$2,Přehled_body!$E$2:$ED$2,0)),)="",,IF(IFERROR(INDEX(Přehled_body!$E$4:$ED$147,MATCH(Tabulka!$AI8,Přehled_body!$A$4:$A$147,0),MATCH(Tabulka!J$2,Přehled_body!$E$2:$ED$2,0)),)=0,0.00000000001,IFERROR(INDEX(Přehled_body!$E$4:$ED$147,MATCH(Tabulka!$AI8,Přehled_body!$A$4:$A$147,0),MATCH(Tabulka!J$2,Přehled_body!$E$2:$ED$2,0)),))) -> 0 | K8: =IF(IFERROR(INDEX(Přehled_body!$E$4:$ED$147,MATCH(Tabulka!$AI8,Přehled_body!$A$4:$A$147,0),MATCH(Tabulka!K$2,Přehled_body!$E$2:$ED$2,0)),)="",,IF(IFERROR(INDEX(Přehled_body!$E$4:$ED$147,MATCH(Tabulka!$AI8,Přehled_body!$A$4:$A$147,0),MATCH(Tabulka!K$2,Přehled_body!$E$2:$ED$2,0)),)=0,0.00000000001,IFERROR(INDEX(Přehled_body!$E$4:$ED$147,MATCH(Tabulka!$AI8,Přehled_body!$A$4:$A$147,0),MATCH(Tabulka!K$2,Přehled_body!$E$2:$ED$2,0)),))) -> 0 | L8: =IF(IFERROR(INDEX(Přehled_body!$E$4:$ED$147,MATCH(Tabulka!$AI8,Přehled_body!$A$4:$A$147,0),MATCH(Tabulka!L$2,Přehled_body!$E$2:$ED$2,0)),)="",,IF(IFERROR(INDEX(Přehled_body!$E$4:$ED$147,MATCH(Tabulka!$AI8,Přehled_body!$A$4:$A$147,0),MATCH(Tabulka!L$2,Přehled_body!$E$2:$ED$2,0)),)=0,0.00000000001,IFERROR(INDEX(Přehled_body!$E$4:$ED$147,MATCH(Tabulka!$AI8,Přehled_body!$A$4:$A$147,0),MATCH(Tabulka!L$2,Přehled_body!$E$2:$ED$2,0)),))) -> 0 | M8: =IF(IFERROR(INDEX(Přehled_body!$E$4:$ED$147,MATCH(Tabulka!$AI8,Přehled_body!$A$4:$A$147,0),MATCH(Tabulka!M$2,Přehled_body!$E$2:$ED$2,0)),)="",,IF(IFERROR(INDEX(Přehled_body!$E$4:$ED$147,MATCH(Tabulka!$AI8,Přehled_body!$A$4:$A$147,0),MATCH(Tabulka!M$2,Přehled_body!$E$2:$ED$2,0)),)=0,0.00000000001,IFERROR(INDEX(Přehled_body!$E$4:$ED$147,MATCH(Tabulka!$AI8,Přehled_body!$A$4:$A$147,0),MATCH(Tabulka!M$2,Přehled_body!$E$2:$ED$2,0)),))) -> 0 | N8: =IF(IFERROR(INDEX(Přehled_body!$E$4:$ED$147,MATCH(Tabulka!$AI8,Přehled_body!$A$4:$A$147,0),MATCH(Tabulka!N$2,Přehled_body!$E$2:$ED$2,0)),)="",,IF(IFERROR(INDEX(Přehled_body!$E$4:$ED$147,MATCH(Tabulka!$AI8,Přehled_body!$A$4:$A$147,0),MATCH(Tabulka!N$2,Přehled_body!$E$2:$ED$2,0)),)=0,0.00000000001,IFERROR(INDEX(Přehled_body!$E$4:$ED$147,MATCH(Tabulka!$AI8,Přehled_body!$A$4:$A$147,0),MATCH(Tabulka!N$2,Přehled_body!$E$2:$ED$2,0)),))) -> 0 | O8: =IF(IFERROR(INDEX(Přehled_body!$E$4:$ED$147,MATCH(Tabulka!$AI8,Přehled_body!$A$4:$A$147,0),MATCH(Tabulka!O$2,Přehled_body!$E$2:$ED$2,0)),)="",,IF(IFERROR(INDEX(Přehled_body!$E$4:$ED$147,MATCH(Tabulka!$AI8,Přehled_body!$A$4:$A$147,0),MATCH(Tabulka!O$2,Přehled_body!$E$2:$ED$2,0)),)=0,0.00000000001,IFERROR(INDEX(Přehled_body!$E$4:$ED$147,MATCH(Tabulka!$AI8,Přehled_body!$A$4:$A$147,0),MATCH(Tabulka!O$2,Přehled_body!$E$2:$ED$2,0)),))) -> 0 | P8: =IF(IFERROR(INDEX(Přehled_body!$E$4:$ED$147,MATCH(Tabulka!$AI8,Přehled_body!$A$4:$A$147,0),MATCH(Tabulka!P$2,Přehled_body!$E$2:$ED$2,0)),)="",,IF(IFERROR(INDEX(Přehled_body!$E$4:$ED$147,MATCH(Tabulka!$AI8,Přehled_body!$A$4:$A$147,0),MATCH(Tabulka!P$2,Přehled_body!$E$2:$ED$2,0)),)=0,0.00000000001,IFERROR(INDEX(Přehled_body!$E$4:$ED$147,MATCH(Tabulka!$AI8,Přehled_body!$A$4:$A$147,0),MATCH(Tabulka!P$2,Přehled_body!$E$2:$ED$2,0)),))) -> 0 | Q8: =IF(IFERROR(INDEX(Přehled_body!$E$4:$ED$147,MATCH(Tabulka!$AI8,Přehled_body!$A$4:$A$147,0),MATCH(Tabulka!Q$2,Přehled_body!$E$2:$ED$2,0)),)="",,IF(IFERROR(INDEX(Přehled_body!$E$4:$ED$147,MATCH(Tabulka!$AI8,Přehled_body!$A$4:$A$147,0),MATCH(Tabulka!Q$2,Přehled_body!$E$2:$ED$2,0)),)=0,0.00000000001,IFERROR(INDEX(Přehled_body!$E$4:$ED$147,MATCH(Tabulka!$AI8,Přehled_body!$A$4:$A$147,0),MATCH(Tabulka!Q$2,Přehled_body!$E$2:$ED$2,0)),))) -> 0 | R8: =IF(IFERROR(INDEX(Přehled_body!$E$4:$ED$147,MATCH(Tabulka!$AI8,Přehled_body!$A$4:$A$147,0),MATCH(Tabulka!R$2,Přehled_body!$E$2:$ED$2,0)),)="",,IF(IFERROR(INDEX(Přehled_body!$E$4:$ED$147,MATCH(Tabulka!$AI8,Přehled_body!$A$4:$A$147,0),MATCH(Tabulka!R$2,Přehled_body!$E$2:$ED$2,0)),)=0,0.00000000001,IFERROR(INDEX(Přehled_body!$E$4:$ED$147,MATCH(Tabulka!$AI8,Přehled_body!$A$4:$A$147,0),MATCH(Tabulka!R$2,Přehled_body!$E$2:$ED$2,0)),))) -> 0 | S8: =IF(IFERROR(INDEX(Přehled_body!$E$4:$ED$147,MATCH(Tabulka!$AI8,Přehled_body!$A$4:$A$147,0),MATCH(Tabulka!S$2,Přehled_body!$E$2:$ED$2,0)),)="",,IF(IFERROR(INDEX(Přehled_body!$E$4:$ED$147,MATCH(Tabulka!$AI8,Přehled_body!$A$4:$A$147,0),MATCH(Tabulka!S$2,Přehled_body!$E$2:$ED$2,0)),)=0,0.00000000001,IFERROR(INDEX(Přehled_body!$E$4:$ED$147,MATCH(Tabulka!$AI8,Přehled_body!$A$4:$A$147,0),MATCH(Tabulka!S$2,Přehled_body!$E$2:$ED$2,0)),))) -> 0 | T8: =IF(IFERROR(INDEX(Přehled_body!$E$4:$ED$147,MATCH(Tabulka!$AI8,Přehled_body!$A$4:$A$147,0),MATCH(Tabulka!T$2,Přehled_body!$E$2:$ED$2,0)),)="",,IF(IFERROR(INDEX(Přehled_body!$E$4:$ED$147,MATCH(Tabulka!$AI8,Přehled_body!$A$4:$A$147,0),MATCH(Tabulka!T$2,Přehled_body!$E$2:$ED$2,0)),)=0,0.00000000001,IFERROR(INDEX(Přehled_body!$E$4:$ED$147,MATCH(Tabulka!$AI8,Přehled_body!$A$4:$A$147,0),MATCH(Tabulka!T$2,Přehled_body!$E$2:$ED$2,0)),))) -> 0 | U8: =IF(IFERROR(INDEX(Přehled_body!$E$4:$ED$147,MATCH(Tabulka!$AI8,Přehled_body!$A$4:$A$147,0),MATCH(Tabulka!U$2,Přehled_body!$E$2:$ED$2,0)),)="",,IF(IFERROR(INDEX(Přehled_body!$E$4:$ED$147,MATCH(Tabulka!$AI8,Přehled_body!$A$4:$A$147,0),MATCH(Tabulka!U$2,Přehled_body!$E$2:$ED$2,0)),)=0,0.00000000001,IFERROR(INDEX(Přehled_body!$E$4:$ED$147,MATCH(Tabulka!$AI8,Přehled_body!$A$4:$A$147,0),MATCH(Tabulka!U$2,Přehled_body!$E$2:$ED$2,0)),))) -> 0 | V8: =IF(IFERROR(INDEX(Přehled_body!$E$4:$ED$147,MATCH(Tabulka!$AI8,Přehled_body!$A$4:$A$147,0),MATCH(Tabulka!V$2,Přehled_body!$E$2:$ED$2,0)),)="",,IF(IFERROR(INDEX(Přehled_body!$E$4:$ED$147,MATCH(Tabulka!$AI8,Přehled_body!$A$4:$A$147,0),MATCH(Tabulka!V$2,Přehled_body!$E$2:$ED$2,0)),)=0,0.00000000001,IFERROR(INDEX(Přehled_body!$E$4:$ED$147,MATCH(Tabulka!$AI8,Přehled_body!$A$4:$A$147,0),MATCH(Tabulka!V$2,Přehled_body!$E$2:$ED$2,0)),))) -> 0 | W8: =IF(IFERROR(INDEX(Přehled_body!$E$4:$ED$147,MATCH(Tabulka!$AI8,Přehled_body!$A$4:$A$147,0),MATCH(Tabulka!W$2,Přehled_body!$E$2:$ED$2,0)),)="",,IF(IFERROR(INDEX(Přehled_body!$E$4:$ED$147,MATCH(Tabulka!$AI8,Přehled_body!$A$4:$A$147,0),MATCH(Tabulka!W$2,Přehled_body!$E$2:$ED$2,0)),)=0,0.00000000001,IFERROR(INDEX(Přehled_body!$E$4:$ED$147,MATCH(Tabulka!$AI8,Přehled_body!$A$4:$A$147,0),MATCH(Tabulka!W$2,Přehled_body!$E$2:$ED$2,0)),))) -> 0 | X8: =IF(IFERROR(INDEX(Přehled_body!$E$4:$ED$147,MATCH(Tabulka!$AI8,Přehled_body!$A$4:$A$147,0),MATCH(Tabulka!X$2,Přehled_body!$E$2:$ED$2,0)),)="",,IF(IFERROR(INDEX(Přehled_body!$E$4:$ED$147,MATCH(Tabulka!$AI8,Přehled_body!$A$4:$A$147,0),MATCH(Tabulka!X$2,Přehled_body!$E$2:$ED$2,0)),)=0,0.00000000001,IFERROR(INDEX(Přehled_body!$E$4:$ED$147,MATCH(Tabulka!$AI8,Přehled_body!$A$4:$A$147,0),MATCH(Tabulka!X$2,Přehled_body!$E$2:$ED$2,0)),))) -> 0 | Y8: =IF(IFERROR(INDEX(Přehled_body!$E$4:$ED$147,MATCH(Tabulka!$AI8,Přehled_body!$A$4:$A$147,0),MATCH(Tabulka!Y$2,Přehled_body!$E$2:$ED$2,0)),)="",,IF(IFERROR(INDEX(Přehled_body!$E$4:$ED$147,MATCH(Tabulka!$AI8,Přehled_body!$A$4:$A$147,0),MATCH(Tabulka!Y$2,Přehled_body!$E$2:$ED$2,0)),)=0,0.00000000001,IFERROR(INDEX(Přehled_body!$E$4:$ED$147,MATCH(Tabulka!$AI8,Přehled_body!$A$4:$A$147,0),MATCH(Tabulka!Y$2,Přehled_body!$E$2:$ED$2,0)),))) -> 0 | Z8: =IF(IFERROR(INDEX(Přehled_body!$E$4:$ED$147,MATCH(Tabulka!$AI8,Přehled_body!$A$4:$A$147,0),MATCH(Tabulka!Z$2,Přehled_body!$E$2:$ED$2,0)),)="",,IF(IFERROR(INDEX(Přehled_body!$E$4:$ED$147,MATCH(Tabulka!$AI8,Přehled_body!$A$4:$A$147,0),MATCH(Tabulka!Z$2,Přehled_body!$E$2:$ED$2,0)),)=0,0.00000000001,IFERROR(INDEX(Přehled_body!$E$4:$ED$147,MATCH(Tabulka!$AI8,Přehled_body!$A$4:$A$147,0),MATCH(Tabulka!Z$2,Přehled_body!$E$2:$ED$2,0)),))) -> 0 | AA8: =IF(IFERROR(INDEX(Přehled_body!$E$4:$ED$147,MATCH(Tabulka!$AI8,Přehled_body!$A$4:$A$147,0),MATCH(Tabulka!AA$2,Přehled_body!$E$2:$ED$2,0)),)="",,IF(IFERROR(INDEX(Přehled_body!$E$4:$ED$147,MATCH(Tabulka!$AI8,Přehled_body!$A$4:$A$147,0),MATCH(Tabulka!AA$2,Přehled_body!$E$2:$ED$2,0)),)=0,0.00000000001,IFERROR(INDEX(Přehled_body!$E$4:$ED$147,MATCH(Tabulka!$AI8,Přehled_body!$A$4:$A$147,0),MATCH(Tabulka!AA$2,Přehled_body!$E$2:$ED$2,0)),))) -> 0 | AB8: =IF(IFERROR(INDEX(Přehled_body!$E$4:$ED$147,MATCH(Tabulka!$AI8,Přehled_body!$A$4:$A$147,0),MATCH(Tabulka!AB$2,Přehled_body!$E$2:$ED$2,0)),)="",,IF(IFERROR(INDEX(Přehled_body!$E$4:$ED$147,MATCH(Tabulka!$AI8,Přehled_body!$A$4:$A$147,0),MATCH(Tabulka!AB$2,Přehled_body!$E$2:$ED$2,0)),)=0,0.00000000001,IFERROR(INDEX(Přehled_body!$E$4:$ED$147,MATCH(Tabulka!$AI8,Přehled_body!$A$4:$A$147,0),MATCH(Tabulka!AB$2,Přehled_body!$E$2:$ED$2,0)),))) -> 0 | AC8: =IF(IFERROR(INDEX(Přehled_body!$E$4:$ED$147,MATCH(Tabulka!$AI8,Přehled_body!$A$4:$A$147,0),MATCH(Tabulka!AC$2,Přehled_body!$E$2:$ED$2,0)),)="",,IF(IFERROR(INDEX(Přehled_body!$E$4:$ED$147,MATCH(Tabulka!$AI8,Přehled_body!$A$4:$A$147,0),MATCH(Tabulka!AC$2,Přehled_body!$E$2:$ED$2,0)),)=0,0.00000000001,IFERROR(INDEX(Přehled_body!$E$4:$ED$147,MATCH(Tabulka!$AI8,Přehled_body!$A$4:$A$147,0),MATCH(Tabulka!AC$2,Přehled_body!$E$2:$ED$2,0)),))) -> 0 | AD8: =IF(IFERROR(INDEX(Přehled_body!$E$4:$ED$147,MATCH(Tabulka!$AI8,Přehled_body!$A$4:$A$147,0),MATCH(Tabulka!AD$2,Přehled_body!$E$2:$ED$2,0)),)="",,IF(IFERROR(INDEX(Přehled_body!$E$4:$ED$147,MATCH(Tabulka!$AI8,Přehled_body!$A$4:$A$147,0),MATCH(Tabulka!AD$2,Přehled_body!$E$2:$ED$2,0)),)=0,0.00000000001,IFERROR(INDEX(Přehled_body!$E$4:$ED$147,MATCH(Tabulka!$AI8,Přehled_body!$A$4:$A$147,0),MATCH(Tabulka!AD$2,Přehled_body!$E$2:$ED$2,0)),))) -> 0 | AE8: =IF(SUM(AG4)<2,-90000+SUM(D8:AD8),SUM(D8:AD8)) -> -89996 | AH8: 4 | AI8: =CONCATENATE($B$5," ",$B$6,C8) -> Libor HruškaPoč. kol | AL8: 1
A9: 2 | C9: Výhry | D9: =IF(IFERROR(INDEX(Přehled_body!$E$4:$ED$147,MATCH(Tabulka!$AI9,Přehled_body!$A$4:$A$147,0),MATCH(Tabulka!D$2,Přehled_body!$E$2:$ED$2,0)),)="",,IF(IFERROR(INDEX(Přehled_body!$E$4:$ED$147,MATCH(Tabulka!$AI9,Přehled_body!$A$4:$A$147,0),MATCH(Tabulka!D$2,Přehled_body!$E$2:$ED$2,0)),)=0,0.00000000001,IFERROR(INDEX(Přehled_body!$E$4:$ED$147,MATCH(Tabulka!$AI9,Přehled_body!$A$4:$A$147,0),MATCH(Tabulka!D$2,Přehled_body!$E$2:$ED$2,0)),))) -> 1 | E9: =IF(IFERROR(INDEX(Přehled_body!$E$4:$ED$147,MATCH(Tabulka!$AI9,Přehled_body!$A$4:$A$147,0),MATCH(Tabulka!E$2,Přehled_body!$E$2:$ED$2,0)),)="",,IF(IFERROR(INDEX(Přehled_body!$E$4:$ED$147,MATCH(Tabulka!$AI9,Přehled_body!$A$4:$A$147,0),MATCH(Tabulka!E$2,Přehled_body!$E$2:$ED$2,0)),)=0,0.00000000001,IFERROR(INDEX(Přehled_body!$E$4:$ED$147,MATCH(Tabulka!$AI9,Přehled_body!$A$4:$A$147,0),MATCH(Tabulka!E$2,Přehled_body!$E$2:$ED$2,0)),))) -> 0 | F9: =IF(IFERROR(INDEX(Přehled_body!$E$4:$ED$147,MATCH(Tabulka!$AI9,Přehled_body!$A$4:$A$147,0),MATCH(Tabulka!F$2,Přehled_body!$E$2:$ED$2,0)),)="",,IF(IFERROR(INDEX(Přehled_body!$E$4:$ED$147,MATCH(Tabulka!$AI9,Přehled_body!$A$4:$A$147,0),MATCH(Tabulka!F$2,Přehled_body!$E$2:$ED$2,0)),)=0,0.00000000001,IFERROR(INDEX(Přehled_body!$E$4:$ED$147,MATCH(Tabulka!$AI9,Přehled_body!$A$4:$A$147,0),MATCH(Tabulka!F$2,Přehled_body!$E$2:$ED$2,0)),))) -> 0 | G9: =IF(IFERROR(INDEX(Přehled_body!$E$4:$ED$147,MATCH(Tabulka!$AI9,Přehled_body!$A$4:$A$147,0),MATCH(Tabulka!G$2,Přehled_body!$E$2:$ED$2,0)),)="",,IF(IFERROR(INDEX(Přehled_body!$E$4:$ED$147,MATCH(Tabulka!$AI9,Přehled_body!$A$4:$A$147,0),MATCH(Tabulka!G$2,Přehled_body!$E$2:$ED$2,0)),)=0,0.00000000001,IFERROR(INDEX(Přehled_body!$E$4:$ED$147,MATCH(Tabulka!$AI9,Přehled_body!$A$4:$A$147,0),MATCH(Tabulka!G$2,Přehled_body!$E$2:$ED$2,0)),))) -> 0 | H9: =IF(IFERROR(INDEX(Přehled_body!$E$4:$ED$147,MATCH(Tabulka!$AI9,Přehled_body!$A$4:$A$147,0),MATCH(Tabulka!H$2,Přehled_body!$E$2:$ED$2,0)),)="",,IF(IFERROR(INDEX(Přehled_body!$E$4:$ED$147,MATCH(Tabulka!$AI9,Přehled_body!$A$4:$A$147,0),MATCH(Tabulka!H$2,Přehled_body!$E$2:$ED$2,0)),)=0,0.00000000001,IFERROR(INDEX(Přehled_body!$E$4:$ED$147,MATCH(Tabulka!$AI9,Přehled_body!$A$4:$A$147,0),MATCH(Tabulka!H$2,Přehled_body!$E$2:$ED$2,0)),))) -> 0 | I9: =IF(IFERROR(INDEX(Přehled_body!$E$4:$ED$147,MATCH(Tabulka!$AI9,Přehled_body!$A$4:$A$147,0),MATCH(Tabulka!I$2,Přehled_body!$E$2:$ED$2,0)),)="",,IF(IFERROR(INDEX(Přehled_body!$E$4:$ED$147,MATCH(Tabulka!$AI9,Přehled_body!$A$4:$A$147,0),MATCH(Tabulka!I$2,Přehled_body!$E$2:$ED$2,0)),)=0,0.00000000001,IFERROR(INDEX(Přehled_body!$E$4:$ED$147,MATCH(Tabulka!$AI9,Přehled_body!$A$4:$A$147,0),MATCH(Tabulka!I$2,Přehled_body!$E$2:$ED$2,0)),))) -> 0 | J9: =IF(IFERROR(INDEX(Přehled_body!$E$4:$ED$147,MATCH(Tabulka!$AI9,Přehled_body!$A$4:$A$147,0),MATCH(Tabulka!J$2,Přehled_body!$E$2:$ED$2,0)),)="",,IF(IFERROR(INDEX(Přehled_body!$E$4:$ED$147,MATCH(Tabulka!$AI9,Přehled_body!$A$4:$A$147,0),MATCH(Tabulka!J$2,Přehled_body!$E$2:$ED$2,0)),)=0,0.00000000001,IFERROR(INDEX(Přehled_body!$E$4:$ED$147,MATCH(Tabulka!$AI9,Přehled_body!$A$4:$A$147,0),MATCH(Tabulka!J$2,Přehled_body!$E$2:$ED$2,0)),))) -> 0 | K9: =IF(IFERROR(INDEX(Přehled_body!$E$4:$ED$147,MATCH(Tabulka!$AI9,Přehled_body!$A$4:$A$147,0),MATCH(Tabulka!K$2,Přehled_body!$E$2:$ED$2,0)),)="",,IF(IFERROR(INDEX(Přehled_body!$E$4:$ED$147,MATCH(Tabulka!$AI9,Přehled_body!$A$4:$A$147,0),MATCH(Tabulka!K$2,Přehled_body!$E$2:$ED$2,0)),)=0,0.00000000001,IFERROR(INDEX(Přehled_body!$E$4:$ED$147,MATCH(Tabulka!$AI9,Přehled_body!$A$4:$A$147,0),MATCH(Tabulka!K$2,Přehled_body!$E$2:$ED$2,0)),))) -> 0 | L9: =IF(IFERROR(INDEX(Přehled_body!$E$4:$ED$147,MATCH(Tabulka!$AI9,Přehled_body!$A$4:$A$147,0),MATCH(Tabulka!L$2,Přehled_body!$E$2:$ED$2,0)),)="",,IF(IFERROR(INDEX(Přehled_body!$E$4:$ED$147,MATCH(Tabulka!$AI9,Přehled_body!$A$4:$A$147,0),MATCH(Tabulka!L$2,Přehled_body!$E$2:$ED$2,0)),)=0,0.00000000001,IFERROR(INDEX(Přehled_body!$E$4:$ED$147,MATCH(Tabulka!$AI9,Přehled_body!$A$4:$A$147,0),MATCH(Tabulka!L$2,Přehled_body!$E$2:$ED$2,0)),))) -> 0 | M9: =IF(IFERROR(INDEX(Přehled_body!$E$4:$ED$147,MATCH(Tabulka!$AI9,Přehled_body!$A$4:$A$147,0),MATCH(Tabulka!M$2,Přehled_body!$E$2:$ED$2,0)),)="",,IF(IFERROR(INDEX(Přehled_body!$E$4:$ED$147,MATCH(Tabulka!$AI9,Přehled_body!$A$4:$A$147,0),MATCH(Tabulka!M$2,Přehled_body!$E$2:$ED$2,0)),)=0,0.00000000001,IFERROR(INDEX(Přehled_body!$E$4:$ED$147,MATCH(Tabulka!$AI9,Přehled_body!$A$4:$A$147,0),MATCH(Tabulka!M$2,Přehled_body!$E$2:$ED$2,0)),))) -> 0 | N9: =IF(IFERROR(INDEX(Přehled_body!$E$4:$ED$147,MATCH(Tabulka!$AI9,Přehled_body!$A$4:$A$147,0),MATCH(Tabulka!N$2,Přehled_body!$E$2:$ED$2,0)),)="",,IF(IFERROR(INDEX(Přehled_body!$E$4:$ED$147,MATCH(Tabulka!$AI9,Přehled_body!$A$4:$A$147,0),MATCH(Tabulka!N$2,Přehled_body!$E$2:$ED$2,0)),)=0,0.00000000001,IFERROR(INDEX(Přehled_body!$E$4:$ED$147,MATCH(Tabulka!$AI9,Přehled_body!$A$4:$A$147,0),MATCH(Tabulka!N$2,Přehled_body!$E$2:$ED$2,0)),))) -> 0 | O9: =IF(IFERROR(INDEX(Přehled_body!$E$4:$ED$147,MATCH(Tabulka!$AI9,Přehled_body!$A$4:$A$147,0),MATCH(Tabulka!O$2,Přehled_body!$E$2:$ED$2,0)),)="",,IF(IFERROR(INDEX(Přehled_body!$E$4:$ED$147,MATCH(Tabulka!$AI9,Přehled_body!$A$4:$A$147,0),MATCH(Tabulka!O$2,Přehled_body!$E$2:$ED$2,0)),)=0,0.00000000001,IFERROR(INDEX(Přehled_body!$E$4:$ED$147,MATCH(Tabulka!$AI9,Přehled_body!$A$4:$A$147,0),MATCH(Tabulka!O$2,Přehled_body!$E$2:$ED$2,0)),))) -> 0 | P9: =IF(IFERROR(INDEX(Přehled_body!$E$4:$ED$147,MATCH(Tabulka!$AI9,Přehled_body!$A$4:$A$147,0),MATCH(Tabulka!P$2,Přehled_body!$E$2:$ED$2,0)),)="",,IF(IFERROR(INDEX(Přehled_body!$E$4:$ED$147,MATCH(Tabulka!$AI9,Přehled_body!$A$4:$A$147,0),MATCH(Tabulka!P$2,Přehled_body!$E$2:$ED$2,0)),)=0,0.00000000001,IFERROR(INDEX(Přehled_body!$E$4:$ED$147,MATCH(Tabulka!$AI9,Přehled_body!$A$4:$A$147,0),MATCH(Tabulka!P$2,Přehled_body!$E$2:$ED$2,0)),))) -> 0 | Q9: =IF(IFERROR(INDEX(Přehled_body!$E$4:$ED$147,MATCH(Tabulka!$AI9,Přehled_body!$A$4:$A$147,0),MATCH(Tabulka!Q$2,Přehled_body!$E$2:$ED$2,0)),)="",,IF(IFERROR(INDEX(Přehled_body!$E$4:$ED$147,MATCH(Tabulka!$AI9,Přehled_body!$A$4:$A$147,0),MATCH(Tabulka!Q$2,Přehled_body!$E$2:$ED$2,0)),)=0,0.00000000001,IFERROR(INDEX(Přehled_body!$E$4:$ED$147,MATCH(Tabulka!$AI9,Přehled_body!$A$4:$A$147,0),MATCH(Tabulka!Q$2,Přehled_body!$E$2:$ED$2,0)),))) -> 0 | R9: =IF(IFERROR(INDEX(Přehled_body!$E$4:$ED$147,MATCH(Tabulka!$AI9,Přehled_body!$A$4:$A$147,0),MATCH(Tabulka!R$2,Přehled_body!$E$2:$ED$2,0)),)="",,IF(IFERROR(INDEX(Přehled_body!$E$4:$ED$147,MATCH(Tabulka!$AI9,Přehled_body!$A$4:$A$147,0),MATCH(Tabulka!R$2,Přehled_body!$E$2:$ED$2,0)),)=0,0.00000000001,IFERROR(INDEX(Přehled_body!$E$4:$ED$147,MATCH(Tabulka!$AI9,Přehled_body!$A$4:$A$147,0),MATCH(Tabulka!R$2,Přehled_body!$E$2:$ED$2,0)),))) -> 0 | S9: =IF(IFERROR(INDEX(Přehled_body!$E$4:$ED$147,MATCH(Tabulka!$AI9,Přehled_body!$A$4:$A$147,0),MATCH(Tabulka!S$2,Přehled_body!$E$2:$ED$2,0)),)="",,IF(IFERROR(INDEX(Přehled_body!$E$4:$ED$147,MATCH(Tabulka!$AI9,Přehled_body!$A$4:$A$147,0),MATCH(Tabulka!S$2,Přehled_body!$E$2:$ED$2,0)),)=0,0.00000000001,IFERROR(INDEX(Přehled_body!$E$4:$ED$147,MATCH(Tabulka!$AI9,Přehled_body!$A$4:$A$147,0),MATCH(Tabulka!S$2,Přehled_body!$E$2:$ED$2,0)),))) -> 0 | T9: =IF(IFERROR(INDEX(Přehled_body!$E$4:$ED$147,MATCH(Tabulka!$AI9,Přehled_body!$A$4:$A$147,0),MATCH(Tabulka!T$2,Přehled_body!$E$2:$ED$2,0)),)="",,IF(IFERROR(INDEX(Přehled_body!$E$4:$ED$147,MATCH(Tabulka!$AI9,Přehled_body!$A$4:$A$147,0),MATCH(Tabulka!T$2,Přehled_body!$E$2:$ED$2,0)),)=0,0.00000000001,IFERROR(INDEX(Přehled_body!$E$4:$ED$147,MATCH(Tabulka!$AI9,Přehled_body!$A$4:$A$147,0),MATCH(Tabulka!T$2,Přehled_body!$E$2:$ED$2,0)),))) -> 0 | U9: =IF(IFERROR(INDEX(Přehled_body!$E$4:$ED$147,MATCH(Tabulka!$AI9,Přehled_body!$A$4:$A$147,0),MATCH(Tabulka!U$2,Přehled_body!$E$2:$ED$2,0)),)="",,IF(IFERROR(INDEX(Přehled_body!$E$4:$ED$147,MATCH(Tabulka!$AI9,Přehled_body!$A$4:$A$147,0),MATCH(Tabulka!U$2,Přehled_body!$E$2:$ED$2,0)),)=0,0.00000000001,IFERROR(INDEX(Přehled_body!$E$4:$ED$147,MATCH(Tabulka!$AI9,Přehled_body!$A$4:$A$147,0),MATCH(Tabulka!U$2,Přehled_body!$E$2:$ED$2,0)),))) -> 0 | V9: =IF(IFERROR(INDEX(Přehled_body!$E$4:$ED$147,MATCH(Tabulka!$AI9,Přehled_body!$A$4:$A$147,0),MATCH(Tabulka!V$2,Přehled_body!$E$2:$ED$2,0)),)="",,IF(IFERROR(INDEX(Přehled_body!$E$4:$ED$147,MATCH(Tabulka!$AI9,Přehled_body!$A$4:$A$147,0),MATCH(Tabulka!V$2,Přehled_body!$E$2:$ED$2,0)),)=0,0.00000000001,IFERROR(INDEX(Přehled_body!$E$4:$ED$147,MATCH(Tabulka!$AI9,Přehled_body!$A$4:$A$147,0),MATCH(Tabulka!V$2,Přehled_body!$E$2:$ED$2,0)),))) -> 0 | W9: =IF(IFERROR(INDEX(Přehled_body!$E$4:$ED$147,MATCH(Tabulka!$AI9,Přehled_body!$A$4:$A$147,0),MATCH(Tabulka!W$2,Přehled_body!$E$2:$ED$2,0)),)="",,IF(IFERROR(INDEX(Přehled_body!$E$4:$ED$147,MATCH(Tabulka!$AI9,Přehled_body!$A$4:$A$147,0),MATCH(Tabulka!W$2,Přehled_body!$E$2:$ED$2,0)),)=0,0.00000000001,IFERROR(INDEX(Přehled_body!$E$4:$ED$147,MATCH(Tabulka!$AI9,Přehled_body!$A$4:$A$147,0),MATCH(Tabulka!W$2,Přehled_body!$E$2:$ED$2,0)),))) -> 0 | X9: =IF(IFERROR(INDEX(Přehled_body!$E$4:$ED$147,MATCH(Tabulka!$AI9,Přehled_body!$A$4:$A$147,0),MATCH(Tabulka!X$2,Přehled_body!$E$2:$ED$2,0)),)="",,IF(IFERROR(INDEX(Přehled_body!$E$4:$ED$147,MATCH(Tabulka!$AI9,Přehled_body!$A$4:$A$147,0),MATCH(Tabulka!X$2,Přehled_body!$E$2:$ED$2,0)),)=0,0.00000000001,IFERROR(INDEX(Přehled_body!$E$4:$ED$147,MATCH(Tabulka!$AI9,Přehled_body!$A$4:$A$147,0),MATCH(Tabulka!X$2,Přehled_body!$E$2:$ED$2,0)),))) -> 0 | Y9: =IF(IFERROR(INDEX(Přehled_body!$E$4:$ED$147,MATCH(Tabulka!$AI9,Přehled_body!$A$4:$A$147,0),MATCH(Tabulka!Y$2,Přehled_body!$E$2:$ED$2,0)),)="",,IF(IFERROR(INDEX(Přehled_body!$E$4:$ED$147,MATCH(Tabulka!$AI9,Přehled_body!$A$4:$A$147,0),MATCH(Tabulka!Y$2,Přehled_body!$E$2:$ED$2,0)),)=0,0.00000000001,IFERROR(INDEX(Přehled_body!$E$4:$ED$147,MATCH(Tabulka!$AI9,Přehled_body!$A$4:$A$147,0),MATCH(Tabulka!Y$2,Přehled_body!$E$2:$ED$2,0)),))) -> 0 | Z9: =IF(IFERROR(INDEX(Přehled_body!$E$4:$ED$147,MATCH(Tabulka!$AI9,Přehled_body!$A$4:$A$147,0),MATCH(Tabulka!Z$2,Přehled_body!$E$2:$ED$2,0)),)="",,IF(IFERROR(INDEX(Přehled_body!$E$4:$ED$147,MATCH(Tabulka!$AI9,Přehled_body!$A$4:$A$147,0),MATCH(Tabulka!Z$2,Přehled_body!$E$2:$ED$2,0)),)=0,0.00000000001,IFERROR(INDEX(Přehled_body!$E$4:$ED$147,MATCH(Tabulka!$AI9,Přehled_body!$A$4:$A$147,0),MATCH(Tabulka!Z$2,Přehled_body!$E$2:$ED$2,0)),))) -> 0 | AA9: =IF(IFERROR(INDEX(Přehled_body!$E$4:$ED$147,MATCH(Tabulka!$AI9,Přehled_body!$A$4:$A$147,0),MATCH(Tabulka!AA$2,Přehled_body!$E$2:$ED$2,0)),)="",,IF(IFERROR(INDEX(Přehled_body!$E$4:$ED$147,MATCH(Tabulka!$AI9,Přehled_body!$A$4:$A$147,0),MATCH(Tabulka!AA$2,Přehled_body!$E$2:$ED$2,0)),)=0,0.00000000001,IFERROR(INDEX(Přehled_body!$E$4:$ED$147,MATCH(Tabulka!$AI9,Přehled_body!$A$4:$A$147,0),MATCH(Tabulka!AA$2,Přehled_body!$E$2:$ED$2,0)),))) -> 0 | AB9: =IF(IFERROR(INDEX(Přehled_body!$E$4:$ED$147,MATCH(Tabulka!$AI9,Přehled_body!$A$4:$A$147,0),MATCH(Tabulka!AB$2,Přehled_body!$E$2:$ED$2,0)),)="",,IF(IFERROR(INDEX(Přehled_body!$E$4:$ED$147,MATCH(Tabulka!$AI9,Přehled_body!$A$4:$A$147,0),MATCH(Tabulka!AB$2,Přehled_body!$E$2:$ED$2,0)),)=0,0.00000000001,IFERROR(INDEX(Přehled_body!$E$4:$ED$147,MATCH(Tabulka!$AI9,Přehled_body!$A$4:$A$147,0),MATCH(Tabulka!AB$2,Přehled_body!$E$2:$ED$2,0)),))) -> 0 | AC9: =IF(IFERROR(INDEX(Přehled_body!$E$4:$ED$147,MATCH(Tabulka!$AI9,Přehled_body!$A$4:$A$147,0),MATCH(Tabulka!AC$2,Přehled_body!$E$2:$ED$2,0)),)="",,IF(IFERROR(INDEX(Přehled_body!$E$4:$ED$147,MATCH(Tabulka!$AI9,Přehled_body!$A$4:$A$147,0),MATCH(Tabulka!AC$2,Přehled_body!$E$2:$ED$2,0)),)=0,0.00000000001,IFERROR(INDEX(Přehled_body!$E$4:$ED$147,MATCH(Tabulka!$AI9,Přehled_body!$A$4:$A$147,0),MATCH(Tabulka!AC$2,Přehled_body!$E$2:$ED$2,0)),))) -> 0 | AD9: =IF(IFERROR(INDEX(Přehled_body!$E$4:$ED$147,MATCH(Tabulka!$AI9,Přehled_body!$A$4:$A$147,0),MATCH(Tabulka!AD$2,Přehled_body!$E$2:$ED$2,0)),)="",,IF(IFERROR(INDEX(Přehled_body!$E$4:$ED$147,MATCH(Tabulka!$AI9,Přehled_body!$A$4:$A$147,0),MATCH(Tabulka!AD$2,Přehled_body!$E$2:$ED$2,0)),)=0,0.00000000001,IFERROR(INDEX(Přehled_body!$E$4:$ED$147,MATCH(Tabulka!$AI9,Přehled_body!$A$4:$A$147,0),MATCH(Tabulka!AD$2,Přehled_body!$E$2:$ED$2,0)),))) -> 0 | AE9: =IF(SUM(AG9)<2,-90000+SUM(D9:AD9),SUM(D9:AD9)) -> -89999 | AG9: =COUNTIF(D9:AD9,">0") -> 1 | AH9: 1 | AI9: =CONCATENATE($B$10," ",$B$11,C9) -> Míra ŠedivýVýhry | AL9: =COUNTIF(D9:AD9,">0") -> 1
A10: =CONCATENATE(B10," ",B11) -> Míra Šedivý | B10: Míra | C10: Prohry | D10: =IF(IFERROR(INDEX(Přehled_body!$E$4:$ED$147,MATCH(Tabulka!$AI10,Přehled_body!$A$4:$A$147,0),MATCH(Tabulka!D$2,Přehled_body!$E$2:$ED$2,0)),)="",,IF(IFERROR(INDEX(Přehled_body!$E$4:$ED$147,MATCH(Tabulka!$AI10,Přehled_body!$A$4:$A$147,0),MATCH(Tabulka!D$2,Přehled_body!$E$2:$ED$2,0)),)=0,0.00000000001,IFERROR(INDEX(Přehled_body!$E$4:$ED$147,MATCH(Tabulka!$AI10,Přehled_body!$A$4:$A$147,0),MATCH(Tabulka!D$2,Přehled_body!$E$2:$ED$2,0)),))) -> 1e-11 | E10: =IF(IFERROR(INDEX(Přehled_body!$E$4:$ED$147,MATCH(Tabulka!$AI10,Přehled_body!$A$4:$A$147,0),MATCH(Tabulka!E$2,Přehled_body!$E$2:$ED$2,0)),)="",,IF(IFERROR(INDEX(Přehled_body!$E$4:$ED$147,MATCH(Tabulka!$AI10,Přehled_body!$A$4:$A$147,0),MATCH(Tabulka!E$2,Přehled_body!$E$2:$ED$2,0)),)=0,0.00000000001,IFERROR(INDEX(Přehled_body!$E$4:$ED$147,MATCH(Tabulka!$AI10,Přehled_body!$A$4:$A$147,0),MATCH(Tabulka!E$2,Přehled_body!$E$2:$ED$2,0)),))) -> 0 | F10: =IF(IFERROR(INDEX(Přehled_body!$E$4:$ED$147,MATCH(Tabulka!$AI10,Přehled_body!$A$4:$A$147,0),MATCH(Tabulka!F$2,Přehled_body!$E$2:$ED$2,0)),)="",,IF(IFERROR(INDEX(Přehled_body!$E$4:$ED$147,MATCH(Tabulka!$AI10,Přehled_body!$A$4:$A$147,0),MATCH(Tabulka!F$2,Přehled_body!$E$2:$ED$2,0)),)=0,0.00000000001,IFERROR(INDEX(Přehled_body!$E$4:$ED$147,MATCH(Tabulka!$AI10,Přehled_body!$A$4:$A$147,0),MATCH(Tabulka!F$2,Přehled_body!$E$2:$ED$2,0)),))) -> 0 | G10: =IF(IFERROR(INDEX(Přehled_body!$E$4:$ED$147,MATCH(Tabulka!$AI10,Přehled_body!$A$4:$A$147,0),MATCH(Tabulka!G$2,Přehled_body!$E$2:$ED$2,0)),)="",,IF(IFERROR(INDEX(Přehled_body!$E$4:$ED$147,MATCH(Tabulka!$AI10,Přehled_body!$A$4:$A$147,0),MATCH(Tabulka!G$2,Přehled_body!$E$2:$ED$2,0)),)=0,0.00000000001,IFERROR(INDEX(Přehled_body!$E$4:$ED$147,MATCH(Tabulka!$AI10,Přehled_body!$A$4:$A$147,0),MATCH(Tabulka!G$2,Přehled_body!$E$2:$ED$2,0)),))) -> 0 | H10: =IF(IFERROR(INDEX(Přehled_body!$E$4:$ED$147,MATCH(Tabulka!$AI10,Přehled_body!$A$4:$A$147,0),MATCH(Tabulka!H$2,Přehled_body!$E$2:$ED$2,0)),)="",,IF(IFERROR(INDEX(Přehled_body!$E$4:$ED$147,MATCH(Tabulka!$AI10,Přehled_body!$A$4:$A$147,0),MATCH(Tabulka!H$2,Přehled_body!$E$2:$ED$2,0)),)=0,0.00000000001,IFERROR(INDEX(Přehled_body!$E$4:$ED$147,MATCH(Tabulka!$AI10,Přehled_body!$A$4:$A$147,0),MATCH(Tabulka!H$2,Přehled_body!$E$2:$ED$2,0)),))) -> 0 | I10: =IF(IFERROR(INDEX(Přehled_body!$E$4:$ED$147,MATCH(Tabulka!$AI10,Přehled_body!$A$4:$A$147,0),MATCH(Tabulka!I$2,Přehled_body!$E$2:$ED$2,0)),)="",,IF(IFERROR(INDEX(Přehled_body!$E$4:$ED$147,MATCH(Tabulka!$AI10,Přehled_body!$A$4:$A$147,0),MATCH(Tabulka!I$2,Přehled_body!$E$2:$ED$2,0)),)=0,0.00000000001,IFERROR(INDEX(Přehled_body!$E$4:$ED$147,MATCH(Tabulka!$AI10,Přehled_body!$A$4:$A$147,0),MATCH(Tabulka!I$2,Přehled_body!$E$2:$ED$2,0)),))) -> 0 | J10: =IF(IFERROR(INDEX(Přehled_body!$E$4:$ED$147,MATCH(Tabulka!$AI10,Přehled_body!$A$4:$A$147,0),MATCH(Tabulka!J$2,Přehled_body!$E$2:$ED$2,0)),)="",,IF(IFERROR(INDEX(Přehled_body!$E$4:$ED$147,MATCH(Tabulka!$AI10,Přehled_body!$A$4:$A$147,0),MATCH(Tabulka!J$2,Přehled_body!$E$2:$ED$2,0)),)=0,0.00000000001,IFERROR(INDEX(Přehled_body!$E$4:$ED$147,MATCH(Tabulka!$AI10,Přehled_body!$A$4:$A$147,0),MATCH(Tabulka!J$2,Přehled_body!$E$2:$ED$2,0)),))) -> 0 | K10: =IF(IFERROR(INDEX(Přehled_body!$E$4:$ED$147,MATCH(Tabulka!$AI10,Přehled_body!$A$4:$A$147,0),MATCH(Tabulka!K$2,Přehled_body!$E$2:$ED$2,0)),)="",,IF(IFERROR(INDEX(Přehled_body!$E$4:$ED$147,MATCH(Tabulka!$AI10,Přehled_body!$A$4:$A$147,0),MATCH(Tabulka!K$2,Přehled_body!$E$2:$ED$2,0)),)=0,0.00000000001,IFERROR(INDEX(Přehled_body!$E$4:$ED$147,MATCH(Tabulka!$AI10,Přehled_body!$A$4:$A$147,0),MATCH(Tabulka!K$2,Přehled_body!$E$2:$ED$2,0)),))) -> 0 | L10: =IF(IFERROR(INDEX(Přehled_body!$E$4:$ED$147,MATCH(Tabulka!$AI10,Přehled_body!$A$4:$A$147,0),MATCH(Tabulka!L$2,Přehled_body!$E$2:$ED$2,0)),)="",,IF(IFERROR(INDEX(Přehled_body!$E$4:$ED$147,MATCH(Tabulka!$AI10,Přehled_body!$A$4:$A$147,0),MATCH(Tabulka!L$2,Přehled_body!$E$2:$ED$2,0)),)=0,0.00000000001,IFERROR(INDEX(Přehled_body!$E$4:$ED$147,MATCH(Tabulka!$AI10,Přehled_body!$A$4:$A$147,0),MATCH(Tabulka!L$2,Přehled_body!$E$2:$ED$2,0)),))) -> 0 | M10: =IF(IFERROR(INDEX(Přehled_body!$E$4:$ED$147,MATCH(Tabulka!$AI10,Přehled_body!$A$4:$A$147,0),MATCH(Tabulka!M$2,Přehled_body!$E$2:$ED$2,0)),)="",,IF(IFERROR(INDEX(Přehled_body!$E$4:$ED$147,MATCH(Tabulka!$AI10,Přehled_body!$A$4:$A$147,0),MATCH(Tabulka!M$2,Přehled_body!$E$2:$ED$2,0)),)=0,0.00000000001,IFERROR(INDEX(Přehled_body!$E$4:$ED$147,MATCH(Tabulka!$AI10,Přehled_body!$A$4:$A$147,0),MATCH(Tabulka!M$2,Přehled_body!$E$2:$ED$2,0)),))) -> 0 | N10: =IF(IFERROR(INDEX(Přehled_body!$E$4:$ED$147,MATCH(Tabulka!$AI10,Přehled_body!$A$4:$A$147,0),MATCH(Tabulka!N$2,Přehled_body!$E$2:$ED$2,0)),)="",,IF(IFERROR(INDEX(Přehled_body!$E$4:$ED$147,MATCH(Tabulka!$AI10,Přehled_body!$A$4:$A$147,0),MATCH(Tabulka!N$2,Přehled_body!$E$2:$ED$2,0)),)=0,0.00000000001,IFERROR(INDEX(Přehled_body!$E$4:$ED$147,MATCH(Tabulka!$AI10,Přehled_body!$A$4:$A$147,0),MATCH(Tabulka!N$2,Přehled_body!$E$2:$ED$2,0)),))) -> 0 | O10: =IF(IFERROR(INDEX(Přehled_body!$E$4:$ED$147,MATCH(Tabulka!$AI10,Přehled_body!$A$4:$A$147,0),MATCH(Tabulka!O$2,Přehled_body!$E$2:$ED$2,0)),)="",,IF(IFERROR(INDEX(Přehled_body!$E$4:$ED$147,MATCH(Tabulka!$AI10,Přehled_body!$A$4:$A$147,0),MATCH(Tabulka!O$2,Přehled_body!$E$2:$ED$2,0)),)=0,0.00000000001,IFERROR(INDEX(Přehled_body!$E$4:$ED$147,MATCH(Tabulka!$AI10,Přehled_body!$A$4:$A$147,0),MATCH(Tabulka!O$2,Přehled_body!$E$2:$ED$2,0)),))) -> 0 | P10: =IF(IFERROR(INDEX(Přehled_body!$E$4:$ED$147,MATCH(Tabulka!$AI10,Přehled_body!$A$4:$A$147,0),MATCH(Tabulka!P$2,Přehled_body!$E$2:$ED$2,0)),)="",,IF(IFERROR(INDEX(Přehled_body!$E$4:$ED$147,MATCH(Tabulka!$AI10,Přehled_body!$A$4:$A$147,0),MATCH(Tabulka!P$2,Přehled_body!$E$2:$ED$2,0)),)=0,0.00000000001,IFERROR(INDEX(Přehled_body!$E$4:$ED$147,MATCH(Tabulka!$AI10,Přehled_body!$A$4:$A$147,0),MATCH(Tabulka!P$2,Přehled_body!$E$2:$ED$2,0)),))) -> 0 | Q10: =IF(IFERROR(INDEX(Přehled_body!$E$4:$ED$147,MATCH(Tabulka!$AI10,Přehled_body!$A$4:$A$147,0),MATCH(Tabulka!Q$2,Přehled_body!$E$2:$ED$2,0)),)="",,IF(IFERROR(INDEX(Přehled_body!$E$4:$ED$147,MATCH(Tabulka!$AI10,Přehled_body!$A$4:$A$147,0),MATCH(Tabulka!Q$2,Přehled_body!$E$2:$ED$2,0)),)=0,0.00000000001,IFERROR(INDEX(Přehled_body!$E$4:$ED$147,MATCH(Tabulka!$AI10,Přehled_body!$A$4:$A$147,0),MATCH(Tabulka!Q$2,Přehled_body!$E$2:$ED$2,0)),))) -> 0 | R10: =IF(IFERROR(INDEX(Přehled_body!$E$4:$ED$147,MATCH(Tabulka!$AI10,Přehled_body!$A$4:$A$147,0),MATCH(Tabulka!R$2,Přehled_body!$E$2:$ED$2,0)),)="",,IF(IFERROR(INDEX(Přehled_body!$E$4:$ED$147,MATCH(Tabulka!$AI10,Přehled_body!$A$4:$A$147,0),MATCH(Tabulka!R$2,Přehled_body!$E$2:$ED$2,0)),)=0,0.00000000001,IFERROR(INDEX(Přehled_body!$E$4:$ED$147,MATCH(Tabulka!$AI10,Přehled_body!$A$4:$A$147,0),MATCH(Tabulka!R$2,Přehled_body!$E$2:$ED$2,0)),))) -> 0 | S10: =IF(IFERROR(INDEX(Přehled_body!$E$4:$ED$147,MATCH(Tabulka!$AI10,Přehled_body!$A$4:$A$147,0),MATCH(Tabulka!S$2,Přehled_body!$E$2:$ED$2,0)),)="",,IF(IFERROR(INDEX(Přehled_body!$E$4:$ED$147,MATCH(Tabulka!$AI10,Přehled_body!$A$4:$A$147,0),MATCH(Tabulka!S$2,Přehled_body!$E$2:$ED$2,0)),)=0,0.00000000001,IFERROR(INDEX(Přehled_body!$E$4:$ED$147,MATCH(Tabulka!$AI10,Přehled_body!$A$4:$A$147,0),MATCH(Tabulka!S$2,Přehled_body!$E$2:$ED$2,0)),))) -> 0 | T10: =IF(IFERROR(INDEX(Přehled_body!$E$4:$ED$147,MATCH(Tabulka!$AI10,Přehled_body!$A$4:$A$147,0),MATCH(Tabulka!T$2,Přehled_body!$E$2:$ED$2,0)),)="",,IF(IFERROR(INDEX(Přehled_body!$E$4:$ED$147,MATCH(Tabulka!$AI10,Přehled_body!$A$4:$A$147,0),MATCH(Tabulka!T$2,Přehled_body!$E$2:$ED$2,0)),)=0,0.00000000001,IFERROR(INDEX(Přehled_body!$E$4:$ED$147,MATCH(Tabulka!$AI10,Přehled_body!$A$4:$A$147,0),MATCH(Tabulka!T$2,Přehled_body!$E$2:$ED$2,0)),))) -> 0 | U10: =IF(IFERROR(INDEX(Přehled_body!$E$4:$ED$147,MATCH(Tabulka!$AI10,Přehled_body!$A$4:$A$147,0),MATCH(Tabulka!U$2,Přehled_body!$E$2:$ED$2,0)),)="",,IF(IFERROR(INDEX(Přehled_body!$E$4:$ED$147,MATCH(Tabulka!$AI10,Přehled_body!$A$4:$A$147,0),MATCH(Tabulka!U$2,Přehled_body!$E$2:$ED$2,0)),)=0,0.00000000001,IFERROR(INDEX(Přehled_body!$E$4:$ED$147,MATCH(Tabulka!$AI10,Přehled_body!$A$4:$A$147,0),MATCH(Tabulka!U$2,Přehled_body!$E$2:$ED$2,0)),))) -> 0 | V10: =IF(IFERROR(INDEX(Přehled_body!$E$4:$ED$147,MATCH(Tabulka!$AI10,Přehled_body!$A$4:$A$147,0),MATCH(Tabulka!V$2,Přehled_body!$E$2:$ED$2,0)),)="",,IF(IFERROR(INDEX(Přehled_body!$E$4:$ED$147,MATCH(Tabulka!$AI10,Přehled_body!$A$4:$A$147,0),MATCH(Tabulka!V$2,Přehled_body!$E$2:$ED$2,0)),)=0,0.00000000001,IFERROR(INDEX(Přehled_body!$E$4:$ED$147,MATCH(Tabulka!$AI10,Přehled_body!$A$4:$A$147,0),MATCH(Tabulka!V$2,Přehled_body!$E$2:$ED$2,0)),))) -> 0 | W10: =IF(IFERROR(INDEX(Přehled_body!$E$4:$ED$147,MATCH(Tabulka!$AI10,Přehled_body!$A$4:$A$147,0),MATCH(Tabulka!W$2,Přehled_body!$E$2:$ED$2,0)),)="",,IF(IFERROR(INDEX(Přehled_body!$E$4:$ED$147,MATCH(Tabulka!$AI10,Přehled_body!$A$4:$A$147,0),MATCH(Tabulka!W$2,Přehled_body!$E$2:$ED$2,0)),)=0,0.00000000001,IFERROR(INDEX(Přehled_body!$E$4:$ED$147,MATCH(Tabulka!$AI10,Přehled_body!$A$4:$A$147,0),MATCH(Tabulka!W$2,Přehled_body!$E$2:$ED$2,0)),))) -> 0 | X10: =IF(IFERROR(INDEX(Přehled_body!$E$4:$ED$147,MATCH(Tabulka!$AI10,Přehled_body!$A$4:$A$147,0),MATCH(Tabulka!X$2,Přehled_body!$E$2:$ED$2,0)),)="",,IF(IFERROR(INDEX(Přehled_body!$E$4:$ED$147,MATCH(Tabulka!$AI10,Přehled_body!$A$4:$A$147,0),MATCH(Tabulka!X$2,Přehled_body!$E$2:$ED$2,0)),)=0,0.00000000001,IFERROR(INDEX(Přehled_body!$E$4:$ED$147,MATCH(Tabulka!$AI10,Přehled_body!$A$4:$A$147,0),MATCH(Tabulka!X$2,Přehled_body!$E$2:$ED$2,0)),))) -> 0 | Y10: =IF(IFERROR(INDEX(Přehled_body!$E$4:$ED$147,MATCH(Tabulka!$AI10,Přehled_body!$A$4:$A$147,0),MATCH(Tabulka!Y$2,Přehled_body!$E$2:$ED$2,0)),)="",,IF(IFERROR(INDEX(Přehled_body!$E$4:$ED$147,MATCH(Tabulka!$AI10,Přehled_body!$A$4:$A$147,0),MATCH(Tabulka!Y$2,Přehled_body!$E$2:$ED$2,0)),)=0,0.00000000001,IFERROR(INDEX(Přehled_body!$E$4:$ED$147,MATCH(Tabulka!$AI10,Přehled_body!$A$4:$A$147,0),MATCH(Tabulka!Y$2,Přehled_body!$E$2:$ED$2,0)),))) -> 0 | Z10: =IF(IFERROR(INDEX(Přehled_body!$E$4:$ED$147,MATCH(Tabulka!$AI10,Přehled_body!$A$4:$A$147,0),MATCH(Tabulka!Z$2,Přehled_body!$E$2:$ED$2,0)),)="",,IF(IFERROR(INDEX(Přehled_body!$E$4:$ED$147,MATCH(Tabulka!$AI10,Přehled_body!$A$4:$A$147,0),MATCH(Tabulka!Z$2,Přehled_body!$E$2:$ED$2,0)),)=0,0.00000000001,IFERROR(INDEX(Přehled_body!$E$4:$ED$147,MATCH(Tabulka!$AI10,Přehled_body!$A$4:$A$147,0),MATCH(Tabulka!Z$2,Přehled_body!$E$2:$ED$2,0)),))) -> 0 | AA10: =IF(IFERROR(INDEX(Přehled_body!$E$4:$ED$147,MATCH(Tabulka!$AI10,Přehled_body!$A$4:$A$147,0),MATCH(Tabulka!AA$2,Přehled_body!$E$2:$ED$2,0)),)="",,IF(IFERROR(INDEX(Přehled_body!$E$4:$ED$147,MATCH(Tabulka!$AI10,Přehled_body!$A$4:$A$147,0),MATCH(Tabulka!AA$2,Přehled_body!$E$2:$ED$2,0)),)=0,0.00000000001,IFERROR(INDEX(Přehled_body!$E$4:$ED$147,MATCH(Tabulka!$AI10,Přehled_body!$A$4:$A$147,0),MATCH(Tabulka!AA$2,Přehled_body!$E$2:$ED$2,0)),))) -> 0 | AB10: =IF(IFERROR(INDEX(Přehled_body!$E$4:$ED$147,MATCH(Tabulka!$AI10,Přehled_body!$A$4:$A$147,0),MATCH(Tabulka!AB$2,Přehled_body!$E$2:$ED$2,0)),)="",,IF(IFERROR(INDEX(Přehled_body!$E$4:$ED$147,MATCH(Tabulka!$AI10,Přehled_body!$A$4:$A$147,0),MATCH(Tabulka!AB$2,Přehled_body!$E$2:$ED$2,0)),)=0,0.00000000001,IFERROR(INDEX(Přehled_body!$E$4:$ED$147,MATCH(Tabulka!$AI10,Přehled_body!$A$4:$A$147,0),MATCH(Tabulka!AB$2,Přehled_body!$E$2:$ED$2,0)),))) -> 0 | AC10: =IF(IFERROR(INDEX(Přehled_body!$E$4:$ED$147,MATCH(Tabulka!$AI10,Přehled_body!$A$4:$A$147,0),MATCH(Tabulka!AC$2,Přehled_body!$E$2:$ED$2,0)),)="",,IF(IFERROR(INDEX(Přehled_body!$E$4:$ED$147,MATCH(Tabulka!$AI10,Přehled_body!$A$4:$A$147,0),MATCH(Tabulka!AC$2,Přehled_body!$E$2:$ED$2,0)),)=0,0.00000000001,IFERROR(INDEX(Přehled_body!$E$4:$ED$147,MATCH(Tabulka!$AI10,Přehled_body!$A$4:$A$147,0),MATCH(Tabulka!AC$2,Přehled_body!$E$2:$ED$2,0)),))) -> 0 | AD10: =IF(IFERROR(INDEX(Přehled_body!$E$4:$ED$147,MATCH(Tabulka!$AI10,Přehled_body!$A$4:$A$147,0),MATCH(Tabulka!AD$2,Přehled_body!$E$2:$ED$2,0)),)="",,IF(IFERROR(INDEX(Přehled_body!$E$4:$ED$147,MATCH(Tabulka!$AI10,Přehled_body!$A$4:$A$147,0),MATCH(Tabulka!AD$2,Přehled_body!$E$2:$ED$2,0)),)=0,0.00000000001,IFERROR(INDEX(Přehled_body!$E$4:$ED$147,MATCH(Tabulka!$AI10,Přehled_body!$A$4:$A$147,0),MATCH(Tabulka!AD$2,Přehled_body!$E$2:$ED$2,0)),))) -> 0 | AE10: =IF(SUM(AG9)<2,-90000+SUM(D10:AD10),SUM(D10:AD10)) -> -90000 | AF10: =ROUND(SUM(AH9-AH10),0) -> 1 | AH10: 0 | AI10: =CONCATENATE($B$10," ",$B$11,C10) -> Míra ŠedivýProhry | AL10: 1 | AO10: Libor | AP10: 2 | AQ10: Milan | AR10: Milan
A11: =CONCATENATE(B11," ",B10) -> Šedivý Míra | B11: Šedivý | C11: Placeno panáků | D11: =IF(IFERROR(INDEX(Přehled_body!$E$4:$ED$147,MATCH(Tabulka!$AI11,Přehled_body!$A$4:$A$147,0),MATCH(Tabulka!D$2,Přehled_body!$E$2:$ED$2,0)),)="",,IF(IFERROR(INDEX(Přehled_body!$E$4:$ED$147,MATCH(Tabulka!$AI11,Přehled_body!$A$4:$A$147,0),MATCH(Tabulka!D$2,Přehled_body!$E$2:$ED$2,0)),)=0,0.00000000001,IFERROR(INDEX(Přehled_body!$E$4:$ED$147,MATCH(Tabulka!$AI11,Přehled_body!$A$4:$A$147,0),MATCH(Tabulka!D$2,Přehled_body!$E$2:$ED$2,0)),))) -> 1e-11 | E11: =IF(IFERROR(INDEX(Přehled_body!$E$4:$ED$147,MATCH(Tabulka!$AI11,Přehled_body!$A$4:$A$147,0),MATCH(Tabulka!E$2,Přehled_body!$E$2:$ED$2,0)),)="",,IF(IFERROR(INDEX(Přehled_body!$E$4:$ED$147,MATCH(Tabulka!$AI11,Přehled_body!$A$4:$A$147,0),MATCH(Tabulka!E$2,Přehled_body!$E$2:$ED$2,0)),)=0,0.00000000001,IFERROR(INDEX(Přehled_body!$E$4:$ED$147,MATCH(Tabulka!$AI11,Přehled_body!$A$4:$A$147,0),MATCH(Tabulka!E$2,Přehled_body!$E$2:$ED$2,0)),))) -> 0 | F11: =IF(IFERROR(INDEX(Přehled_body!$E$4:$ED$147,MATCH(Tabulka!$AI11,Přehled_body!$A$4:$A$147,0),MATCH(Tabulka!F$2,Přehled_body!$E$2:$ED$2,0)),)="",,IF(IFERROR(INDEX(Přehled_body!$E$4:$ED$147,MATCH(Tabulka!$AI11,Přehled_body!$A$4:$A$147,0),MATCH(Tabulka!F$2,Přehled_body!$E$2:$ED$2,0)),)=0,0.00000000001,IFERROR(INDEX(Přehled_body!$E$4:$ED$147,MATCH(Tabulka!$AI11,Přehled_body!$A$4:$A$147,0),MATCH(Tabulka!F$2,Přehled_body!$E$2:$ED$2,0)),))) -> 0 | G11: =IF(IFERROR(INDEX(Přehled_body!$E$4:$ED$147,MATCH(Tabulka!$AI11,Přehled_body!$A$4:$A$147,0),MATCH(Tabulka!G$2,Přehled_body!$E$2:$ED$2,0)),)="",,IF(IFERROR(INDEX(Přehled_body!$E$4:$ED$147,MATCH(Tabulka!$AI11,Přehled_body!$A$4:$A$147,0),MATCH(Tabulka!G$2,Přehled_body!$E$2:$ED$2,0)),)=0,0.00000000001,IFERROR(INDEX(Přehled_body!$E$4:$ED$147,MATCH(Tabulka!$AI11,Přehled_body!$A$4:$A$147,0),MATCH(Tabulka!G$2,Přehled_body!$E$2:$ED$2,0)),))) -> 0 | H11: =IF(IFERROR(INDEX(Přehled_body!$E$4:$ED$147,MATCH(Tabulka!$AI11,Přehled_body!$A$4:$A$147,0),MATCH(Tabulka!H$2,Přehled_body!$E$2:$ED$2,0)),)="",,IF(IFERROR(INDEX(Přehled_body!$E$4:$ED$147,MATCH(Tabulka!$AI11,Přehled_body!$A$4:$A$147,0),MATCH(Tabulka!H$2,Přehled_body!$E$2:$ED$2,0)),)=0,0.00000000001,IFERROR(INDEX(Přehled_body!$E$4:$ED$147,MATCH(Tabulka!$AI11,Přehled_body!$A$4:$A$147,0),MATCH(Tabulka!H$2,Přehled_body!$E$2:$ED$2,0)),))) -> 0 | I11: =IF(IFERROR(INDEX(Přehled_body!$E$4:$ED$147,MATCH(Tabulka!$AI11,Přehled_body!$A$4:$A$147,0),MATCH(Tabulka!I$2,Přehled_body!$E$2:$ED$2,0)),)="",,IF(IFERROR(INDEX(Přehled_body!$E$4:$ED$147,MATCH(Tabulka!$AI11,Přehled_body!$A$4:$A$147,0),MATCH(Tabulka!I$2,Přehled_body!$E$2:$ED$2,0)),)=0,0.00000000001,IFERROR(INDEX(Přehled_body!$E$4:$ED$147,MATCH(Tabulka!$AI11,Přehled_body!$A$4:$A$147,0),MATCH(Tabulka!I$2,Přehled_body!$E$2:$ED$2,0)),))) -> 0 | J11: =IF(IFERROR(INDEX(Přehled_body!$E$4:$ED$147,MATCH(Tabulka!$AI11,Přehled_body!$A$4:$A$147,0),MATCH(Tabulka!J$2,Přehled_body!$E$2:$ED$2,0)),)="",,IF(IFERROR(INDEX(Přehled_body!$E$4:$ED$147,MATCH(Tabulka!$AI11,Přehled_body!$A$4:$A$147,0),MATCH(Tabulka!J$2,Přehled_body!$E$2:$ED$2,0)),)=0,0.00000000001,IFERROR(INDEX(Přehled_body!$E$4:$ED$147,MATCH(Tabulka!$AI11,Přehled_body!$A$4:$A$147,0),MATCH(Tabulka!J$2,Přehled_body!$E$2:$ED$2,0)),))) -> 0 | K11: =IF(IFERROR(INDEX(Přehled_body!$E$4:$ED$147,MATCH(Tabulka!$AI11,Přehled_body!$A$4:$A$147,0),MATCH(Tabulka!K$2,Přehled_body!$E$2:$ED$2,0)),)="",,IF(IFERROR(INDEX(Přehled_body!$E$4:$ED$147,MATCH(Tabulka!$AI11,Přehled_body!$A$4:$A$147,0),MATCH(Tabulka!K$2,Přehled_body!$E$2:$ED$2,0)),)=0,0.00000000001,IFERROR(INDEX(Přehled_body!$E$4:$ED$147,MATCH(Tabulka!$AI11,Přehled_body!$A$4:$A$147,0),MATCH(Tabulka!K$2,Přehled_body!$E$2:$ED$2,0)),))) -> 0 | L11: =IF(IFERROR(INDEX(Přehled_body!$E$4:$ED$147,MATCH(Tabulka!$AI11,Přehled_body!$A$4:$A$147,0),MATCH(Tabulka!L$2,Přehled_body!$E$2:$ED$2,0)),)="",,IF(IFERROR(INDEX(Přehled_body!$E$4:$ED$147,MATCH(Tabulka!$AI11,Přehled_body!$A$4:$A$147,0),MATCH(Tabulka!L$2,Přehled_body!$E$2:$ED$2,0)),)=0,0.00000000001,IFERROR(INDEX(Přehled_body!$E$4:$ED$147,MATCH(Tabulka!$AI11,Přehled_body!$A$4:$A$147,0),MATCH(Tabulka!L$2,Přehled_body!$E$2:$ED$2,0)),))) -> 0 | M11: =IF(IFERROR(INDEX(Přehled_body!$E$4:$ED$147,MATCH(Tabulka!$AI11,Přehled_body!$A$4:$A$147,0),MATCH(Tabulka!M$2,Přehled_body!$E$2:$ED$2,0)),)="",,IF(IFERROR(INDEX(Přehled_body!$E$4:$ED$147,MATCH(Tabulka!$AI11,Přehled_body!$A$4:$A$147,0),MATCH(Tabulka!M$2,Přehled_body!$E$2:$ED$2,0)),)=0,0.00000000001,IFERROR(INDEX(Přehled_body!$E$4:$ED$147,MATCH(Tabulka!$AI11,Přehled_body!$A$4:$A$147,0),MATCH(Tabulka!M$2,Přehled_body!$E$2:$ED$2,0)),))) -> 0 | N11: =IF(IFERROR(INDEX(Přehled_body!$E$4:$ED$147,MATCH(Tabulka!$AI11,Přehled_body!$A$4:$A$147,0),MATCH(Tabulka!N$2,Přehled_body!$E$2:$ED$2,0)),)="",,IF(IFERROR(INDEX(Přehled_body!$E$4:$ED$147,MATCH(Tabulka!$AI11,Přehled_body!$A$4:$A$147,0),MATCH(Tabulka!N$2,Přehled_body!$E$2:$ED$2,0)),)=0,0.00000000001,IFERROR(INDEX(Přehled_body!$E$4:$ED$147,MATCH(Tabulka!$AI11,Přehled_body!$A$4:$A$147,0),MATCH(Tabulka!N$2,Přehled_body!$E$2:$ED$2,0)),))) -> 0 | O11: =IF(IFERROR(INDEX(Přehled_body!$E$4:$ED$147,MATCH(Tabulka!$AI11,Přehled_body!$A$4:$A$147,0),MATCH(Tabulka!O$2,Přehled_body!$E$2:$ED$2,0)),)="",,IF(IFERROR(INDEX(Přehled_body!$E$4:$ED$147,MATCH(Tabulka!$AI11,Přehled_body!$A$4:$A$147,0),MATCH(Tabulka!O$2,Přehled_body!$E$2:$ED$2,0)),)=0,0.00000000001,IFERROR(INDEX(Přehled_body!$E$4:$ED$147,MATCH(Tabulka!$AI11,Přehled_body!$A$4:$A$147,0),MATCH(Tabulka!O$2,Přehled_body!$E$2:$ED$2,0)),))) -> 0 | P11: =IF(IFERROR(INDEX(Přehled_body!$E$4:$ED$147,MATCH(Tabulka!$AI11,Přehled_body!$A$4:$A$147,0),MATCH(Tabulka!P$2,Přehled_body!$E$2:$ED$2,0)),)="",,IF(IFERROR(INDEX(Přehled_body!$E$4:$ED$147,MATCH(Tabulka!$AI11,Přehled_body!$A$4:$A$147,0),MATCH(Tabulka!P$2,Přehled_body!$E$2:$ED$2,0)),)=0,0.00000000001,IFERROR(INDEX(Přehled_body!$E$4:$ED$147,MATCH(Tabulka!$AI11,Přehled_body!$A$4:$A$147,0),MATCH(Tabulka!P$2,Přehled_body!$E$2:$ED$2,0)),))) -> 0 | Q11: =IF(IFERROR(INDEX(Přehled_body!$E$4:$ED$147,MATCH(Tabulka!$AI11,Přehled_body!$A$4:$A$147,0),MATCH(Tabulka!Q$2,Přehled_body!$E$2:$ED$2,0)),)="",,IF(IFERROR(INDEX(Přehled_body!$E$4:$ED$147,MATCH(Tabulka!$AI11,Přehled_body!$A$4:$A$147,0),MATCH(Tabulka!Q$2,Přehled_body!$E$2:$ED$2,0)),)=0,0.00000000001,IFERROR(INDEX(Přehled_body!$E$4:$ED$147,MATCH(Tabulka!$AI11,Přehled_body!$A$4:$A$147,0),MATCH(Tabulka!Q$2,Přehled_body!$E$2:$ED$2,0)),))) -> 0 | R11: =IF(IFERROR(INDEX(Přehled_body!$E$4:$ED$147,MATCH(Tabulka!$AI11,Přehled_body!$A$4:$A$147,0),MATCH(Tabulka!R$2,Přehled_body!$E$2:$ED$2,0)),)="",,IF(IFERROR(INDEX(Přehled_body!$E$4:$ED$147,MATCH(Tabulka!$AI11,Přehled_body!$A$4:$A$147,0),MATCH(Tabulka!R$2,Přehled_body!$E$2:$ED$2,0)),)=0,0.00000000001,IFERROR(INDEX(Přehled_body!$E$4:$ED$147,MATCH(Tabulka!$AI11,Přehled_body!$A$4:$A$147,0),MATCH(Tabulka!R$2,Přehled_body!$E$2:$ED$2,0)),))) -> 0 | S11: =IF(IFERROR(INDEX(Přehled_body!$E$4:$ED$147,MATCH(Tabulka!$AI11,Přehled_body!$A$4:$A$147,0),MATCH(Tabulka!S$2,Přehled_body!$E$2:$ED$2,0)),)="",,IF(IFERROR(INDEX(Přehled_body!$E$4:$ED$147,MATCH(Tabulka!$AI11,Přehled_body!$A$4:$A$147,0),MATCH(Tabulka!S$2,Přehled_body!$E$2:$ED$2,0)),)=0,0.00000000001,IFERROR(INDEX(Přehled_body!$E$4:$ED$147,MATCH(Tabulka!$AI11,Přehled_body!$A$4:$A$147,0),MATCH(Tabulka!S$2,Přehled_body!$E$2:$ED$2,0)),))) -> 0 | T11: =IF(IFERROR(INDEX(Přehled_body!$E$4:$ED$147,MATCH(Tabulka!$AI11,Přehled_body!$A$4:$A$147,0),MATCH(Tabulka!T$2,Přehled_body!$E$2:$ED$2,0)),)="",,IF(IFERROR(INDEX(Přehled_body!$E$4:$ED$147,MATCH(Tabulka!$AI11,Přehled_body!$A$4:$A$147,0),MATCH(Tabulka!T$2,Přehled_body!$E$2:$ED$2,0)),)=0,0.00000000001,IFERROR(INDEX(Přehled_body!$E$4:$ED$147,MATCH(Tabulka!$AI11,Přehled_body!$A$4:$A$147,0),MATCH(Tabulka!T$2,Přehled_body!$E$2:$ED$2,0)),))) -> 0 | U11: =IF(IFERROR(INDEX(Přehled_body!$E$4:$ED$147,MATCH(Tabulka!$AI11,Přehled_body!$A$4:$A$147,0),MATCH(Tabulka!U$2,Přehled_body!$E$2:$ED$2,0)),)="",,IF(IFERROR(INDEX(Přehled_body!$E$4:$ED$147,MATCH(Tabulka!$AI11,Přehled_body!$A$4:$A$147,0),MATCH(Tabulka!U$2,Přehled_body!$E$2:$ED$2,0)),)=0,0.00000000001,IFERROR(INDEX(Přehled_body!$E$4:$ED$147,MATCH(Tabulka!$AI11,Přehled_body!$A$4:$A$147,0),MATCH(Tabulka!U$2,Přehled_body!$E$2:$ED$2,0)),))) -> 0 | V11: =IF(IFERROR(INDEX(Přehled_body!$E$4:$ED$147,MATCH(Tabulka!$AI11,Přehled_body!$A$4:$A$147,0),MATCH(Tabulka!V$2,Přehled_body!$E$2:$ED$2,0)),)="",,IF(IFERROR(INDEX(Přehled_body!$E$4:$ED$147,MATCH(Tabulka!$AI11,Přehled_body!$A$4:$A$147,0),MATCH(Tabulka!V$2,Přehled_body!$E$2:$ED$2,0)),)=0,0.00000000001,IFERROR(INDEX(Přehled_body!$E$4:$ED$147,MATCH(Tabulka!$AI11,Přehled_body!$A$4:$A$147,0),MATCH(Tabulka!V$2,Přehled_body!$E$2:$ED$2,0)),))) -> 0 | W11: =IF(IFERROR(INDEX(Přehled_body!$E$4:$ED$147,MATCH(Tabulka!$AI11,Přehled_body!$A$4:$A$147,0),MATCH(Tabulka!W$2,Přehled_body!$E$2:$ED$2,0)),)="",,IF(IFERROR(INDEX(Přehled_body!$E$4:$ED$147,MATCH(Tabulka!$AI11,Přehled_body!$A$4:$A$147,0),MATCH(Tabulka!W$2,Přehled_body!$E$2:$ED$2,0)),)=0,0.00000000001,IFERROR(INDEX(Přehled_body!$E$4:$ED$147,MATCH(Tabulka!$AI11,Přehled_body!$A$4:$A$147,0),MATCH(Tabulka!W$2,Přehled_body!$E$2:$ED$2,0)),))) -> 0 | X11: =IF(IFERROR(INDEX(Přehled_body!$E$4:$ED$147,MATCH(Tabulka!$AI11,Přehled_body!$A$4:$A$147,0),MATCH(Tabulka!X$2,Přehled_body!$E$2:$ED$2,0)),)="",,IF(IFERROR(INDEX(Přehled_body!$E$4:$ED$147,MATCH(Tabulka!$AI11,Přehled_body!$A$4:$A$147,0),MATCH(Tabulka!X$2,Přehled_body!$E$2:$ED$2,0)),)=0,0.00000000001,IFERROR(INDEX(Přehled_body!$E$4:$ED$147,MATCH(Tabulka!$AI11,Přehled_body!$A$4:$A$147,0),MATCH(Tabulka!X$2,Přehled_body!$E$2:$ED$2,0)),))) -> 0 | Y11: =IF(IFERROR(INDEX(Přehled_body!$E$4:$ED$147,MATCH(Tabulka!$AI11,Přehled_body!$A$4:$A$147,0),MATCH(Tabulka!Y$2,Přehled_body!$E$2:$ED$2,0)),)="",,IF(IFERROR(INDEX(Přehled_body!$E$4:$ED$147,MATCH(Tabulka!$AI11,Přehled_body!$A$4:$A$147,0),MATCH(Tabulka!Y$2,Přehled_body!$E$2:$ED$2,0)),)=0,0.00000000001,IFERROR(INDEX(Přehled_body!$E$4:$ED$147,MATCH(Tabulka!$AI11,Přehled_body!$A$4:$A$147,0),MATCH(Tabulka!Y$2,Přehled_body!$E$2:$ED$2,0)),))) -> 0 | Z11: =IF(IFERROR(INDEX(Přehled_body!$E$4:$ED$147,MATCH(Tabulka!$AI11,Přehled_body!$A$4:$A$147,0),MATCH(Tabulka!Z$2,Přehled_body!$E$2:$ED$2,0)),)="",,IF(IFERROR(INDEX(Přehled_body!$E$4:$ED$147,MATCH(Tabulka!$AI11,Přehled_body!$A$4:$A$147,0),MATCH(Tabulka!Z$2,Přehled_body!$E$2:$ED$2,0)),)=0,0.00000000001,IFERROR(INDEX(Přehled_body!$E$4:$ED$147,MATCH(Tabulka!$AI11,Přehled_body!$A$4:$A$147,0),MATCH(Tabulka!Z$2,Přehled_body!$E$2:$ED$2,0)),))) -> 0 | AA11: =IF(IFERROR(INDEX(Přehled_body!$E$4:$ED$147,MATCH(Tabulka!$AI11,Přehled_body!$A$4:$A$147,0),MATCH(Tabulka!AA$2,Přehled_body!$E$2:$ED$2,0)),)="",,IF(IFERROR(INDEX(Přehled_body!$E$4:$ED$147,MATCH(Tabulka!$AI11,Přehled_body!$A$4:$A$147,0),MATCH(Tabulka!AA$2,Přehled_body!$E$2:$ED$2,0)),)=0,0.00000000001,IFERROR(INDEX(Přehled_body!$E$4:$ED$147,MATCH(Tabulka!$AI11,Přehled_body!$A$4:$A$147,0),MATCH(Tabulka!AA$2,Přehled_body!$E$2:$ED$2,0)),))) -> 0 | AB11: =IF(IFERROR(INDEX(Přehled_body!$E$4:$ED$147,MATCH(Tabulka!$AI11,Přehled_body!$A$4:$A$147,0),MATCH(Tabulka!AB$2,Přehled_body!$E$2:$ED$2,0)),)="",,IF(IFERROR(INDEX(Přehled_body!$E$4:$ED$147,MATCH(Tabulka!$AI11,Přehled_body!$A$4:$A$147,0),MATCH(Tabulka!AB$2,Přehled_body!$E$2:$ED$2,0)),)=0,0.00000000001,IFERROR(INDEX(Přehled_body!$E$4:$ED$147,MATCH(Tabulka!$AI11,Přehled_body!$A$4:$A$147,0),MATCH(Tabulka!AB$2,Přehled_body!$E$2:$ED$2,0)),))) -> 0 | AC11: =IF(IFERROR(INDEX(Přehled_body!$E$4:$ED$147,MATCH(Tabulka!$AI11,Přehled_body!$A$4:$A$147,0),MATCH(Tabulka!AC$2,Přehled_body!$E$2:$ED$2,0)),)="",,IF(IFERROR(INDEX(Přehled_body!$E$4:$ED$147,MATCH(Tabulka!$AI11,Přehled_body!$A$4:$A$147,0),MATCH(Tabulka!AC$2,Přehled_body!$E$2:$ED$2,0)),)=0,0.00000000001,IFERROR(INDEX(Přehled_body!$E$4:$ED$147,MATCH(Tabulka!$AI11,Přehled_body!$A$4:$A$147,0),MATCH(Tabulka!AC$2,Přehled_body!$E$2:$ED$2,0)),))) -> 0 | AD11: =IF(IFERROR(INDEX(Přehled_body!$E$4:$ED$147,MATCH(Tabulka!$AI11,Přehled_body!$A$4:$A$147,0),MATCH(Tabulka!AD$2,Přehled_body!$E$2:$ED$2,0)),)="",,IF(IFERROR(INDEX(Přehled_body!$E$4:$ED$147,MATCH(Tabulka!$AI11,Přehled_body!$A$4:$A$147,0),MATCH(Tabulka!AD$2,Přehled_body!$E$2:$ED$2,0)),)=0,0.00000000001,IFERROR(INDEX(Přehled_body!$E$4:$ED$147,MATCH(Tabulka!$AI11,Přehled_body!$A$4:$A$147,0),MATCH(Tabulka!AD$2,Přehled_body!$E$2:$ED$2,0)),))) -> 0 | AE11: =IF(SUM(AG9)<2,-90000+SUM(D11:AD11),SUM(D11:AD11)) -> -90000 | AH11: 0 | AI11: =CONCATENATE($B$10," ",$B$11,C11) -> Míra ŠedivýPlaceno panáků | AL11: 1 | AO11: Hruška | AP11: =CONCATENATE(AQ11," ",AQ12) -> Veselý | AQ11: Veselý | AR11: Veselý
A12: Míra Š | B12: Míra Š | C12: Přehozy | D12: =IF(IFERROR(INDEX(Přehled_body!$E$4:$ED$147,MATCH(Tabulka!$AI12,Přehled_body!$A$4:$A$147,0),MATCH(Tabulka!D$2,Přehled_body!$E$2:$ED$2,0)),)="",,IF(IFERROR(INDEX(Přehled_body!$E$4:$ED$147,MATCH(Tabulka!$AI12,Přehled_body!$A$4:$A$147,0),MATCH(Tabulka!D$2,Přehled_body!$E$2:$ED$2,0)),)=0,0.00000000001,IFERROR(INDEX(Přehled_body!$E$4:$ED$147,MATCH(Tabulka!$AI12,Přehled_body!$A$4:$A$147,0),MATCH(Tabulka!D$2,Přehled_body!$E$2:$ED$2,0)),))) -> 2 | E12: =IF(IFERROR(INDEX(Přehled_body!$E$4:$ED$147,MATCH(Tabulka!$AI12,Přehled_body!$A$4:$A$147,0),MATCH(Tabulka!E$2,Přehled_body!$E$2:$ED$2,0)),)="",,IF(IFERROR(INDEX(Přehled_body!$E$4:$ED$147,MATCH(Tabulka!$AI12,Přehled_body!$A$4:$A$147,0),MATCH(Tabulka!E$2,Přehled_body!$E$2:$ED$2,0)),)=0,0.00000000001,IFERROR(INDEX(Přehled_body!$E$4:$ED$147,MATCH(Tabulka!$AI12,Přehled_body!$A$4:$A$147,0),MATCH(Tabulka!E$2,Přehled_body!$E$2:$ED$2,0)),))) -> 0 | F12: =IF(IFERROR(INDEX(Přehled_body!$E$4:$ED$147,MATCH(Tabulka!$AI12,Přehled_body!$A$4:$A$147,0),MATCH(Tabulka!F$2,Přehled_body!$E$2:$ED$2,0)),)="",,IF(IFERROR(INDEX(Přehled_body!$E$4:$ED$147,MATCH(Tabulka!$AI12,Přehled_body!$A$4:$A$147,0),MATCH(Tabulka!F$2,Přehled_body!$E$2:$ED$2,0)),)=0,0.00000000001,IFERROR(INDEX(Přehled_body!$E$4:$ED$147,MATCH(Tabulka!$AI12,Přehled_body!$A$4:$A$147,0),MATCH(Tabulka!F$2,Přehled_body!$E$2:$ED$2,0)),))) -> 0 | G12: =IF(IFERROR(INDEX(Přehled_body!$E$4:$ED$147,MATCH(Tabulka!$AI12,Přehled_body!$A$4:$A$147,0),MATCH(Tabulka!G$2,Přehled_body!$E$2:$ED$2,0)),)="",,IF(IFERROR(INDEX(Přehled_body!$E$4:$ED$147,MATCH(Tabulka!$AI12,Přehled_body!$A$4:$A$147,0),MATCH(Tabulka!G$2,Přehled_body!$E$2:$ED$2,0)),)=0,0.00000000001,IFERROR(INDEX(Přehled_body!$E$4:$ED$147,MATCH(Tabulka!$AI12,Přehled_body!$A$4:$A$147,0),MATCH(Tabulka!G$2,Přehled_body!$E$2:$ED$2,0)),))) -> 0 | H12: =IF(IFERROR(INDEX(Přehled_body!$E$4:$ED$147,MATCH(Tabulka!$AI12,Přehled_body!$A$4:$A$147,0),MATCH(Tabulka!H$2,Přehled_body!$E$2:$ED$2,0)),)="",,IF(IFERROR(INDEX(Přehled_body!$E$4:$ED$147,MATCH(Tabulka!$AI12,Přehled_body!$A$4:$A$147,0),MATCH(Tabulka!H$2,Přehled_body!$E$2:$ED$2,0)),)=0,0.00000000001,IFERROR(INDEX(Přehled_body!$E$4:$ED$147,MATCH(Tabulka!$AI12,Přehled_body!$A$4:$A$147,0),MATCH(Tabulka!H$2,Přehled_body!$E$2:$ED$2,0)),))) -> 0 | I12: =IF(IFERROR(INDEX(Přehled_body!$E$4:$ED$147,MATCH(Tabulka!$AI12,Přehled_body!$A$4:$A$147,0),MATCH(Tabulka!I$2,Přehled_body!$E$2:$ED$2,0)),)="",,IF(IFERROR(INDEX(Přehled_body!$E$4:$ED$147,MATCH(Tabulka!$AI12,Přehled_body!$A$4:$A$147,0),MATCH(Tabulka!I$2,Přehled_body!$E$2:$ED$2,0)),)=0,0.00000000001,IFERROR(INDEX(Přehled_body!$E$4:$ED$147,MATCH(Tabulka!$AI12,Přehled_body!$A$4:$A$147,0),MATCH(Tabulka!I$2,Přehled_body!$E$2:$ED$2,0)),))) -> 0 | J12: =IF(IFERROR(INDEX(Přehled_body!$E$4:$ED$147,MATCH(Tabulka!$AI12,Přehled_body!$A$4:$A$147,0),MATCH(Tabulka!J$2,Přehled_body!$E$2:$ED$2,0)),)="",,IF(IFERROR(INDEX(Přehled_body!$E$4:$ED$147,MATCH(Tabulka!$AI12,Přehled_body!$A$4:$A$147,0),MATCH(Tabulka!J$2,Přehled_body!$E$2:$ED$2,0)),)=0,0.00000000001,IFERROR(INDEX(Přehled_body!$E$4:$ED$147,MATCH(Tabulka!$AI12,Přehled_body!$A$4:$A$147,0),MATCH(Tabulka!J$2,Přehled_body!$E$2:$ED$2,0)),))) -> 0 | K12: =IF(IFERROR(INDEX(Přehled_body!$E$4:$ED$147,MATCH(Tabulka!$AI12,Přehled_body!$A$4:$A$147,0),MATCH(Tabulka!K$2,Přehled_body!$E$2:$ED$2,0)),)="",,IF(IFERROR(INDEX(Přehled_body!$E$4:$ED$147,MATCH(Tabulka!$AI12,Přehled_body!$A$4:$A$147,0),MATCH(Tabulka!K$2,Přehled_body!$E$2:$ED$2,0)),)=0,0.00000000001,IFERROR(INDEX(Přehled_body!$E$4:$ED$147,MATCH(Tabulka!$AI12,Přehled_body!$A$4:$A$147,0),MATCH(Tabulka!K$2,Přehled_body!$E$2:$ED$2,0)),))) -> 0 | L12: =IF(IFERROR(INDEX(Přehled_body!$E$4:$ED$147,MATCH(Tabulka!$AI12,Přehled_body!$A$4:$A$147,0),MATCH(Tabulka!L$2,Přehled_body!$E$2:$ED$2,0)),)="",,IF(IFERROR(INDEX(Přehled_body!$E$4:$ED$147,MATCH(Tabulka!$AI12,Přehled_body!$A$4:$A$147,0),MATCH(Tabulka!L$2,Přehled_body!$E$2:$ED$2,0)),)=0,0.00000000001,IFERROR(INDEX(Přehled_body!$E$4:$ED$147,MATCH(Tabulka!$AI12,Přehled_body!$A$4:$A$147,0),MATCH(Tabulka!L$2,Přehled_body!$E$2:$ED$2,0)),))) -> 0 | M12: =IF(IFERROR(INDEX(Přehled_body!$E$4:$ED$147,MATCH(Tabulka!$AI12,Přehled_body!$A$4:$A$147,0),MATCH(Tabulka!M$2,Přehled_body!$E$2:$ED$2,0)),)="",,IF(IFERROR(INDEX(Přehled_body!$E$4:$ED$147,MATCH(Tabulka!$AI12,Přehled_body!$A$4:$A$147,0),MATCH(Tabulka!M$2,Přehled_body!$E$2:$ED$2,0)),)=0,0.00000000001,IFERROR(INDEX(Přehled_body!$E$4:$ED$147,MATCH(Tabulka!$AI12,Přehled_body!$A$4:$A$147,0),MATCH(Tabulka!M$2,Přehled_body!$E$2:$ED$2,0)),))) -> 0 | N12: =IF(IFERROR(INDEX(Přehled_body!$E$4:$ED$147,MATCH(Tabulka!$AI12,Přehled_body!$A$4:$A$147,0),MATCH(Tabulka!N$2,Přehled_body!$E$2:$ED$2,0)),)="",,IF(IFERROR(INDEX(Přehled_body!$E$4:$ED$147,MATCH(Tabulka!$AI12,Přehled_body!$A$4:$A$147,0),MATCH(Tabulka!N$2,Přehled_body!$E$2:$ED$2,0)),)=0,0.00000000001,IFERROR(INDEX(Přehled_body!$E$4:$ED$147,MATCH(Tabulka!$AI12,Přehled_body!$A$4:$A$147,0),MATCH(Tabulka!N$2,Přehled_body!$E$2:$ED$2,0)),))) -> 0 | O12: =IF(IFERROR(INDEX(Přehled_body!$E$4:$ED$147,MATCH(Tabulka!$AI12,Přehled_body!$A$4:$A$147,0),MATCH(Tabulka!O$2,Přehled_body!$E$2:$ED$2,0)),)="",,IF(IFERROR(INDEX(Přehled_body!$E$4:$ED$147,MATCH(Tabulka!$AI12,Přehled_body!$A$4:$A$147,0),MATCH(Tabulka!O$2,Přehled_body!$E$2:$ED$2,0)),)=0,0.00000000001,IFERROR(INDEX(Přehled_body!$E$4:$ED$147,MATCH(Tabulka!$AI12,Přehled_body!$A$4:$A$147,0),MATCH(Tabulka!O$2,Přehled_body!$E$2:$ED$2,0)),))) -> 0 | P12: =IF(IFERROR(INDEX(Přehled_body!$E$4:$ED$147,MATCH(Tabulka!$AI12,Přehled_body!$A$4:$A$147,0),MATCH(Tabulka!P$2,Přehled_body!$E$2:$ED$2,0)),)="",,IF(IFERROR(INDEX(Přehled_body!$E$4:$ED$147,MATCH(Tabulka!$AI12,Přehled_body!$A$4:$A$147,0),MATCH(Tabulka!P$2,Přehled_body!$E$2:$ED$2,0)),)=0,0.00000000001,IFERROR(INDEX(Přehled_body!$E$4:$ED$147,MATCH(Tabulka!$AI12,Přehled_body!$A$4:$A$147,0),MATCH(Tabulka!P$2,Přehled_body!$E$2:$ED$2,0)),))) -> 0 | Q12: =IF(IFERROR(INDEX(Přehled_body!$E$4:$ED$147,MATCH(Tabulka!$AI12,Přehled_body!$A$4:$A$147,0),MATCH(Tabulka!Q$2,Přehled_body!$E$2:$ED$2,0)),)="",,IF(IFERROR(INDEX(Přehled_body!$E$4:$ED$147,MATCH(Tabulka!$AI12,Přehled_body!$A$4:$A$147,0),MATCH(Tabulka!Q$2,Přehled_body!$E$2:$ED$2,0)),)=0,0.00000000001,IFERROR(INDEX(Přehled_body!$E$4:$ED$147,MATCH(Tabulka!$AI12,Přehled_body!$A$4:$A$147,0),MATCH(Tabulka!Q$2,Přehled_body!$E$2:$ED$2,0)),))) -> 0 | R12: =IF(IFERROR(INDEX(Přehled_body!$E$4:$ED$147,MATCH(Tabulka!$AI12,Přehled_body!$A$4:$A$147,0),MATCH(Tabulka!R$2,Přehled_body!$E$2:$ED$2,0)),)="",,IF(IFERROR(INDEX(Přehled_body!$E$4:$ED$147,MATCH(Tabulka!$AI12,Přehled_body!$A$4:$A$147,0),MATCH(Tabulka!R$2,Přehled_body!$E$2:$ED$2,0)),)=0,0.00000000001,IFERROR(INDEX(Přehled_body!$E$4:$ED$147,MATCH(Tabulka!$AI12,Přehled_body!$A$4:$A$147,0),MATCH(Tabulka!R$2,Přehled_body!$E$2:$ED$2,0)),))) -> 0 | S12: =IF(IFERROR(INDEX(Přehled_body!$E$4:$ED$147,MATCH(Tabulka!$AI12,Přehled_body!$A$4:$A$147,0),MATCH(Tabulka!S$2,Přehled_body!$E$2:$ED$2,0)),)="",,IF(IFERROR(INDEX(Přehled_body!$E$4:$ED$147,MATCH(Tabulka!$AI12,Přehled_body!$A$4:$A$147,0),MATCH(Tabulka!S$2,Přehled_body!$E$2:$ED$2,0)),)=0,0.00000000001,IFERROR(INDEX(Přehled_body!$E$4:$ED$147,MATCH(Tabulka!$AI12,Přehled_body!$A$4:$A$147,0),MATCH(Tabulka!S$2,Přehled_body!$E$2:$ED$2,0)),))) -> 0 | T12: =IF(IFERROR(INDEX(Přehled_body!$E$4:$ED$147,MATCH(Tabulka!$AI12,Přehled_body!$A$4:$A$147,0),MATCH(Tabulka!T$2,Přehled_body!$E$2:$ED$2,0)),)="",,IF(IFERROR(INDEX(Přehled_body!$E$4:$ED$147,MATCH(Tabulka!$AI12,Přehled_body!$A$4:$A$147,0),MATCH(Tabulka!T$2,Přehled_body!$E$2:$ED$2,0)),)=0,0.00000000001,IFERROR(INDEX(Přehled_body!$E$4:$ED$147,MATCH(Tabulka!$AI12,Přehled_body!$A$4:$A$147,0),MATCH(Tabulka!T$2,Přehled_body!$E$2:$ED$2,0)),))) -> 0 | U12: =IF(IFERROR(INDEX(Přehled_body!$E$4:$ED$147,MATCH(Tabulka!$AI12,Přehled_body!$A$4:$A$147,0),MATCH(Tabulka!U$2,Přehled_body!$E$2:$ED$2,0)),)="",,IF(IFERROR(INDEX(Přehled_body!$E$4:$ED$147,MATCH(Tabulka!$AI12,Přehled_body!$A$4:$A$147,0),MATCH(Tabulka!U$2,Přehled_body!$E$2:$ED$2,0)),)=0,0.00000000001,IFERROR(INDEX(Přehled_body!$E$4:$ED$147,MATCH(Tabulka!$AI12,Přehled_body!$A$4:$A$147,0),MATCH(Tabulka!U$2,Přehled_body!$E$2:$ED$2,0)),))) -> 0 | V12: =IF(IFERROR(INDEX(Přehled_body!$E$4:$ED$147,MATCH(Tabulka!$AI12,Přehled_body!$A$4:$A$147,0),MATCH(Tabulka!V$2,Přehled_body!$E$2:$ED$2,0)),)="",,IF(IFERROR(INDEX(Přehled_body!$E$4:$ED$147,MATCH(Tabulka!$AI12,Přehled_body!$A$4:$A$147,0),MATCH(Tabulka!V$2,Přehled_body!$E$2:$ED$2,0)),)=0,0.00000000001,IFERROR(INDEX(Přehled_body!$E$4:$ED$147,MATCH(Tabulka!$AI12,Přehled_body!$A$4:$A$147,0),MATCH(Tabulka!V$2,Přehled_body!$E$2:$ED$2,0)),))) -> 0 | W12: =IF(IFERROR(INDEX(Přehled_body!$E$4:$ED$147,MATCH(Tabulka!$AI12,Přehled_body!$A$4:$A$147,0),MATCH(Tabulka!W$2,Přehled_body!$E$2:$ED$2,0)),)="",,IF(IFERROR(INDEX(Přehled_body!$E$4:$ED$147,MATCH(Tabulka!$AI12,Přehled_body!$A$4:$A$147,0),MATCH(Tabulka!W$2,Přehled_body!$E$2:$ED$2,0)),)=0,0.00000000001,IFERROR(INDEX(Přehled_body!$E$4:$ED$147,MATCH(Tabulka!$AI12,Přehled_body!$A$4:$A$147,0),MATCH(Tabulka!W$2,Přehled_body!$E$2:$ED$2,0)),))) -> 0 | X12: =IF(IFERROR(INDEX(Přehled_body!$E$4:$ED$147,MATCH(Tabulka!$AI12,Přehled_body!$A$4:$A$147,0),MATCH(Tabulka!X$2,Přehled_body!$E$2:$ED$2,0)),)="",,IF(IFERROR(INDEX(Přehled_body!$E$4:$ED$147,MATCH(Tabulka!$AI12,Přehled_body!$A$4:$A$147,0),MATCH(Tabulka!X$2,Přehled_body!$E$2:$ED$2,0)),)=0,0.00000000001,IFERROR(INDEX(Přehled_body!$E$4:$ED$147,MATCH(Tabulka!$AI12,Přehled_body!$A$4:$A$147,0),MATCH(Tabulka!X$2,Přehled_body!$E$2:$ED$2,0)),))) -> 0 | Y12: =IF(IFERROR(INDEX(Přehled_body!$E$4:$ED$147,MATCH(Tabulka!$AI12,Přehled_body!$A$4:$A$147,0),MATCH(Tabulka!Y$2,Přehled_body!$E$2:$ED$2,0)),)="",,IF(IFERROR(INDEX(Přehled_body!$E$4:$ED$147,MATCH(Tabulka!$AI12,Přehled_body!$A$4:$A$147,0),MATCH(Tabulka!Y$2,Přehled_body!$E$2:$ED$2,0)),)=0,0.00000000001,IFERROR(INDEX(Přehled_body!$E$4:$ED$147,MATCH(Tabulka!$AI12,Přehled_body!$A$4:$A$147,0),MATCH(Tabulka!Y$2,Přehled_body!$E$2:$ED$2,0)),))) -> 0 | Z12: =IF(IFERROR(INDEX(Přehled_body!$E$4:$ED$147,MATCH(Tabulka!$AI12,Přehled_body!$A$4:$A$147,0),MATCH(Tabulka!Z$2,Přehled_body!$E$2:$ED$2,0)),)="",,IF(IFERROR(INDEX(Přehled_body!$E$4:$ED$147,MATCH(Tabulka!$AI12,Přehled_body!$A$4:$A$147,0),MATCH(Tabulka!Z$2,Přehled_body!$E$2:$ED$2,0)),)=0,0.00000000001,IFERROR(INDEX(Přehled_body!$E$4:$ED$147,MATCH(Tabulka!$AI12,Přehled_body!$A$4:$A$147,0),MATCH(Tabulka!Z$2,Přehled_body!$E$2:$ED$2,0)),))) -> 0 | AA12: =IF(IFERROR(INDEX(Přehled_body!$E$4:$ED$147,MATCH(Tabulka!$AI12,Přehled_body!$A$4:$A$147,0),MATCH(Tabulka!AA$2,Přehled_body!$E$2:$ED$2,0)),)="",,IF(IFERROR(INDEX(Přehled_body!$E$4:$ED$147,MATCH(Tabulka!$AI12,Přehled_body!$A$4:$A$147,0),MATCH(Tabulka!AA$2,Přehled_body!$E$2:$ED$2,0)),)=0,0.00000000001,IFERROR(INDEX(Přehled_body!$E$4:$ED$147,MATCH(Tabulka!$AI12,Přehled_body!$A$4:$A$147,0),MATCH(Tabulka!AA$2,Přehled_body!$E$2:$ED$2,0)),))) -> 0 | AB12: =IF(IFERROR(INDEX(Přehled_body!$E$4:$ED$147,MATCH(Tabulka!$AI12,Přehled_body!$A$4:$A$147,0),MATCH(Tabulka!AB$2,Přehled_body!$E$2:$ED$2,0)),)="",,IF(IFERROR(INDEX(Přehled_body!$E$4:$ED$147,MATCH(Tabulka!$AI12,Přehled_body!$A$4:$A$147,0),MATCH(Tabulka!AB$2,Přehled_body!$E$2:$ED$2,0)),)=0,0.00000000001,IFERROR(INDEX(Přehled_body!$E$4:$ED$147,MATCH(Tabulka!$AI12,Přehled_body!$A$4:$A$147,0),MATCH(Tabulka!AB$2,Přehled_body!$E$2:$ED$2,0)),))) -> 0 | AC12: =IF(IFERROR(INDEX(Přehled_body!$E$4:$ED$147,MATCH(Tabulka!$AI12,Přehled_body!$A$4:$A$147,0),MATCH(Tabulka!AC$2,Přehled_body!$E$2:$ED$2,0)),)="",,IF(IFERROR(INDEX(Přehled_body!$E$4:$ED$147,MATCH(Tabulka!$AI12,Přehled_body!$A$4:$A$147,0),MATCH(Tabulka!AC$2,Přehled_body!$E$2:$ED$2,0)),)=0,0.00000000001,IFERROR(INDEX(Přehled_body!$E$4:$ED$147,MATCH(Tabulka!$AI12,Přehled_body!$A$4:$A$147,0),MATCH(Tabulka!AC$2,Přehled_body!$E$2:$ED$2,0)),))) -> 0 | AD12: =IF(IFERROR(INDEX(Přehled_body!$E$4:$ED$147,MATCH(Tabulka!$AI12,Přehled_body!$A$4:$A$147,0),MATCH(Tabulka!AD$2,Přehled_body!$E$2:$ED$2,0)),)="",,IF(IFERROR(INDEX(Přehled_body!$E$4:$ED$147,MATCH(Tabulka!$AI12,Přehled_body!$A$4:$A$147,0),MATCH(Tabulka!AD$2,Přehled_body!$E$2:$ED$2,0)),)=0,0.00000000001,IFERROR(INDEX(Přehled_body!$E$4:$ED$147,MATCH(Tabulka!$AI12,Přehled_body!$A$4:$A$147,0),MATCH(Tabulka!AD$2,Přehled_body!$E$2:$ED$2,0)),))) -> 0 | AE12: =IF(SUM(AG9)<2,-90000+SUM(D12:AD12),SUM(D12:AD12)) -> -89998 | AH12: 2 | AI12: =CONCATENATE($B$10," ",$B$11,C12) -> Míra ŠedivýPřehozy | AL12: 1 | AP12: =CONCATENATE(AQ12," ",AQ11) -> Veselý
